Workbook

Sheet Calculator Parameters (hidden)
B2: Calculator parameters
B4: In this sheet some of the main loan policy related parameters are summarised. Changing any of these cells could have a significant impact on calculated lending capacity.
B5: Changes can only be made by person with appropriate authority. Please make sure you have the authority to make any changes before you do so.
E7: Old | F7: New | G7: Changed Date
B8: Income Source Weighting | G8: 2023-01-01
B9: Source | C9: Weight | D9: DTI Weight
B10: Salary or Wages | C10: 1 | D10: =C10 -> 1
B11: Overtime | C11: 0.8 | D11: =C11 -> 0.8
B12: Bonus | C12: 0.7 | D12: 0.7
B13: Allowance | C13: 0.8 | D13: 0.8
B14: Commission | C14: 0.75 | D14: 0.75
B15: Business Income | C15: 1 | D15: 1
B16: Beneficiary | C16: 1 | D16: 1
B17: Rentals | C17: 0.75 | D17: 0.75
B18: Investment | C18: 0.5 | D18: 0.5
B19: Child Support | C19: 0.8 | D19: 0.8
B20: Boarder | C20: 0.8 | D20: 0.8 | H20: Previous values
B21: ACC Earners levy | C21: ACC Levy Rate | D21: Maximum Levy | H21: 2013/14 | J21: 2014/15 | L21: 2015/16 | N21: 2016/17 | P21: 2017/18 | R21: 2018/19 | T21: 2019/20 | V21: 2020/21 | X21: 2021/22 | Z21: 2022/23 | AB21: 2023/24 | AD21: 2024/25 | AF21: 2025/26 | AH21: 2026/27 | AJ21: 2027/28
B22: Wages & Salary | C22: 0.0175 | D22: 2741.22 | H22: 0.017 | I22: 1934.05 | J22: 0.0145 | K22: 1713.76 | L22: 0.0145 | M22: 1741.01 | N22: 0.0139 | O22: 1696.68 | P22: 0.0139 | Q22: 1724.33 | R22: 0.0139 | S22: 1755.37 | T22: 0.0139 | U22: 1785.73 | V22: 0.0139 | W22: 1819.66 | X22: 0.0139 | Y22: 1819.66 | Z22: 0.0146 | AA22: 1993.54 | AB22: 0.0153 | AC22: 2132.57 | AD22: 0.016 | AE22: 2276.52 | AF22: 0.0167 | AG22: 2551.59 | AH22: 0.0175 | AI22: 2741.22 | AJ22: 0.0183 | AK22: 2932.47
B23: Self-employed | C23: =C22 -> 0.0175 | D23: =D22 -> 2741.22 | H23: 0.017 | I23: 1898.37 | J23: 0.0145 | K23: 1683.29 | L23: 0.0145 | M23: 1713.76 | N23: 0.0139 | O23: 1668.97 | P23: 0.0139 | Q23: 1696.67 | R23: 0.0139 | S23: 1724.33 | T23: 0.0139 | U23: 1785.73 | V23: 0.0139 | W23: 1819.66 | X23: 0.0139 | Y23: 1819.66 | Z23: 0.0146 | AA23: 1993.54 | AB23: 0.0153 | AC23: 2132.57 | AD23: 0.016 | AE23: 2276.52 | AF23: =AF22 -> 0.0167 | AG23: 2551.59 | AH23: 0.0175 | AI23: 2741.22 | AJ23: 0.0183 | AK23: 2932.47
B26: Income Tax
B27: Income Bands
B28: Min | C28: Max | D28: Marginal Tax Rate
B29: 0 | C29: 15600 | D29: 0.105
B30: =C29+0.01 -> 15600.01 | C30: 53500 | D30: 0.175
B31: =C30+0.01 -> 53500.01 | C31: 78100 | D31: 0.3
B32: 78100.01 | C32: 180000 | D32: 0.33
B33: 180000.01 | D33: 0.39
B36: Student Loan | H36: Before 1/4/18 | I36: 1/4/18 | J36: 1/4/19 | K36: 1/4/20 | L36: 1/4/21 | M36: 1/4/22 | N36: 1/4/23 | O36: 1/4/24 | P36: 1/4/25
B37: Threshold | C37: Rate | H37: Threshold | I37: Threshold | J37: Threshold | K37: Threshold | L37: Threshold | M37: Threshold | N37: Threshold | O37: Threshold | P37: Threshold
B38: 24128 | C38: 0.12 | D38: % | H38: 19136 | I38: 19448 | J38: 19760 | K38: 20020 | L38: 20280 | M38: 21268 | N38: 22828 | O38: 24128 | P38: 24128
B41: Debt Servicing Assumptions
B42: Default NSR | C42: 1
B43: Property Investor NSR | C43: 0.95
B45: Non-Investor DTI | C45: 6
B46: Investor DTI | C46: 7
B51: SBS Foundation interest rate | C51: 0.04
B52: SBS Interest rate buffer | C52: 0.025
B55: KiwiSaver
B56: Deduction
B57: 0.03
B58: 0.04
B59: 0.08

Sheet MLA (hidden)
A1: Inputs
B2: =Calculation!B9 -> Adults in household | D2: =Calculation!E9 -> 0 | E2: =Calc2!E9 -> 0 | F2: =Calc3!E9 -> 0 | G2: =Calc4!E9 -> 0 | I2: Only manually update the white areas which do contain decimal places.
B3: =Calculation!B12 -> Children in household | D3: =Calculation!E12 -> 0 | E3: =Calc2!E12 -> 0 | F3: =Calc3!E12 -> 0 | G3: =Calc4!E12 -> 0 | I3: The light grey show the calculation details.
B4: =Calculation!M135 -> Total All Applicants - Gross Annual Income | D4: =Calculation!Q135 -> 0 | E4: =Calc2!Q135 -> 0 | F4: =Calc3!Q135 -> 0 | G4: =Calc4!Q135 -> 0 | I4: If the table does not contain decimal places then 3 and 4 adult tables need the formulas to be overwritten with the values. Also change the cells to white to highlight this.
B5: =Calculation!C181 -> Other Expenses - Monthly | D5: =Calculation!J181 -> 0 | E5: =Calc2!J181 -> 0 | F5: =Calc3!J181 -> 0 | G5: =Calc4!J181 -> 0
A6: Output
B7: MLA | D7: =IF(D4=0,0,D10+D5) -> 0 | E7: =IF(E4=0,0,E10+E5) -> 0 | F7: =IF(F4=0,0,F10+F5) -> 0 | G7: 0
F9: Gross Annual Income selects the row to use in the next table.
A10: Genaral Amount for Calculation | C10: Amount | D10: =IF(D$4>=$C27,D27,IF(D$4>=$C26,D26,IF(D$4>=$C25,D25,IF(D$4>=$C24,D24,IF(D$4>=$C23,D23,IF(D$4>=$C22,D22,IF(D$4>=$C21,D21,IF(D$4>=$C20,D20,IF(D$4>=$C19,D19,IF(D$4>=$C18,D18,IF(D$4>=$C17,D17,IF(D$4>=$C16,D16,IF(D$4>=$C15,D15,D14))))))))))))) -> 646 | E10: =IF(E$4>=$C27,E27,IF(E$4>=$C26,E26,IF(E$4>=$C25,E25,IF(E$4>=$C24,E24,IF(E$4>=$C23,E23,IF(E$4>=$C22,E22,IF(E$4>=$C21,E21,IF(E$4>=$C20,E20,IF(E$4>=$C19,E19,IF(E$4>=$C18,E18,IF(E$4>=$C17,E17,IF(E$4>=$C16,E16,IF(E$4>=$C15,E15,E14))))))))))))) -> 646 | F10: 646 | G10: 646
F12: The Dependants selects the column from the next table.
A13: General Dependants Table for Calculation | C13: Income | D13: Amount | E13: House2 | F13: House3 | G13: House4
C14: 0 | D14: =IF($D$3=0,D31,IF($D$3=1,E31,IF($D$3=2,F31,IF($D$3=3,G31,IF($D$3=4,H31,I31))))) -> 646 | E14: =IF($E$3=0,L31,IF($E$3=1,M31,IF($E$3=2,N31,IF($E$3=3,O31,IF($E$3=4,P31,Q31))))) -> 646 | F14: =IF($F$3=0,U31,IF($F$3=1,V31,IF($F$3=2,W31,IF($F$3=3,X31,IF($F$3=4,Y31,Z31))))) -> 646 | G14: =IF($G$3=0,AD31,IF($G$3=1,AE31,IF($G$3=2,AF31,IF($G$3=3,AG31,IF($G$3=4,AH31,AI31))))) -> 646
C15: 12000 | D15: =IF($D$3=0,D32,IF($D$3=1,E32,IF($D$3=2,F32,IF($D$3=3,G32,IF($D$3=4,H32,I32))))) -> 800 | E15: =IF($E$3=0,L32,IF($E$3=1,M32,IF($E$3=2,N32,IF($E$3=3,O32,IF($E$3=4,P32,Q32))))) -> 800 | F15: =IF($F$3=0,U32,IF($F$3=1,V32,IF($F$3=2,W32,IF($F$3=3,X32,IF($F$3=4,Y32,Z32))))) -> 800 | G15: =IF($G$3=0,AD32,IF($G$3=1,AE32,IF($G$3=2,AF32,IF($G$3=3,AG32,IF($G$3=4,AH32,AI32))))) -> 800
C16: 24000 | D16: 996 | E16: 996 | F16: 996 | G16: 996
C17: 36000 | D17: 1164 | E17: 1164 | F17: 1164 | G17: 1164
C18: 48000 | D18: 1281 | E18: 1281 | F18: 1281 | G18: 1281
C19: 60000 | D19: 1394 | E19: 1394 | F19: 1394 | G19: 1394
C20: 72000 | D20: 1485 | E20: 1485 | F20: 1485 | G20: 1485
C21: 84000 | D21: 1574 | E21: 1574 | F21: 1574 | G21: 1574
C22: 96000 | D22: 1656 | E22: 1656 | F22: 1656 | G22: 1656
C23: 108000 | D23: 1733 | E23: 1733 | F23: 1733 | G23: 1733
C24: 120000 | D24: 1908 | E24: 1908 | F24: 1908 | G24: 1908
C25: 150000 | D25: 2062 | E25: 2062 | F25: 2062 | G25: 2062
C26: 180000 | D26: 2333 | E26: 2333 | F26: 2333 | G26: 2333
C27: 240000 | D27: 2572 | E27: 2572 | F27: 2572 | G27: 2572 | L27: Household 2 | U27: Household 3 | AD27: Household 4
D29: Dependants | F29: The Adults selects the table to use. | L29: Dependants | N29: The Adults selects the table to use. | U29: Dependants | W29: The Adults selects the table to use. | AD29: Dependants | AF29: The Adults selects the table to use.
A30: General Adults Table for Calculation | C30: Income | D30: 0 | E30: 1 | F30: 2 | G30: 3 | H30: 4 | I30: 5 | K30: Income | L30: 0 | M30: 1 | N30: 2 | O30: 3 | P30: 4 | Q30: 5 | T30: Income | U30: 0 | V30: 1 | W30: 2 | X30: 3 | Y30: 4 | Z30: 5 | AC30: Income | AD30: 0 | AE30: 1 | AF30: 2 | AG30: 3 | AH30: 4 | AI30: 5
C31: 0 | D31: =IF($D$2<2,D47,IF($D$2=2,D63,IF($D$2=3,D79,D95))) -> 646 | E31: =IF($D$2<2,E47,IF($D$2=2,E63,IF($D$2=3,E79,E95))) -> 779 | F31: 976 | G31: 903 | H31: 938 | I31: 962 | K31: 0 | L31: =IF($E$2<2,D47,IF($E$2=2,D63,IF($E$2=3,D79,D95))) -> 646 | M31: =IF($E$2<2,E47,IF($E$2=2,E63,IF($E$2=3,E79,E95))) -> 779 | N31: 976 | O31: 903 | P31: 938 | Q31: 962 | T31: 0 | U31: =IF($F$2<2,D47,IF($F$2=2,D63,IF($F$2=3,D79,D95))) -> 646 | V31: =IF($F$2<2,E47,IF($F$2=2,E63,IF($F$2=3,E79,E95))) -> 779 | W31: 976 | X31: 903 | Y31: 938 | Z31: 962 | AC31: 0 | AD31: =IF($G$2<2,D47,IF($G$2=2,D63,IF($G$2=3,D79,D95))) -> 646 | AE31: =IF($G$2<2,E47,IF($G$2=2,E63,IF($G$2=3,E79,E95))) -> 779 | AF31: 976 | AG31: 903 | AH31: 938 | AI31: 962
C32: 12000 | D32: =IF($D$2<2,D48,IF($D$2=2,D64,IF($D$2=3,D80,D96))) -> 800 | E32: 1109 | F32: 1450 | G32: 1310 | H32: 1357 | I32: 1388 | K32: 12000 | L32: =IF($E$2<2,D48,IF($E$2=2,D64,IF($E$2=3,D80,D96))) -> 800 | M32: =IF($E$2<2,E48,IF($E$2=2,E64,IF($E$2=3,E80,E96))) -> 1109 | N32: =IF($E$2<2,F48,IF($E$2=2,F64,IF($E$2=3,F80,F96))) -> 1450 | O32: =IF($E$2<2,G48,IF($E$2=2,G64,IF($E$2=3,G80,G96))) -> 1310 | P32: =IF($E$2<2,H48,IF($E$2=2,H64,IF($E$2=3,H80,H96))) -> 1357 | Q32: =IF($E$2<2,I48,IF($E$2=2,I64,IF($E$2=3,I80,I96))) -> 1388 | T32: 12000 | U32: =IF($F$2<2,D48,IF($F$2=2,D64,IF($F$2=3,D80,D96))) -> 800 | V32: =IF($F$2<2,E48,IF($F$2=2,E64,IF($F$2=3,E80,E96))) -> 1109 | W32: =IF($F$2<2,F48,IF($F$2=2,F64,IF($F$2=3,F80,F96))) -> 1450 | X32: =IF($F$2<2,G48,IF($F$2=2,G64,IF($F$2=3,G80,G96))) -> 1310 | Y32: =IF($F$2<2,H48,IF($F$2=2,H64,IF($F$2=3,H80,H96))) -> 1357 | Z32: =IF($F$2<2,I48,IF($F$2=2,I64,IF($F$2=3,I80,I96))) -> 1388 | AC32: 12000 | AD32: =IF($G$2<2,D48,IF($G$2=2,D64,IF($G$2=3,D80,D96))) -> 800 | AE32: =IF($G$2<2,E48,IF($G$2=2,E64,IF($G$2=3,E80,E96))) -> 1109 | AF32: =IF($G$2<2,F48,IF($G$2=2,F64,IF($G$2=3,F80,F96))) -> 1450 | AG32: =IF($G$2<2,G48,IF($G$2=2,G64,IF($G$2=3,G80,G96))) -> 1310 | AH32: =IF($G$2<2,H48,IF($G$2=2,H64,IF($G$2=3,H80,H96))) -> 1357 | AI32: =IF($G$2<2,I48,IF($G$2=2,I64,IF($G$2=3,I80,I96))) -> 1388
C33: 24000 | D33: =IF($D$2<2,D49,IF($D$2=2,D65,IF($D$2=3,D81,D97))) -> 996 | E33: 1343 | F33: 1627 | G33: 1854 | H33: 1915 | I33: 1948 | K33: 24000 | L33: 996 | M33: 1343 | N33: 1627 | O33: 1854 | P33: 1915 | Q33: 1948 | T33: 24000 | U33: 996 | V33: 1343 | W33: 1627 | X33: 1854 | Y33: 1915 | Z33: 1948 | AC33: 24000 | AD33: 996 | AE33: 1343 | AF33: 1627 | AG33: 1854 | AH33: 1915 | AI33: 1948
C34: 36000 | D34: =IF($D$2<2,D50,IF($D$2=2,D66,IF($D$2=3,D82,D98))) -> 1164 | E34: 1545 | F34: 1833 | G34: 2270 | H34: 2342 | I34: 2378 | K34: 36000 | L34: 1164 | M34: 1545 | N34: 1833 | O34: 2270 | P34: 2342 | Q34: 2378 | T34: 36000 | U34: 1164 | V34: 1545 | W34: 1833 | X34: 2270 | Y34: 2342 | Z34: 2378 | AC34: 36000 | AD34: 1164 | AE34: 1545 | AF34: 1833 | AG34: 2270 | AH34: 2342 | AI34: 2378
C35: 48000 | D35: =IF($D$2<2,D51,IF($D$2=2,D67,IF($D$2=3,D83,D99))) -> 1281 | E35: 1713 | F35: 1979 | G35: 2508 | H35: 2590 | I35: 2629 | K35: 48000 | L35: 1281 | M35: 1713 | N35: 1979 | O35: 2508 | P35: 2590 | Q35: 2629 | T35: 48000 | U35: 1281 | V35: 1713 | W35: 1979 | X35: 2508 | Y35: 2590 | Z35: 2629 | AC35: 48000 | AD35: 1281 | AE35: 1713 | AF35: 1979 | AG35: 2508 | AH35: 2590 | AI35: 2629
C36: 60000 | D36: =IF($D$2<2,D52,IF($D$2=2,D68,IF($D$2=3,D84,D100))) -> 1394 | E36: 1889 | F36: 2098 | G36: 2656 | H36: 2747 | I36: 2792 | K36: 60000 | L36: 1394 | M36: 1889 | N36: 2098 | O36: 2656 | P36: 2747 | Q36: 2792 | T36: 60000 | U36: 1394 | V36: 1889 | W36: 2098 | X36: 2656 | Y36: 2747 | Z36: 2792 | AC36: 60000 | AD36: 1394 | AE36: 1889 | AF36: 2098 | AG36: 2656 | AH36: 2747 | AI36: 2792
C37: 72000 | D37: =IF($D$2<2,D53,IF($D$2=2,D69,IF($D$2=3,D85,D101))) -> 1485 | E37: 1986 | F37: 2184 | G37: 2783 | H37: 2883 | I37: 2933 | K37: 72000 | L37: 1485 | M37: 1986 | N37: 2184 | O37: 2783 | P37: 2883 | Q37: 2933 | T37: 72000 | U37: 1485 | V37: 1986 | W37: 2184 | X37: 2783 | Y37: 2883 | Z37: 2933 | AC37: 72000 | AD37: 1485 | AE37: 1986 | AF37: 2184 | AG37: 2783 | AH37: 2883 | AI37: 2933
C38: 84000 | D38: =IF($D$2<2,D54,IF($D$2=2,D70,IF($D$2=3,D86,D102))) -> 1574 | E38: 2061 | F38: 2229 | G38: 2895 | H38: 3003 | I38: 3059 | K38: 84000 | L38: 1574 | M38: 2061 | N38: 2229 | O38: 2895 | P38: 3003 | Q38: 3059 | T38: 84000 | U38: 1574 | V38: 2061 | W38: 2229 | X38: 2895 | Y38: 3003 | Z38: 3059 | AC38: 84000 | AD38: 1574 | AE38: 2061 | AF38: 2229 | AG38: 2895 | AH38: 3003 | AI38: 3059
C39: 96000 | D39: =IF($D$2<2,D55,IF($D$2=2,D71,IF($D$2=3,D87,D103))) -> 1656 | E39: 2141 | F39: 2341 | G39: 2990 | H39: 3106 | I39: 3167 | K39: 96000 | L39: 1656 | M39: 2141 | N39: 2341 | O39: 2990 | P39: 3106 | Q39: 3167 | T39: 96000 | U39: 1656 | V39: 2141 | W39: 2341 | X39: 2990 | Y39: 3106 | Z39: 3167 | AC39: 96000 | AD39: 1656 | AE39: 2141 | AF39: 2341 | AG39: 2990 | AH39: 3106 | AI39: 3167
C40: 108000 | D40: =IF($D$2<2,D56,IF($D$2=2,D72,IF($D$2=3,D88,D104))) -> 1733 | E40: 2229 | F40: 2450 | G40: 3045 | H40: 3165 | I40: 3230 | K40: 108000 | L40: 1733 | M40: 2229 | N40: 2450 | O40: 3045 | P40: 3165 | Q40: 3230 | T40: 108000 | U40: 1733 | V40: 2229 | W40: 2450 | X40: 3045 | Y40: 3165 | Z40: 3230 | AC40: 108000 | AD40: 1733 | AE40: 2229 | AF40: 2450 | AG40: 3045 | AH40: 3165 | AI40: 3230
C41: 120000 | D41: =IF($D$2<2,D57,IF($D$2=2,D73,IF($D$2=3,D89,D105))) -> 1908 | E41: 2461 | F41: 2687 | G41: 3231 | H41: 3366 | I41: 3443 | K41: 120000 | L41: 1908 | M41: 2461 | N41: 2687 | O41: 3231 | P41: 3366 | Q41: 3443 | T41: 120000 | U41: 1908 | V41: 2461 | W41: 2687 | X41: 3231 | Y41: 3366 | Z41: 3443 | AC41: 120000 | AD41: 1908 | AE41: 2461 | AF41: 2687 | AG41: 3231 | AH41: 3366 | AI41: 3443
C42: 150000 | D42: =IF($D$2<2,D58,IF($D$2=2,D74,IF($D$2=3,D90,D106))) -> 2062 | E42: 2667 | F42: 2891 | G42: 3476 | H42: 3630 | I42: 3723 | K42: 150000 | L42: 2062 | M42: 2667 | N42: 2891 | O42: 3476 | P42: 3630 | Q42: 3723 | T42: 150000 | U42: 2062 | V42: 2667 | W42: 2891 | X42: 3476 | Y42: 3630 | Z42: 3723 | AC42: 150000 | AD42: 2062 | AE42: 2667 | AF42: 2891 | AG42: 3476 | AH42: 3630 | AI42: 3723
C43: 180000 | D43: =IF($D$2<2,D59,IF($D$2=2,D75,IF($D$2=3,D91,D107))) -> 2333 | E43: 3014 | F43: 3206 | G43: 3878 | H43: 4062 | I43: 4182 | K43: 180000 | L43: 2333 | M43: 3014 | N43: 3206 | O43: 3878 | P43: 4062 | Q43: 4182 | T43: 180000 | U43: 2333 | V43: 3014 | W43: 3206 | X43: 3878 | Y43: 4062 | Z43: 4182 | AC43: 180000 | AD43: 2333 | AE43: 3014 | AF43: 3206 | AG43: 3878 | AH43: 4062 | AI43: 4182
C44: 240000 | D44: =IF($D$2<2,D60,IF($D$2=2,D76,IF($D$2=3,D92,D108))) -> 2572 | E44: 3305 | F44: 3474 | G44: 4218 | H44: 4425 | I44: 4568 | K44: 240000 | L44: 2572 | M44: 3305 | N44: 3474 | O44: 4218 | P44: 4425 | Q44: 4568 | T44: 240000 | U44: 2572 | V44: 3305 | W44: 3474 | X44: 4218 | Y44: 4425 | Z44: 4568 | AC44: 240000 | AD44: 2572 | AE44: 3305 | AF44: 3474 | AG44: 4218 | AH44: 4425 | AI44: 4568
B46: 1 Adult | C46: =C30 -> Income | D46: 0 | E46: 1 | F46: 2 | G46: 3 | H46: 4 | I46: 5 | K46: Income | L46: 0 | M46: 1 | N46: 2 | O46: 3 | P46: 4 | Q46: 5
C47: =C31 -> 0 | D47: =ROUND(L47,0) -> 646 | E47: =ROUND(M47,0) -> 779 | F47: 976 | G47: 903 | H47: 938 | I47: 962 | K47: 0 | L47: 646.2205759 | M47: 779.0591212 | N47: 975.7005122 | O47: 903.0834758 | P47: 937.7669131 | Q47: 962.3507113
C48: 12000 | D48: =ROUND(L48,0) -> 800 | E48: =ROUND(M48,0) -> 1109 | F48: =ROUND(N48,0) -> 1450 | G48: =ROUND(O48,0) -> 1310 | H48: =ROUND(P48,0) -> 1357 | I48: =ROUND(Q48,0) -> 1388 | K48: 12000 | L48: 799.5629212 | M48: 1108.661307 | N48: 1449.730902 | O48: 1309.80049 | P48: 1357.070779 | Q48: 1387.609511
C49: 24000 | D49: 996 | E49: 1343 | F49: 1627 | G49: 1854 | H49: 1915 | I49: 1948 | K49: 24000 | L49: 995.9984954 | M49: 1343.144393 | N49: 1627.014695 | O49: 1854.214713 | P49: 1914.850595 | Q49: 1948.303162
C50: 36000 | D50: 1164 | E50: 1545 | F50: 1833 | G50: 2270 | H50: 2342 | I50: 2378 | K50: 36000 | L50: 1164.10763 | M50: 1544.589217 | N50: 1832.863645 | O50: 2270.482201 | P50: 2342.16657 | Q50: 2377.655194
C51: 48000 | D51: 1281 | E51: 1713 | F51: 1979 | G51: 2508 | H51: 2590 | I51: 2629 | K51: 48000 | L51: 1281.259134 | M51: 1713.38621 | N51: 1978.538434 | O51: 2507.558249 | P51: 2589.624351 | Q51: 2629.369305
C52: 60000 | D52: 1394 | E52: 1889 | F52: 2098 | G52: 2656 | H52: 2747 | I52: 2792 | K52: 60000 | L52: 1393.995209 | M52: 1889.102476 | N52: 2097.857172 | O52: 2656.414472 | P52: 2747.371066 | Q52: 2791.843443
C53: 72000 | D53: 1485 | E53: 1986 | F53: 2184 | G53: 2783 | H53: 2883 | I53: 2933 | K53: 72000 | L53: 1485.376301 | M53: 1985.902169 | N53: 2183.943674 | O53: 2782.859391 | P53: 2882.645859 | Q53: 2932.501257
C54: 84000 | D54: 1574 | E54: 2061 | F54: 2229 | G54: 2895 | H54: 3003 | I54: 3059 | K54: 84000 | L54: 1573.712089 | M54: 2061.480883 | N54: 2229.291406 | O54: 2894.677895 | P54: 3002.962168 | Q54: 3058.537683
C55: 96000 | D55: 1656 | E55: 2141 | F55: 2341 | G55: 2990 | H55: 3106 | I55: 3167 | K55: 96000 | L55: 1655.976433 | M55: 2140.631192 | N55: 2341.019661 | O55: 2989.750615 | P55: 3105.559496 | Q55: 3166.58811
C56: 108000 | D56: 1733 | E56: 2229 | F56: 2450 | G56: 3045 | H56: 3165 | I56: 3230 | K56: 108000 | L56: 1733.082612 | M56: 2228.949111 | N56: 2449.573136 | O56: 3044.885733 | P56: 3165.122236 | Q56: 3229.51301
C57: 120000 | D57: 1908 | E57: 2461 | F57: 2687 | G57: 3231 | H57: 3366 | I57: 3443 | K57: 120000 | L57: 1907.656151 | M57: 2461.315253 | N57: 2687.378006 | O57: 3230.86612 | P57: 3366.066089 | Q57: 3442.540614
C58: 150000 | D58: 2062 | E58: 2667 | F58: 2891 | G58: 3476 | H58: 3630 | I58: 3723 | K58: 150000 | L58: 2062.078632 | M58: 2666.822372 | N58: 2890.954491 | O58: 3475.613096 | P58: 3629.977313 | Q58: 3723.161505
C59: 180000 | D59: 2333 | E59: 3014 | F59: 3206 | G59: 3878 | H59: 4062 | I59: 4182 | K59: 180000 | L59: 2332.600487 | M59: 3013.629037 | N59: 3205.999983 | O59: 3877.88746 | P59: 4061.804458 | Q59: 4182.191483
C60: 240000 | D60: 2572 | E60: 3305 | F60: 3474 | G60: 4218 | H60: 4425 | I60: 4568 | K60: 240000 | L60: 2572.285851 | M60: 3304.672628 | N60: 3474.363578 | O60: 4218.047015 | P60: 4425.373271 | Q60: 4567.672558
B62: 2 Adults | C62: =C46 -> Income | D62: 0 | E62: 1 | F62: 2 | G62: 3 | H62: 4 | I62: 5 | K62: Income | L62: 0 | M62: 1 | N62: 2 | O62: 3 | P62: 4 | Q62: 5
C63: =C47 -> 0 | D63: =ROUND(L63,0) -> 748 | E63: =ROUND(M63,0) -> 1029 | F63: 1070 | G63: 1098 | H63: 1119 | I63: 1134 | K63: =K47 -> 0 | L63: 747.5044533 | M63: 1029.285402 | N63: 1070.236347 | O63: 1098.289737 | P63: 1118.573364 | Q63: 1133.966989
C64: 12000 | D64: =ROUND(L64,0) -> 1099 | E64: =ROUND(M64,0) -> 1233 | F64: =ROUND(N64,0) -> 1365 | G64: =ROUND(O64,0) -> 1677 | H64: =ROUND(P64,0) -> 1699 | I64: =ROUND(Q64,0) -> 1716 | K64: 12000 | L64: 1099.087958 | M64: 1232.647493 | N64: 1364.796704 | O64: 1676.725501 | P64: 1699.319514 | Q64: 1715.501086
C65: 24000 | D65: 1378 | E65: 1575 | F65: 1629 | G65: 1946 | H65: 1968 | I65: 1984 | K65: 24000 | L65: 1378.456556 | M65: 1575.441389 | N65: 1629.079322 | O65: 1945.749514 | P65: 1968.096745 | Q65: 1983.84907
C66: 36000 | D66: 1608 | E66: 1784 | F66: 1891 | G66: 2234 | H66: 2256 | I66: 2272 | K66: 36000 | L66: 1608.205677 | M66: 1783.702059 | N66: 1891.37029 | O66: 2233.832585 | P66: 2256.140278 | Q66: 2271.745724
C67: 48000 | D67: 1807 | E67: 1990 | F67: 2097 | G67: 2360 | H67: 2383 | I67: 2399 | K67: 48000 | L67: 1807.287335 | M67: 1989.960226 | N67: 2097.460228 | O67: 2360.062976 | P67: 2382.785472 | Q67: 2398.647438
C68: 60000 | D68: 1979 | E68: 2179 | F68: 2289 | G68: 2505 | H68: 2528 | I68: 2545 | K68: 60000 | L68: 1979.318842 | M68: 2178.507341 | N68: 2289.350289 | O68: 2504.50244 | P68: 2528.259628 | Q68: 2544.789847
C69: 72000 | D69: 2132 | E69: 2337 | F69: 2452 | G69: 2623 | H69: 2648 | I69: 2666 | K69: 72000 | L69: 2131.780161 | M69: 2337.13283 | N69: 2451.700252 | O69: 2622.897543 | P69: 2648.06304 | Q69: 2665.505458
C70: 84000 | D70: 2266 | E70: 2481 | F70: 2603 | G70: 2746 | H70: 2773 | I70: 2792 | K70: 84000 | L70: 2265.527102 | M70: 2480.592233 | N70: 2602.507523 | O70: 2745.615764 | P70: 2772.85208 | Q70: 2791.636684
C71: 96000 | D71: 2387 | E71: 2608 | F71: 2729 | G71: 2864 | H71: 2894 | I71: 2914 | K71: 96000 | L71: 2386.975679 | M71: 2607.680508 | N71: 2729.004015 | O71: 2864.007532 | P71: 2893.866644 | Q71: 2914.359319
C72: 108000 | D72: 2495 | E72: 2723 | F72: 2853 | G72: 2943 | H72: 2975 | I72: 2997 | K72: 108000 | L72: 2495.213624 | M72: 2722.979233 | N72: 2852.805977 | O72: 2943.001964 | P72: 2974.953345 | Q72: 2996.819033
C73: 120000 | D73: 2732 | E73: 2967 | F73: 3103 | G73: 3198 | H73: 3239 | I73: 3266 | K73: 120000 | L73: 2731.750599 | M73: 2967.081244 | N73: 3102.751248 | O73: 3198.088963 | P73: 3238.524203 | Q73: 3266.082312
C74: 150000 | D74: 2933 | E74: 3172 | F74: 3317 | G74: 3398 | H74: 3446 | I74: 3479 | K74: 150000 | L74: 2932.768735 | M74: 3172.303906 | N74: 3316.520201 | O74: 3397.602059 | P74: 3446.186838 | Q74: 3479.422729
C75: 180000 | D75: 3264 | E75: 3513 | F75: 3682 | G75: 3842 | H75: 3912 | I75: 3960 | K75: 180000 | L75: 3264.291509 | M75: 3513.135409 | N75: 3681.61033 | O75: 3842.096241 | P75: 3911.606929 | Q75: 3960.336453
C76: 240000 | D76: 3540 | E76: 3795 | F76: 3966 | G76: 4141 | H76: 4225 | I76: 4286 | K76: 240000 | L76: 3540.28926 | M76: 3795.391547 | N76: 3966.485983 | O76: 4140.75905 | P76: 4225.192496 | Q76: 4285.661968
B78: 3 Adults | C78: =C62 -> Income | D78: 0 | E78: 1 | F78: 2 | G78: 3 | H78: 4 | I78: 5
C79: =C63 -> 0 | D79: 822.892439 | E79: 1133.091811 | F79: 1178.172777 | G79: 1209.055432 | H79: 1231.384722 | I79: 1248.330839
C80: 12000 | D80: 1209.934157 | E80: 1356.963558 | F80: 1502.440398 | G80: 1845.828117 | H80: 1870.700801 | I80: 1888.514331
C81: 24000 | D81: 1517.477886 | E81: 1734.329209 | F81: 1793.376683 | G81: 2141.983979 | H81: 2166.584993 | I81: 2183.925985
C82: 36000 | D82: 1770.39787 | E82: 1963.593569 | F82: 2082.120453 | G82: 2459.12106 | H82: 2483.67855 | I82: 2500.857849
C83: 48000 | D83: 1989.557489 | E83: 2190.653469 | F83: 2308.995157 | G83: 2598.082152 | H83: 2623.096277 | I83: 2640.557968
C84: 60000 | D84: 2178.938871 | E84: 2398.216106 | F84: 2520.237886 | G84: 2757.088754 | H84: 2783.241923 | I84: 2801.439261
C85: 72000 | D85: 2346.776355 | E85: 2572.839435 | F85: 2698.961312 | G85: 2887.424344 | H85: 2915.127856 | I85: 2934.329392
C86: 84000 | D86: 2494.012062 | E86: 2730.767133 | F86: 2864.977933 | G86: 3022.519053 | H86: 3052.50223 | I86: 3073.181317
C87: 96000 | D87: 2627.709078 | E87: 2870.672628 | F87: 3004.231962 | G87: 3152.850974 | H87: 3185.721464 | I87: 3208.280884
C88: 108000 | D88: 2746.863134 | E88: 2997.599563 | F88: 3140.51971 | G88: 3239.812222 | H88: 3274.985993 | I88: 3299.056898
C89: 120000 | D89: 3007.255546 | E89: 3266.319968 | F89: 3415.672683 | G89: 3520.625483 | H89: 3565.138734 | I89: 3595.476158
C90: 150000 | D90: 3228.546942 | E90: 3492.239929 | F90: 3651.000854 | G90: 3740.260052 | H90: 3793.744746 | I90: 3830.332573
C91: 180000 | D91: 3593.504747 | E91: 3867.445274 | F91: 4052.911379 | G91: 4229.582758 | H91: 4306.103799 | I91: 4359.747836
C92: 240000 | D92: 3897.33767 | E92: 4178.16776 | F92: 4366.517565 | G92: 4558.366574 | H92: 4651.315378 | I92: 4717.883371
B94: 4 or more Adults | C94: =C78 -> Income | D94: 0 | E94: 1 | F94: 2 | G94: 3 | H94: 4 | I94: 5
C95: =C79 -> 0 | D95: 905.8835211 | E95: 1247.367397 | F95: 1296.994908 | G95: 1330.992169 | H95: 1355.573432 | I95: 1374.228614
C96: 12000 | D96: 1331.959516 | E96: 1493.817256 | F96: 1653.965856 | G96: 2031.98522 | H96: 2059.366387 | I96: 2078.976463
C97: 24000 | D97: 1670.519919 | E97: 1909.241325 | F97: 1974.243907 | G97: 2358.009257 | H97: 2385.091354 | I97: 2404.181236
C98: 36000 | D98: 1948.947615 | E98: 2161.627659 | F98: 2292.108322 | G98: 2707.130531 | H98: 2734.164714 | I98: 2753.076595
C99: 48000 | D99: 2190.210115 | E99: 2411.587206 | F99: 2541.863996 | G99: 2860.10625 | H99: 2887.643122 | I99: 2906.865875
C100: 60000 | D100: 2398.691157 | E100: 2640.083135 | F100: 2774.411164 | G100: 3035.149127 | H100: 3063.939919 | I100: 3083.972512
C101: 72000 | D101: 2583.455537 | E101: 2832.317732 | F101: 2971.159365 | G101: 3178.629439 | H101: 3209.12693 | I101: 3230.264996
C102: 84000 | D102: 2745.54039 | E102: 3006.172895 | F102: 3153.919242 | G102: 3327.34884 | H102: 3360.355907 | I102: 3383.120539
C103: 96000 | D103: 2892.721138 | E103: 3160.188263 | F103: 3307.217443 | G103: 3470.825112 | H103: 3507.010685 | I103: 3531.845289
C104: 108000 | D104: 3023.892224 | E104: 3299.916147 | F104: 3457.250204 | G104: 3566.556653 | H104: 3605.277801 | I104: 3631.776326
C105: 120000 | D105: 3310.545964 | E105: 3595.737782 | F105: 3760.15315 | G105: 3875.690743 | H105: 3924.693284 | I105: 3958.090326
C106: 150000 | D106: 3554.155237 | E106: 3844.442424 | F106: 4019.214848 | G106: 4117.476094 | H106: 4176.354874 | I106: 4216.632689
C107: 180000 | D107: 3955.920092 | E107: 4257.488313 | F107: 4461.659211 | G107: 4656.14841 | H107: 4740.386819 | I107: 4799.441013
C108: 240000 | D108: 4290.395444 | E108: 4599.548061 | F108: 4806.893488 | G108: 5018.091025 | H108: 5120.413984 | I108: 5193.695552

Sheet Calculation (hidden)
B1: Locked Version | D1: TRUE | G1: Applicant 1 | K1: Applicant 2 | O1: Applicant 3 | S1: Applicant 4 | AT1: 0
AH2: Reference field for controls | AN2: Credit Rules | AT2: 1
AT3: 2
AT4: 3
B5: Age of applicants | G5: ='NSR Calculator'!D25 -> 0 | K5: ='NSR Calculator'!I25 -> 0 | O5: ='NSR Calculator'!N25 -> 0 | S5: ='NSR Calculator'!S25 -> 0 | W5: =MIN($AK$169-G5,$AK$169-K5,$AK$169-O5,$AK$169-S5) -> 85 | X5: Household min by age | AT5: 4
AT6: 5 or more in total
AK7: Conversion Factors | AN7: Income Source Weighting
B8: Household Composition | AH8: Income Frequency List | AK8: To Annual | AL8: To Monthly | AN8: Source | AP8: Weight
B9: Adults in household | E9: ='NSR Calculator'!I16 -> 0 | G9: Properties | H9: 1 | I9: =INDEX($AT$1:$AT$6,$H$9) -> 0 | AH9: Annual | AK9: 1 | AL9: =1/12 -> 0.08333333333 | AN9: Salary or Wages | AP9: ='Calculator Parameters'!C10 -> 1
J10: =CONCATENATE(" ") ->  | AH10: Monthly | AK10: 12 | AL10: 1 | AN10: Overtime | AP10: ='Calculator Parameters'!C11 -> 0.8 | AR10: Includes Allowance,Bonus,Overtime, Investment
I11: =IF(OR(H9=6,H14=TRUE),J11,J12) -> Retail Lending: NSR should be 100% or less for approval | J11: =CONCATENATE("Property Investor Lending: NSR should be ",ROUND(AK173*100,0),"% or less for approval") -> Property Investor Lending: NSR should be 100% or less for approval | R11: =IF(R13,S13,IF(R14,S14,IF(R15,S15, IF(D15,S12,S11)))) -> Error: Application type must be selected | S11: =CONCATENATE("Owner Occupied Lending: DTI should be ",TEXT(AK174,"#0.00")," or less for approval") -> Owner Occupied Lending: DTI should be 6.00 or less for approval | AH11: Fortnightly | AK11: 26.07142857 | AL11: =365/14/12 -> 2.172619048 | AN11: Commission | AP11: ='Calculator Parameters'!C14 -> 0.75
B12: Children in household | E12: ='NSR Calculator'!R16 -> 0 | J12: =CONCATENATE("Retail Lending: NSR should be ",ROUND(AK173*100,1),"% or less for approval") -> Retail Lending: NSR should be 100% or less for approval | S12: =CONCATENATE("Investment Lending: DTI should be ",TEXT(AK174,"#0.00")," or less for approval") -> Investment Lending: DTI should be 6.00 or less for approval | AH12: Weekly | AK12: 52.14285714 | AL12: =365/7/12 -> 4.345238095 | AN12: Self-employed | AP12: ='Calculator Parameters'!C15 -> 1 | AR12: Includes Contract, Business Income
R13: =AND(NOT(D14),NOT(D15)) -> TRUE | S13: Error: Application type must be selected | AH13: Quarterly | AK13: 4 | AL13: =4/12 -> 0.3333333333 | AN13: Beneficiary | AP13: ='Calculator Parameters'!C16 -> 1
B14: Owner Occupied | D14: FALSE | G14: Prop Investor | H14: FALSE | J14: More households | L14: FALSE | R14: =G278=1 -> TRUE | S14: Error: Business debt declaration to be completed | AN14: Rentals | AP14: ='Calculator Parameters'!C17 -> 0.75
B15: Investment | D15: FALSE | R15: =AND(G278=2,OR(B216=4,B219=4,B231=4,B234=4)) -> FALSE | S15: Error: Commercial debt with declaration of no business debt | AH15: Tax status | AN15: Boarder | AP15: ='Calculator Parameters'!C20 -> 0.8
B16: Income input data (excluding rentals) source and amount | H16: TRUE | AH16: Gross (Pre tax) | AN16: Bonus | AP16: ='Calculator Parameters'!C12 -> 0.7
G17: Applicant 1 | K17: Applicant 2 | O17: Applicant 3 | S17: Applicant 4 | AH17: Net (After tax) | AN17: Allowance | AP17: ='Calculator Parameters'!C13 -> 0.8
C18: Salary or Wages | E18: Frequency | G18: 1 | H18: =INDEX($AH$9:$AH$13,G18) -> Annual | I18: ='NSR Calculator'!$D$27 -> 0 | K18: 1 | L18: =INDEX($AH$9:$AH$13,K18) -> Annual | M18: ='NSR Calculator'!$I$27 -> 0 | O18: 1 | P18: =INDEX($AH$9:$AH$13,O18) -> Annual | Q18: ='NSR Calculator'!$N$27 -> 0 | S18: 1 | T18: =INDEX($AH$9:$AH$13,S18) -> Annual | U18: ='NSR Calculator'!$S$27 -> 0 | AN18: Investment | AP18: ='Calculator Parameters'!C18 -> 0.5
E19: Tax staus | G19: 1 | H19: =INDEX($AH$16:$AH$17,G19) -> Gross (Pre tax) | K19: 1 | L19: =INDEX($AH$16:$AH$17,K19) -> Gross (Pre tax) | O19: 1 | P19: =INDEX($AH$16:$AH$17,O19) -> Gross (Pre tax) | S19: 1 | T19: =INDEX($AH$16:$AH$17,S19) -> Gross (Pre tax) | AN19: Child Support | AP19: ='Calculator Parameters'!C19 -> 0.8
AK20: Conversion Factors | AN20: Term
C21: Self-employed | E21: Frequency | G21: 1 | H21: =INDEX($AH$9:$AH$13,G21) -> Annual | I21: ='NSR Calculator'!$D$30 -> 0 | K21: 1 | L21: =INDEX($AH$9:$AH$13,K21) -> Annual | M21: ='NSR Calculator'!$I$30 -> 0 | O21: 1 | P21: =INDEX($AH$9:$AH$13,O21) -> Annual | Q21: ='NSR Calculator'!$N$30 -> 0 | S21: 1 | T21: =INDEX($AH$9:$AH$13,S21) -> Annual | U21: ='NSR Calculator'!$S$30 -> 0 | AH21: Rental Frequency List | AK21: To Annual | AL21: To Monthly | AN21: Years
E22: Tax staus | G22: 1 | H22: =INDEX($AH$16:$AH$17,G22) -> Gross (Pre tax) | K22: 1 | L22: =INDEX($AH$16:$AH$17,K22) -> Gross (Pre tax) | O22: 1 | P22: =INDEX($AH$16:$AH$17,O22) -> Gross (Pre tax) | S22: 1 | T22: =INDEX($AH$16:$AH$17,S22) -> Gross (Pre tax) | AH22: Weekly | AK22: =365/7 -> 52.14285714 | AL22: =365/7/12 -> 4.345238095 | AN22: Months
AH23: Fortnightly | AK23: =365/14 -> 26.07142857 | AL23: =365/14/12 -> 2.172619048
C24: Overtime | E24: Frequency | G24: 1 | H24: =INDEX($AH$9:$AH$13,G24) -> Annual | I24: ='NSR Calculator'!$D$33 -> 0 | K24: 1 | L24: =INDEX($AH$9:$AH$13,K24) -> Annual | M24: ='NSR Calculator'!$I$33 -> 0 | O24: 1 | P24: =INDEX($AH$9:$AH$13,O24) -> Annual | Q24: ='NSR Calculator'!$N$33 -> 0 | S24: 1 | T24: =INDEX($AH$9:$AH$13,S24) -> Annual | U24: ='NSR Calculator'!$S$33 -> 0 | AH24: Monthly | AK24: =12 -> 12 | AL24: 1
E25: Tax staus | G25: 1 | H25: =INDEX($AH$16:$AH$17,G25) -> Gross (Pre tax) | K25: 1 | L25: =INDEX($AH$16:$AH$17,K25) -> Gross (Pre tax) | O25: 1 | P25: =INDEX($AH$16:$AH$17,O25) -> Gross (Pre tax) | S25: 1 | T25: =INDEX($AH$16:$AH$17,S25) -> Gross (Pre tax) | AH25: Annual | AK25: =1 -> 1 | AL25: =1/12 -> 0.08333333333
AH26: Quarterly | AK26: 4 | AL26: =4/12 -> 0.3333333333
C27: Bonus | E27: Frequency | G27: 1 | H27: =INDEX($AH$9:$AH$13,G27) -> Annual | I27: ='NSR Calculator'!$D$36 -> 0 | K27: 1 | L27: =INDEX($AH$9:$AH$13,K27) -> Annual | M27: ='NSR Calculator'!$I$36 -> 0 | O27: 1 | P27: =INDEX($AH$9:$AH$13,O27) -> Annual | Q27: ='NSR Calculator'!$N$36 -> 0 | S27: 1 | T27: =INDEX($AH$9:$AH$13,S27) -> Annual | U27: ='NSR Calculator'!$S$36 -> 0
E28: Tax staus | G28: 1 | H28: =INDEX($AH$16:$AH$17,G28) -> Gross (Pre tax) | K28: 1 | L28: =INDEX($AH$16:$AH$17,K28) -> Gross (Pre tax) | O28: 1 | P28: =INDEX($AH$16:$AH$17,O28) -> Gross (Pre tax) | S28: 1 | T28: =INDEX($AH$16:$AH$17,S28) -> Gross (Pre tax) | AH28: Student Loan | AK28: Threshold | AL28: Rate
AH29: No
C30: Allowance | E30: Frequency | G30: 1 | H30: =INDEX($AH$9:$AH$13,G30) -> Annual | I30: ='NSR Calculator'!$D$39 -> 0 | K30: 1 | L30: =INDEX($AH$9:$AH$13,K30) -> Annual | M30: ='NSR Calculator'!$I$39 -> 0 | O30: 1 | P30: =INDEX($AH$9:$AH$13,O30) -> Annual | Q30: ='NSR Calculator'!$N$39 -> 0 | S30: 1 | T30: =INDEX($AH$9:$AH$13,S30) -> Annual | U30: ='NSR Calculator'!$S$39 -> 0 | AH30: Yes | AK30: ='Calculator Parameters'!B38 -> 24128 | AL30: ='Calculator Parameters'!C38 -> 0.12
E31: Tax staus | G31: 1 | H31: =INDEX($AH$16:$AH$17,G31) -> Gross (Pre tax) | K31: 1 | L31: =INDEX($AH$16:$AH$17,K31) -> Gross (Pre tax) | O31: 1 | P31: =INDEX($AH$16:$AH$17,O31) -> Gross (Pre tax) | S31: 1 | T31: =INDEX($AH$16:$AH$17,S31) -> Gross (Pre tax)
AH32: KiwiSaver
C33: Commission | E33: Frequency | G33: 1 | H33: =INDEX($AH$9:$AH$13,G33) -> Annual | I33: ='NSR Calculator'!$D$42 -> 0 | K33: 1 | L33: =INDEX($AH$9:$AH$13,K33) -> Annual | M33: ='NSR Calculator'!$I$42 -> 0 | O33: 1 | P33: =INDEX($AH$9:$AH$13,O33) -> Annual | Q33: ='NSR Calculator'!$N$42 -> 0 | S33: 1 | T33: =INDEX($AH$9:$AH$13,S33) -> Annual | U33: ='NSR Calculator'!$S$42 -> 0 | AH33: No
E34: Tax staus | G34: 1 | H34: =INDEX($AH$16:$AH$17,G34) -> Gross (Pre tax) | K34: 1 | L34: =INDEX($AH$16:$AH$17,K34) -> Gross (Pre tax) | O34: 1 | P34: =INDEX($AH$16:$AH$17,O34) -> Gross (Pre tax) | S34: 1 | T34: =INDEX($AH$16:$AH$17,S34) -> Gross (Pre tax) | AH34: ='Calculator Parameters'!B57 -> 0.03
AH35: ='Calculator Parameters'!B58 -> 0.04
C36: Investment | E36: Frequency | G36: 1 | H36: =INDEX($AH$9:$AH$13,G36) -> Annual | I36: ='NSR Calculator'!$D$45 -> 0 | K36: 1 | L36: =INDEX($AH$9:$AH$13,K36) -> Annual | M36: ='NSR Calculator'!$I$45 -> 0 | O36: 1 | P36: =INDEX($AH$9:$AH$13,O36) -> Annual | Q36: ='NSR Calculator'!$N$45 -> 0 | S36: 1 | T36: =INDEX($AH$9:$AH$13,S36) -> Annual | U36: ='NSR Calculator'!$S$45 -> 0 | AH36: ='Calculator Parameters'!B59 -> 0.08
E37: Tax staus | G37: 1 | H37: =INDEX($AH$16:$AH$17,G37) -> Gross (Pre tax) | K37: 1 | L37: =INDEX($AH$16:$AH$17,K37) -> Gross (Pre tax) | O37: 1 | P37: =INDEX($AH$16:$AH$17,O37) -> Gross (Pre tax) | S37: 1 | T37: =INDEX($AH$16:$AH$17,S37) -> Gross (Pre tax) | AH37: Other
C39: Beneficiary | E39: Frequency | G39: 1 | H39: =INDEX($AH$9:$AH$13,G39) -> Annual | I39: ='NSR Calculator'!$D$48 -> 0 | K39: 1 | L39: =INDEX($AH$9:$AH$13,K39) -> Annual | M39: ='NSR Calculator'!$I$48 -> 0 | O39: 1 | P39: =INDEX($AH$9:$AH$13,O39) -> Annual | Q39: ='NSR Calculator'!$N$48 -> 0 | S39: 1 | T39: =INDEX($AH$9:$AH$13,S39) -> Annual | U39: ='NSR Calculator'!$S$48 -> 0
E40: Tax staus | G40: 1 | H40: =INDEX($AH$16:$AH$17,G40) -> Gross (Pre tax) | K40: 1 | L40: =INDEX($AH$16:$AH$17,K40) -> Gross (Pre tax) | O40: 1 | P40: =INDEX($AH$16:$AH$17,O40) -> Gross (Pre tax) | S40: 1 | T40: =INDEX($AH$16:$AH$17,S40) -> Gross (Pre tax)
C42: Contract | E42: Frequency | G42: 1 | H42: =INDEX($AH$9:$AH$13,G42) -> Annual | I42: ='NSR Calculator'!$D$50 -> 0 | K42: 1 | L42: =INDEX($AH$9:$AH$13,K42) -> Annual | M42: ='NSR Calculator'!$I$50 -> 0 | O42: 1 | P42: =INDEX($AH$9:$AH$13,O42) -> Annual | Q42: ='NSR Calculator'!$N$50 -> 0 | S42: 1 | T42: =INDEX($AH$9:$AH$13,S42) -> Annual | U42: ='NSR Calculator'!$S$50 -> 0
E43: Tax staus | G43: 1 | H43: =INDEX($AH$16:$AH$17,G43) -> Gross (Pre tax) | K43: 1 | L43: =INDEX($AH$16:$AH$17,K43) -> Gross (Pre tax) | O43: 1 | P43: =INDEX($AH$16:$AH$17,O43) -> Gross (Pre tax) | S43: 1 | T43: =INDEX($AH$16:$AH$17,S43) -> Gross (Pre tax) | AH43: ACC Earners levy | AK43: ACC Levy Rate | AM43: Maximum Levy | AO43: Gross Income Threshold | AQ43: Maximum Tax | AS43: After Tax and ACC Levy Income
AH44: Wages &Salary | AK44: ='Calculator Parameters'!C22 -> 0.0175 | AM44: ='Calculator Parameters'!D22 -> 2741.22 | AO44: =AM44/AK44 -> 156641.1429 | AQ44: =(AO44-AI54)*AK55+AM54 -> 40167.54571 | AS44: =AO44-AQ44-AM44 -> 113732.3771
C45: Child Support | E45: Frequency | G45: 1 | H45: =INDEX($AH$9:$AH$13,G45) -> Annual | I45: ='NSR Calculator'!$D$52 -> 0 | K45: 1 | L45: =INDEX($AH$9:$AH$13,K45) -> Annual | M45: ='NSR Calculator'!$I$52 -> 0 | O45: 1 | P45: =INDEX($AH$9:$AH$13,O45) -> Annual | Q45: ='NSR Calculator'!$N$52 -> 0 | S45: 1 | T45: =INDEX($AH$9:$AH$13,S45) -> Annual | U45: ='NSR Calculator'!$S$52 -> 0 | AH45: Self-employed | AK45: ='Calculator Parameters'!C23 -> 0.0175 | AM45: ='Calculator Parameters'!D23 -> 2741.22 | AO45: =AM45/AK45 -> 156641.1429 | AQ45: =(AO45-AI54)*AK55+AM54 -> 40167.54571 | AS45: =AO45-AQ45-AM45 -> 113732.3771
E46: Tax staus | G46: 1 | H46: =INDEX($AH$16:$AH$17,G46) -> Gross (Pre tax) | K46: 1 | L46: =INDEX($AH$16:$AH$17,K46) -> Gross (Pre tax) | O46: 1 | P46: =INDEX($AH$16:$AH$17,O46) -> Gross (Pre tax) | S46: 1 | T46: =INDEX($AH$16:$AH$17,S46) -> Gross (Pre tax)
G47: 1 | K47: 1 | O47: 1 | S47: 1
AH48: Income Tax
G49: 1 | K49: 1 | O49: 1 | S49: 1 | AH49: Income Bands | AK49: Marginal Tax Rate | AM49: Maximum Tax | AO49: Marginal Gross-up Rate | AQ49: After Tax Income
AH50: Min | AI50: Max
AH51: ='Calculator Parameters'!B29 -> 0 | AI51: ='Calculator Parameters'!C29 -> 15600 | AK51: ='Calculator Parameters'!D29 -> 0.105 | AM51: =AI51*AK51 -> 1638 | AO51: =1/(1-AK51) -> 1.117318436 | AQ51: =AI51-AM51 -> 13962
AH52: ='Calculator Parameters'!B30 -> 15600.01 | AI52: ='Calculator Parameters'!C30 -> 53500 | AK52: ='Calculator Parameters'!D30 -> 0.175 | AM52: =AM51+(AI52-AI51)*AK52 -> 8270.5 | AO52: =1/(1-AK52) -> 1.212121212 | AQ52: =AI52-AM52 -> 45229.5
AH53: ='Calculator Parameters'!B31 -> 53500.01 | AI53: ='Calculator Parameters'!C31 -> 78100 | AK53: ='Calculator Parameters'!D31 -> 0.3 | AM53: =AM52+(AI53-AI52)*AK53 -> 15650.5 | AO53: =1/(1-AK53) -> 1.428571429 | AQ53: =AI53-AM53 -> 62449.5
AH54: ='Calculator Parameters'!B32 -> 78100.01 | AI54: ='Calculator Parameters'!C32 -> 180000 | AK54: ='Calculator Parameters'!D32 -> 0.33 | AM54: =AM53+(AI54-AI53)*AK54 -> 49277.5 | AO54: =1/(1-AK54) -> 1.492537313 | AQ54: =AI54-AM54 -> 130722.5
AH55: ='Calculator Parameters'!B33 -> 180000.01 | AK55: ='Calculator Parameters'!D33 -> 0.39 | AO55: =1/(1-AK55) -> 1.639344262
AI57: ACC = GI * ACC Rate OR ACC = Max ACC Levy
AI58: Tax = (GI - Thresh) * Marginal Tax Rate + TaxStep
AI59: NI = GI - (GI - Thresh) * Marginal Tax Rate - TaxStep - GI * ACC Rate | AR59: OR | AS59: NI = GI - (GI - Thresh) * Marginal Tax Rate - TaxStep - Max ACC Levy
AI60: ACC = GI * ACC Rate OR ACC = Max ACC Levy
AI61: Tax = (GI - Thresh) * Marginal Tax Rate + TaxStep
AI62: NI = GI - (GI - Thresh) * Marginal Tax Rate - TaxStep - GI * ACC Rate | AR62: OR | AS62: NI = GI - (GI - Thresh) * Marginal Tax Rate - TaxStep - Max ACC Levy
AI63: ACC = GI * ACC Rate OR ACC = Max ACC Levy
G64: Applicant 1 | K64: Applicant 2 | O64: Applicant 3 | S64: Applicant 4 | W64: Total | AI64: Tax = (GI - Thresh) * Marginal Tax Rate + TaxStep
B65: Annual Financial A/c addbacks | G65: ='NSR Calculator'!D66 -> 0 | K65: ='NSR Calculator'!I66 -> 0 | O65: ='NSR Calculator'!N66 -> 0 | S65: ='NSR Calculator'!S66 -> 0 | W65: =SUM(G65:S65) -> 0 | AI65: NI = GI - (GI - Thresh) * Marginal Tax Rate - TaxStep - GI * ACC Rate | AR65: OR | AS65: NI = GI - (GI - Thresh) * Marginal Tax Rate - TaxStep - Max ACC Levy
B66: Annual Other Assistance Payments | G66: ='NSR Calculator'!D68 -> 0 | K66: ='NSR Calculator'!I68 -> 0 | O66: ='NSR Calculator'!N68 -> 0 | S66: ='NSR Calculator'!S68 -> 0 | W66: =SUM(G66:S66) -> 0 | AI66: ACC = GI * ACC Rate OR ACC = Max ACC Levy
B67: Student Loan Balance | G67: ='NSR Calculator'!D72 -> 0 | K67: ='NSR Calculator'!I72 -> 0 | O67: ='NSR Calculator'!N72 -> 0 | S67: ='NSR Calculator'!S72 -> 0 | W67: 0 | AI67: Tax = (GI - Thresh) * Marginal Tax Rate + TaxStep
AI68: NI = GI - (GI - Thresh) * Marginal Tax Rate - TaxStep - GI * ACC Rate | AR68: OR | AS68: NI = GI - (GI - Thresh) * Marginal Tax Rate - TaxStep - Max ACC Levy
AI69: (NI + TaxStep - Thresh * Marginal Tax Rate) = GI - GI * Marginal Tax Rate - GI * ACC Rate | AR69: OR | AS69: (NI + TaxStep - Thresh * Marginal Tax Rate + Max ACC Levy) = GI - GI * Marginal Tax Rate
AI70: (NI + TaxStep - Thresh * Marginal Tax Rate)/(1 -Marginal Tax Rate - ACC Rate) = GI | AR70: OR | AS70: (NI + TaxStep - Thresh * Marginal Tax Rate + Max ACC Levy)/(1 -Marginal Tax Rate) = GI
B73: Income (excluding rentals) after tax annual and monthly
G74: Annual | H74: Annual | I74: Annual | K74: Annual | L74: Annual | M74: Annual | O74: Annual | P74: Annual | Q74: Annual | S74: Annual | T74: Annual | U74: Annual
B75: Order | G75: Gross (Pre-Tax & Pre-ACC) | H75: TaxAccKS | I75: Post-Tax & Post-ACC | K75: Gross (Pre-Tax & Pre-ACC) | L75: TaxAccKS | M75: Post-Tax & Post-ACC | O75: Gross (Pre-Tax & Pre-ACC) | P75: TaxAccKS | Q75: Post-Tax & Post-ACC | S75: Gross (Pre-Tax & Pre-ACC) | T75: TaxAccKS | U75: Post-Tax & Post-ACC | X75: Tax1 | Y75: Lev1 | Z75: =IF(G67>0,TRUE,FALSE) -> FALSE | AA75: SL1 | AC75: KS1 | AD75: Tax2 | AE75: Lev2 | AF75: =IF(K67>0,TRUE,FALSE) -> FALSE | AG75: SL2 | AI75: KS2 | AJ75: Tax3 | AK75: Lev3 | AL75: =IF(O67>0,TRUE,FALSE) -> FALSE | AM75: SL3 | AO75: KS3 | AP75: Tax4 | AQ75: Lev4 | AR75: =IF(S67>0,TRUE,FALSE) -> FALSE | AS75: SL4 | AU75: KS4
B77: 1 | C77: Salary or Wages | G77: =IF(H19=$AH$16,INDEX($AH$9:$AK$13,G18,4)*I18,0) -> 0 | H77: =X77+Y77 -> 0 | I77: =G77-H77 -> 0 | K77: =IF(L19=$AH$16,INDEX($AH$9:$AK$13,K18,4)*M18,0) -> 0 | L77: =AD77+AE77 -> 0 | M77: =K77-L77 -> 0 | O77: =IF(P19=$AH$16,INDEX($AH$9:$AK$13,O18,4)*Q18,0) -> 0 | P77: =AJ77+AK77 -> 0 | Q77: =O77-P77 -> 0 | S77: =IF(T19=$AH$16,INDEX($AH$9:$AK$13,S18,4)*U18,0) -> 0 | T77: =AP77+AQ77 -> 0 | U77: =S77-T77 -> 0 | X77: =IF(G77>$AI$54,(G77-$AI$54)*$AK$55+$AM$54,IF(G77>$AI$53,(G77-$AI$53)*$AK$54+$AM$53,IF(G77 > $AI$52,(G77-$AI$52)*$AK$53+$AM$52,IF(G77>$AI$51,(G77-$AI$51)*$AK$52+$AM$51,IF(G77>0,G77*$AK$51,0))))) -> 0 | Y77: =IF(G77>$AO$44,$AM$44,IF(G77>0,G77*$AK$44,0)) -> 0 | Z77: =$Z$75 -> FALSE | AA77: =IF(Z77,IF(G77>$AK$30,(G77-$AK$30)*$AL$30,0),0) -> 0 | AB77: ='NSR Calculator'!F27 -> 0 | AC77: =IF(OR(G77=0,AB77=0),0,G77*AB77) -> 0 | AD77: =IF(K77>$AI$54,(K77-$AI$54)*$AK$55+$AM$54,IF(K77>$AI$53,(K77-$AI$53)*$AK$54+$AM$53,IF(K77 > $AI$52,(K77-$AI$52)*$AK$53+$AM$52,IF(K77>$AI$51,(K77-$AI$51)*$AK$52+$AM$51,IF(K77>0,K77*$AK$51,0))))) -> 0 | AE77: =IF(K77>$AO$44,$AM$44,IF(K77>0,K77*$AK$44,0)) -> 0 | AF77: =$AF$75 -> FALSE | AG77: =IF(AF77,IF(K77>$AK$30,(K77-$AK$30)*$AL$30,0),0) -> 0 | AH77: ='NSR Calculator'!K27 -> 0 | AI77: =IF(OR(K77=0,AH77=0),0,K77*AH77) -> 0 | AJ77: =IF(O77>$AI$54,(O77-$AI$54)*$AK$55+$AM$54,IF(O77>$AI$53,(O77-$AI$53)*$AK$54+$AM$53,IF(O77 > $AI$52,(O77-$AI$52)*$AK$53+$AM$52,IF(O77>$AI$51,(O77-$AI$51)*$AK$52+$AM$51,IF(O77>0,O77*$AK$51,0))))) -> 0 | AK77: =IF(O77>$AO$44,$AM$44,IF(O77>0,O77*$AK$44,0)) -> 0 | AL77: =$AL$75 -> FALSE | AM77: =IF(AL77,IF(O77>$AK$30,(O77-$AK$30)*$AL$30,0),0) -> 0 | AN77: ='NSR Calculator'!P27 -> 0 | AO77: =IF(OR(O77=0,AN77=0),0,O77*AN77) -> 0 | AP77: =IF(S77>$AI$54,(S77-$AI$54)*$AK$55+$AM$54,IF(S77>$AI$53,(S77-$AI$53)*$AK$54+$AM$53,IF(S77 > $AI$52,(S77-$AI$52)*$AK$53+$AM$52,IF(S77>$AI$51,(S77-$AI$51)*$AK$52+$AM$51,IF(S77>0,S77*$AK$51,0))))) -> 0 | AQ77: =IF(S77>$AO$44,$AM$44,IF(S77>0,S77*$AK$44,0)) -> 0 | AR77: =$AR$75 -> FALSE | AS77: =IF(AR77,IF(S77>$AK$30,(S77-$AK$30)*$AL$30,0),0) -> 0 | AT77: ='NSR Calculator'!U27 -> 0 | AU77: =IF(OR(S77=0,AT77=0),0,S77*AT77) -> 0
G78: =IF(I78<=$AQ$51,I78/(1-$AK$51-$AK$44),IF(I78<=$AQ$52,(I78+$AM$51-$AI$51*$AK$52)/(1-$AK$52-$AK$44),IF(I78<=$AQ$53,(I78+$AM$52-$AI$52*$AK$53)/(1-$AK$53-$AK$44),IF(I78<=$AQ$54,(I78+$AM$53-$AI$53*$AK$54)/(1-$AK$54-$AK$44),IF(I78<=$AS$44,(I78+$AM$54-$AI$54*$AK$55)/(1-$AK$55-$AK$44),IF(I78>$AS$44,(I78+$AM$44+$AM$54-$AI$54*$AK$55)/(1-$AK$55))))))) -> 0 | H78: =X78+Y78 -> 0 | I78: =IF(H19=$AH$17,INDEX($AH$9:$AK$13,G18,4)*I18,0) -> 0 | K78: =IF(M78<=$AQ$51,M78/(1-$AK$51-$AK$44),IF(M78<=$AQ$52,(M78+$AM$51-$AI$51*$AK$52)/(1-$AK$52-$AK$44),IF(M78<=$AQ$53,(M78+$AM$52-$AI$52*$AK$53)/(1-$AK$53-$AK$44),IF(M78<=$AQ$54,(M78+$AM$53-$AI$53*$AK$54)/(1-$AK$54-$AK$44),IF(M78<=$AS$44,(M78+$AM$54-$AI$54*$AK$55)/(1-$AK$55-$AK$44),IF(M78>$AS$44,(M78+$AM$44+$AM$54-$AI$54*$AK$55)/(1-$AK$55))))))) -> 0 | L78: =AD78+AE78 -> 0 | M78: =IF(L19=$AH$17,INDEX($AH$9:$AK$13,K18,4)*M18,0) -> 0 | O78: =IF(Q78<=$AQ$51,Q78/(1-$AK$51-$AK$44),IF(Q78<=$AQ$52,(Q78+$AM$51-$AI$51*$AK$52)/(1-$AK$52-$AK$44),IF(Q78<=$AQ$53,(Q78+$AM$52-$AI$52*$AK$53)/(1-$AK$53-$AK$44),IF(Q78<=$AQ$54,(Q78+$AM$53-$AI$53*$AK$54)/(1-$AK$54-$AK$44),IF(Q78<=$AS$44,(Q78+$AM$54-$AI$54*$AK$55)/(1-$AK$55-$AK$44),IF(Q78>$AS$44,(Q78+$AM$44+$AM$54-$AI$54*$AK$55)/(1-$AK$55))))))) -> 0 | P78: =AJ78+AK78 -> 0 | Q78: =IF(P19=$AH$17,INDEX($AH$9:$AK$13,O18,4)*Q18,0) -> 0 | S78: =IF(U78<=$AQ$51,U78/(1-$AK$51-$AK$44),IF(U78<=$AQ$52,(U78+$AM$51-$AI$51*$AK$52)/(1-$AK$52-$AK$44),IF(U78<=$AQ$53,(U78+$AM$52-$AI$52*$AK$53)/(1-$AK$53-$AK$44),IF(U78<=$AQ$54,(U78+$AM$53-$AI$53*$AK$54)/(1-$AK$54-$AK$44),IF(U78<=$AS$44,(U78+$AM$54-$AI$54*$AK$55)/(1-$AK$55-$AK$44),IF(U78>$AS$44,(U78+$AM$44+$AM$54-$AI$54*$AK$55)/(1-$AK$55))))))) -> 0 | T78: =AP78+AQ78 -> 0 | U78: =IF(T19=$AH$17,INDEX($AH$9:$AK$13,S18,4)*U18,0) -> 0 | X78: =G78-I78-Y78 -> 0 | Y78: =IF(G78>$AO$44,$AM$44,IF(G78>0,G78*$AK$44,0)) -> 0 | AA78: =IF(Z77,IF(G78>$AK$30,(G78-$AK$30)*$AL$30,0),0) -> 0 | AB78: =IF(AB77>0,IF(AB77<0.03,1,0),0) -> 0 | AC78: =IF(OR(G78=0,AB77=0),0,G78*AB77) -> 0 | AD78: =K78-M78-AE78 -> 0 | AE78: =IF(K78>$AO$44,$AM$44,IF(K78>0,K78*$AK$44,0)) -> 0 | AG78: =IF(AF77,IF(K78>$AK$30,(K78-$AK$30)*$AL$30,0),0) -> 0 | AH78: =IF(AH77>0,IF(AH77<0.03,1,0),0) -> 0 | AI78: =IF(OR(K78=0,AH77=0),0,K78*AH77) -> 0 | AJ78: =O78-Q78-AK78 -> 0 | AK78: =IF(O78>$AO$44,$AM$44,IF(O78>0,O78*$AK$44,0)) -> 0 | AM78: =IF(AL77,IF(O78>$AK$30,(O78-$AK$30)*$AL$30,0),0) -> 0 | AN78: =IF(AN77>0,IF(AN77<0.03,1,0),0) -> 0 | AO78: =IF(OR(O78=0,AN77=0),0,O78*AN77) -> 0 | AP78: =S78-U78-AQ78 -> 0 | AQ78: =IF(S78>$AO$44,$AM$44,IF(S78>0,S78*$AK$44,0)) -> 0 | AS78: =IF(AR77,IF(S78>$AK$30,(S78-$AK$30)*$AL$30,0),0) -> 0 | AT78: =IF(AT77>0,IF(AT77<0.03,1,0),0) -> 0 | AU78: =IF(OR(S78=0,AT77=0),0,S78*AT77) -> 0
G79: =MAX(G77:G78) -> 0 | H79: =MAX(H77:H78) -> 0 | I79: =MAX(I77:I78) -> 0 | J79: =K79-AG79-AI79 -> 0 | K79: =MAX(K77:K78) -> 0 | L79: =MAX(L77:L78) -> 0 | M79: =MAX(M77:M78) -> 0 | N79: =O79-AM79-AO79 -> 0 | O79: =MAX(O77:O78) -> 0 | P79: =MAX(P77:P78) -> 0 | Q79: =MAX(Q77:Q78) -> 0 | R79: =S79-AS79-AU79 -> 0 | S79: =MAX(S77:S78) -> 0 | T79: =MAX(T77:T78) -> 0 | U79: =MAX(U77:U78) -> 0 | X79: =MAX(X77:X78) -> 0 | Y79: =MAX(Y77:Y78) -> 0 | AA79: =MAX(AA77:AA78) -> 0 | AC79: =MAX(AC77:AC78) -> 0 | AD79: 0 | AE79: 0 | AG79: =MAX(AG77:AG78) -> 0 | AI79: 0 | AJ79: 0 | AK79: 0 | AM79: =MAX(AM77:AM78) -> 0 | AO79: 0 | AP79: 0 | AQ79: 0 | AS79: =MAX(AS77:AS78) -> 0 | AU79: =MAX(AU77:AU78) -> 0
B80: 2 | C80: Self-employed | F80: =G80-G$79 -> 0 | G80: =IF(H22=$AH$16,INDEX($AH$9:$AK$13,G21,4)*I21+G79,0) -> 0 | H80: =X80+Y80 -> 0 | I80: =G80-H80 -> 0 | J80: =K80-K$79 -> 0 | K80: =IF(L22=$AH$16,INDEX($AH$9:$AK$13,K21,4)*M21+K79,0) -> 0 | L80: =AD80+AE80 -> 0 | M80: =K80-L80 -> 0 | N80: =O80-O$79 -> 0 | O80: =IF(P22=$AH$16,INDEX($AH$9:$AK$13,O21,4)*Q21+O79,0) -> 0 | P80: =AJ80+AK80 -> 0 | Q80: =O80-P80 -> 0 | R80: =S80-S$79 -> 0 | S80: =IF(T22=$AH$16,INDEX($AH$9:$AK$13,S21,4)*U21+S79,0) -> 0 | T80: =AP80+AQ80 -> 0 | U80: =S80-T80 -> 0 | X80: =IF(G80>$AI$54,(G80-$AI$54)*$AK$55+$AM$54,IF(G80>$AI$53,(G80-$AI$53)*$AK$54+$AM$53,IF(G80 > $AI$52,(G80-$AI$52)*$AK$53+$AM$52,IF(G80>$AI$51,(G80-$AI$51)*$AK$52+$AM$51,IF(G80>0,G80*$AK$51,0))))) -> 0 | Y80: =Y79 -> 0 | Z80: =$Z$75 -> FALSE | AA80: =IF(Z80,IF(G80>$AK$30,(G80-$AK$30)*$AL$30,0),AA79) -> 0 | AB80: ='NSR Calculator'!F30 -> 0 | AC80: =IF(OR(G80=0,AB80=0),0,(G80-G79)*AB80) -> 0 | AD80: =IF(K80>$AI$54,(K80-$AI$54)*$AK$55+$AM$54,IF(K80>$AI$53,(K80-$AI$53)*$AK$54+$AM$53,IF(K80 > $AI$52,(K80-$AI$52)*$AK$53+$AM$52,IF(K80>$AI$51,(K80-$AI$51)*$AK$52+$AM$51,IF(K80>0,K80*$AK$51,0))))) -> 0 | AE80: =AE79 -> 0 | AF80: =$AF$75 -> FALSE | AG80: =IF(AF80,IF(K80>$AK$30,(K80-$AK$30)*$AL$30,0),AG79) -> 0 | AH80: ='NSR Calculator'!K30 -> 0 | AI80: =IF(OR(K80=0,AH80=0),0,(K80-K79)*AH80) -> 0 | AJ80: =IF(O80>$AI$54,(O80-$AI$54)*$AK$55+$AM$54,IF(O80>$AI$53,(O80-$AI$53)*$AK$54+$AM$53,IF(O80 > $AI$52,(O80-$AI$52)*$AK$53+$AM$52,IF(O80>$AI$51,(O80-$AI$51)*$AK$52+$AM$51,IF(O80>0,O80*$AK$51,0))))) -> 0 | AK80: =AK79 -> 0 | AL80: =$AL$75 -> FALSE | AM80: =IF(AL80,IF(O80>$AK$30,(O80-$AK$30)*$AL$30,0),AM79) -> 0 | AN80: ='NSR Calculator'!P30 -> 0 | AO80: =IF(OR(O80=0,AN80=0),0,(O80-O79)*AN80) -> 0 | AP80: =IF(S80>$AI$54,(S80-$AI$54)*$AK$55+$AM$54,IF(S80>$AI$53,(S80-$AI$53)*$AK$54+$AM$53,IF(S80 > $AI$52,(S80-$AI$52)*$AK$53+$AM$52,IF(S80>$AI$51,(S80-$AI$51)*$AK$52+$AM$51,IF(S80>0,S80*$AK$51,0))))) -> 0 | AQ80: =AQ79 -> 0 | AR80: =$AR$75 -> FALSE | AS80: =IF(AR80,IF(S80>$AK$30,(S80-$AK$30)*$AL$30,0),AS79) -> 0 | AT80: ='NSR Calculator'!U30 -> 0 | AU80: =IF(OR(S80=0,AT80=0),0,(S80-S79)*AT80) -> 0
F81: =G81-G$79 -> 0 | G81: =IF(I81<=$AQ$51,I81/(1-$AK$51-$AK$45),IF(I81<=$AQ$52,(I81+$AM$51-$AI$51*$AK$52)/(1-$AK$52-$AK$45),IF(I81<=$AQ$53,(I81+$AM$52-$AI$52*$AK$53)/(1-$AK$53-$AK$45),IF(I81<=$AQ$54,(I81+$AM$53-$AI$53*$AK$54)/(1-$AK$54-$AK$45),IF(I81<=$AS$45,(I81+$AM$54-$AI$54*$AK$55)/(1-$AK$55-$AK$45),IF(I81>$AS$45,(I81+$AM$45+$AM$54-$AI$54*$AK$55)/(1-$AK$55))))))) -> 0 | H81: =X81+Y81 -> 0 | I81: =IF(H22=$AH$17,INDEX($AH$9:$AK$13,G21,4)*I21+I79,0) -> 0 | J81: =K81-K$79 -> 0 | K81: =IF(M81<=$AQ$51,M81/(1-$AK$51-$AK$45),IF(M81<=$AQ$52,(M81+$AM$51-$AI$51*$AK$52)/(1-$AK$52-$AK$45),IF(M81<=$AQ$53,(M81+$AM$52-$AI$52*$AK$53)/(1-$AK$53-$AK$45),IF(M81<=$AQ$54,(M81+$AM$53-$AI$53*$AK$54)/(1-$AK$54-$AK$45),IF(M81<=$AS$45,(M81+$AM$54-$AI$54*$AK$55)/(1-$AK$55-$AK$45),IF(M81>$AS$45,(M81+$AM$45+$AM$54-$AI$54*$AK$55)/(1-$AK$55))))))) -> 0 | L81: =AD81+AE81 -> 0 | M81: =IF(L22=$AH$17,INDEX($AH$9:$AK$13,K21,4)*M21+M79,0) -> 0 | N81: =O81-O$79 -> 0 | O81: =IF(Q81<=$AQ$51,Q81/(1-$AK$51-$AK$45),IF(Q81<=$AQ$52,(Q81+$AM$51-$AI$51*$AK$52)/(1-$AK$52-$AK$45),IF(Q81<=$AQ$53,(Q81+$AM$52-$AI$52*$AK$53)/(1-$AK$53-$AK$45),IF(Q81<=$AQ$54,(Q81+$AM$53-$AI$53*$AK$54)/(1-$AK$54-$AK$45),IF(Q81<=$AS$45,(Q81+$AM$54-$AI$54*$AK$55)/(1-$AK$55-$AK$45),IF(Q81>$AS$45,(Q81+$AM$45+$AM$54-$AI$54*$AK$55)/(1-$AK$55))))))) -> 0 | P81: =AJ81+AK81 -> 0 | Q81: =IF(P22=$AH$17,INDEX($AH$9:$AK$13,O21,4)*Q21+Q79,0) -> 0 | R81: =S81-S$79 -> 0 | S81: =IF(U81<=$AQ$51,U81/(1-$AK$51-$AK$45),IF(U81<=$AQ$52,(U81+$AM$51-$AI$51*$AK$52)/(1-$AK$52-$AK$45),IF(U81<=$AQ$53,(U81+$AM$52-$AI$52*$AK$53)/(1-$AK$53-$AK$45),IF(U81<=$AQ$54,(U81+$AM$53-$AI$53*$AK$54)/(1-$AK$54-$AK$45),IF(U81<=$AS$45,(U81+$AM$54-$AI$54*$AK$55)/(1-$AK$55-$AK$45),IF(U81>$AS$45,(U81+$AM$45+$AM$54-$AI$54*$AK$55)/(1-$AK$55))))))) -> 0 | T81: =AP81+AQ81 -> 0 | U81: =IF(T22=$AH$17,INDEX($AH$9:$AK$13,S21,4)*U21+U79,0) -> 0 | X81: =G81-I81-Y81 -> 0 | Y81: =Y79 -> 0 | AA81: =IF(Z80,IF(G81>$AK$30,(G81-$AK$30)*$AL$30,0),AA79) -> 0 | AB81: =IF(AB80>0,IF(AB80<0.03,1,0),0) -> 0 | AC81: =IF(OR(G81=0,AB80=0),0,(G81-G79)*AB80) -> 0 | AD81: =K81-M81-AE81 -> 0 | AE81: =AE79 -> 0 | AG81: =IF(AF80,IF(K81>$AK$30,(K91-$AK$30)*$AL$30,0),AG79) -> 0 | AH81: =IF(AH80>0,IF(AH80<0.03,1,0),0) -> 0 | AI81: =IF(OR(K81=0,AH80=0),0,(K81-K79)*AH80) -> 0 | AJ81: =O81-Q81-AK81 -> 0 | AK81: =AK79 -> 0 | AM81: =IF(AL80,IF(O81>$AK$30,(O81-$AK$30)*$AL$30,0),AM79) -> 0 | AN81: =IF(AN80>0,IF(AN80<0.03,1,0),0) -> 0 | AO81: =IF(OR(O81=0,AN80=0),0,(O81-O79)*AN80) -> 0 | AP81: =S81-U81-AQ81 -> 0 | AQ81: =AQ79 -> 0 | AS81: =IF(AR80,IF(S81>$AK$30,(S81-$AK$30)*$AL$30,0),AS79) -> 0 | AT81: =IF(AT80>0,IF(AT80<0.03,1,0),0) -> 0 | AU81: =IF(OR(S81=0,AT80=0),0,(S81-S79)*AT80) -> 0
F82: =MAX(F80:F81) -> 0 | G82: 0 | H82: =MAX(H80:H81) -> 0 | I82: 0 | J82: 0 | K82: =MAX(K80:K81) -> 0 | L82: =MAX(L80:L81) -> 0 | M82: 0 | N82: 0 | O82: =MAX(O80:O81) -> 0 | P82: =MAX(P80:P81) -> 0 | Q82: 0 | R82: 0 | S82: =MAX(S80:S81) -> 0 | T82: =MAX(T80:T81) -> 0 | U82: 0 | X82: =MAX(X80:X81) -> 0 | Y82: 0 | AA82: =MAX(AA80:AA81) -> 0 | AC82: =MAX(AC80:AC81)+AC79 -> 0 | AD82: 0 | AE82: 0 | AG82: =MAX(AG80:AG81) -> 0 | AI82: =MAX(AI80:AI81)+AI79 -> 0 | AJ82: 0 | AK82: 0 | AM82: =MAX(AM80:AM81) -> 0 | AO82: =MAX(AO80:AO81)+AO79 -> 0 | AP82: 0 | AQ82: 0 | AS82: =MAX(AS80:AS81) -> 0 | AU82: =MAX(AU80:AU81)+AU79 -> 0
B83: 3 | C83: Overtime | G83: =IF(H25=$AH$16,INDEX($AH$9:$AK$13,G24,4)*I24+G82,0) -> 0 | H83: =X83+Y83 -> 0 | I83: =G83-H83 -> 0 | J83: =K82-AG82-AI82 -> 0 | K83: =IF(L25=$AH$16,INDEX($AH$9:$AK$13,K24,4)*M24+K82,0) -> 0 | L83: =AD83+AE83 -> 0 | M83: =K83-L83 -> 0 | N83: =O82-AM82-AO82 -> 0 | O83: =IF(P25=$AH$16,INDEX($AH$9:$AK$13,O24,4)*Q24+O82,0) -> 0 | P83: =AJ83+AK83 -> 0 | Q83: =O83-P83 -> 0 | R83: =S82-AS82-AU82 -> 0 | S83: =IF(T25=$AH$16,INDEX($AH$9:$AK$13,S24,4)*U24+S82,0) -> 0 | T83: =AP83+AQ83 -> 0 | U83: =S83-T83 -> 0 | X83: =IF(G83>$AI$54,(G83-$AI$54)*$AK$55+$AM$54,IF(G83>$AI$53,(G83-$AI$53)*$AK$54+$AM$53,IF(G83 > $AI$52,(G83-$AI$52)*$AK$53+$AM$52,IF(G83>$AI$51,(G83-$AI$51)*$AK$52+$AM$51,IF(G83>0,G83*$AK$51,0))))) -> 0 | Y83: =IF((G83-$F$82)>$AO$44,$AM$44,IF((G83-G82)>0,(G83-$F$82)*$AK$44,Y82)) -> 0 | Z83: =$Z$75 -> FALSE | AA83: =IF(Z83,IF(G83>$AK$30,(G83-$AK$30)*$AL$30,0),AA82) -> 0 | AB83: ='NSR Calculator'!F33 -> 0 | AC83: =IF(OR(G83=0,AB83=0),0,(G83-G82)*AB83) -> 0 | AD83: =IF(K83>$AI$54,(K83-$AI$54)*$AK$55+$AM$54,IF(K83>$AI$53,(K83-$AI$53)*$AK$54+$AM$53,IF(K83 > $AI$52,(K83-$AI$52)*$AK$53+$AM$52,IF(K83>$AI$51,(K83-$AI$51)*$AK$52+$AM$51,IF(K83>0,K83*$AK$51,0))))) -> 0 | AE83: =IF((K83-$J$82)>$AO$44,$AM$44,IF((K83-K82)>0,(K83-$J$82)*$AK$44,AE82)) -> 0 | AF83: =$AF$75 -> FALSE | AG83: =IF(AF83,IF(K83>$AK$30,(K83-$AK$30)*$AL$30,0),AG82) -> 0 | AH83: ='NSR Calculator'!K33 -> 0 | AI83: =IF(OR(K83=0,AH83=0),0,(K83-K82)*AH83) -> 0 | AJ83: =IF(O83>$AI$54,(O83-$AI$54)*$AK$55+$AM$54,IF(O83>$AI$53,(O83-$AI$53)*$AK$54+$AM$53,IF(O83 > $AI$52,(O83-$AI$52)*$AK$53+$AM$52,IF(O83>$AI$51,(O83-$AI$51)*$AK$52+$AM$51,IF(O83>0,O83*$AK$51,0))))) -> 0 | AK83: =IF((O83-$N$82)>$AO$44,$AM$44,IF((O83-O82)>0,(O83-$N$82)*$AK$44,AK82)) -> 0 | AL83: =$AL$75 -> FALSE | AM83: =IF(AL83,IF(O83>$AK$30,(O83-$AK$30)*$AL$30,0),AM82) -> 0 | AN83: ='NSR Calculator'!P33 -> 0 | AO83: =IF(OR(O83=0,AN83=0),0,(O83-O82)*AN83) -> 0 | AP83: =IF(S83>$AI$54,(S83-$AI$54)*$AK$55+$AM$54,IF(S83>$AI$53,(S83-$AI$53)*$AK$54+$AM$53,IF(S83 > $AI$52,(S83-$AI$52)*$AK$53+$AM$52,IF(S83>$AI$51,(S83-$AI$51)*$AK$52+$AM$51,IF(S83>0,S83*$AK$51,0))))) -> 0 | AQ83: =IF((S83-$R$82)>$AO$44,$AM$44,IF((S83-S82)>0,(S83-$R$82)*$AK$44,AQ82)) -> 0 | AR83: =$AR$75 -> FALSE | AS83: =IF(AR83,IF(S83>$AK$30,(S83-$AK$30)*$AL$30,0),AS82) -> 0 | AT83: ='NSR Calculator'!U33 -> 0 | AU83: =IF(OR(S83=0,AT83=0),0,(S83-S82)*AT83) -> 0
G84: =IF(I84<=$AQ$51,I84/(1-$AK$51-$AK$44),IF(I84<=$AQ$52,(I84+$AM$51-$AI$51*$AK$52)/(1-$AK$52-$AK$44),IF(I84<=$AQ$53,(I84+$AM$52-$AI$52*$AK$53)/(1-$AK$53-$AK$44),IF(I84<=$AQ$54,(I84+$AM$53-$AI$53*$AK$54)/(1-$AK$54-$AK$44),IF(I84<=$AS$44,(I84+$AM$54-$AI$54*$AK$55)/(1-$AK$55-$AK$44),IF(I84>$AS$44,(I84+$AM$44+$AM$54-$AI$54*$AK$55)/(1-$AK$55))))))) -> 0 | H84: =X84+Y84 -> 0 | I84: =IF(H25=$AH$17,INDEX($AH$9:$AK$13,G24,4)*I24+I82,0) -> 0 | K84: =IF(M84<=$AQ$51,M84/(1-$AK$51-$AK$44),IF(M84<=$AQ$52,(M84+$AM$51-$AI$51*$AK$52)/(1-$AK$52-$AK$44),IF(M84<=$AQ$53,(M84+$AM$52-$AI$52*$AK$53)/(1-$AK$53-$AK$44),IF(M84<=$AQ$54,(M84+$AM$53-$AI$53*$AK$54)/(1-$AK$54-$AK$44),IF(M84<=$AS$44,(M84+$AM$54-$AI$54*$AK$55)/(1-$AK$55-$AK$44),IF(M84>$AS$44,(M84+$AM$44+$AM$54-$AI$54*$AK$55)/(1-$AK$55))))))) -> 0 | L84: =AD84+AE84 -> 0 | M84: =IF(L25=$AH$17,INDEX($AH$9:$AK$13,K24,4)*M24+M82,0) -> 0 | O84: =IF(Q84<=$AQ$51,Q84/(1-$AK$51-$AK$44),IF(Q84<=$AQ$52,(Q84+$AM$51-$AI$51*$AK$52)/(1-$AK$52-$AK$44),IF(Q84<=$AQ$53,(Q84+$AM$52-$AI$52*$AK$53)/(1-$AK$53-$AK$44),IF(Q84<=$AQ$54,(Q84+$AM$53-$AI$53*$AK$54)/(1-$AK$54-$AK$44),IF(Q84<=$AS$44,(Q84+$AM$54-$AI$54*$AK$55)/(1-$AK$55-$AK$44),IF(Q84>$AS$44,(Q84+$AM$44+$AM$54-$AI$54*$AK$55)/(1-$AK$55))))))) -> 0 | P84: =AJ84+AK84 -> 0 | Q84: =IF(P25=$AH$17,INDEX($AH$9:$AK$13,O24,4)*Q24+Q82,0) -> 0 | S84: =IF(U84<=$AQ$51,U84/(1-$AK$51-$AK$44),IF(U84<=$AQ$52,(U84+$AM$51-$AI$51*$AK$52)/(1-$AK$52-$AK$44),IF(U84<=$AQ$53,(U84+$AM$52-$AI$52*$AK$53)/(1-$AK$53-$AK$44),IF(U84<=$AQ$54,(U84+$AM$53-$AI$53*$AK$54)/(1-$AK$54-$AK$44),IF(U84<=$AS$44,(U84+$AM$54-$AI$54*$AK$55)/(1-$AK$55-$AK$44),IF(U84>$AS$44,(U84+$AM$44+$AM$54-$AI$54*$AK$55)/(1-$AK$55))))))) -> 0 | T84: =AP84+AQ84 -> 0 | U84: =IF(T25=$AH$17,INDEX($AH$9:$AK$13,S24,4)*U24+U82,0) -> 0 | X84: =G84-I84-Y84 -> 0 | Y84: =IF((G84-$F$82)>$AO$44,$AM$44,IF((G84-G82)>0,(G84-$F$82)*$AK$44,Y82)) -> 0 | AA84: =IF(Z83,IF(G84>$AK$30,(G84-$AK$30)*$AL$30,0),AA82) -> 0 | AB84: =IF(AB83>0,IF(AB83<0.03,1,0),0) -> 0 | AC84: =IF(OR(G84=0,AB83=0),0,(G84-G82)*AB83) -> 0 | AD84: =K84-M84-AE84 -> 0 | AE84: =IF((K84-$J$82)>$AO$44,$AM$44,IF((K84-K82)>0,(K84-$J$82)*$AK$44,AE82)) -> 0 | AG84: =IF(AF83,IF(K84>$AK$30,(K84-$AK$30)*$AL$30,0),AG82) -> 0 | AH84: =IF(AH83>0,IF(AH83<0.03,1,0),0) -> 0 | AI84: =IF(OR(K84=0,AH83=0),0,(K84-K82)*AH83) -> 0 | AJ84: =O84-Q84-AK84 -> 0 | AK84: =IF((O84-$N$82)>$AO$44,$AM$44,IF((O84-O82)>0,(O84-$N$82)*$AK$44,AK82)) -> 0 | AM84: =IF(AL83,IF(O84>$AK$30,(O84-$AK$30)*$AL$30,0),AM82) -> 0 | AN84: =IF(AN83>0,IF(AN83<0.03,1,0),0) -> 0 | AO84: =IF(OR(O84=0,AN83=0),0,(O84-O82)*AN83) -> 0 | AP84: =S84-U84-AQ84 -> 0 | AQ84: =IF((S84-$R$82)>$AO$44,$AM$44,IF((S84-S82)>0,(S84-$R$82)*$AK$44,AQ82)) -> 0 | AS84: =IF(AR83,IF(S84>$AK$30,(S84-$AK$30)*$AL$30,0),AS82) -> 0 | AT84: =IF(AT83>0,IF(AT83<0.03,1,0),0) -> 0 | AU84: =IF(OR(S84=0,AT83=0),0,(S84-S82)*AT83) -> 0
G85: =MAX(G83:G84) -> 0 | H85: =MAX(H83:H84) -> 0 | I85: =MAX(I83:I84) -> 0 | K85: =MAX(K83:K84) -> 0 | L85: =MAX(L83:L84) -> 0 | M85: =MAX(M83:M84) -> 0 | O85: =MAX(O83:O84) -> 0 | P85: =MAX(P83:P84) -> 0 | Q85: =MAX(Q83:Q84) -> 0 | S85: =MAX(S83:S84) -> 0 | T85: =MAX(T83:T84) -> 0 | U85: =MAX(U83:U84) -> 0 | X85: =MAX(X83:X84) -> 0 | Y85: =MAX(Y83:Y84) -> 0 | AA85: =MAX(AA83:AA84) -> 0 | AC85: =MAX(AC83:AC84)+AC82 -> 0 | AD85: 0 | AE85: 0 | AG85: =MAX(AG83:AG84) -> 0 | AI85: =MAX(AI83:AI84)+AI82 -> 0 | AJ85: 0 | AK85: 0 | AM85: =MAX(AM83:AM84) -> 0 | AO85: =MAX(AO83:AO84)+AO82 -> 0 | AP85: 0 | AQ85: 0 | AS85: =MAX(AS83:AS84) -> 0 | AU85: =MAX(AU83:AU84)+AU82 -> 0
B86: 4 | C86: Bonus | G86: =IF(H28=$AH$16,INDEX($AH$9:$AK$13,G27,4)*I27+G85,0) -> 0 | H86: =X86+Y86 -> 0 | I86: =G86-H86 -> 0 | K86: =IF(L28=$AH$16,INDEX($AH$9:$AK$13,K27,4)*M27+K85,0) -> 0 | L86: =AD86+AE86 -> 0 | M86: =K86-L86 -> 0 | O86: =IF(P28=$AH$16,INDEX($AH$9:$AK$13,O27,4)*Q27+O85,0) -> 0 | P86: =AJ86+AK86 -> 0 | Q86: =O86-P86 -> 0 | S86: =IF(T28=$AH$16,INDEX($AH$9:$AK$13,S27,4)*U27+S85,0) -> 0 | T86: =AP86+AQ86 -> 0 | U86: =S86-T86 -> 0 | X86: =IF(G86>$AI$54,(G86-$AI$54)*$AK$55+$AM$54,IF(G86>$AI$53,(G86-$AI$53)*$AK$54+$AM$53,IF(G86 > $AI$52,(G86-$AI$52)*$AK$53+$AM$52,IF(G86>$AI$51,(G86-$AI$51)*$AK$52+$AM$51,IF(G86>0,G86*$AK$51,0))))) -> 0 | Y86: =IF((G86-$F$82)>$AO$44,$AM$44,IF((G86-G85)>0,(G86-$F$82)*$AK$44,Y85)) -> 0 | Z86: =$Z$75 -> FALSE | AA86: =IF(Z86,IF(G86>$AK$30,(G86-$AK$30)*$AL$30,0),AA85) -> 0 | AB86: ='NSR Calculator'!F36 -> 0 | AC86: =IF(OR(G86=0,AB86=0),0,(G86-G85)*AB86) -> 0 | AD86: =IF(K86>$AI$54,(K86-$AI$54)*$AK$55+$AM$54,IF(K86>$AI$53,(K86-$AI$53)*$AK$54+$AM$53,IF(K86 > $AI$52,(K86-$AI$52)*$AK$53+$AM$52,IF(K86>$AI$51,(K86-$AI$51)*$AK$52+$AM$51,IF(K86>0,K86*$AK$51,0))))) -> 0 | AE86: =IF((K86-$J$82)>$AO$44,$AM$44,IF((K86-K85)>0,(K86-$J$82)*$AK$44,AE85)) -> 0 | AF86: =$AF$75 -> FALSE | AG86: =IF(AF86,IF(K86>$AK$30,(K86-$AK$30)*$AL$30,0),AG85) -> 0 | AH86: ='NSR Calculator'!K36 -> 0 | AI86: =IF(OR(K86=0,AH86=0),0,(K86-K85)*AH86) -> 0 | AJ86: =IF(O86>$AI$54,(O86-$AI$54)*$AK$55+$AM$54,IF(O86>$AI$53,(O86-$AI$53)*$AK$54+$AM$53,IF(O86 > $AI$52,(O86-$AI$52)*$AK$53+$AM$52,IF(O86>$AI$51,(O86-$AI$51)*$AK$52+$AM$51,IF(O86>0,O86*$AK$51,0))))) -> 0 | AK86: =IF((O86-$N$82)>$AO$44,$AM$44,IF((O86-O85)>0,(O86-$N$82)*$AK$44,AK85)) -> 0 | AL86: =$AL$75 -> FALSE | AM86: =IF(AL86,IF(O86>$AK$30,(O86-$AK$30)*$AL$30,0),AM85) -> 0 | AN86: ='NSR Calculator'!P36 -> 0 | AO86: =IF(OR(O86=0,AN86=0),0,(O86-O85)*AN86) -> 0 | AP86: =IF(S86>$AI$54,(S86-$AI$54)*$AK$55+$AM$54,IF(S86>$AI$53,(S86-$AI$53)*$AK$54+$AM$53,IF(S86 > $AI$52,(S86-$AI$52)*$AK$53+$AM$52,IF(S86>$AI$51,(S86-$AI$51)*$AK$52+$AM$51,IF(S86>0,S86*$AK$51,0))))) -> 0 | AQ86: =IF((S86-$R$82)>$AO$44,$AM$44,IF((S86-S85)>0,(S86-$R$82)*$AK$44,AQ85)) -> 0 | AR86: =$AR$75 -> FALSE | AS86: =IF(AR86,IF(S86>$AK$30,(S86-$AK$30)*$AL$30,0),AS85) -> 0 | AT86: ='NSR Calculator'!U36 -> 0 | AU86: =IF(OR(S86=0,AT86=0),0,(S86-S85)*AT86) -> 0
G87: =IF(I87<=$AQ$51,I87/(1-$AK$51-$AK$44),IF(I87<=$AQ$52,(I87+$AM$51-$AI$51*$AK$52)/(1-$AK$52-$AK$44),IF(I87<=$AQ$53,(I87+$AM$52-$AI$52*$AK$53)/(1-$AK$53-$AK$44),IF(I87<=$AQ$54,(I87+$AM$53-$AI$53*$AK$54)/(1-$AK$54-$AK$44),IF(I87<=$AS$44,(I87+$AM$54-$AI$54*$AK$55)/(1-$AK$55-$AK$44),IF(I87>$AS$44,(I87+$AM$44+$AM$54-$AI$54*$AK$55)/(1-$AK$55))))))) -> 0 | H87: =X87+Y87 -> 0 | I87: =IF(H28=$AH$17,INDEX($AH$9:$AK$13,G27,4)*I27+I85,0) -> 0 | K87: =IF(M87<=$AQ$51,M87/(1-$AK$51-$AK$44),IF(M87<=$AQ$52,(M87+$AM$51-$AI$51*$AK$52)/(1-$AK$52-$AK$44),IF(M87<=$AQ$53,(M87+$AM$52-$AI$52*$AK$53)/(1-$AK$53-$AK$44),IF(M87<=$AQ$54,(M87+$AM$53-$AI$53*$AK$54)/(1-$AK$54-$AK$44),IF(M87<=$AS$44,(M87+$AM$54-$AI$54*$AK$55)/(1-$AK$55-$AK$44),IF(M87>$AS$44,(M87+$AM$44+$AM$54-$AI$54*$AK$55)/(1-$AK$55))))))) -> 0 | L87: =AD87+AE87 -> 0 | M87: =IF(L28=$AH$17,INDEX($AH$9:$AK$13,K27,4)*M27+M85,0) -> 0 | O87: =IF(Q87<=$AQ$51,Q87/(1-$AK$51-$AK$44),IF(Q87<=$AQ$52,(Q87+$AM$51-$AI$51*$AK$52)/(1-$AK$52-$AK$44),IF(Q87<=$AQ$53,(Q87+$AM$52-$AI$52*$AK$53)/(1-$AK$53-$AK$44),IF(Q87<=$AQ$54,(Q87+$AM$53-$AI$53*$AK$54)/(1-$AK$54-$AK$44),IF(Q87<=$AS$44,(Q87+$AM$54-$AI$54*$AK$55)/(1-$AK$55-$AK$44),IF(Q87>$AS$44,(Q87+$AM$44+$AM$54-$AI$54*$AK$55)/(1-$AK$55))))))) -> 0 | P87: =AJ87+AK87 -> 0 | Q87: =IF(P28=$AH$17,INDEX($AH$9:$AK$13,O27,4)*Q27+Q85,0) -> 0 | S87: =IF(U87<=$AQ$51,U87/(1-$AK$51-$AK$44),IF(U87<=$AQ$52,(U87+$AM$51-$AI$51*$AK$52)/(1-$AK$52-$AK$44),IF(U87<=$AQ$53,(U87+$AM$52-$AI$52*$AK$53)/(1-$AK$53-$AK$44),IF(U87<=$AQ$54,(U87+$AM$53-$AI$53*$AK$54)/(1-$AK$54-$AK$44),IF(U87<=$AS$44,(U87+$AM$54-$AI$54*$AK$55)/(1-$AK$55-$AK$44),IF(U87>$AS$44,(U87+$AM$44+$AM$54-$AI$54*$AK$55)/(1-$AK$55))))))) -> 0 | T87: =AP87+AQ87 -> 0 | U87: =IF(T28=$AH$17,INDEX($AH$9:$AK$13,S27,4)*U27+U85,0) -> 0 | X87: =G87-I87-Y87 -> 0 | Y87: =IF((G87-$F$82)>$AO$44,$AM$44,IF((G87-G85)>0,(G87-$F$82)*$AK$44,Y85)) -> 0 | AA87: =IF(Z86,IF(G87>$AK$30,(G87-$AK$30)*$AL$30,0),AA85) -> 0 | AB87: =IF(AB86>0,IF(AB86<0.03,1,0),0) -> 0 | AC87: =IF(OR(G87=0,AB86=0),0,(G87-G85)*AB86) -> 0 | AD87: =K87-M87-AE87 -> 0 | AE87: =IF((K87-$J$82)>$AO$44,$AM$44,IF((K87-K85)>0,(K87-$J$82)*$AK$44,AE85)) -> 0 | AG87: =IF(AF86,IF(K87>$AK$30,(K87-$AK$30)*$AL$30,0),AG85) -> 0 | AH87: =IF(AH86>0,IF(AH86<0.03,1,0),0) -> 0 | AI87: =IF(OR(K87=0,AH86=0),0,(K87-K85)*AH86) -> 0 | AJ87: =O87-Q87-AK87 -> 0 | AK87: =IF((O87-$N$82)>$AO$44,$AM$44,IF((O87-O85)>0,(O87-$N$82)*$AK$44,AK85)) -> 0 | AM87: =IF(AL86,IF(O87>$AK$30,(O87-$AK$30)*$AL$30,0),AM85) -> 0 | AN87: =IF(AN86>0,IF(AN86<0.03,1,0),0) -> 0 | AO87: =IF(OR(O87=0,AN86=0),0,(O87-O85)*AN86) -> 0 | AP87: =S87-U87-AQ87 -> 0 | AQ87: =IF((S87-$R$82)>$AO$44,$AM$44,IF((S87-S85)>0,(S87-$R$82)*$AK$44,AQ85)) -> 0 | AS87: =IF(AR86,IF(S87>$AK$30,(S87-$AK$30)*$AL$30,0),AS85) -> 0 | AT87: =IF(AT86>0,IF(AT86<0.03,1,0),0) -> 0 | AU87: =IF(OR(S87=0,AT86=0),0,(S87-S85)*AT86) -> 0
G88: =MAX(G86:G87) -> 0 | H88: =MAX(H86:H87) -> 0 | I88: =MAX(I86:I87) -> 0 | K88: =MAX(K86:K87) -> 0 | L88: =MAX(L86:L87) -> 0 | M88: =MAX(M86:M87) -> 0 | O88: =MAX(O86:O87) -> 0 | P88: =MAX(P86:P87) -> 0 | Q88: =MAX(Q86:Q87) -> 0 | S88: =MAX(S86:S87) -> 0 | T88: =MAX(T86:T87) -> 0 | U88: =MAX(U86:U87) -> 0 | X88: =MAX(X86:X87) -> 0 | Y88: =MAX(Y86:Y87) -> 0 | AA88: =MAX(AA86:AA87) -> 0 | AC88: =MAX(AC86:AC87)+AC85 -> 0 | AD88: 0 | AE88: 0 | AG88: =MAX(AG86:AG87) -> 0 | AI88: =MAX(AI86:AI87)+AI85 -> 0 | AJ88: 0 | AK88: 0 | AM88: =MAX(AM86:AM87) -> 0 | AO88: =MAX(AO86:AO87)+AO85 -> 0 | AP88: 0 | AQ88: 0 | AS88: =MAX(AS86:AS87) -> 0 | AU88: =MAX(AU86:AU87)+AU85 -> 0
B89: 5 | C89: Allowance | G89: =IF(H31=$AH$16,INDEX($AH$9:$AK$13,G30,4)*I30+G88,0) -> 0 | H89: =X89+Y89 -> 0 | I89: =G89-H89 -> 0 | K89: =IF(L31=$AH$16,INDEX($AH$9:$AK$13,K30,4)*M30+K88,0) -> 0 | L89: =AD89+AE89 -> 0 | M89: =K89-L89 -> 0 | O89: =IF(P31=$AH$16,INDEX($AH$9:$AK$13,O30,4)*Q30+O88,0) -> 0 | P89: =AJ89+AK89 -> 0 | Q89: =O89-P89 -> 0 | S89: =IF(T31=$AH$16,INDEX($AH$9:$AK$13,S30,4)*U30+S88,0) -> 0 | T89: =AP89+AQ89 -> 0 | U89: =S89-T89 -> 0 | X89: =IF(G89>$AI$54,(G89-$AI$54)*$AK$55+$AM$54,IF(G89>$AI$53,(G89-$AI$53)*$AK$54+$AM$53,IF(G89 > $AI$52,(G89-$AI$52)*$AK$53+$AM$52,IF(G89>$AI$51,(G89-$AI$51)*$AK$52+$AM$51,IF(G89>0,G89*$AK$51,0))))) -> 0 | Y89: =IF((G89-$F$82)>$AO$44,$AM$44,IF((G89-G88)>0,(G89-$F$82)*$AK$44,Y88)) -> 0 | Z89: =$Z$75 -> FALSE | AA89: =IF(Z89,IF(G89>$AK$30,(G89-$AK$30)*$AL$30,0),AA88) -> 0 | AB89: ='NSR Calculator'!F39 -> 0 | AC89: =IF(OR(G89=0,AB89=0),0,(G89-G88)*AB89) -> 0 | AD89: =IF(K89>$AI$54,(K89-$AI$54)*$AK$55+$AM$54,IF(K89>$AI$53,(K89-$AI$53)*$AK$54+$AM$53,IF(K89 > $AI$52,(K89-$AI$52)*$AK$53+$AM$52,IF(K89>$AI$51,(K89-$AI$51)*$AK$52+$AM$51,IF(K89>0,K89*$AK$51,0))))) -> 0 | AE89: =IF((K89-$J$82)>$AO$44,$AM$44,IF((K89-K88)>0,(K89-$J$82)*$AK$44,AE88)) -> 0 | AF89: =$AF$75 -> FALSE | AG89: =IF(AF89,IF(K89>$AK$30,(K89-$AK$30)*$AL$30,0),AG88) -> 0 | AH89: ='NSR Calculator'!K39 -> 0 | AI89: =IF(OR(K89=0,AH89=0),0,(K89-K88)*AH89) -> 0 | AJ89: =IF(O89>$AI$54,(O89-$AI$54)*$AK$55+$AM$54,IF(O89>$AI$53,(O89-$AI$53)*$AK$54+$AM$53,IF(O89 > $AI$52,(O89-$AI$52)*$AK$53+$AM$52,IF(O89>$AI$51,(O89-$AI$51)*$AK$52+$AM$51,IF(O89>0,O89*$AK$51,0))))) -> 0 | AK89: =IF((O89-$N$82)>$AO$44,$AM$44,IF((O89-O88)>0,(O89-$N$82)*$AK$44,AK88)) -> 0 | AL89: =$AL$75 -> FALSE | AM89: =IF(AL89,IF(O89>$AK$30,(O89-$AK$30)*$AL$30,0),AM88) -> 0 | AN89: ='NSR Calculator'!P39 -> 0 | AO89: =IF(OR(O89=0,AN89=0),0,(O89-O88)*AN89) -> 0 | AP89: =IF(S89>$AI$54,(S89-$AI$54)*$AK$55+$AM$54,IF(S89>$AI$53,(S89-$AI$53)*$AK$54+$AM$53,IF(S89 > $AI$52,(S89-$AI$52)*$AK$53+$AM$52,IF(S89>$AI$51,(S89-$AI$51)*$AK$52+$AM$51,IF(S89>0,S89*$AK$51,0))))) -> 0 | AQ89: =IF((S89-$R$82)>$AO$44,$AM$44,IF((S89-S88)>0,(S89-$R$82)*$AK$44,AQ88)) -> 0 | AR89: =$AR$75 -> FALSE | AS89: =IF(AR89,IF(S89>$AK$30,(S89-$AK$30)*$AL$30,0),AS88) -> 0 | AT89: ='NSR Calculator'!U39 -> 0 | AU89: =IF(OR(S89=0,AT89=0),0,(S89-S88)*AT89) -> 0
G90: =IF(I90<=$AQ$51,I90/(1-$AK$51-$AK$44),IF(I90<=$AQ$52,(I90+$AM$51-$AI$51*$AK$52)/(1-$AK$52-$AK$44),IF(I90<=$AQ$53,(I90+$AM$52-$AI$52*$AK$53)/(1-$AK$53-$AK$44),IF(I90<=$AQ$54,(I90+$AM$53-$AI$53*$AK$54)/(1-$AK$54-$AK$44),IF(I90<=$AS$44,(I90+$AM$54-$AI$54*$AK$55)/(1-$AK$55-$AK$44),IF(I90>$AS$44,(I90+$AM$44+$AM$54-$AI$54*$AK$55)/(1-$AK$55))))))) -> 0 | H90: =X90+Y90 -> 0 | I90: =IF(H31=$AH$17,INDEX($AH$9:$AK$13,G30,4)*I30+I88,0) -> 0 | K90: =IF(M90<=$AQ$51,M90/(1-$AK$51-$AK$44),IF(M90<=$AQ$52,(M90+$AM$51-$AI$51*$AK$52)/(1-$AK$52-$AK$44),IF(M90<=$AQ$53,(M90+$AM$52-$AI$52*$AK$53)/(1-$AK$53-$AK$44),IF(M90<=$AQ$54,(M90+$AM$53-$AI$53*$AK$54)/(1-$AK$54-$AK$44),IF(M90<=$AS$44,(M90+$AM$54-$AI$54*$AK$55)/(1-$AK$55-$AK$44),IF(M90>$AS$44,(M90+$AM$44+$AM$54-$AI$54*$AK$55)/(1-$AK$55))))))) -> 0 | L90: =AD90+AE90 -> 0 | M90: =IF(L31=$AH$17,INDEX($AH$9:$AK$13,K30,4)*M30+M88,0) -> 0 | O90: =IF(Q90<=$AQ$51,Q90/(1-$AK$51-$AK$44),IF(Q90<=$AQ$52,(Q90+$AM$51-$AI$51*$AK$52)/(1-$AK$52-$AK$44),IF(Q90<=$AQ$53,(Q90+$AM$52-$AI$52*$AK$53)/(1-$AK$53-$AK$44),IF(Q90<=$AQ$54,(Q90+$AM$53-$AI$53*$AK$54)/(1-$AK$54-$AK$44),IF(Q90<=$AS$44,(Q90+$AM$54-$AI$54*$AK$55)/(1-$AK$55-$AK$44),IF(Q90>$AS$44,(Q90+$AM$44+$AM$54-$AI$54*$AK$55)/(1-$AK$55))))))) -> 0 | P90: =AJ90+AK90 -> 0 | Q90: =IF(P31=$AH$17,INDEX($AH$9:$AK$13,O30,4)*Q30+Q88,0) -> 0 | S90: =IF(U90<=$AQ$51,U90/(1-$AK$51-$AK$44),IF(U90<=$AQ$52,(U90+$AM$51-$AI$51*$AK$52)/(1-$AK$52-$AK$44),IF(U90<=$AQ$53,(U90+$AM$52-$AI$52*$AK$53)/(1-$AK$53-$AK$44),IF(U90<=$AQ$54,(U90+$AM$53-$AI$53*$AK$54)/(1-$AK$54-$AK$44),IF(U90<=$AS$44,(U90+$AM$54-$AI$54*$AK$55)/(1-$AK$55-$AK$44),IF(U90>$AS$44,(U90+$AM$44+$AM$54-$AI$54*$AK$55)/(1-$AK$55))))))) -> 0 | T90: =AP90+AQ90 -> 0 | U90: =IF(T31=$AH$17,INDEX($AH$9:$AK$13,S30,4)*U30+U88,0) -> 0 | X90: =G90-I90-Y90 -> 0 | Y90: =IF((G90-$F$82)>$AO$44,$AM$44,IF((G90-G88)>0,(G90-$F$82)*$AK$44,Y88)) -> 0 | AA90: =IF(Z89,IF(G90>$AK$30,(G90-$AK$30)*$AL$30,0),AA88) -> 0 | AB90: =IF(AB89>0,IF(AB89<0.03,1,0),0) -> 0 | AC90: =IF(OR(G90=0,AB89=0),0,(G90-G88)*AB89) -> 0 | AD90: =K90-M90-AE90 -> 0 | AE90: =IF((K90-$J$82)>$AO$44,$AM$44,IF((K90-K88)>0,(K90-$J$82)*$AK$44,AE88)) -> 0 | AG90: =IF(AF89,IF(K90>$AK$30,(K90-$AK$30)*$AL$30,0),AG88) -> 0 | AH90: =IF(AH89>0,IF(AH89<0.03,1,0),0) -> 0 | AI90: =IF(OR(K90=0,AH89=0),0,(K90-K88)*AH89) -> 0 | AJ90: =O90-Q90-AK90 -> 0 | AK90: =IF((O90-$N$82)>$AO$44,$AM$44,IF((O90-O88)>0,(O90-$N$82)*$AK$44,AK88)) -> 0 | AM90: =IF(AL89,IF(O90>$AK$30,(O90-$AK$30)*$AL$30,0),AM88) -> 0 | AN90: =IF(AN89>0,IF(AN89<0.03,1,0),0) -> 0 | AO90: =IF(OR(O90=0,AN89=0),0,(O90-O88)*AN89) -> 0 | AP90: =S90-U90-AQ90 -> 0 | AQ90: =IF((S90-$R$82)>$AO$44,$AM$44,IF((S90-S88)>0,(S90-$R$82)*$AK$44,AQ88)) -> 0 | AS90: =IF(AR89,IF(S90>$AK$30,(S90-$AK$30)*$AL$30,0),AS88) -> 0 | AT90: =IF(AT89>0,IF(AT89<0.03,1,0),0) -> 0 | AU90: =IF(OR(S90=0,AT89=0),0,(S90-S88)*AT89) -> 0
G91: =MAX(G89:G90) -> 0 | H91: =MAX(H89:H90) -> 0 | I91: =MAX(I89:I90) -> 0 | J91: =K91-AG91-AI91 -> 0 | K91: =MAX(K89:K90) -> 0 | L91: =MAX(L89:L90) -> 0 | M91: =MAX(M89:M90) -> 0 | N91: =O91-AM91-AO91 -> 0 | O91: =MAX(O89:O90) -> 0 | P91: =MAX(P89:P90) -> 0 | Q91: =MAX(Q89:Q90) -> 0 | R91: =S91-AS91-AU91 -> 0 | S91: =MAX(S89:S90) -> 0 | T91: =MAX(T89:T90) -> 0 | U91: =MAX(U89:U90) -> 0 | X91: =MAX(X89:X90) -> 0 | Y91: =MAX(Y89:Y90) -> 0 | AA91: =MAX(AA89:AA90) -> 0 | AC91: =MAX(AC89:AC90)+AC88 -> 0 | AD91: 0 | AE91: 0 | AG91: =MAX(AG89:AG90) -> 0 | AI91: =MAX(AI89:AI90)+AI88 -> 0 | AJ91: 0 | AK91: 0 | AM91: =MAX(AM89:AM90) -> 0 | AO91: =MAX(AO89:AO90)+AO88 -> 0 | AP91: 0 | AQ91: 0 | AS91: =MAX(AS89:AS90) -> 0 | AU91: =MAX(AU89:AU90)+AU88 -> 0
B92: 6 | C92: Commission | G92: =IF(H34=$AH$16,INDEX($AH$9:$AK$13,G33,4)*I33+G91,0) -> 0 | H92: =X92+Y92 -> 0 | I92: =G92-H92 -> 0 | K92: =IF(L34=$AH$16,INDEX($AH$9:$AK$13,K33,4)*M33+K91,0) -> 0 | L92: =AD92+AE92 -> 0 | M92: =K92-L92 -> 0 | O92: =IF(P34=$AH$16,INDEX($AH$9:$AK$13,O33,4)*Q33+O91,0) -> 0 | P92: =AJ92+AK92 -> 0 | Q92: =O92-P92 -> 0 | S92: =IF(T34=$AH$16,INDEX($AH$9:$AK$13,S33,4)*U33+S91,0) -> 0 | T92: =AP92+AQ92 -> 0 | U92: =S92-T92 -> 0 | X92: =IF(G92>$AI$54,(G92-$AI$54)*$AK$55+$AM$54,IF(G92>$AI$53,(G92-$AI$53)*$AK$54+$AM$53,IF(G92 > $AI$52,(G92-$AI$52)*$AK$53+$AM$52,IF(G92>$AI$51,(G92-$AI$51)*$AK$52+$AM$51,IF(G92>0,G92*$AK$51,0))))) -> 0 | Y92: =IF((G92-$F$82)>$AO$44,$AM$44,IF((G92-G91)>0,(G92-$F$82)*$AK$44,Y91)) -> 0 | Z92: =$Z$75 -> FALSE | AA92: =IF(Z92,IF(G92>$AK$30,(G92-$AK$30)*$AL$30,0),AA91) -> 0 | AB92: ='NSR Calculator'!F42 -> 0 | AC92: =IF(OR(G92=0,AB92=0),0,(G92-G91)*AB92) -> 0 | AD92: =IF(K92>$AI$54,(K92-$AI$54)*$AK$55+$AM$54,IF(K92>$AI$53,(K92-$AI$53)*$AK$54+$AM$53,IF(K92 > $AI$52,(K92-$AI$52)*$AK$53+$AM$52,IF(K92>$AI$51,(K92-$AI$51)*$AK$52+$AM$51,IF(K92>0,K92*$AK$51,0))))) -> 0 | AE92: =IF((K92-$J$82)>$AO$44,$AM$44,IF((K92-K91)>0,(K92-$J$82)*$AK$44,AE91)) -> 0 | AF92: =$AF$75 -> FALSE | AG92: =IF(AF92,IF(K92>$AK$30,(K92-$AK$30)*$AL$30,0),AG91) -> 0 | AH92: ='NSR Calculator'!K42 -> 0 | AI92: =IF(OR(K92=0,AH92=0),0,(K92-K91)*AH92) -> 0 | AJ92: =IF(O92>$AI$54,(O92-$AI$54)*$AK$55+$AM$54,IF(O92>$AI$53,(O92-$AI$53)*$AK$54+$AM$53,IF(O92 > $AI$52,(O92-$AI$52)*$AK$53+$AM$52,IF(O92>$AI$51,(O92-$AI$51)*$AK$52+$AM$51,IF(O92>0,O92*$AK$51,0))))) -> 0 | AK92: =IF((O92-$N$82)>$AO$44,$AM$44,IF((O92-O91)>0,(O92-$N$82)*$AK$44,AK91)) -> 0 | AL92: =$AL$75 -> FALSE | AM92: =IF(AL92,IF(O92>$AK$30,(O92-$AK$30)*$AL$30,0),AM91) -> 0 | AN92: ='NSR Calculator'!P42 -> 0 | AO92: =IF(OR(O92=0,AN92=0),0,(O92-O91)*AN92) -> 0 | AP92: =IF(S92>$AI$54,(S92-$AI$54)*$AK$55+$AM$54,IF(S92>$AI$53,(S92-$AI$53)*$AK$54+$AM$53,IF(S92 > $AI$52,(S92-$AI$52)*$AK$53+$AM$52,IF(S92>$AI$51,(S92-$AI$51)*$AK$52+$AM$51,IF(S92>0,S92*$AK$51,0))))) -> 0 | AQ92: =IF((S92-$R$82)>$AO$44,$AM$44,IF((S92-S91)>0,(S92-$R$82)*$AK$44,AQ91)) -> 0 | AR92: =$AR$75 -> FALSE | AS92: =IF(AR92,IF(S92>$AK$30,(S92-$AK$30)*$AL$30,0),AS91) -> 0 | AT92: ='NSR Calculator'!U42 -> 0 | AU92: =IF(OR(S92=0,AT92=0),0,(S92-S91)*AT92) -> 0
G93: =IF(I93<=$AQ$51,I93/(1-$AK$51-$AK$44),IF(I93<=$AQ$52,(I93+$AM$51-$AI$51*$AK$52)/(1-$AK$52-$AK$44),IF(I93<=$AQ$53,(I93+$AM$52-$AI$52*$AK$53)/(1-$AK$53-$AK$44),IF(I93<=$AQ$54,(I93+$AM$53-$AI$53*$AK$54)/(1-$AK$54-$AK$44),IF(I93<=$AS$44,(I93+$AM$54-$AI$54*$AK$55)/(1-$AK$55-$AK$44),IF(I93>$AS$44,(I93+$AM$44+$AM$54-$AI$54*$AK$55)/(1-$AK$55))))))) -> 0 | H93: =X93+Y93 -> 0 | I93: =IF(H34=$AH$17,INDEX($AH$9:$AK$13,G33,4)*I33+I91,0) -> 0 | K93: =IF(M93<=$AQ$51,M93/(1-$AK$51-$AK$44),IF(M93<=$AQ$52,(M93+$AM$51-$AI$51*$AK$52)/(1-$AK$52-$AK$44),IF(M93<=$AQ$53,(M93+$AM$52-$AI$52*$AK$53)/(1-$AK$53-$AK$44),IF(M93<=$AQ$54,(M93+$AM$53-$AI$53*$AK$54)/(1-$AK$54-$AK$44),IF(M93<=$AS$44,(M93+$AM$54-$AI$54*$AK$55)/(1-$AK$55-$AK$44),IF(M93>$AS$44,(M93+$AM$44+$AM$54-$AI$54*$AK$55)/(1-$AK$55))))))) -> 0 | L93: =AD93+AE93 -> 0 | M93: =IF(L34=$AH$17,INDEX($AH$9:$AK$13,K33,4)*M33+M91,0) -> 0 | O93: =IF(Q93<=$AQ$51,Q93/(1-$AK$51-$AK$44),IF(Q93<=$AQ$52,(Q93+$AM$51-$AI$51*$AK$52)/(1-$AK$52-$AK$44),IF(Q93<=$AQ$53,(Q93+$AM$52-$AI$52*$AK$53)/(1-$AK$53-$AK$44),IF(Q93<=$AQ$54,(Q93+$AM$53-$AI$53*$AK$54)/(1-$AK$54-$AK$44),IF(Q93<=$AS$44,(Q93+$AM$54-$AI$54*$AK$55)/(1-$AK$55-$AK$44),IF(Q93>$AS$44,(Q93+$AM$44+$AM$54-$AI$54*$AK$55)/(1-$AK$55))))))) -> 0 | P93: =AJ93+AK93 -> 0 | Q93: =IF(P34=$AH$17,INDEX($AH$9:$AK$13,O33,4)*Q33+Q91,0) -> 0 | S93: =IF(U93<=$AQ$51,U93/(1-$AK$51-$AK$44),IF(U93<=$AQ$52,(U93+$AM$51-$AI$51*$AK$52)/(1-$AK$52-$AK$44),IF(U93<=$AQ$53,(U93+$AM$52-$AI$52*$AK$53)/(1-$AK$53-$AK$44),IF(U93<=$AQ$54,(U93+$AM$53-$AI$53*$AK$54)/(1-$AK$54-$AK$44),IF(U93<=$AS$44,(U93+$AM$54-$AI$54*$AK$55)/(1-$AK$55-$AK$44),IF(U93>$AS$44,(U93+$AM$44+$AM$54-$AI$54*$AK$55)/(1-$AK$55))))))) -> 0 | T93: =AP93+AQ93 -> 0 | U93: =IF(T34=$AH$17,INDEX($AH$9:$AK$13,S33,4)*U33+U91,0) -> 0 | X93: =G93-I93-Y93 -> 0 | Y93: =IF((G93-$F$82)>$AO$44,$AM$44,IF((G93-G91)>0,(G93-$F$82)*$AK$44,Y91)) -> 0 | AA93: =IF(Z92,IF(G93>$AK$30,(G93-$AK$30)*$AL$30,0),AA91) -> 0 | AB93: =IF(AB92>0,IF(AB92<0.03,1,0),0) -> 0 | AC93: =IF(OR(G93=0,AB92=0),0,(G93-G91)*AB92) -> 0 | AD93: =K93-M93-AE93 -> 0 | AE93: =IF((K93-$J$82)>$AO$44,$AM$44,IF((K93-K91)>0,(K93-$J$82)*$AK$44,AE91)) -> 0 | AG93: =IF(AF92,IF(K93>$AK$30,(K93-$AK$30)*$AL$30,0),AG91) -> 0 | AH93: =IF(AH92>0,IF(AH92<0.03,1,0),0) -> 0 | AI93: =IF(OR(K93=0,AH92=0),0,(K93-K91)*AH92) -> 0 | AJ93: =O93-Q93-AK93 -> 0 | AK93: =IF((O93-$N$82)>$AO$44,$AM$44,IF((O93-O91)>0,(O93-$N$82)*$AK$44,AK91)) -> 0 | AM93: =IF(AL92,IF(O93>$AK$30,(O93-$AK$30)*$AL$30,0),AM91) -> 0 | AN93: =IF(AN92>0,IF(AN92<0.03,1,0),0) -> 0 | AO93: =IF(OR(O93=0,AN92=0),0,(O93-O91)*AN92) -> 0 | AP93: =S93-U93-AQ93 -> 0 | AQ93: =IF((S93-$R$82)>$AO$44,$AM$44,IF((S93-S91)>0,(S93-$R$82)*$AK$44,AQ91)) -> 0 | AS93: =IF(AR92,IF(S93>$AK$30,(S93-$AK$30)*$AL$30,0),AS91) -> 0 | AT93: =IF(AT92>0,IF(AT92<0.03,1,0),0) -> 0 | AU93: =IF(OR(S93=0,AT92=0),0,(S93-S91)*AT92) -> 0
G94: =MAX(G92:G93) -> 0 | H94: =MAX(H92:H93) -> 0 | I94: =MAX(I92:I93) -> 0 | J94: =K94-AG94-AI94 -> 0 | K94: =MAX(K92:K93) -> 0 | L94: =MAX(L92:L93) -> 0 | M94: =MAX(M92:M93) -> 0 | N94: =O94-AM94-AO94 -> 0 | O94: =MAX(O92:O93) -> 0 | P94: =MAX(P92:P93) -> 0 | Q94: =MAX(Q92:Q93) -> 0 | R94: =S94-AS94-AU94 -> 0 | S94: =MAX(S92:S93) -> 0 | T94: =MAX(T92:T93) -> 0 | U94: =MAX(U92:U93) -> 0 | X94: =MAX(X92:X93) -> 0 | Y94: 0 | AA94: =MAX(AA92:AA93) -> 0 | AC94: =MAX(AC92:AC93)+AC91 -> 0 | AD94: 0 | AE94: 0 | AG94: =MAX(AG92:AG93) -> 0 | AI94: =MAX(AI92:AI93)+AI91 -> 0 | AJ94: 0 | AK94: 0 | AM94: =MAX(AM92:AM93) -> 0 | AO94: =MAX(AO92:AO93)+AO91 -> 0 | AP94: 0 | AQ94: 0 | AS94: =MAX(AS92:AS93) -> 0 | AU94: =MAX(AU92:AU93)+AU91 -> 0
B95: 7 | C95: Investment | G95: =IF(H37=$AH$16,INDEX($AH$9:$AK$13,G36,4)*I36+G94,0) -> 0 | H95: =X95+Y95 -> 0 | I95: =G95-H95 -> 0 | K95: =IF(L37=$AH$16,INDEX($AH$9:$AK$13,K36,4)*M36+K94,0) -> 0 | L95: =AD95+AE95 -> 0 | M95: =K95-L95 -> 0 | O95: =IF(P37=$AH$16,INDEX($AH$9:$AK$13,O36,4)*Q36+O94,0) -> 0 | P95: =AJ95+AK95 -> 0 | Q95: =O95-P95 -> 0 | S95: =IF(T37=$AH$16,INDEX($AH$9:$AK$13,S36,4)*U36+S94,0) -> 0 | T95: =AP95+AQ95 -> 0 | U95: =S95-T95 -> 0 | X95: =IF(G95>$AI$54,(G95-$AI$54)*$AK$55+$AM$54,IF(G95>$AI$53,(G95-$AI$53)*$AK$54+$AM$53,IF(G95 > $AI$52,(G95-$AI$52)*$AK$53+$AM$52,IF(G95>$AI$51,(G95-$AI$51)*$AK$52+$AM$51,IF(G95>0,G95*$AK$51,0))))) -> 0 | Y95: =IF((G95-$F$82)>$AO$44,$AM$44,IF((G95-G94)>0,(G95-$F$82)*$AK$44,Y94)) -> 0 | Z95: =$Z$75 -> FALSE | AA95: =IF(Z95,IF(G95>$AK$30,(G95-$AK$30)*$AL$30,0),AA94) -> 0 | AB95: ='NSR Calculator'!F45 -> 0 | AC95: =IF(OR(G95=0,AB95=0),0,(G95-G94)*AB95) -> 0 | AD95: =IF(K95>$AI$54,(K95-$AI$54)*$AK$55+$AM$54,IF(K95>$AI$53,(K95-$AI$53)*$AK$54+$AM$53,IF(K95 > $AI$52,(K95-$AI$52)*$AK$53+$AM$52,IF(K95>$AI$51,(K95-$AI$51)*$AK$52+$AM$51,IF(K95>0,K95*$AK$51,0))))) -> 0 | AE95: =IF((K95-$J$82)>$AO$44,$AM$44,IF((K95-K94)>0,(K95-$J$82)*$AK$44,AE94)) -> 0 | AF95: =$AF$75 -> FALSE | AG95: =IF(AF95,IF(K95>$AK$30,(K95-$AK$30)*$AL$30,0),AG94) -> 0 | AH95: ='NSR Calculator'!K45 -> 0 | AI95: =IF(OR(K95=0,AH95=0),0,(K95-K94)*AH95) -> 0 | AJ95: =IF(O95>$AI$54,(O95-$AI$54)*$AK$55+$AM$54,IF(O95>$AI$53,(O95-$AI$53)*$AK$54+$AM$53,IF(O95 > $AI$52,(O95-$AI$52)*$AK$53+$AM$52,IF(O95>$AI$51,(O95-$AI$51)*$AK$52+$AM$51,IF(O95>0,O95*$AK$51,0))))) -> 0 | AK95: =IF((O95-$N$82)>$AO$44,$AM$44,IF((O95-O94)>0,(O95-$N$82)*$AK$44,AK94)) -> 0 | AL95: =$AL$75 -> FALSE | AM95: =IF(AL95,IF(O95>$AK$30,(O95-$AK$30)*$AL$30,0),AM94) -> 0 | AN95: ='NSR Calculator'!P45 -> 0 | AO95: =IF(OR(O95=0,AN95=0),0,(O95-O94)*AN95) -> 0 | AP95: =IF(S95>$AI$54,(S95-$AI$54)*$AK$55+$AM$54,IF(S95>$AI$53,(S95-$AI$53)*$AK$54+$AM$53,IF(S95 > $AI$52,(S95-$AI$52)*$AK$53+$AM$52,IF(S95>$AI$51,(S95-$AI$51)*$AK$52+$AM$51,IF(S95>0,S95*$AK$51,0))))) -> 0 | AQ95: =IF((S95-$R$82)>$AO$44,$AM$44,IF((S95-S94)>0,(S95-$R$82)*$AK$44,AQ94)) -> 0 | AR95: =$AR$75 -> FALSE | AS95: =IF(AR95,IF(S95>$AK$30,(S95-$AK$30)*$AL$30,0),AS94) -> 0 | AT95: ='NSR Calculator'!U45 -> 0 | AU95: =IF(OR(S95=0,AT95=0),0,(S95-S94)*AT95) -> 0
G96: =IF(I96<=$AQ$51,I96/(1-$AK$51-$AK$44),IF(I96<=$AQ$52,(I96+$AM$51-$AI$51*$AK$52)/(1-$AK$52-$AK$44),IF(I96<=$AQ$53,(I96+$AM$52-$AI$52*$AK$53)/(1-$AK$53-$AK$44),IF(I96<=$AQ$54,(I96+$AM$53-$AI$53*$AK$54)/(1-$AK$54-$AK$44),IF(I96<=$AS$44,(I96+$AM$54-$AI$54*$AK$55)/(1-$AK$55-$AK$44),IF(I96>$AS$44,(I96+$AM$44+$AM$54-$AI$54*$AK$55)/(1-$AK$55))))))) -> 0 | H96: =X96+Y96 -> 0 | I96: =IF(H37=$AH$17,INDEX($AH$9:$AK$13,G36,4)*I36+I94,0) -> 0 | K96: =IF(M96<=$AQ$51,M96/(1-$AK$51-$AK$44),IF(M96<=$AQ$52,(M96+$AM$51-$AI$51*$AK$52)/(1-$AK$52-$AK$44),IF(M96<=$AQ$53,(M96+$AM$52-$AI$52*$AK$53)/(1-$AK$53-$AK$44),IF(M96<=$AQ$54,(M96+$AM$53-$AI$53*$AK$54)/(1-$AK$54-$AK$44),IF(M96<=$AS$44,(M96+$AM$54-$AI$54*$AK$55)/(1-$AK$55-$AK$44),IF(M96>$AS$44,(M96+$AM$44+$AM$54-$AI$54*$AK$55)/(1-$AK$55))))))) -> 0 | L96: =AD96+AE96 -> 0 | M96: =IF(L37=$AH$17,INDEX($AH$9:$AK$13,K36,4)*M36+M94,0) -> 0 | O96: =IF(Q96<=$AQ$51,Q96/(1-$AK$51-$AK$44),IF(Q96<=$AQ$52,(Q96+$AM$51-$AI$51*$AK$52)/(1-$AK$52-$AK$44),IF(Q96<=$AQ$53,(Q96+$AM$52-$AI$52*$AK$53)/(1-$AK$53-$AK$44),IF(Q96<=$AQ$54,(Q96+$AM$53-$AI$53*$AK$54)/(1-$AK$54-$AK$44),IF(Q96<=$AS$44,(Q96+$AM$54-$AI$54*$AK$55)/(1-$AK$55-$AK$44),IF(Q96>$AS$44,(Q96+$AM$44+$AM$54-$AI$54*$AK$55)/(1-$AK$55))))))) -> 0 | P96: =AJ96+AK96 -> 0 | Q96: =IF(P37=$AH$17,INDEX($AH$9:$AK$13,O36,4)*Q36+Q94,0) -> 0 | S96: =IF(U96<=$AQ$51,U96/(1-$AK$51-$AK$44),IF(U96<=$AQ$52,(U96+$AM$51-$AI$51*$AK$52)/(1-$AK$52-$AK$44),IF(U96<=$AQ$53,(U96+$AM$52-$AI$52*$AK$53)/(1-$AK$53-$AK$44),IF(U96<=$AQ$54,(U96+$AM$53-$AI$53*$AK$54)/(1-$AK$54-$AK$44),IF(U96<=$AS$44,(U96+$AM$54-$AI$54*$AK$55)/(1-$AK$55-$AK$44),IF(U96>$AS$44,(U96+$AM$44+$AM$54-$AI$54*$AK$55)/(1-$AK$55))))))) -> 0 | T96: =AP96+AQ96 -> 0 | U96: =IF(T37=$AH$17,INDEX($AH$9:$AK$13,S36,4)*U36+U94,0) -> 0 | X96: =G96-I96-Y96 -> 0 | Y96: =IF((G96-$F$82)>$AO$44,$AM$44,IF((G96-G94)>0,(G96-$F$82)*$AK$44,Y94)) -> 0 | AA96: =IF(Z95,IF(G96>$AK$30,(G96-$AK$30)*$AL$30,0),AA94) -> 0 | AB96: =IF(AB95>0,IF(AB95<0.03,1,0),0) -> 0 | AC96: =IF(OR(G96=0,AB95=0),0,(G96-G94)*AB95) -> 0 | AD96: =K96-M96-AE96 -> 0 | AE96: =IF((K96-$J$82)>$AO$44,$AM$44,IF((K96-K94)>0,(K96-$J$82)*$AK$44,AE94)) -> 0 | AG96: =IF(AF95,IF(K96>$AK$30,(K96-$AK$30)*$AL$30,0),AG94) -> 0 | AH96: =IF(AH95>0,IF(AH95<0.03,1,0),0) -> 0 | AI96: =IF(OR(K96=0,AH95=0),0,(K96-K94)*AH95) -> 0 | AJ96: =O96-Q96-AK96 -> 0 | AK96: =IF((O96-$N$82)>$AO$44,$AM$44,IF((O96-O94)>0,(O96-$N$82)*$AK$44,AK94)) -> 0 | AM96: =IF(AL95,IF(O96>$AK$30,(O96-$AK$30)*$AL$30,0),AM94) -> 0 | AN96: =IF(AN95>0,IF(AN95<0.03,1,0),0) -> 0 | AO96: =IF(OR(O96=0,AN95=0),0,(O96-O94)*AN95) -> 0 | AP96: =S96-U96-AQ96 -> 0 | AQ96: =IF((S96-$R$82)>$AO$44,$AM$44,IF((S96-S94)>0,(S96-$R$82)*$AK$44,AQ94)) -> 0 | AS96: =IF(AR95,IF(S96>$AK$30,(S96-$AK$30)*$AL$30,0),AS94) -> 0 | AT96: =IF(AT95>0,IF(AT95<0.03,1,0),0) -> 0 | AU96: =IF(OR(S96=0,AT95=0),0,(S96-S94)*AT95) -> 0
G97: =MAX(G95:G96) -> 0 | H97: =MAX(H95:H96) -> 0 | I97: =MAX(I95:I96) -> 0 | J97: =K97-AG97-AI97 -> 0 | K97: =MAX(K95:K96) -> 0 | L97: =MAX(L95:L96) -> 0 | M97: =MAX(M95:M96) -> 0 | N97: =O97-AM97-AO97 -> 0 | O97: =MAX(O95:O96) -> 0 | P97: =MAX(P95:P96) -> 0 | Q97: =MAX(Q95:Q96) -> 0 | R97: =S97-AS97-AU97 -> 0 | S97: =MAX(S95:S96) -> 0 | T97: =MAX(T95:T96) -> 0 | U97: =MAX(U95:U96) -> 0 | X97: =MAX(X95:X96) -> 0 | Y97: =MAX(Y95:Y96) -> 0 | AA97: =MAX(AA95:AA96) -> 0 | AC97: =MAX(AC95:AC96)+AC94 -> 0 | AD97: 0 | AE97: 0 | AG97: =MAX(AG95:AG96) -> 0 | AI97: =MAX(AI95:AI96)+AI94 -> 0 | AJ97: 0 | AK97: 0 | AM97: =MAX(AM95:AM96) -> 0 | AO97: =MAX(AO95:AO96)+AO94 -> 0 | AP97: 0 | AQ97: 0 | AS97: =MAX(AS95:AS96) -> 0 | AU97: =MAX(AU95:AU96)+AU94 -> 0
B98: 8 | C98: Beneficiary | G98: =IF(H40=$AH$16,INDEX($AH$9:$AK$13,G39,4)*I39+G97,0) -> 0 | H98: =X98+Y98 -> 0 | I98: =G98-H98 -> 0 | K98: =IF(L40=$AH$16,INDEX($AH$9:$AK$13,K39,4)*M39+K97,0) -> 0 | L98: =AD98+AE98 -> 0 | M98: =K98-L98 -> 0 | O98: =IF(P40=$AH$16,INDEX($AH$9:$AK$13,O39,4)*Q39+O97,0) -> 0 | P98: =AJ98+AK98 -> 0 | Q98: =O98-P98 -> 0 | S98: =IF(T40=$AH$16,INDEX($AH$9:$AK$13,S39,4)*U39+S97,0) -> 0 | T98: =AP98+AQ98 -> 0 | U98: =S98-T98 -> 0 | X98: =IF(G98>$AI$54,(G98-$AI$54)*$AK$55+$AM$54,IF(G98>$AI$53,(G98-$AI$53)*$AK$54+$AM$53,IF(G98 > $AI$52,(G98-$AI$52)*$AK$53+$AM$52,IF(G98>$AI$51,(G98-$AI$51)*$AK$52+$AM$51,IF(G98>0,G98*$AK$51,0))))) -> 0 | Y98: =IF((G98-$F$82)>$AO$44,$AM$44,IF((G98-G97)>0,(G98-$F$82)*$AK$44,Y97)) -> 0 | Z98: =$Z$75 -> FALSE | AA98: =IF(Z98,IF(G98>$AK$30,(G98-$AK$30)*$AL$30,0),AA97) -> 0 | AB98: ='NSR Calculator'!F48 -> 0 | AC98: =IF(OR(G98=0,AB98=0),0,(G98-G97)*AB98) -> 0 | AD98: =IF(K98>$AI$54,(K98-$AI$54)*$AK$55+$AM$54,IF(K98>$AI$53,(K98-$AI$53)*$AK$54+$AM$53,IF(K98 > $AI$52,(K98-$AI$52)*$AK$53+$AM$52,IF(K98>$AI$51,(K98-$AI$51)*$AK$52+$AM$51,IF(K98>0,K98*$AK$51,0))))) -> 0 | AE98: =IF((K98-$J$82)>$AO$44,$AM$44,IF((K98-K97)>0,(K98-$J$82)*$AK$44,AE97)) -> 0 | AF98: =$AF$75 -> FALSE | AG98: =IF(AF98,IF(K98>$AK$30,(K98-$AK$30)*$AL$30,0),AG97) -> 0 | AH98: ='NSR Calculator'!K48 -> 0 | AI98: =IF(OR(K98=0,AH98=0),0,(K98-K97)*AH98) -> 0 | AJ98: =IF(O98>$AI$54,(O98-$AI$54)*$AK$55+$AM$54,IF(O98>$AI$53,(O98-$AI$53)*$AK$54+$AM$53,IF(O98 > $AI$52,(O98-$AI$52)*$AK$53+$AM$52,IF(O98>$AI$51,(O98-$AI$51)*$AK$52+$AM$51,IF(O98>0,O98*$AK$51,0))))) -> 0 | AK98: =IF((O98-$N$82)>$AO$44,$AM$44,IF((O98-O97)>0,(O98-$N$82)*$AK$44,AK97)) -> 0 | AL98: =$AL$75 -> FALSE | AM98: =IF(AL98,IF(O98>$AK$30,(O98-$AK$30)*$AL$30,0),AM97) -> 0 | AN98: ='NSR Calculator'!P48 -> 0 | AO98: =IF(OR(O98=0,AN98=0),0,(O98-O97)*AN98) -> 0 | AP98: =IF(S98>$AI$54,(S98-$AI$54)*$AK$55+$AM$54,IF(S98>$AI$53,(S98-$AI$53)*$AK$54+$AM$53,IF(S98 > $AI$52,(S98-$AI$52)*$AK$53+$AM$52,IF(S98>$AI$51,(S98-$AI$51)*$AK$52+$AM$51,IF(S98>0,S98*$AK$51,0))))) -> 0 | AQ98: =IF((S98-$R$82)>$AO$44,$AM$44,IF((S98-S97)>0,(S98-$R$82)*$AK$44,AQ97)) -> 0 | AR98: =$AR$75 -> FALSE | AS98: =IF(AR98,IF(S98>$AK$30,(S98-$AK$30)*$AL$30,0),AS97) -> 0 | AT98: ='NSR Calculator'!U48 -> 0 | AU98: =IF(OR(S98=0,AT98=0),0,(S98-S97)*AT98) -> 0
G99: =IF(I99<=$AQ$51,I99/(1-$AK$51-$AK$44),IF(I99<=$AQ$52,(I99+$AM$51-$AI$51*$AK$52)/(1-$AK$52-$AK$44),IF(I99<=$AQ$53,(I99+$AM$52-$AI$52*$AK$53)/(1-$AK$53-$AK$44),IF(I99<=$AQ$54,(I99+$AM$53-$AI$53*$AK$54)/(1-$AK$54-$AK$44),IF(I99<=$AS$44,(I99+$AM$54-$AI$54*$AK$55)/(1-$AK$55-$AK$44),IF(I99>$AS$44,(I99+$AM$44+$AM$54-$AI$54*$AK$55)/(1-$AK$55))))))) -> 0 | H99: =X99+Y99 -> 0 | I99: =IF(H40=$AH$17,INDEX($AH$9:$AK$13,G39,4)*I39+I97,0) -> 0 | K99: =IF(M99<=$AQ$51,M99/(1-$AK$51-$AK$44),IF(M99<=$AQ$52,(M99+$AM$51-$AI$51*$AK$52)/(1-$AK$52-$AK$44),IF(M99<=$AQ$53,(M99+$AM$52-$AI$52*$AK$53)/(1-$AK$53-$AK$44),IF(M99<=$AQ$54,(M99+$AM$53-$AI$53*$AK$54)/(1-$AK$54-$AK$44),IF(M99<=$AS$44,(M99+$AM$54-$AI$54*$AK$55)/(1-$AK$55-$AK$44),IF(M99>$AS$44,(M99+$AM$44+$AM$54-$AI$54*$AK$55)/(1-$AK$55))))))) -> 0 | L99: =AD99+AE99 -> 0 | M99: =IF(L40=$AH$17,INDEX($AH$9:$AK$13,K39,4)*M39+M97,0) -> 0 | O99: =IF(Q99<=$AQ$51,Q99/(1-$AK$51-$AK$44),IF(Q99<=$AQ$52,(Q99+$AM$51-$AI$51*$AK$52)/(1-$AK$52-$AK$44),IF(Q99<=$AQ$53,(Q99+$AM$52-$AI$52*$AK$53)/(1-$AK$53-$AK$44),IF(Q99<=$AQ$54,(Q99+$AM$53-$AI$53*$AK$54)/(1-$AK$54-$AK$44),IF(Q99<=$AS$44,(Q99+$AM$54-$AI$54*$AK$55)/(1-$AK$55-$AK$44),IF(Q99>$AS$44,(Q99+$AM$44+$AM$54-$AI$54*$AK$55)/(1-$AK$55))))))) -> 0 | P99: =AJ99+AK99 -> 0 | Q99: =IF(P40=$AH$17,INDEX($AH$9:$AK$13,O39,4)*Q39+Q97,0) -> 0 | S99: =IF(U99<=$AQ$51,U99/(1-$AK$51-$AK$44),IF(U99<=$AQ$52,(U99+$AM$51-$AI$51*$AK$52)/(1-$AK$52-$AK$44),IF(U99<=$AQ$53,(U99+$AM$52-$AI$52*$AK$53)/(1-$AK$53-$AK$44),IF(U99<=$AQ$54,(U99+$AM$53-$AI$53*$AK$54)/(1-$AK$54-$AK$44),IF(U99<=$AS$44,(U99+$AM$54-$AI$54*$AK$55)/(1-$AK$55-$AK$44),IF(U99>$AS$44,(U99+$AM$44+$AM$54-$AI$54*$AK$55)/(1-$AK$55))))))) -> 0 | T99: =AP99+AQ99 -> 0 | U99: =IF(T40=$AH$17,INDEX($AH$9:$AK$13,S39,4)*U39+U97,0) -> 0 | X99: =G99-I99-Y99 -> 0 | Y99: =IF((G99-$F$82)>$AO$44,$AM$44,IF((G99-G97)>0,(G99-$F$82)*$AK$44,Y97)) -> 0 | AA99: =IF(Z98,IF(G99>$AK$30,(G99-$AK$30)*$AL$30,0),AA97) -> 0 | AB99: =IF(AB98>0,IF(AB98<0.03,1,0),0) -> 0 | AC99: =IF(OR(G99=0,AB98=0),0,(G99-G97)*AB98) -> 0 | AD99: =K99-M99-AE99 -> 0 | AE99: =IF((K99-$J$82)>$AO$44,$AM$44,IF((K99-K97)>0,(K99-$J$82)*$AK$44,AE97)) -> 0 | AG99: =IF(AF98,IF(K99>$AK$30,(K99-$AK$30)*$AL$30,0),AG97) -> 0 | AH99: =IF(AH98>0,IF(AH98<0.03,1,0),0) -> 0 | AI99: =IF(OR(K99=0,AH98=0),0,(K99-K97)*AH98) -> 0 | AJ99: =O99-Q99-AK99 -> 0 | AK99: =IF((O99-$N$82)>$AO$44,$AM$44,IF((O99-O97)>0,(O99-$N$82)*$AK$44,AK97)) -> 0 | AM99: =IF(AL98,IF(O99>$AK$30,(O99-$AK$30)*$AL$30,0),AM97) -> 0 | AN99: =IF(AN98>0,IF(AN98<0.03,1,0),0) -> 0 | AO99: =IF(OR(O99=0,AN98=0),0,(O99-O97)*AN98) -> 0 | AP99: =S99-U99-AQ99 -> 0 | AQ99: =IF((S99-$R$82)>$AO$44,$AM$44,IF((S99-S97)>0,(S99-$R$82)*$AK$44,AQ97)) -> 0 | AS99: =IF(AR98,IF(S99>$AK$30,(S99-$AK$30)*$AL$30,0),AS97) -> 0 | AT99: =IF(AT98>0,IF(AT98<0.03,1,0),0) -> 0 | AU99: =IF(OR(S99=0,AT98=0),0,(S99-S97)*AT98) -> 0
G100: =MAX(G98:G99) -> 0 | H100: =MAX(H98:H99) -> 0 | I100: =MAX(I98:I99) -> 0 | J100: =K100-AG100-AI100 -> 0 | K100: =MAX(K98:K99) -> 0 | L100: =MAX(L98:L99) -> 0 | M100: =MAX(M98:M99) -> 0 | N100: =O100-AM100-AO100 -> 0 | O100: =MAX(O98:O99) -> 0 | P100: =MAX(P98:P99) -> 0 | Q100: =MAX(Q98:Q99) -> 0 | R100: =S100-AS100-AU100 -> 0 | S100: =MAX(S98:S99) -> 0 | T100: =MAX(T98:T99) -> 0 | U100: =MAX(U98:U99) -> 0 | X100: =MAX(X98:X99) -> 0 | Y100: 0 | AA100: =MAX(AA98:AA99) -> 0 | AC100: =MAX(AC98:AC99)+AC97 -> 0 | AD100: 0 | AE100: 0 | AG100: =MAX(AG98:AG99) -> 0 | AI100: =MAX(AI98:AI99)+AI97 -> 0 | AJ100: 0 | AK100: 0 | AM100: =MAX(AM98:AM99) -> 0 | AO100: =MAX(AO98:AO99)+AO97 -> 0 | AP100: 0 | AQ100: 0 | AS100: =MAX(AS98:AS99) -> 0 | AU100: =MAX(AU98:AU99)+AU97 -> 0
B101: 9 | C101: Contract | G101: =IF(H43=$AH$16,INDEX($AH$9:$AK$13,G42,4)*I42+G100,0) -> 0 | H101: =X101+Y101 -> 0 | I101: =G101-H101 -> 0 | K101: =IF(L43=$AH$16,INDEX($AH$9:$AK$13,K42,4)*M42+K100,0) -> 0 | L101: =AD101+AE101 -> 0 | M101: =K101-L101 -> 0 | O101: =IF(P43=$AH$16,INDEX($AH$9:$AK$13,O42,4)*Q42+O100,0) -> 0 | P101: =AJ101+AK101 -> 0 | Q101: =O101-P101 -> 0 | S101: =IF(T43=$AH$16,INDEX($AH$9:$AK$13,S42,4)*U42+S100,0) -> 0 | T101: =AP101+AQ101 -> 0 | U101: =S101-T101 -> 0 | X101: =IF(G101>$AI$54,(G101-$AI$54)*$AK$55+$AM$54,IF(G101>$AI$53,(G101-$AI$53)*$AK$54+$AM$53,IF(G101 > $AI$52,(G101-$AI$52)*$AK$53+$AM$52,IF(G101>$AI$51,(G101-$AI$51)*$AK$52+$AM$51,IF(G101>0,G101*$AK$51,0))))) -> 0 | Y101: =IF((G101-$F$82)>$AO$44,$AM$44,IF((G101-G100)>0,(G101-$F$82)*$AK$44,Y100)) -> 0 | Z101: =$Z$75 -> FALSE | AA101: =IF(Z101,IF(G101>$AK$30,(G101-$AK$30)*$AL$30,0),AA100) -> 0 | AB101: ='NSR Calculator'!F50 -> 0 | AC101: =IF(OR(G101=0,AB101=0),0,(G101-G100)*AB101) -> 0 | AD101: =IF(K101>$AI$54,(K101-$AI$54)*$AK$55+$AM$54,IF(K101>$AI$53,(K101-$AI$53)*$AK$54+$AM$53,IF(K101 > $AI$52,(K101-$AI$52)*$AK$53+$AM$52,IF(K101>$AI$51,(K101-$AI$51)*$AK$52+$AM$51,IF(K101>0,K101*$AK$51,0))))) -> 0 | AE101: =IF((K101-$J$82)>$AO$44,$AM$44,IF((K101-K100)>0,(K101-$J$82)*$AK$44,AE100)) -> 0 | AF101: =$AF$75 -> FALSE | AG101: =IF(AF101,IF(K101>$AK$30,(K101-$AK$30)*$AL$30,0),AG100) -> 0 | AH101: ='NSR Calculator'!K50 -> 0 | AI101: =IF(OR(K101=0,AH101=0),0,(K101-K100)*AH101) -> 0 | AJ101: =IF(O101>$AI$54,(O101-$AI$54)*$AK$55+$AM$54,IF(O101>$AI$53,(O101-$AI$53)*$AK$54+$AM$53,IF(O101 > $AI$52,(O101-$AI$52)*$AK$53+$AM$52,IF(O101>$AI$51,(O101-$AI$51)*$AK$52+$AM$51,IF(O101>0,O101*$AK$51,0))))) -> 0 | AK101: =IF((O101-$N$82)>$AO$44,$AM$44,IF((O101-O100)>0,(O101-$N$82)*$AK$44,AK100)) -> 0 | AL101: =$AL$75 -> FALSE | AM101: =IF(AL101,IF(O101>$AK$30,(O101-$AK$30)*$AL$30,0),AM100) -> 0 | AN101: ='NSR Calculator'!P50 -> 0 | AO101: =IF(OR(O101=0,AN101=0),0,(O101-O100)*AN101) -> 0 | AP101: =IF(S101>$AI$54,(S101-$AI$54)*$AK$55+$AM$54,IF(S101>$AI$53,(S101-$AI$53)*$AK$54+$AM$53,IF(S101 > $AI$52,(S101-$AI$52)*$AK$53+$AM$52,IF(S101>$AI$51,(S101-$AI$51)*$AK$52+$AM$51,IF(S101>0,S101*$AK$51,0))))) -> 0 | AQ101: =IF((S101-$R$82)>$AO$44,$AM$44,IF((S101-S100)>0,(S101-$R$82)*$AK$44,AQ100)) -> 0 | AR101: =$AR$75 -> FALSE | AS101: =IF(AR101,IF(S101>$AK$30,(S101-$AK$30)*$AL$30,0),AS100) -> 0 | AT101: ='NSR Calculator'!U50 -> 0 | AU101: =IF(OR(S101=0,AT101=0),0,(S101-S100)*AT101) -> 0
G102: =IF(I102<=$AQ$51,I102/(1-$AK$51-$AK$44),IF(I102<=$AQ$52,(I102+$AM$51-$AI$51*$AK$52)/(1-$AK$52-$AK$44),IF(I102<=$AQ$53,(I102+$AM$52-$AI$52*$AK$53)/(1-$AK$53-$AK$44),IF(I102<=$AQ$54,(I102+$AM$53-$AI$53*$AK$54)/(1-$AK$54-$AK$44),IF(I102<=$AS$44,(I102+$AM$54-$AI$54*$AK$55)/(1-$AK$55-$AK$44),IF(I102>$AS$44,(I102+$AM$44+$AM$54-$AI$54*$AK$55)/(1-$AK$55))))))) -> 0 | H102: =X102+Y102 -> 0 | I102: =IF(H43=$AH$17,INDEX($AH$9:$AK$13,G42,4)*I42+I100,0) -> 0 | K102: =IF(M102<=$AQ$51,M102/(1-$AK$51-$AK$44),IF(M102<=$AQ$52,(M102+$AM$51-$AI$51*$AK$52)/(1-$AK$52-$AK$44),IF(M102<=$AQ$53,(M102+$AM$52-$AI$52*$AK$53)/(1-$AK$53-$AK$44),IF(M102<=$AQ$54,(M102+$AM$53-$AI$53*$AK$54)/(1-$AK$54-$AK$44),IF(M102<=$AS$44,(M102+$AM$54-$AI$54*$AK$55)/(1-$AK$55-$AK$44),IF(M102>$AS$44,(M102+$AM$44+$AM$54-$AI$54*$AK$55)/(1-$AK$55))))))) -> 0 | L102: =AD102+AE102 -> 0 | M102: =IF(L43=$AH$17,INDEX($AH$9:$AK$13,K42,4)*M42+M100,0) -> 0 | O102: =IF(Q102<=$AQ$51,Q102/(1-$AK$51-$AK$44),IF(Q102<=$AQ$52,(Q102+$AM$51-$AI$51*$AK$52)/(1-$AK$52-$AK$44),IF(Q102<=$AQ$53,(Q102+$AM$52-$AI$52*$AK$53)/(1-$AK$53-$AK$44),IF(Q102<=$AQ$54,(Q102+$AM$53-$AI$53*$AK$54)/(1-$AK$54-$AK$44),IF(Q102<=$AS$44,(Q102+$AM$54-$AI$54*$AK$55)/(1-$AK$55-$AK$44),IF(Q102>$AS$44,(Q102+$AM$44+$AM$54-$AI$54*$AK$55)/(1-$AK$55))))))) -> 0 | P102: =AJ102+AK102 -> 0 | Q102: =IF(P43=$AH$17,INDEX($AH$9:$AK$13,O42,4)*Q42+Q100,0) -> 0 | S102: =IF(U102<=$AQ$51,U102/(1-$AK$51-$AK$44),IF(U102<=$AQ$52,(U102+$AM$51-$AI$51*$AK$52)/(1-$AK$52-$AK$44),IF(U102<=$AQ$53,(U102+$AM$52-$AI$52*$AK$53)/(1-$AK$53-$AK$44),IF(U102<=$AQ$54,(U102+$AM$53-$AI$53*$AK$54)/(1-$AK$54-$AK$44),IF(U102<=$AS$44,(U102+$AM$54-$AI$54*$AK$55)/(1-$AK$55-$AK$44),IF(U102>$AS$44,(U102+$AM$44+$AM$54-$AI$54*$AK$55)/(1-$AK$55))))))) -> 0 | T102: =AP102+AQ102 -> 0 | U102: =IF(T43=$AH$17,INDEX($AH$9:$AK$13,S42,4)*U42+U100,0) -> 0 | X102: =G102-I102-Y102 -> 0 | Y102: =IF((G102-$F$82)>$AO$44,$AM$44,IF((G102-G100)>0,(G102-$F$82)*$AK$44,Y100)) -> 0 | AA102: =IF(Z101,IF(G102>$AK$30,(G102-$AK$30)*$AL$30,0),AA100) -> 0 | AB102: =IF(AB101>0,IF(AB101<0.03,1,0),0) -> 0 | AC102: =IF(OR(G102=0,AB101=0),0,(G102-G100)*AB101) -> 0 | AD102: =K102-M102-AE102 -> 0 | AE102: =IF((K102-$J$82)>$AO$44,$AM$44,IF((K102-K100)>0,(K102-$J$82)*$AK$44,AE100)) -> 0 | AG102: =IF(AF101,IF(K102>$AK$30,(K102-$AK$30)*$AL$30,0),AG100) -> 0 | AH102: =IF(AH101>0,IF(AH101<0.03,1,0),0) -> 0 | AI102: =IF(OR(K102=0,AH101=0),0,(K102-K100)*AH101) -> 0 | AJ102: =O102-Q102-AK102 -> 0 | AK102: =IF((O102-$N$82)>$AO$44,$AM$44,IF((O102-O100)>0,(O102-$N$82)*$AK$44,AK100)) -> 0 | AM102: =IF(AL101,IF(O102>$AK$30,(O102-$AK$30)*$AL$30,0),AM100) -> 0 | AN102: =IF(AN101>0,IF(AN101<0.03,1,0),0) -> 0 | AO102: =IF(OR(O102=0,AN101=0),0,(O102-O100)*AN101) -> 0 | AP102: =S102-U102-AQ102 -> 0 | AQ102: =IF((S102-$R$82)>$AO$44,$AM$44,IF((S102-S100)>0,(S102-$R$82)*$AK$44,AQ100)) -> 0 | AS102: =IF(AR101,IF(S102>$AK$30,(S102-$AK$30)*$AL$30,0),AS100) -> 0 | AT102: =IF(AT101>0,IF(AT101<0.03,1,0),0) -> 0 | AU102: =IF(OR(S102=0,AT101=0),0,(S102-S100)*AT101) -> 0
G103: =MAX(G101:G102) -> 0 | H103: =MAX(H101:H102) -> 0 | I103: =MAX(I101:I102) -> 0 | J103: =K103-AG103-AI103 -> 0 | K103: =MAX(K101:K102) -> 0 | L103: =MAX(L101:L102) -> 0 | M103: =MAX(M101:M102) -> 0 | N103: =O103-AM103-AO103 -> 0 | O103: =MAX(O101:O102) -> 0 | P103: =MAX(P101:P102) -> 0 | Q103: =MAX(Q101:Q102) -> 0 | R103: =S103-AS103-AU103 -> 0 | S103: =MAX(S101:S102) -> 0 | T103: =MAX(T101:T102) -> 0 | U103: =MAX(U101:U102) -> 0 | X103: =MAX(X101:X102) -> 0 | Y103: =MAX(Y101:Y102) -> 0 | AA103: =MAX(AA101:AA102) -> 0 | AC103: =MAX(AC101:AC102)+AC100 -> 0 | AD103: 0 | AE103: 0 | AG103: =MAX(AG101:AG102) -> 0 | AI103: =MAX(AI101:AI102)+AI100 -> 0 | AJ103: 0 | AK103: 0 | AM103: =MAX(AM101:AM102) -> 0 | AO103: =MAX(AO101:AO102)+AO100 -> 0 | AP103: 0 | AQ103: 0 | AS103: =MAX(AS101:AS102) -> 0 | AU103: =MAX(AU101:AU102)+AU100 -> 0
B104: 10 | C104: Child Support | G104: =IF(H46=$AH$16,INDEX($AH$9:$AK$13,G45,4)*I45+G103,0) -> 0 | H104: =X104+Y104 -> 0 | I104: =G104-H104 -> 0 | K104: =IF(L46=$AH$16,INDEX($AH$9:$AK$13,K45,4)*M45+K103,0) -> 0 | L104: =AD104+AE104 -> 0 | M104: =K104-L104 -> 0 | O104: =IF(P46=$AH$16,INDEX($AH$9:$AK$13,O45,4)*Q45+O103,0) -> 0 | P104: =AJ104+AK104 -> 0 | Q104: =O104-P104 -> 0 | S104: =IF(T46=$AH$16,INDEX($AH$9:$AK$13,S45,4)*U45+S103,0) -> 0 | T104: =AP104+AQ104 -> 0 | U104: =S104-T104 -> 0 | X104: =X103 -> 0 | Y104: =Y103 -> 0 | Z104: FALSE | AA104: =IF(Z104,IF(G104>$AK$30,(G104-$AK$30)*$AL$30,0),AA103) -> 0 | AB104: ='NSR Calculator'!F52 -> 0 | AC104: =IF(OR(G104=0,AB104=0),0,(G104-G103)*AB104) -> 0 | AD104: =AD103 -> 0 | AE104: =AE103 -> 0 | AF104: FALSE | AG104: =IF(AF104,IF(K104>$AK$30,(K104-$AK$30)*$AL$30,0),AG103) -> 0 | AH104: ='NSR Calculator'!K52 -> 0 | AI104: =IF(OR(K104=0,AH104=0),0,(K104-K103)*AH104) -> 0 | AJ104: =AJ103 -> 0 | AK104: =AK103 -> 0 | AL104: FALSE | AM104: =IF(AL104,IF(O104>$AK$30,(O104-$AK$30)*$AL$30,0),AM103) -> 0 | AN104: ='NSR Calculator'!P52 -> 0 | AO104: =IF(OR(O104=0,AN104=0),0,(O104-O103)*AN104) -> 0 | AP104: =AP103 -> 0 | AQ104: =AQ103 -> 0 | AR104: FALSE | AS104: =IF(AR104,IF(S104>$AK$30,(S104-$AK$30)*$AL$30,0),AS103) -> 0 | AT104: ='NSR Calculator'!U52 -> 0 | AU104: =IF(OR(S104=0,AT104=0),0,(S104-S103)*AT104) -> 0
G105: =IF(I105<=$AQ$51,I105/(1-$AK$51-$AK$44),IF(I105<=$AQ$52,(I105+$AM$51-$AI$51*$AK$52)/(1-$AK$52-$AK$44),IF(I105<=$AQ$53,(I105+$AM$52-$AI$52*$AK$53)/(1-$AK$53-$AK$44),IF(I105<=$AQ$54,(I105+$AM$53-$AI$53*$AK$54)/(1-$AK$54-$AK$44),IF(I105<=$AS$44,(I105+$AM$54-$AI$54*$AK$55)/(1-$AK$55-$AK$44),IF(I105>$AS$44,(I105+$AM$44+$AM$54-$AI$54*$AK$55)/(1-$AK$55))))))) -> 0 | H105: =X105+Y105 -> 0 | I105: =IF(H46=$AH$17,INDEX($AH$9:$AK$13,G45,4)*I45+I103,0) -> 0 | K105: =IF(M105<=$AQ$51,M105/(1-$AK$51-$AK$44),IF(M105<=$AQ$52,(M105+$AM$51-$AI$51*$AK$52)/(1-$AK$52-$AK$44),IF(M105<=$AQ$53,(M105+$AM$52-$AI$52*$AK$53)/(1-$AK$53-$AK$44),IF(M105<=$AQ$54,(M105+$AM$53-$AI$53*$AK$54)/(1-$AK$54-$AK$44),IF(M105<=$AS$44,(M105+$AM$54-$AI$54*$AK$55)/(1-$AK$55-$AK$44),IF(M105>$AS$44,(M105+$AM$44+$AM$54-$AI$54*$AK$55)/(1-$AK$55))))))) -> 0 | L105: =AD105+AE105 -> 0 | M105: =IF(L46=$AH$17,INDEX($AH$9:$AK$13,K45,4)*M45+M103,0) -> 0 | O105: =IF(Q105<=$AQ$51,Q105/(1-$AK$51-$AK$44),IF(Q105<=$AQ$52,(Q105+$AM$51-$AI$51*$AK$52)/(1-$AK$52-$AK$44),IF(Q105<=$AQ$53,(Q105+$AM$52-$AI$52*$AK$53)/(1-$AK$53-$AK$44),IF(Q105<=$AQ$54,(Q105+$AM$53-$AI$53*$AK$54)/(1-$AK$54-$AK$44),IF(Q105<=$AS$44,(Q105+$AM$54-$AI$54*$AK$55)/(1-$AK$55-$AK$44),IF(Q105>$AS$44,(Q105+$AM$44+$AM$54-$AI$54*$AK$55)/(1-$AK$55))))))) -> 0 | P105: =AJ105+AK105 -> 0 | Q105: =IF(P46=$AH$17,INDEX($AH$9:$AK$13,O45,4)*Q45+Q103,0) -> 0 | S105: =IF(U105<=$AQ$51,U105/(1-$AK$51-$AK$44),IF(U105<=$AQ$52,(U105+$AM$51-$AI$51*$AK$52)/(1-$AK$52-$AK$44),IF(U105<=$AQ$53,(U105+$AM$52-$AI$52*$AK$53)/(1-$AK$53-$AK$44),IF(U105<=$AQ$54,(U105+$AM$53-$AI$53*$AK$54)/(1-$AK$54-$AK$44),IF(U105<=$AS$44,(U105+$AM$54-$AI$54*$AK$55)/(1-$AK$55-$AK$44),IF(U105>$AS$44,(U105+$AM$44+$AM$54-$AI$54*$AK$55)/(1-$AK$55))))))) -> 0 | T105: =AP105+AQ105 -> 0 | U105: =IF(T46=$AH$17,INDEX($AH$9:$AK$13,S45,4)*U45+U103,0) -> 0 | X105: =G105-I105-Y105 -> 0 | Y105: =Y103 -> 0 | AA105: =IF(Z104,IF(G105>$AK$30,(G105-$AK$30)*$AL$30,0),AA103) -> 0 | AB105: =IF(AB104>0,IF(AB104<0.03,1,0),0) -> 0 | AC105: =IF(OR(G105=0,AB104=0),0,(G105-G103)*AB104) -> 0 | AD105: =K105-M105-AE105 -> 0 | AE105: =AE103 -> 0 | AG105: =IF(AF104,IF(K105>$AK$30,(K105-$AK$30)*$AL$30,0),AG103) -> 0 | AH105: =IF(AH104>0,IF(AH104<0.03,1,0),0) -> 0 | AI105: =IF(OR(K105=0,AH104=0),0,(K105-K103)*AH104) -> 0 | AJ105: =O105-Q105-AK105 -> 0 | AK105: =AK103 -> 0 | AM105: =IF(AL104,IF(O105>$AK$30,(O105-$AK$30)*$AL$30,0),AM103) -> 0 | AN105: =IF(AN104>0,IF(AN104<0.03,1,0),0) -> 0 | AO105: =IF(OR(O105=0,AN104=0),0,(O105-O103)*AN104) -> 0 | AP105: =S105-U105-AQ105 -> 0 | AQ105: =AQ103 -> 0 | AS105: =IF(AR104,IF(S105>$AK$30,(S105-$AK$30)*$AL$30,0),AS103) -> 0 | AT105: =IF(AT104>0,IF(AT104<0.03,1,0),0) -> 0 | AU105: =IF(OR(S105=0,AT104=0),0,(S105-S103)*AT104) -> 0
G106: =MAX(G104:G105) -> 0 | H106: =MAX(H104:H105) -> 0 | I106: =MAX(I104:I105) -> 0 | J106: =K106-AG106-AI106 -> 0 | K106: =MAX(K104:K105) -> 0 | L106: =MAX(L104:L105) -> 0 | M106: =MAX(M104:M105) -> 0 | N106: =O106-AM106-AO106 -> 0 | O106: =MAX(O104:O105) -> 0 | P106: =MAX(P104:P105) -> 0 | Q106: =MAX(Q104:Q105) -> 0 | R106: =S106-AS106-AU106 -> 0 | S106: =MAX(S104:S105) -> 0 | T106: =MAX(T104:T105) -> 0 | U106: =MAX(U104:U105) -> 0 | X106: =MAX(X104:X105) -> 0 | Y106: =MAX(Y104:Y105) -> 0 | AA106: =MAX(AA104:AA105) -> 0 | AC106: =MAX(AC104:AC105)+AC103 -> 0 | AD106: =MAX(AD104:AD105) -> 0 | AE106: 0 | AG106: =MAX(AG104:AG105) -> 0 | AI106: =MAX(AI104:AI105)+AI103 -> 0 | AJ106: =MAX(AJ104:AJ105) -> 0 | AK106: 0 | AM106: =MAX(AM104:AM105) -> 0 | AO106: =MAX(AO104:AO105)+AO103 -> 0 | AP106: =MAX(AP104:AP105) -> 0 | AQ106: 0 | AS106: =MAX(AS104:AS105) -> 0 | AU106: =MAX(AU104:AU105)+AU103 -> 0
C118: Total -all income sources | G118: =G106 -> 0 | H118: =H106 -> 0 | I118: =I106 -> 0 | K118: =K106 -> 0 | L118: =L106 -> 0 | M118: =M106 -> 0 | O118: =O106 -> 0 | P118: =P106 -> 0 | Q118: =Q106 -> 0 | S118: =S106 -> 0 | T118: =T106 -> 0 | U118: =U106 -> 0 | X118: =X106 -> 0 | Y118: =Y106 -> 0 | AA118: =AA106 -> 0 | AC118: =AC106 -> 0 | AD118: =AD106 -> 0 | AE118: =AE106 -> 0 | AG118: =AG106 -> 0 | AI118: =AI106 -> 0 | AJ118: =AJ106 -> 0 | AK118: =AK106 -> 0 | AM118: =AM106 -> 0 | AO118: =AO106 -> 0 | AP118: =AP106 -> 0 | AQ118: =AQ106 -> 0 | AS118: =AS106 -> 0 | AU118: =AU106 -> 0
AB119: =AB78+AB81+AB84+AB87+AB90+AB93+AB96+AB99+AB102+AB105 -> 0 | AH119: =AH78+AH81+AH84+AH87+AH90+AH93+AH96+AH99+AH102+AH105 -> 0 | AN119: =AN78+AN81+AN84+AN87+AN90+AN93+AN96+AN99+AN102+AN105 -> 0 | AT119: =AT78+AT81+AT84+AT87+AT90+AT93+AT96+AT99+AT102+AT105 -> 0
C120: KiwiSaver contibution rate | I120: =AC118 -> 0 | M120: =AI118 -> 0 | Q120: =AO118 -> 0 | U120: =AU118 -> 0
C122: Total Deductions | I122: =I120 -> 0 | M122: =M120 -> 0 | Q122: =Q120 -> 0 | U122: =U120 -> 0
C129: Annual Inome after tax and deductions | I129: =I118-I122 -> 0 | M129: =M118-M122 -> 0 | Q129: =Q118-Q122 -> 0 | U129: =U118-U122 -> 0
C131: Weighted Annual Income after tax | G131: =G79*$AP$9+(G82-G79)*$AP$12+(G85-G82)*$AP$10+(G88-G85)*$AP$16+(G91-G88)*$AP$17+(G94-G91)*$AP$11+(G97-G94)*$AP$18+(G100-G97)*$AP$13+(G103-G100)*$AP$12+(G106-G103)*$AP$19 -> 0 | I131: =I79*$AP$9+(I82-I79)*$AP$12+(I85-I82)*$AP$10+(I88-I85)*$AP$16+(I91-I88)*$AP$17+(I94-I91)*$AP$11+(I97-I94)*$AP$18+(I100-I97)*$AP$13+(I103-I100)*$AP$12+(I106-I103)*$AP$19 -> 0 | K131: =K79*$AP$9+(K82-K79)*$AP$12+(K85-K82)*$AP$10+(K88-K85)*$AP$16+(K91-K88)*$AP$17+(K94-K91)*$AP$11+(K97-K94)*$AP$18+(K100-K97)*$AP$13+(K103-K100)*$AP$12+(K106-K103)*$AP$19 -> 0 | M131: =M79*$AP$9+(M82-M79)*$AP$12+(M85-M82)*$AP$10+(M88-M85)*$AP$16+(M91-M88)*$AP$17+(M94-M91)*$AP$11+(M97-M94)*$AP$18+(M100-M97)*$AP$13+(M103-M100)*$AP$12+(M106-M103)*$AP$19 -> 0 | O131: =O79*$AP$9+(O82-O79)*$AP$12+(O85-O82)*$AP$10+(O88-O85)*$AP$16+(O91-O88)*$AP$17+(O94-O91)*$AP$11+(O97-O94)*$AP$18+(O100-O97)*$AP$13+(O103-O100)*$AP$12+(O106-O103)*$AP$19 -> 0 | Q131: =Q79*$AP$9+(Q82-Q79)*$AP$12+(Q85-Q82)*$AP$10+(Q88-Q85)*$AP$16+(Q91-Q88)*$AP$17+(Q94-Q91)*$AP$11+(Q97-Q94)*$AP$18+(Q100-Q97)*$AP$13+(Q103-Q100)*$AP$12+(Q106-Q103)*$AP$19 -> 0 | S131: =S79*$AP$9+(S82-S79)*$AP$12+(S85-S82)*$AP$10+(S88-S85)*$AP$16+(S91-S88)*$AP$17+(S94-S91)*$AP$11+(S97-S94)*$AP$18+(S100-S97)*$AP$13+(S103-S100)*$AP$12+(S106-S103)*$AP$19 -> 0 | U131: =U79*$AP$9+(U82-U79)*$AP$12+(U85-U82)*$AP$10+(U88-U85)*$AP$16+(U91-U88)*$AP$17+(U94-U91)*$AP$11+(U97-U94)*$AP$18+(U100-U97)*$AP$13+(U103-U100)*$AP$12+(U106-U103)*$AP$19 -> 0
C133: Weighted Annual Income after tax and deductions | I133: =I131-I122 -> 0 | M133: =M131-M122 -> 0 | Q133: =Q131-Q122 -> 0 | U133: =U131-U122 -> 0 | X133: Household Student Loan Payments | AB133: =AA118+AG118+AM118+AS118 -> 0
C135: Total All Applicants - Weighted Annual Income after tax and deductions | I135: =I133+M133+Q133+U133 -> 0 | M135: Total All Applicants - Gross Annual Income | Q135: =($G$118+$K$118+$O$118+$S$118)+$W$65+$W$66+($J$165*$AP$14)+$J$166 -> 0 | R135: =($G$118+$K$118+$O$118+$S$118)+$W$65+$W$66+$J$165+$J$166 -> 0 | X135: Has Kiwisaver < 3% | Z135: =AB119+AH119+AN119+AT119 -> 0
C136: Total All Applicants - WeightedMonthly Income after tax and deductions | I136: =I135/12 -> 0 | M136: Total Adjusted Gross Income | Q136: =(G131+K131+O131+S131)-(I122+M122+Q122+U122)+$W$65+$W$66+J167+J168 -> 0 | X136: All households has < 3 | Z136: =Z135+Calc2!Z135+Calc3!Z135+Calc4!Z135 -> 0
C137: Rental Housing Income | X137: Show Kiwisaver < 3% | Z137: =IF(Z136>0,TRUE,FALSE) -> FALSE
C138: Weighting | G138: 1 | M138: Total Student Loan Balances | Q138: =W67+Calc2!W67+Calc3!W67+Calc4!W67 -> 0 | AK138: Conversion Factors
M139: Total Student Loan Payments | Q139: =AB133+Calc2!AB133+Calc3!AB133+Calc4!AB133 -> 0 | AH139: Expense and Repayment Frequency | AK139: To Annual | AL139: To Monthly
C140: Property One | M140: Monthly Student Loan Payments | Q140: =Q139/12 -> 0 | AH140: Weekly | AK140: =365/7 -> 52.14285714 | AL140: =365/7/12 -> 4.345238095
C141: Location | H141: 0 | AH141: Fortnightly | AK141: =365/14 -> 26.07142857 | AL141: =365/14/12 -> 2.172619048
H142: 0 | AH142: Monthly | AK142: =12 -> 12 | AL142: 1
AH143: Quarterly | AK143: 4 | AL143: =4/12 -> 0.3333333333
C144: Rent frequency and amount | D144: Rental | G144: 1 | H144: =INDEX($AH$22:$AH$26,G144) -> Weekly | I144: ='NSR Calculator'!D77 -> 0 | J144: =INDEX($AH$22:$AK$26,G144,4)*I144 -> 0 | AH144: Annual | AK144: =1 -> 1 | AL144: =1/12 -> 0.08333333333
C146: Property Two | AH146: Yes/No Answer
C147: Location | H147: 0 | AH147: No
H148: 0 | AH148: Yes
C150: Rent frequency and amount | G150: 1 | H150: =INDEX($AH$22:$AH$26,G150) -> Weekly | I150: ='NSR Calculator'!I77 -> 0 | J150: =INDEX($AH$22:$AK$26,G150,4)*I150 -> 0 | AH150: Loan Type | AJ150: Existing SBS Bank loan types | AM150: Repayment Type
AH151: Car | AJ151: Total Residential | AM151: Table (P and I)
C152: Property Three | AH152: Personal | AJ152: Total Residential Investment | AM152: Interest Only
C153: Location | H153: 0 | AH153: Hire Purchase | AJ153: Total Flexi
H154: 0 | AH154: Other | AJ154: Total Commercial
C156: Rent frequency and amount | G156: 1 | H156: =INDEX($AH$22:$AH$26,G156) -> Weekly | I156: ='NSR Calculator'!N77 -> 0 | J156: =INDEX($AH$22:$AK$26,G156,4)*I156 -> 0
C158: Property Four
C159: Location | G159: Address | H159: 0
H160: 0 | AH160: Revolving Credit Type | AK160: Repayment
AH161: Total Credit/Store Card Limits | AK161: 0.038
C162: Rent frequency and amount | G162: 1 | H162: =INDEX($AH$22:$AH$26,G162) -> Weekly | I162: ='NSR Calculator'!S77 -> 0 | J162: =INDEX($AH$22:$AK$26,G162,4)*I162 -> 0 | AH162: Total Other Bank OD Limits | AK162: 0.02
AH163: Overdraft | AK163: 0.02
AH164: Housing | AK164: 0.03
C165: Annual Rental Income | J165: =J162+J156+J150+J144 -> 0 | AH165: Business O/D | AK165: 0.1
C166: Boarder Income | G166: 1 | H166: =INDEX($AH$22:$AH$26,G166) -> Weekly | I166: ='NSR Calculator'!D82 -> 0 | J166: =INDEX($AH$22:$AK$26,G166,4)*I166 -> 0 | AH166: Personal O/D | AK166: 0.1
C167: Weighted Annual Rental Income | J167: =J165*$AP$14 -> 0
C168: Weighted Annual Boarder Income | J168: =J166*$AP$15 -> 0 | AH168: Maximum Loan Term
C169: Weighted Monthly Rental Income | J169: =((J167+J168)/12)+Calc2!J169+Calc3!J169+Calc4!J169 -> 0 | K169: All households | AH169: Maximum Age | AK169: 85
AH170: Maximum Term | AK170: 30
J172: Annual | L172: Monthly | AH172: Debt Servicing Assumptions
C173: Income available for debt servicing incluidng rentals | J173: =I135+J167 -> 0 | L173: =I136+J169 -> 0 | N173: =IF(ABS(J173-L173*12)<=0.01,"OK", "Please Check") -> OK | AH173: NSR | AK173: =IF(OR(H9=6,H14=TRUE),'Calculator Parameters'!C43,'Calculator Parameters'!C42) -> 1
AH174: DTI | AK174: =IF(D15,'Calculator Parameters'!C46,'Calculator Parameters'!C45) -> 6
G175: Applicants 1 and 2
C176: Living Expenses
I177: Input | J177: Monthly | AH177: ='Calculator Parameters'!B52 -> SBS Interest rate buffer | AK177: =IF($J$282>0,0, 'Calculator Parameters'!C52) -> 0.025 | AL177: =AK177*100 -> 2.5
C178: Living Expenses - Monthly | G178: 3 | H178: =INDEX($AH$140:$AH$144,G178) -> Monthly | I178: ='NSR Calculator'!C88 -> 0 | J178: =INDEX($AH$140:$AL$144,G178,5)*I178 -> 0 | AH178: Max LVR | AK178: 0.85
AH179: ='Calculator Parameters'!B51 -> SBS Foundation interest rate | AK179: ='Calculator Parameters'!C51 -> 0.04
AH180: Initial: NSR=(MC - Rentals +MLA)/MNI, therefore NSR*0.9 +Rentals-MLA = Maximnum MC
C181: Other Expenses - Monthly | G181: 3 | H181: =INDEX($AH$140:$AH$144,G181) -> Monthly | I181: ='NSR Calculator'!M88 -> 0 | J181: =INDEX($AH$140:$AL$144,G181,5)*I181 -> 0 | AH181: Suggested:
C184: Household | G184: 3 | H184: =INDEX($AH$140:$AH$144,G184) -> Monthly | I184: 0 | J184: =INDEX($AH$140:$AL$144,G184,5)*I184 -> 0
C185: e.g. Food, clothing, travel, health, entertainment
C187: Council Rates | G187: 3 | H187: =INDEX($AH$140:$AH$144,G187) -> Monthly | I187: 0 | J187: =INDEX($AH$140:$AL$144,G187,5)*I187 -> 0
C190: Home and Contents Insurance | G190: 3 | H190: =INDEX($AH$140:$AH$144,G190) -> Monthly | I190: 0 | J190: =INDEX($AH$140:$AL$144,G190,5)*I190 -> 0
AH191: Registered Valuers Report Requirement
AH192: Security located within 50 Km of SBS Bank Branch
C193: Health and Life Insurance | G193: 3 | H193: =INDEX($AH$140:$AH$144,G193) -> Monthly | I193: 0 | J193: =INDEX($AH$140:$AL$144,G193,5)*I193 -> 0 | AH193: Yes/No Answer
C194: Please include Trauma Cover, Income Protection etc. | AH194: No
AH195: Yes | AI195: A Registered Valuer's Report is required for this property
C196: Education | G196: 3 | H196: =INDEX($AH$140:$AH$144,G196) -> Monthly | I196: 0 | J196: =INDEX($AH$140:$AL$144,G196,5)*I196 -> 0
AH197: Security in town with population > 7,000 people
AH198: Yes/No Answer
C199: Child Support | G199: 3 | H199: =INDEX($AH$140:$AH$144,G199) -> Monthly | I199: 0 | J199: =INDEX($AH$140:$AL$144,G199,5)*I199 -> 0 | AH199: No
C200: Please include any other Child Care payments | AH200: Yes | AI200: A Registered Valuer's Report is required for this property
C202: Other 1 | G202: 3 | H202: =INDEX($AH$140:$AH$144,G202) -> Monthly | I202: 0 | J202: =INDEX($AH$140:$AL$144,G202,5)*I202 -> 0
C205: Other 2 | G205: 3 | H205: =INDEX($AH$140:$AH$144,G205) -> Monthly | I205: 0 | J205: =INDEX($AH$140:$AL$144,G205,5)*I205 -> 0 | AH205: Valuation Type
AH206: Government valuation
AH207: Sale & Purchase Agreement
C208: Total Living Expenses | J208: =J178+J181 -> 0 | AH208: Registered Valuers Report
AN209: Security types, valuation method and maximum LVR- Temporary Input Only
AQ210: Where SBS Bank is represented (defined as borrower and/or security being located within 50km of the nearest branch and in a town/centre of at least 7000 people) | AT210: Where SBS Bank is not represented (defined as borrower and/or security being located more than 50km from the nearest branch and in a town/centre of at least 7000 people
C211: SBS Bank Loans with fixed repayments | AH211: Property Type | AQ211: GV | AR211: S&P | AS211: RVR | AT211: RVR
C212: Type | G212: Balance | I212: Term | J212: Repayment | K212: No of Payments | M212: Rept Type | N212: Repayment | U212: Rept P&I | V212: Rept P&I Max Term | X212: Maximum Rept | AA212: Rept IO | AH212: Residential property (freehold) Own use/holiday | AN212: Residential property (freehold) Own use/holiday | AQ212: 0.85 | AR212: 0.85 | AS212: 0.85 | AT212: 0.8
J213: Frequency | K213: Per Year/Month | N213: (Actual) | U213: (Calculated) | V213: (Calculated) | X213: Monthly | AA213: (Calculated) | AH213: Residential property (freehold) Investment (rental) | AN213: Residential property (freehold) Investment (rental) | AQ213: 0.85 | AR213: 0.85 | AS213: 0.85 | AT213: 0.8
N214: As reported by customer | U214: =$AL$177&"% Int Buffer" -> 2.5% Int Buffer | V214: =$AL$177&"% Int Buffer" -> 2.5% Int Buffer | X214: ="With "&$AL$177&"% Int Buffer" -> With 2.5% Int Buffer | AH214: Residential property (leasehold) Own use/holiday | AN214: Residential property (leasehold) Own use/holiday | AQ214: 0.7 | AR214: 0.7 | AS214: 0.7 | AT214: 0.7
U215: Cust Term | V215: Max Term | X215: Set for each loan to avoid gaming | AH215: Residential property (leasehold) Investment (rental) | AN215: Residential property (leasehold) Investment (rental) | AQ215: 0.7 | AR215: 0.7 | AS215: 0.7 | AT215: 0.7
B216: 1 | C216: =INDEX($AJ$151:$AJ$155,B216) -> Total Residential | G216: ='NSR Calculator'!C98 -> 0 | I216: =IF(G216>0,IF(AND('NSR Calculator'!D98>0,'NSR Calculator'!D98<Calculation!$K$288),'NSR Calculator'!D98,Calculation!$K$288/12)) -> FALSE | J216: 3 | K216: =INDEX($AH$140:$AL$144,J216,4) -> 12 | L216: 1 | M216: =INDEX($AH$157:$AH$159,L216) -> 0 | N216: 0 | U216: =IF(AND(G216>0,I216>0),-PMT($E$284/K216,I216*K216,G216,),"") ->  | V216: =IF(AND(G216>0,I216>0),-PMT($E$284/K216,$K$284/12*K216,G216,),"") ->  | AA216: =IF(AND(G216>0,I216>0),(G216*$E$284)/12,"") ->  | AH216: Vacant residential land (< 10 hectares) Serviced | AN216: Vacant residential land (< 10 hectares) Serviced | AQ216: 0.8 | AR216: 0.8 | AS216: 0.8 | AT216: 0.8
K217: =INDEX($AH$140:$AL$144,J216,5) -> 1 | N217: =IF(ISNUMBER(N216),N216*K217,) -> 0 | U217: =IF(ISNUMBER(U216),U216*K217,) -> 0 | V217: =IF(ISNUMBER(V216),V216*K217,) -> 0 | X217: =MAX(N217,U217,V217) -> 0 | AA217: =IF(ISNUMBER(AA216),AA216*K217,) -> 0 | AH217: Vacant residential land (< 10 hectares) Not serviced | AN217: Vacant residential land (< 10 hectares) Not serviced | AQ217: 0.5 | AR217: 0.5 | AS217: 0.5 | AT217: 0.5
AH218: Lifestyle / semi-rural (< 15 hectares) Serviced only | AN218: Lifestyle / semi-rural (< 15 hectares) Serviced only | AQ218: 0.8 | AR218: 0.8 | AS218: 0.8 | AT218: 0.7
B219: 1 | C219: =INDEX($AJ$151:$AJ$155,B219) -> Total Residential | G219: ='NSR Calculator'!C100 -> 0 | I219: =IF(G219>0,IF(AND('NSR Calculator'!D100>0,'NSR Calculator'!D100<Calculation!$K$288),'NSR Calculator'!D100,Calculation!$K$288/12)) -> FALSE | J219: 3 | K219: =INDEX($AH$140:$AL$144,J219,4) -> 12 | L219: 1 | M219: =INDEX($AH$157:$AH$159,L219) -> 0 | N219: 0 | U219: =IF(AND(G219>0,I219>0),-PMT($E$284/K219,I219*K219,G219,),"") ->  | V219: =IF(AND(G219>0,I219>0),-PMT($E$284/K219,$K$284/12*K219,G219,),"") ->  | AA219: =IF(AND(G219>0,I219>0),(G219*$E$284)/12,"") ->  | AH219: Apartments (size > 50 sqm) Serviced | AN219: Apartments (size > 50 sqm) Serviced | AQ219: 0.5 | AR219: 0.5 | AS219: 0.6 | AT219: 0.6
K220: =INDEX($AH$140:$AL$144,J219,5) -> 1 | N220: =IF(ISNUMBER(N219),N219*K220,) -> 0 | U220: =IF(ISNUMBER(U219),U219*K220,) -> 0 | V220: =IF(ISNUMBER(V219),V219*K220,) -> 0 | X220: =MAX(N220,U220,V220) -> 0 | AA220: =IF(ISNUMBER(AA219),AA219*K220,) -> 0 | AH220: Apartments (size > 50 sqm) Not serviced | AN220: Apartments (size > 50 sqm) Not serviced | AQ220: 0.8 | AR220: 0.8 | AS220: 0.8 | AT220: 0.7
C222: SBS Bank Loan Fixed Repayments - Monthly Total | N222: =N217+N220 -> 0 | U222: =U217+U220 -> 0 | V222: =V217+V220 -> 0 | X222: =X217+X220 -> 0 | AA222: =AA217+AA220 -> 0
AH224: Business Related Loans
AH225: Selection required
C226: Existing Other Bank mortgage debt | AH226: No business debt
C227: Type | G227: Balance | I227: Term | J227: Repayment | K227: No of Payments | M227: Rept Type | N227: Repayment | U227: Rept P&I | V227: Rept P&I Max Term | X227: Maximum Rept | AA227: Rept IO | AH227: Combined with other debt (not separately identifiable)
J228: Frequency | K228: TRUE | N228: (Actual) | U228: (Calculated) | V228: (Calculated) | X228: Monthly | AA228: (Calculated) | AH228: Separately identifiable - serviced by business income
N229: As reported by customer | U229: =$AL$177&"% Int Buffer" -> 2.5% Int Buffer | V229: =$AL$177&"% Int Buffer" -> 2.5% Int Buffer | X229: ="With "&$AL$177&"% Int Buffer" -> With 2.5% Int Buffer | AH229: Separately identifiable - serviced by non-business income
K230: TRUE | U230: Cust Term | V230: Max Term | X230: Set for each loan to avoid gaming
B231: 1 | C231: =INDEX($AJ$151:$AJ$155,B231) -> Total Residential | G231: ='NSR Calculator'!C107 -> 0 | I231: =IF(G231>0,IF(AND('NSR Calculator'!D107>0,'NSR Calculator'!D107<Calculation!$K$288),'NSR Calculator'!D107,Calculation!$K$288/12)) -> FALSE | J231: 3 | K231: =INDEX($AH$140:$AL$144,J231,4) -> 12 | L231: 1 | M231: =INDEX($AH$157:$AH$159,L231) -> 0 | N231: 0 | U231: =IF(AND(G231>0,I231>0),-PMT($E$284/K231,I231*K231,G231,),"") ->  | V231: =IF(AND(G231>0,I231>0),-PMT($E$284/K231,$K$284/12*K231,G231,),"") ->  | AA231: =IF(AND(G231>0,I231>0),(G231*$E$284)/12,"") -> 
K232: =INDEX($AH$140:$AL$144,J231,5) -> 1 | N232: =IF(ISNUMBER(N231),N231*K232,) -> 0 | U232: =IF(ISNUMBER(U231),U231*K232,) -> 0 | V232: =IF(ISNUMBER(V231),V231*K232,) -> 0 | X232: =MAX(N232,U232,V232) -> 0 | AA232: =IF(ISNUMBER(AA231),AA231*K232,) -> 0
B234: 1 | C234: =INDEX($AJ$151:$AJ$155,B234) -> Total Residential | G234: ='NSR Calculator'!C109 -> 0 | I234: =IF(G234>0,IF(AND('NSR Calculator'!D109>0,'NSR Calculator'!D109<Calculation!$K$288),'NSR Calculator'!D109,Calculation!$K$288/12)) -> FALSE | J234: 3 | K234: =INDEX($AH$140:$AL$144,J234,4) -> 12 | L234: 1 | M234: =INDEX($AH$157:$AH$159,L234) -> 0 | N234: 0 | U234: =IF(AND(G234>0,I234>0),-PMT($E$284/K234,I234*K234,G234,),"") ->  | V234: =IF(AND(G234>0,I234>0),-PMT($E$284/K234,$K$284/12*K234,G234,),"") ->  | AA234: =IF(AND(G234>0,I234>0),(G234*$E$284)/12,"") -> 
K235: =INDEX($AH$140:$AL$144,J234,5) -> 1 | N235: =IF(ISNUMBER(N234),N234*K235,) -> 0 | U235: =IF(ISNUMBER(U234),U234*K235,) -> 0 | V235: =IF(ISNUMBER(V234),V234*K235,) -> 0 | X235: =MAX(N235,U235,V235) -> 0 | AA235: =IF(ISNUMBER(AA234),AA234*K235,) -> 0
B237: 1 | C237: Other Bank P & I payments - Monthly Total | N237: =N232+N235 -> 0 | U237: =U232+U235 -> 0 | V237: =V232+V235 -> 0 | X237: =X232+X235 -> 0 | AA237: =AA232+AA235 -> 0
C243: Other Loans with Fixed Repayments
C244: Type | G244: Balance | H244: Rate | I244: Term | J244: Repayment | K244: No of Payments | M244: Rept Type | N244: Repayment | O244: Rept P&I | P244: Rept P&I Max Term | R244: Maximum Rept
J245: Frequency | K245: Per Year/Month | N245: (Actual) | O245: (Calculated) | P245: (Calculated) | R245: Monthly
B246: 1 | C246: =INDEX($AH$151:$AH$156,B246) -> Car | G246: ='NSR Calculator'!C116 -> 0 | H246: =E284 -> 0.065 | I246: =$K$284/12 -> 30 | J246: 3 | K246: =INDEX($AH$140:$AL$144,J246,4) -> 12 | L246: 1 | M246: =INDEX($AH$157:$AH$159,L246) -> 0 | N246: ='NSR Calculator'!D116 -> 0 | O246: =IF(AND(G246>0,H246>0,I246>0),-PMT(H246/K246,I246*K246,G246,),"") ->  | P246: =IF(AND(G246>0,H246>0,I246>0),-PMT(H246/K246,$K$284/12*K246,G246,),"") -> 
K247: =INDEX($AH$140:$AL$144,J246,5) -> 1 | N247: =IF(ISNUMBER(N246),N246*K247,) -> 0 | O247: =IF(ISNUMBER(O246),O246*K247,) -> 0 | P247: =IF(ISNUMBER(P246),P246*K247,) -> 0 | R247: =MAX(N247:P247) -> 0
K248: TRUE
B249: 1 | C249: =INDEX($AH$151:$AH$156,B249) -> Car | G249: ='NSR Calculator'!C118 -> 0 | H249: =E284 -> 0.065 | I249: =$K$284/12 -> 30 | J249: 3 | K249: =INDEX($AH$140:$AL$144,J249,4) -> 12 | L249: 1 | M249: =INDEX($AH$157:$AH$159,L249) -> 0 | N249: ='NSR Calculator'!D118 -> 0 | O249: =IF(AND(G249>0,H249>0,I249>0),-PMT(H249/K249,I249*K249,G249,),"") ->  | P249: =IF(AND(G249>0,H249>0,I249>0),-PMT(H249/K249,$K$284/12*K249,G249,),"") -> 
... 88 more rows

Sheet Calc2 (hidden)
G1: Applicant 1 | K1: Applicant 2 | O1: Applicant 3 | S1: Applicant 4
AH2: Reference field for controls | AN2: Credit Rules
B5: Age of applicants | G5: ='NSR Calculator'!Y25 -> 0 | K5: ='NSR Calculator'!AD25 -> 0 | O5: 0 | S5: 0 | W5: =MIN($AK$169-G5,$AK$169-K5,$AK$169-O5,$AK$169-S5) -> 85 | X5: Household min by age
AK7: Conversion Factors | AN7: Income Source Weighting
B8: Household Composition | AH8: Income Frequency List | AK8: To Annual | AL8: To Monthly | AN8: Source | AP8: Weight
B9: Adults in household | E9: ='NSR Calculator'!Y16 -> 0 | G9: Properties | H9: 1 | I9: =INDEX(Calculation!$AT$1:$AT$6,$H$9) -> 0 | AH9: Annual | AK9: 1 | AL9: =1/12 -> 0.08333333333 | AN9: Salary or Wages | AP9: ='Calculator Parameters'!C10 -> 1
H10: 3 | J10: =CONCATENATE(" ") ->  | AH10: Monthly | AK10: 12 | AL10: 1 | AN10: Overtime | AP10: ='Calculator Parameters'!C11 -> 0.8 | AR10: Includes Allowance,Bonus,Overtime, Investment
I11: =Calculation!I11 -> Retail Lending: NSR should be 100% or less for approval | AH11: Fortnightly | AK11: 26.07142857 | AL11: =365/14/12 -> 2.172619048 | AN11: Commission | AP11: ='Calculator Parameters'!C14 -> 0.75
B12: Children in household | E12: ='NSR Calculator'!AD16 -> 0 | AH12: Weekly | AK12: 52.14285714 | AL12: =365/7/12 -> 4.345238095 | AN12: Self-employed | AP12: ='Calculator Parameters'!C15 -> 1 | AR12: Includes Contract, Business Income
AH13: Quarterly | AK13: 4 | AL13: =4/12 -> 0.3333333333 | AN13: Beneficiary | AP13: ='Calculator Parameters'!C16 -> 1
B14: Owner Occupied | D14: =Calculation!D14 -> FALSE | G14: Prop Investor | H14: FALSE | AN14: Rentals | AP14: ='Calculator Parameters'!C17 -> 0.75
B15: Investment | D15: =Calculation!D15 -> FALSE | AH15: Tax status | AN15: Boarder | AP15: ='Calculator Parameters'!C20 -> 0.8
B16: Income input data (excluding rentals) source and amount | AH16: Gross (Pre tax) | AN16: Bonus | AP16: ='Calculator Parameters'!C12 -> 0.7
G17: Applicant 1 | K17: Applicant 2 | O17: Applicant 3 | S17: Applicant 4 | AH17: Net (After tax) | AN17: Allowance | AP17: ='Calculator Parameters'!C13 -> 0.8
C18: Salary or Wages | E18: Frequency | G18: 1 | H18: =INDEX(Calculation!$AH$9:$AH$13,G18) -> Annual | I18: ='NSR Calculator'!$Y$27 -> 0 | K18: 1 | L18: =INDEX(Calculation!$AH$9:$AH$13,K18) -> Annual | M18: ='NSR Calculator'!$AD$27 -> 0 | O18: 1 | P18: =INDEX(Calculation!$AH$9:$AH$13,O18) -> Annual | Q18: 0 | S18: 1 | T18: =INDEX(Calculation!$AH$9:$AH$13,S18) -> Annual | U18: 0 | AN18: Investment | AP18: ='Calculator Parameters'!C18 -> 0.5
E19: Tax staus | G19: 1 | H19: =INDEX(Calculation!$AH$16:$AH$17,G19) -> Gross (Pre tax) | K19: 1 | L19: =INDEX(Calculation!$AH$16:$AH$17,K19) -> Gross (Pre tax) | O19: 1 | P19: =INDEX(Calculation!$AH$16:$AH$17,O19) -> Gross (Pre tax) | S19: 1 | T19: =INDEX(Calculation!$AH$16:$AH$17,S19) -> Gross (Pre tax) | AN19: Child Support | AP19: ='Calculator Parameters'!C19 -> 0.8
AK20: Conversion Factors
C21: Self-employed | E21: Frequency | G21: 1 | H21: =INDEX(Calculation!$AH$9:$AH$13,G21) -> Annual | I21: ='NSR Calculator'!$Y$30 -> 0 | K21: 1 | L21: =INDEX(Calculation!$AH$9:$AH$13,K21) -> Annual | M21: ='NSR Calculator'!$AD$30 -> 0 | O21: 1 | P21: =INDEX(Calculation!$AH$9:$AH$13,O21) -> Annual | Q21: 0 | S21: 1 | T21: =INDEX(Calculation!$AH$9:$AH$13,S21) -> Annual | U21: 0 | AH21: Rental Frequency List | AK21: To Annual | AL21: To Monthly
E22: Tax staus | G22: 1 | H22: =INDEX(Calculation!$AH$16:$AH$17,G22) -> Gross (Pre tax) | K22: 1 | L22: =INDEX(Calculation!$AH$16:$AH$17,K22) -> Gross (Pre tax) | O22: 1 | P22: =INDEX(Calculation!$AH$16:$AH$17,O22) -> Gross (Pre tax) | S22: 1 | T22: =INDEX(Calculation!$AH$16:$AH$17,S22) -> Gross (Pre tax) | AH22: Weekly | AK22: =365/7 -> 52.14285714 | AL22: =365/7/12 -> 4.345238095
AH23: Fortnightly | AK23: =365/14 -> 26.07142857 | AL23: =365/14/12 -> 2.172619048
C24: Overtime | E24: Frequency | G24: 1 | H24: =INDEX(Calculation!$AH$9:$AH$13,G24) -> Annual | I24: ='NSR Calculator'!$Y$33 -> 0 | K24: 1 | L24: =INDEX(Calculation!$AH$9:$AH$13,K24) -> Annual | M24: ='NSR Calculator'!$AD$33 -> 0 | O24: 1 | P24: =INDEX(Calculation!$AH$9:$AH$13,O24) -> Annual | Q24: 0 | S24: 1 | T24: =INDEX(Calculation!$AH$9:$AH$13,S24) -> Annual | U24: 0 | AH24: Monthly | AK24: =12 -> 12 | AL24: 1
E25: Tax staus | G25: 1 | H25: =INDEX(Calculation!$AH$16:$AH$17,G25) -> Gross (Pre tax) | K25: 1 | L25: =INDEX(Calculation!$AH$16:$AH$17,K25) -> Gross (Pre tax) | O25: 1 | P25: =INDEX(Calculation!$AH$16:$AH$17,O25) -> Gross (Pre tax) | S25: 1 | T25: =INDEX(Calculation!$AH$16:$AH$17,S25) -> Gross (Pre tax) | AH25: Annual | AK25: =1 -> 1 | AL25: =1/12 -> 0.08333333333
AH26: Quarterly | AK26: 4 | AL26: =4/12 -> 0.3333333333
C27: Bonus | E27: Frequency | G27: 1 | H27: =INDEX(Calculation!$AH$9:$AH$13,G27) -> Annual | I27: ='NSR Calculator'!$Y$36 -> 0 | K27: 1 | L27: =INDEX(Calculation!$AH$9:$AH$13,K27) -> Annual | M27: ='NSR Calculator'!$AD$36 -> 0 | O27: 1 | P27: =INDEX(Calculation!$AH$9:$AH$13,O27) -> Annual | Q27: 0 | S27: 1 | T27: =INDEX(Calculation!$AH$9:$AH$13,S27) -> Annual | U27: 0
E28: Tax staus | G28: 1 | H28: =INDEX(Calculation!$AH$16:$AH$17,G28) -> Gross (Pre tax) | K28: 1 | L28: =INDEX(Calculation!$AH$16:$AH$17,K28) -> Gross (Pre tax) | O28: 1 | P28: =INDEX(Calculation!$AH$16:$AH$17,O28) -> Gross (Pre tax) | S28: 1 | T28: =INDEX(Calculation!$AH$16:$AH$17,S28) -> Gross (Pre tax) | AH28: Student Loan | AK28: Threshold | AL28: Rate
AH29: No
C30: Allowance | E30: Frequency | G30: 1 | H30: =INDEX(Calculation!$AH$9:$AH$13,G30) -> Annual | I30: ='NSR Calculator'!$Y$39 -> 0 | K30: 1 | L30: =INDEX(Calculation!$AH$9:$AH$13,K30) -> Annual | M30: ='NSR Calculator'!$AD$39 -> 0 | O30: 1 | P30: =INDEX(Calculation!$AH$9:$AH$13,O30) -> Annual | Q30: 0 | S30: 1 | T30: =INDEX(Calculation!$AH$9:$AH$13,S30) -> Annual | U30: 0 | AH30: Yes | AK30: ='Calculator Parameters'!B38 -> 24128 | AL30: ='Calculator Parameters'!C38 -> 0.12
E31: Tax staus | G31: 1 | H31: =INDEX(Calculation!$AH$16:$AH$17,G31) -> Gross (Pre tax) | K31: 1 | L31: =INDEX(Calculation!$AH$16:$AH$17,K31) -> Gross (Pre tax) | O31: 1 | P31: =INDEX(Calculation!$AH$16:$AH$17,O31) -> Gross (Pre tax) | S31: 1 | T31: =INDEX(Calculation!$AH$16:$AH$17,S31) -> Gross (Pre tax)
AH32: KiwiSaver
C33: Commission | E33: Frequency | G33: 1 | H33: =INDEX(Calculation!$AH$9:$AH$13,G33) -> Annual | I33: ='NSR Calculator'!$Y$42 -> 0 | K33: 1 | L33: =INDEX(Calculation!$AH$9:$AH$13,K33) -> Annual | M33: ='NSR Calculator'!$AD$42 -> 0 | O33: 1 | P33: =INDEX(Calculation!$AH$9:$AH$13,O33) -> Annual | Q33: 0 | S33: 1 | T33: =INDEX(Calculation!$AH$9:$AH$13,S33) -> Annual | U33: 0 | AH33: No
E34: Tax staus | G34: 1 | H34: =INDEX(Calculation!$AH$16:$AH$17,G34) -> Gross (Pre tax) | K34: 1 | L34: =INDEX(Calculation!$AH$16:$AH$17,K34) -> Gross (Pre tax) | O34: 1 | P34: =INDEX(Calculation!$AH$16:$AH$17,O34) -> Gross (Pre tax) | S34: 1 | T34: =INDEX(Calculation!$AH$16:$AH$17,S34) -> Gross (Pre tax) | AH34: ='Calculator Parameters'!B57 -> 0.03
AH35: ='Calculator Parameters'!B58 -> 0.04
C36: Investment | E36: Frequency | G36: 1 | H36: =INDEX(Calculation!$AH$9:$AH$13,G36) -> Annual | I36: ='NSR Calculator'!$Y$45 -> 0 | K36: 1 | L36: =INDEX(Calculation!$AH$9:$AH$13,K36) -> Annual | M36: ='NSR Calculator'!$AD$45 -> 0 | O36: 1 | P36: =INDEX(Calculation!$AH$9:$AH$13,O36) -> Annual | Q36: 0 | S36: 1 | T36: =INDEX(Calculation!$AH$9:$AH$13,S36) -> Annual | U36: 0 | AH36: ='Calculator Parameters'!B59 -> 0.08
E37: Tax staus | G37: 1 | H37: =INDEX(Calculation!$AH$16:$AH$17,G37) -> Gross (Pre tax) | K37: 1 | L37: =INDEX(Calculation!$AH$16:$AH$17,K37) -> Gross (Pre tax) | O37: 1 | P37: =INDEX(Calculation!$AH$16:$AH$17,O37) -> Gross (Pre tax) | S37: 1 | T37: =INDEX(Calculation!$AH$16:$AH$17,S37) -> Gross (Pre tax) | AH37: Other
C39: Beneficiary | E39: Frequency | G39: 1 | H39: =INDEX(Calculation!$AH$9:$AH$13,G39) -> Annual | I39: ='NSR Calculator'!$Y$48 -> 0 | K39: 1 | L39: =INDEX(Calculation!$AH$9:$AH$13,K39) -> Annual | M39: ='NSR Calculator'!$AD$48 -> 0 | O39: 1 | P39: =INDEX(Calculation!$AH$9:$AH$13,O39) -> Annual | Q39: 0 | S39: 1 | T39: =INDEX(Calculation!$AH$9:$AH$13,S39) -> Annual | U39: 0
E40: Tax staus | G40: 1 | H40: =INDEX(Calculation!$AH$16:$AH$17,G40) -> Gross (Pre tax) | K40: 1 | L40: =INDEX(Calculation!$AH$16:$AH$17,K40) -> Gross (Pre tax) | O40: 1 | P40: =INDEX(Calculation!$AH$16:$AH$17,O40) -> Gross (Pre tax) | S40: 1 | T40: =INDEX(Calculation!$AH$16:$AH$17,S40) -> Gross (Pre tax)
C42: Contract | E42: Frequency | G42: 1 | H42: =INDEX(Calculation!$AH$9:$AH$13,G42) -> Annual | I42: ='NSR Calculator'!$Y$50 -> 0 | K42: 1 | L42: =INDEX(Calculation!$AH$9:$AH$13,K42) -> Annual | M42: ='NSR Calculator'!$AD$50 -> 0 | O42: 1 | P42: =INDEX(Calculation!$AH$9:$AH$13,O42) -> Annual | Q42: 0 | S42: 1 | T42: =INDEX(Calculation!$AH$9:$AH$13,S42) -> Annual | U42: 0
E43: Tax staus | G43: 1 | H43: =INDEX(Calculation!$AH$16:$AH$17,G43) -> Gross (Pre tax) | K43: 1 | L43: =INDEX(Calculation!$AH$16:$AH$17,K43) -> Gross (Pre tax) | O43: 1 | P43: =INDEX(Calculation!$AH$16:$AH$17,O43) -> Gross (Pre tax) | S43: 1 | T43: =INDEX(Calculation!$AH$16:$AH$17,S43) -> Gross (Pre tax) | AH43: ACC Earners levy | AK43: ACC Levy Rate | AM43: Maximum Levy | AO43: Gross Income Threshold | AQ43: Maximum Tax | AS43: After Tax and ACC Levy Income
AH44: Wages &Salary | AK44: ='Calculator Parameters'!C22 -> 0.0175 | AM44: ='Calculator Parameters'!D22 -> 2741.22 | AO44: =AM44/AK44 -> 156641.1429 | AQ44: =(AO44-AI54)*AK55+AM54 -> 40167.54571 | AS44: =AO44-AQ44-AM44 -> 113732.3771
C45: Child Support | E45: Frequency | G45: 1 | H45: =INDEX($AH$9:$AH$13,G45) -> Annual | I45: ='NSR Calculator'!$Y$52 -> 0 | K45: 1 | L45: =INDEX($AH$9:$AH$13,K45) -> Annual | M45: ='NSR Calculator'!$AD$52 -> 0 | O45: 1 | P45: =INDEX($AH$9:$AH$13,O45) -> Annual | Q45: 0 | S45: 1 | T45: =INDEX($AH$9:$AH$13,S45) -> Annual | U45: 0 | AH45: Self-employed | AK45: ='Calculator Parameters'!C23 -> 0.0175 | AM45: ='Calculator Parameters'!D23 -> 2741.22 | AO45: =AM45/AK45 -> 156641.1429 | AQ45: =(AO45-AI54)*AK55+AM54 -> 40167.54571 | AS45: =AO45-AQ45-AM45 -> 113732.3771
E46: Tax staus | G46: 1 | H46: =INDEX($AH$16:$AH$17,G46) -> Gross (Pre tax) | K46: 1 | L46: =INDEX($AH$16:$AH$17,K46) -> Gross (Pre tax) | O46: 1 | P46: =INDEX($AH$16:$AH$17,O46) -> Gross (Pre tax) | S46: 1 | T46: =INDEX($AH$16:$AH$17,S46) -> Gross (Pre tax)
G47: 1 | K47: 1 | O47: 1 | S47: 1
AH48: Income Tax
G49: 1 | K49: 1 | O49: 1 | S49: 1 | AH49: Income Bands | AK49: Marginal Tax Rate | AM49: Maximum Tax | AO49: Marginal Gross-up Rate | AQ49: After Tax Income
AH50: Min | AI50: Max
AH51: ='Calculator Parameters'!B29 -> 0 | AI51: ='Calculator Parameters'!C29 -> 15600 | AK51: ='Calculator Parameters'!D29 -> 0.105 | AM51: =AI51*AK51 -> 1638 | AO51: =1/(1-AK51) -> 1.117318436 | AQ51: =AI51-AM51 -> 13962
AH52: ='Calculator Parameters'!B30 -> 15600.01 | AI52: ='Calculator Parameters'!C30 -> 53500 | AK52: ='Calculator Parameters'!D30 -> 0.175 | AM52: =AM51+(AI52-AI51)*AK52 -> 8270.5 | AO52: =1/(1-AK52) -> 1.212121212 | AQ52: =AI52-AM52 -> 45229.5
AH53: ='Calculator Parameters'!B31 -> 53500.01 | AI53: ='Calculator Parameters'!C31 -> 78100 | AK53: ='Calculator Parameters'!D31 -> 0.3 | AM53: =AM52+(AI53-AI52)*AK53 -> 15650.5 | AO53: =1/(1-AK53) -> 1.428571429 | AQ53: =AI53-AM53 -> 62449.5
AH54: ='Calculator Parameters'!B32 -> 78100.01 | AI54: ='Calculator Parameters'!C32 -> 180000 | AK54: ='Calculator Parameters'!D32 -> 0.33 | AM54: =AM53+(AI54-AI53)*AK54 -> 49277.5 | AO54: =1/(1-AK54) -> 1.492537313 | AQ54: =AI54-AM54 -> 130722.5
AH55: ='Calculator Parameters'!B33 -> 180000.01 | AK55: ='Calculator Parameters'!D33 -> 0.39 | AO55: =1/(1-AK55) -> 1.639344262
AI57: ACC = GI * ACC Rate OR ACC = Max ACC Levy
AI58: Tax = (GI - Thresh) * Marginal Tax Rate + TaxStep
AI59: NI = GI - (GI - Thresh) * Marginal Tax Rate - TaxStep - GI * ACC Rate | AR59: OR | AS59: NI = GI - (GI - Thresh) * Marginal Tax Rate - TaxStep - Max ACC Levy
AI60: ACC = GI * ACC Rate OR ACC = Max ACC Levy
AI61: Tax = (GI - Thresh) * Marginal Tax Rate + TaxStep
AI62: NI = GI - (GI - Thresh) * Marginal Tax Rate - TaxStep - GI * ACC Rate | AR62: OR | AS62: NI = GI - (GI - Thresh) * Marginal Tax Rate - TaxStep - Max ACC Levy
AI63: ACC = GI * ACC Rate OR ACC = Max ACC Levy
G64: Applicant 1 | K64: Applicant 2 | O64: Applicant 3 | S64: Applicant 4 | W64: Total | AI64: Tax = (GI - Thresh) * Marginal Tax Rate + TaxStep
B65: Annual Financial A/c addbacks | G65: ='NSR Calculator'!Y66 -> 0 | K65: ='NSR Calculator'!AD66 -> 0 | O65: 0 | S65: 0 | W65: =SUM(G65:S65) -> 0 | AI65: NI = GI - (GI - Thresh) * Marginal Tax Rate - TaxStep - GI * ACC Rate | AR65: OR | AS65: NI = GI - (GI - Thresh) * Marginal Tax Rate - TaxStep - Max ACC Levy
B66: Annual Other Assistance Payments | G66: ='NSR Calculator'!Y68 -> 0 | K66: ='NSR Calculator'!AD68 -> 0 | O66: 0 | S66: 0 | W66: =SUM(G66:S66) -> 0 | AI66: ACC = GI * ACC Rate OR ACC = Max ACC Levy
B67: Student Loan Balance | G67: ='NSR Calculator'!Y72 -> 0 | K67: ='NSR Calculator'!AD72 -> 0 | O67: 0 | S67: 0 | W67: 0 | AI67: Tax = (GI - Thresh) * Marginal Tax Rate + TaxStep
AI68: NI = GI - (GI - Thresh) * Marginal Tax Rate - TaxStep - GI * ACC Rate | AR68: OR | AS68: NI = GI - (GI - Thresh) * Marginal Tax Rate - TaxStep - Max ACC Levy
AI69: (NI + TaxStep - Thresh * Marginal Tax Rate) = GI - GI * Marginal Tax Rate - GI * ACC Rate | AR69: OR | AS69: (NI + TaxStep - Thresh * Marginal Tax Rate + Max ACC Levy) = GI - GI * Marginal Tax Rate
AI70: (NI + TaxStep - Thresh * Marginal Tax Rate)/(1 -Marginal Tax Rate - ACC Rate) = GI | AR70: OR | AS70: (NI + TaxStep - Thresh * Marginal Tax Rate + Max ACC Levy)/(1 -Marginal Tax Rate) = GI
B73: Income (excluding rentals) after tax annual and monthly
G74: Annual | H74: Annual | I74: Annual | K74: Annual | L74: Annual | M74: Annual | O74: Annual | P74: Annual | Q74: Annual | S74: Annual | T74: Annual | U74: Annual
B75: Order | G75: Gross (Pre-Tax & Pre-ACC) | H75: TaxAccKS | I75: Post-Tax & Post-ACC | K75: Gross (Pre-Tax & Pre-ACC) | L75: TaxAccKS | M75: Post-Tax & Post-ACC | O75: Gross (Pre-Tax & Pre-ACC) | P75: TaxAccKS | Q75: Post-Tax & Post-ACC | S75: Gross (Pre-Tax & Pre-ACC) | T75: TaxAccKS | U75: Post-Tax & Post-ACC | X75: Tax1 | Y75: Lev1 | Z75: =IF(G67>0,TRUE,FALSE) -> FALSE | AA75: SL1 | AC75: KS1 | AD75: Tax2 | AE75: Lev2 | AF75: =IF(K67>0,TRUE,FALSE) -> FALSE | AG75: SL2 | AI75: KS2 | AJ75: Tax3 | AK75: Lev3 | AL75: =IF(O67>0,TRUE,FALSE) -> FALSE | AM75: SL3 | AO75: KS3 | AP75: Tax4 | AQ75: Lev4 | AR75: =IF(S67>0,TRUE,FALSE) -> FALSE | AU75: KS4
B77: 1 | C77: Salary or Wages | G77: =IF(H19=$AH$16,INDEX($AH$9:$AK$13,G18,4)*I18,0) -> 0 | H77: =X77+Y77 -> 0 | I77: =G77-H77 -> 0 | K77: =IF(L19=$AH$16,INDEX($AH$9:$AK$13,K18,4)*M18,0) -> 0 | L77: =AD77+AE77 -> 0 | M77: =K77-L77 -> 0 | O77: =IF(P19=$AH$16,INDEX($AH$9:$AK$13,O18,4)*Q18,0) -> 0 | P77: =AJ77+AK77 -> 0 | Q77: =O77-P77 -> 0 | S77: =IF(T19=$AH$16,INDEX($AH$9:$AK$13,S18,4)*U18,0) -> 0 | T77: =AP77+AQ77 -> 0 | U77: =S77-T77 -> 0 | X77: =IF(G77>$AI$54,(G77-$AI$54)*$AK$55+$AM$54,IF(G77>$AI$53,(G77-$AI$53)*$AK$54+$AM$53,IF(G77 > $AI$52,(G77-$AI$52)*$AK$53+$AM$52,IF(G77>$AI$51,(G77-$AI$51)*$AK$52+$AM$51,IF(G77>0,G77*$AK$51,0))))) -> 0 | Y77: =IF(G77>$AO$44,$AM$44,IF(G77>0,G77*$AK$44,0)) -> 0 | Z77: =$Z$75 -> FALSE | AA77: =IF(Z77,IF(G77>$AK$30,(G77-$AK$30)*$AL$30,0),0) -> 0 | AB77: ='NSR Calculator'!AA27 -> 0 | AC77: =IF(OR(G77=0,AB77=0),0,G77*AB77) -> 0 | AD77: =IF(K77>$AI$54,(K77-$AI$54)*$AK$55+$AM$54,IF(K77>$AI$53,(K77-$AI$53)*$AK$54+$AM$53,IF(K77 > $AI$52,(K77-$AI$52)*$AK$53+$AM$52,IF(K77>$AI$51,(K77-$AI$51)*$AK$52+$AM$51,IF(K77>0,K77*$AK$51,0))))) -> 0 | AE77: =IF(K77>$AO$44,$AM$44,IF(K77>0,K77*$AK$44,0)) -> 0 | AF77: =$AF$75 -> FALSE | AG77: =IF(AF77,IF(K77>$AK$30,(K77-$AK$30)*$AL$30,0),0) -> 0 | AH77: ='NSR Calculator'!AF27 -> 0 | AI77: =IF(OR(K77=0,AH77=0),0,K77*AH77) -> 0 | AJ77: =IF(O77>$AI$54,(O77-$AI$54)*$AK$55+$AM$54,IF(O77>$AI$53,(O77-$AI$53)*$AK$54+$AM$53,IF(O77 > $AI$52,(O77-$AI$52)*$AK$53+$AM$52,IF(O77>$AI$51,(O77-$AI$51)*$AK$52+$AM$51,IF(O77>0,O77*$AK$51,0))))) -> 0 | AK77: =IF(O77>$AO$44,$AM$44,IF(O77>0,O77*$AK$44,0)) -> 0 | AL77: =$AL$75 -> FALSE | AM77: =IF(AL77,IF(O77>$AK$30,(O77-$AK$30)*$AL$30,0),0) -> 0 | AN77: 0 | AO77: =IF(OR(O77=0,AN77=0),0,O77*AN77) -> 0 | AP77: =IF(S77>$AI$54,(S77-$AI$54)*$AK$55+$AM$54,IF(S77>$AI$53,(S77-$AI$53)*$AK$54+$AM$53,IF(S77 > $AI$52,(S77-$AI$52)*$AK$53+$AM$52,IF(S77>$AI$51,(S77-$AI$51)*$AK$52+$AM$51,IF(S77>0,S77*$AK$51,0))))) -> 0 | AQ77: =IF(S77>$AO$44,$AM$44,IF(S77>0,S77*$AK$44,0)) -> 0 | AR77: =$AR$75 -> FALSE | AU77: =IF(OR(S77=0,AT77=0),0,S77*AT77) -> 0
G78: =IF(I78<=$AQ$51,I78/(1-$AK$51-$AK$44),IF(I78<=$AQ$52,(I78+$AM$51-$AI$51*$AK$52)/(1-$AK$52-$AK$44),IF(I78<=$AQ$53,(I78+$AM$52-$AI$52*$AK$53)/(1-$AK$53-$AK$44),IF(I78<=$AQ$54,(I78+$AM$53-$AI$53*$AK$54)/(1-$AK$54-$AK$44),IF(I78<=$AS$44,(I78+$AM$54-$AI$54*$AK$55)/(1-$AK$55-$AK$44),IF(I78>$AS$44,(I78+$AM$44+$AM$54-$AI$54*$AK$55)/(1-$AK$55))))))) -> 0 | H78: =X78+Y78 -> 0 | I78: =IF(H19=$AH$17,INDEX($AH$9:$AK$13,G18,4)*I18,0) -> 0 | K78: =IF(M78<=$AQ$51,M78/(1-$AK$51-$AK$44),IF(M78<=$AQ$52,(M78+$AM$51-$AI$51*$AK$52)/(1-$AK$52-$AK$44),IF(M78<=$AQ$53,(M78+$AM$52-$AI$52*$AK$53)/(1-$AK$53-$AK$44),IF(M78<=$AQ$54,(M78+$AM$53-$AI$53*$AK$54)/(1-$AK$54-$AK$44),IF(M78<=$AS$44,(M78+$AM$54-$AI$54*$AK$55)/(1-$AK$55-$AK$44),IF(M78>$AS$44,(M78+$AM$44+$AM$54-$AI$54*$AK$55)/(1-$AK$55))))))) -> 0 | L78: =AD78+AE78 -> 0 | M78: =IF(L19=$AH$17,INDEX($AH$9:$AK$13,K18,4)*M18,0) -> 0 | O78: =IF(Q78<=$AQ$51,Q78/(1-$AK$51-$AK$44),IF(Q78<=$AQ$52,(Q78+$AM$51-$AI$51*$AK$52)/(1-$AK$52-$AK$44),IF(Q78<=$AQ$53,(Q78+$AM$52-$AI$52*$AK$53)/(1-$AK$53-$AK$44),IF(Q78<=$AQ$54,(Q78+$AM$53-$AI$53*$AK$54)/(1-$AK$54-$AK$44),IF(Q78<=$AS$44,(Q78+$AM$54-$AI$54*$AK$55)/(1-$AK$55-$AK$44),IF(Q78>$AS$44,(Q78+$AM$44+$AM$54-$AI$54*$AK$55)/(1-$AK$55))))))) -> 0 | P78: =AJ78+AK78 -> 0 | Q78: =IF(P19=$AH$17,INDEX($AH$9:$AK$13,O18,4)*Q18,0) -> 0 | S78: =IF(U78<=$AQ$51,U78/(1-$AK$51-$AK$44),IF(U78<=$AQ$52,(U78+$AM$51-$AI$51*$AK$52)/(1-$AK$52-$AK$44),IF(U78<=$AQ$53,(U78+$AM$52-$AI$52*$AK$53)/(1-$AK$53-$AK$44),IF(U78<=$AQ$54,(U78+$AM$53-$AI$53*$AK$54)/(1-$AK$54-$AK$44),IF(U78<=$AS$44,(U78+$AM$54-$AI$54*$AK$55)/(1-$AK$55-$AK$44),IF(U78>$AS$44,(U78+$AM$44+$AM$54-$AI$54*$AK$55)/(1-$AK$55))))))) -> 0 | T78: =AP78+AQ78 -> 0 | U78: =IF(T19=$AH$17,INDEX($AH$9:$AK$13,S18,4)*U18,0) -> 0 | X78: =G78-I78-Y78 -> 0 | Y78: =IF(G78>$AO$44,$AM$44,IF(G78>0,G78*$AK$44,0)) -> 0 | AA78: =IF(Z77,IF(G78>$AK$30,(G78-$AK$30)*$AL$30,0),0) -> 0 | AB78: =IF(AB77>0,IF(AB77<0.03,1,0),0) -> 0 | AC78: =IF(OR(G78=0,AB77=0),0,G78*AB77) -> 0 | AD78: =K78-M78-AE78 -> 0 | AE78: =IF(K78>$AO$44,$AM$44,IF(K78>0,K78*$AK$44,0)) -> 0 | AG78: =IF(AF77,IF(K78>$AK$30,(K78-$AK$30)*$AL$30,0),0) -> 0 | AH78: =IF(AH77>0,IF(AH77<0.03,1,0),0) -> 0 | AI78: =IF(OR(K78=0,AH77=0),0,K78*AH77) -> 0 | AJ78: =O78-Q78-AK78 -> 0 | AK78: =IF(O78>$AO$44,$AM$44,IF(O78>0,O78*$AK$44,0)) -> 0 | AM78: =IF(AL77,IF(O78>$AK$30,(O78-$AK$30)*$AL$30,0),0) -> 0 | AN78: =IF(AN77>0,IF(AN77<0.03,1,0),0) -> 0 | AO78: =IF(OR(O78=0,AN77=0),0,O78*AN77) -> 0 | AP78: =S78-U78-AQ78 -> 0 | AQ78: =IF(S78>$AO$44,$AM$44,IF(S78>0,S78*$AK$44,0)) -> 0 | AU78: =IF(OR(S78=0,AT77=0),0,S78*AT77) -> 0
G79: =MAX(G77:G78) -> 0 | H79: =MAX(H77:H78) -> 0 | I79: =MAX(I77:I78) -> 0 | J79: =K79-AG79-AI79 -> 0 | K79: =MAX(K77:K78) -> 0 | L79: =MAX(L77:L78) -> 0 | M79: =MAX(M77:M78) -> 0 | N79: =O79-AM79-AO79 -> 0 | O79: =MAX(O77:O78) -> 0 | P79: =MAX(P77:P78) -> 0 | Q79: =MAX(Q77:Q78) -> 0 | R79: =S79-AS79-AU79 -> 0 | S79: =MAX(S77:S78) -> 0 | T79: =MAX(T77:T78) -> 0 | U79: =MAX(U77:U78) -> 0 | X79: =MAX(X77:X78) -> 0 | Y79: =MAX(Y77:Y78) -> 0 | AA79: =MAX(AA77:AA78) -> 0 | AC79: =MAX(AC77:AC78) -> 0 | AD79: =MAX(AD77:AD78) -> 0 | AE79: 0 | AG79: =MAX(AG77:AG78) -> 0 | AI79: 0 | AJ79: 0 | AK79: 0 | AM79: =MAX(AM77:AM78) -> 0 | AO79: 0 | AP79: 0 | AQ79: 0 | AU79: =MAX(AU77:AU78) -> 0
B80: 2 | C80: Self-employed | F80: =G80-G$79 -> 0 | G80: =IF(H22=$AH$16,INDEX($AH$9:$AK$13,G21,4)*I21+G79,0) -> 0 | H80: =X80+Y80 -> 0 | I80: =G80-H80 -> 0 | J80: =K80-K$79 -> 0 | K80: =IF(L22=$AH$16,INDEX($AH$9:$AK$13,K21,4)*M21+K79,0) -> 0 | L80: =AD80+AE80 -> 0 | M80: =K80-L80 -> 0 | N80: =O80-O$79 -> 0 | O80: =IF(P22=$AH$16,INDEX($AH$9:$AK$13,O21,4)*Q21+O79,0) -> 0 | P80: =AJ80+AK80 -> 0 | Q80: =O80-P80 -> 0 | R80: =S80-S$79 -> 0 | S80: =IF(T22=$AH$16,INDEX($AH$9:$AK$13,S21,4)*U21+S79,0) -> 0 | T80: =AP80+AQ80 -> 0 | U80: =S80-T80 -> 0 | X80: =IF(G80>$AI$54,(G80-$AI$54)*$AK$55+$AM$54,IF(G80>$AI$53,(G80-$AI$53)*$AK$54+$AM$53,IF(G80 > $AI$52,(G80-$AI$52)*$AK$53+$AM$52,IF(G80>$AI$51,(G80-$AI$51)*$AK$52+$AM$51,IF(G80>0,G80*$AK$51,0))))) -> 0 | Y80: =Y79 -> 0 | Z80: =$Z$75 -> FALSE | AA80: =IF(Z80,IF(G80>$AK$30,(G80-$AK$30)*$AL$30,0),AA79) -> 0 | AB80: ='NSR Calculator'!AA30 -> 0 | AC80: =IF(OR(G80=0,AB80=0),0,(G80-G79)*AB80) -> 0 | AD80: =IF(K80>$AI$54,(K80-$AI$54)*$AK$55+$AM$54,IF(K80>$AI$53,(K80-$AI$53)*$AK$54+$AM$53,IF(K80 > $AI$52,(K80-$AI$52)*$AK$53+$AM$52,IF(K80>$AI$51,(K80-$AI$51)*$AK$52+$AM$51,IF(K80>0,K80*$AK$51,0))))) -> 0 | AE80: =AE79 -> 0 | AF80: =$AF$75 -> FALSE | AG80: =IF(AF80,IF(K80>$AK$30,(K80-$AK$30)*$AL$30,0),AG79) -> 0 | AH80: ='NSR Calculator'!AF30 -> 0 | AI80: =IF(OR(K80=0,AH80=0),0,(K80-K79)*AH80) -> 0 | AJ80: =IF(O80>$AI$54,(O80-$AI$54)*$AK$55+$AM$54,IF(O80>$AI$53,(O80-$AI$53)*$AK$54+$AM$53,IF(O80 > $AI$52,(O80-$AI$52)*$AK$53+$AM$52,IF(O80>$AI$51,(O80-$AI$51)*$AK$52+$AM$51,IF(O80>0,O80*$AK$51,0))))) -> 0 | AK80: =AK79 -> 0 | AL80: =$AL$75 -> FALSE | AM80: =IF(AL80,IF(O80>$AK$30,(O80-$AK$30)*$AL$30,0),AM79) -> 0 | AN80: 0 | AO80: =IF(OR(O80=0,AN80=0),0,(O80-O79)*AN80) -> 0 | AP80: =IF(S80>$AI$54,(S80-$AI$54)*$AK$55+$AM$54,IF(S80>$AI$53,(S80-$AI$53)*$AK$54+$AM$53,IF(S80 > $AI$52,(S80-$AI$52)*$AK$53+$AM$52,IF(S80>$AI$51,(S80-$AI$51)*$AK$52+$AM$51,IF(S80>0,S80*$AK$51,0))))) -> 0 | AQ80: =AQ79 -> 0 | AR80: =$AR$75 -> FALSE | AU80: =IF(OR(S80=0,AT80=0),0,(S80-S79)*AT80) -> 0
F81: =G81-G$79 -> 0 | G81: =IF(I81<=$AQ$51,I81/(1-$AK$51-$AK$45),IF(I81<=$AQ$52,(I81+$AM$51-$AI$51*$AK$52)/(1-$AK$52-$AK$45),IF(I81<=$AQ$53,(I81+$AM$52-$AI$52*$AK$53)/(1-$AK$53-$AK$45),IF(I81<=$AQ$54,(I81+$AM$53-$AI$53*$AK$54)/(1-$AK$54-$AK$45),IF(I81<=$AS$45,(I81+$AM$54-$AI$54*$AK$55)/(1-$AK$55-$AK$45),IF(I81>$AS$45,(I81+$AM$45+$AM$54-$AI$54*$AK$55)/(1-$AK$55))))))) -> 0 | H81: =X81+Y81 -> 0 | I81: =IF(H22=$AH$17,INDEX($AH$9:$AK$13,G21,4)*I21+I79,0) -> 0 | J81: =K81-K$79 -> 0 | K81: =IF(M81<=$AQ$51,M81/(1-$AK$51-$AK$45),IF(M81<=$AQ$52,(M81+$AM$51-$AI$51*$AK$52)/(1-$AK$52-$AK$45),IF(M81<=$AQ$53,(M81+$AM$52-$AI$52*$AK$53)/(1-$AK$53-$AK$45),IF(M81<=$AQ$54,(M81+$AM$53-$AI$53*$AK$54)/(1-$AK$54-$AK$45),IF(M81<=$AS$45,(M81+$AM$54-$AI$54*$AK$55)/(1-$AK$55-$AK$45),IF(M81>$AS$45,(M81+$AM$45+$AM$54-$AI$54*$AK$55)/(1-$AK$55))))))) -> 0 | L81: =AD81+AE81 -> 0 | M81: =IF(L22=$AH$17,INDEX($AH$9:$AK$13,K21,4)*M21+M79,0) -> 0 | N81: =O81-O$79 -> 0 | O81: =IF(Q81<=$AQ$51,Q81/(1-$AK$51-$AK$45),IF(Q81<=$AQ$52,(Q81+$AM$51-$AI$51*$AK$52)/(1-$AK$52-$AK$45),IF(Q81<=$AQ$53,(Q81+$AM$52-$AI$52*$AK$53)/(1-$AK$53-$AK$45),IF(Q81<=$AQ$54,(Q81+$AM$53-$AI$53*$AK$54)/(1-$AK$54-$AK$45),IF(Q81<=$AS$45,(Q81+$AM$54-$AI$54*$AK$55)/(1-$AK$55-$AK$45),IF(Q81>$AS$45,(Q81+$AM$45+$AM$54-$AI$54*$AK$55)/(1-$AK$55))))))) -> 0 | P81: =AJ81+AK81 -> 0 | Q81: =IF(P22=$AH$17,INDEX($AH$9:$AK$13,O21,4)*Q21+Q79,0) -> 0 | R81: =S81-S$79 -> 0 | S81: =IF(U81<=$AQ$51,U81/(1-$AK$51-$AK$45),IF(U81<=$AQ$52,(U81+$AM$51-$AI$51*$AK$52)/(1-$AK$52-$AK$45),IF(U81<=$AQ$53,(U81+$AM$52-$AI$52*$AK$53)/(1-$AK$53-$AK$45),IF(U81<=$AQ$54,(U81+$AM$53-$AI$53*$AK$54)/(1-$AK$54-$AK$45),IF(U81<=$AS$45,(U81+$AM$54-$AI$54*$AK$55)/(1-$AK$55-$AK$45),IF(U81>$AS$45,(U81+$AM$45+$AM$54-$AI$54*$AK$55)/(1-$AK$55))))))) -> 0 | T81: =AP81+AQ81 -> 0 | U81: =IF(T22=$AH$17,INDEX($AH$9:$AK$13,S21,4)*U21+U79,0) -> 0 | X81: =G81-I81-Y81 -> 0 | Y81: =Y79 -> 0 | AA81: =IF(Z80,IF(G81>$AK$30,(G81-$AK$30)*$AL$30,0),AA79) -> 0 | AB81: =IF(AB80>0,IF(AB80<0.03,1,0),0) -> 0 | AC81: =IF(OR(G81=0,AB80=0),0,(G81-G79)*AB80) -> 0 | AD81: =K81-M81-AE81 -> 0 | AE81: =AE79 -> 0 | AG81: =IF(AF80,IF(K81>$AK$30,(K91-$AK$30)*$AL$30,0),AG79) -> 0 | AH81: =IF(AH80>0,IF(AH80<0.03,1,0),0) -> 0 | AI81: =IF(OR(K81=0,AH80=0),0,(K81-K79)*AH80) -> 0 | AJ81: =O81-Q81-AK81 -> 0 | AK81: =AK79 -> 0 | AM81: =IF(AL80,IF(O81>$AK$30,(O81-$AK$30)*$AL$30,0),AM79) -> 0 | AN81: =IF(AN80>0,IF(AN80<0.03,1,0),0) -> 0 | AO81: =IF(OR(O81=0,AN80=0),0,(O81-O79)*AN80) -> 0 | AP81: =S81-U81-AQ81 -> 0 | AQ81: =AQ79 -> 0 | AU81: =IF(OR(S81=0,AT80=0),0,(S81-S79)*AT80) -> 0
F82: =MAX(F80:F81) -> 0 | G82: 0 | H82: =MAX(H80:H81) -> 0 | I82: 0 | J82: 0 | K82: 0 | L82: =MAX(L80:L81) -> 0 | M82: 0 | N82: 0 | O82: 0 | P82: =MAX(P80:P81) -> 0 | Q82: 0 | R82: 0 | S82: =MAX(S80:S81) -> 0 | T82: =MAX(T80:T81) -> 0 | U82: 0 | X82: =MAX(X80:X81) -> 0 | Y82: 0 | AA82: =MAX(AA80:AA81) -> 0 | AC82: =MAX(AC80:AC81)+AC79 -> 0 | AD82: =MAX(AD80:AD81) -> 0 | AE82: 0 | AG82: =MAX(AG80:AG81) -> 0 | AI82: =MAX(AI80:AI81)+AI79 -> 0 | AJ82: 0 | AK82: 0 | AM82: =MAX(AM80:AM81) -> 0 | AO82: =MAX(AO80:AO81)+AO79 -> 0 | AP82: 0 | AQ82: 0 | AU82: =MAX(AU80:AU81)+AU79 -> 0
B83: 3 | C83: Overtime | G83: =IF(H25=$AH$16,INDEX($AH$9:$AK$13,G24,4)*I24+G82,0) -> 0 | H83: =X83+Y83 -> 0 | I83: =G83-H83 -> 0 | J83: =K82-AG82-AI82 -> 0 | K83: =IF(L25=$AH$16,INDEX($AH$9:$AK$13,K24,4)*M24+K82,0) -> 0 | L83: =AD83+AE83 -> 0 | M83: =K83-L83 -> 0 | N83: =O82-AM82-AO82 -> 0 | O83: =IF(P25=$AH$16,INDEX($AH$9:$AK$13,O24,4)*Q24+O82,0) -> 0 | P83: =AJ83+AK83 -> 0 | Q83: =O83-P83 -> 0 | R83: =S82-AS82-AU82 -> 0 | S83: =IF(T25=$AH$16,INDEX($AH$9:$AK$13,S24,4)*U24+S82,0) -> 0 | T83: =AP83+AQ83 -> 0 | U83: =S83-T83 -> 0 | X83: =IF(G83>$AI$54,(G83-$AI$54)*$AK$55+$AM$54,IF(G83>$AI$53,(G83-$AI$53)*$AK$54+$AM$53,IF(G83 > $AI$52,(G83-$AI$52)*$AK$53+$AM$52,IF(G83>$AI$51,(G83-$AI$51)*$AK$52+$AM$51,IF(G83>0,G83*$AK$51,0))))) -> 0 | Y83: =IF((G83-$F$82)>$AO$44,$AM$44,IF((G83-G82)>0,(G83-$F$82)*$AK$44,Y82)) -> 0 | Z83: =$Z$75 -> FALSE | AA83: =IF(Z83,IF(G83>$AK$30,(G83-$AK$30)*$AL$30,0),AA82) -> 0 | AB83: ='NSR Calculator'!AA33 -> 0 | AC83: =IF(OR(G83=0,AB83=0),0,(G83-G82)*AB83) -> 0 | AD83: =IF(K83>$AI$54,(K83-$AI$54)*$AK$55+$AM$54,IF(K83>$AI$53,(K83-$AI$53)*$AK$54+$AM$53,IF(K83 > $AI$52,(K83-$AI$52)*$AK$53+$AM$52,IF(K83>$AI$51,(K83-$AI$51)*$AK$52+$AM$51,IF(K83>0,K83*$AK$51,0))))) -> 0 | AE83: =IF((K83-$J$82)>$AO$44,$AM$44,IF((K83-K82)>0,(K83-$J$82)*$AK$44,AE82)) -> 0 | AF83: =$AF$75 -> FALSE | AG83: =IF(AF83,IF(K83>$AK$30,(K83-$AK$30)*$AL$30,0),AG82) -> 0 | AH83: ='NSR Calculator'!AF33 -> 0 | AI83: =IF(OR(K83=0,AH83=0),0,(K83-K82)*AH83) -> 0 | AJ83: =IF(O83>$AI$54,(O83-$AI$54)*$AK$55+$AM$54,IF(O83>$AI$53,(O83-$AI$53)*$AK$54+$AM$53,IF(O83 > $AI$52,(O83-$AI$52)*$AK$53+$AM$52,IF(O83>$AI$51,(O83-$AI$51)*$AK$52+$AM$51,IF(O83>0,O83*$AK$51,0))))) -> 0 | AK83: =IF((O83-$N$82)>$AO$44,$AM$44,IF((O83-O82)>0,(O83-$N$82)*$AK$44,AK82)) -> 0 | AL83: =$AL$75 -> FALSE | AM83: =IF(AL83,IF(O83>$AK$30,(O83-$AK$30)*$AL$30,0),AM82) -> 0 | AN83: 0 | AO83: =IF(OR(O83=0,AN83=0),0,(O83-O82)*AN83) -> 0 | AP83: =IF(S83>$AI$54,(S83-$AI$54)*$AK$55+$AM$54,IF(S83>$AI$53,(S83-$AI$53)*$AK$54+$AM$53,IF(S83 > $AI$52,(S83-$AI$52)*$AK$53+$AM$52,IF(S83>$AI$51,(S83-$AI$51)*$AK$52+$AM$51,IF(S83>0,S83*$AK$51,0))))) -> 0 | AQ83: =IF((S83-$R$82)>$AO$44,$AM$44,IF((S83-S82)>0,(S83-$R$82)*$AK$44,AQ82)) -> 0 | AR83: =$AR$75 -> FALSE | AU83: =IF(OR(S83=0,AT83=0),0,(S83-S82)*AT83) -> 0
G84: =IF(I84<=$AQ$51,I84/(1-$AK$51-$AK$44),IF(I84<=$AQ$52,(I84+$AM$51-$AI$51*$AK$52)/(1-$AK$52-$AK$44),IF(I84<=$AQ$53,(I84+$AM$52-$AI$52*$AK$53)/(1-$AK$53-$AK$44),IF(I84<=$AQ$54,(I84+$AM$53-$AI$53*$AK$54)/(1-$AK$54-$AK$44),IF(I84<=$AS$44,(I84+$AM$54-$AI$54*$AK$55)/(1-$AK$55-$AK$44),IF(I84>$AS$44,(I84+$AM$44+$AM$54-$AI$54*$AK$55)/(1-$AK$55))))))) -> 0 | H84: =X84+Y84 -> 0 | I84: =IF(H25=$AH$17,INDEX($AH$9:$AK$13,G24,4)*I24+I82,0) -> 0 | K84: =IF(M84<=$AQ$51,M84/(1-$AK$51-$AK$44),IF(M84<=$AQ$52,(M84+$AM$51-$AI$51*$AK$52)/(1-$AK$52-$AK$44),IF(M84<=$AQ$53,(M84+$AM$52-$AI$52*$AK$53)/(1-$AK$53-$AK$44),IF(M84<=$AQ$54,(M84+$AM$53-$AI$53*$AK$54)/(1-$AK$54-$AK$44),IF(M84<=$AS$44,(M84+$AM$54-$AI$54*$AK$55)/(1-$AK$55-$AK$44),IF(M84>$AS$44,(M84+$AM$44+$AM$54-$AI$54*$AK$55)/(1-$AK$55))))))) -> 0 | L84: =AD84+AE84 -> 0 | M84: =IF(L25=$AH$17,INDEX($AH$9:$AK$13,K24,4)*M24+M82,0) -> 0 | O84: =IF(Q84<=$AQ$51,Q84/(1-$AK$51-$AK$44),IF(Q84<=$AQ$52,(Q84+$AM$51-$AI$51*$AK$52)/(1-$AK$52-$AK$44),IF(Q84<=$AQ$53,(Q84+$AM$52-$AI$52*$AK$53)/(1-$AK$53-$AK$44),IF(Q84<=$AQ$54,(Q84+$AM$53-$AI$53*$AK$54)/(1-$AK$54-$AK$44),IF(Q84<=$AS$44,(Q84+$AM$54-$AI$54*$AK$55)/(1-$AK$55-$AK$44),IF(Q84>$AS$44,(Q84+$AM$44+$AM$54-$AI$54*$AK$55)/(1-$AK$55))))))) -> 0 | P84: =AJ84+AK84 -> 0 | Q84: =IF(P25=$AH$17,INDEX($AH$9:$AK$13,O24,4)*Q24+Q82,0) -> 0 | S84: =IF(U84<=$AQ$51,U84/(1-$AK$51-$AK$44),IF(U84<=$AQ$52,(U84+$AM$51-$AI$51*$AK$52)/(1-$AK$52-$AK$44),IF(U84<=$AQ$53,(U84+$AM$52-$AI$52*$AK$53)/(1-$AK$53-$AK$44),IF(U84<=$AQ$54,(U84+$AM$53-$AI$53*$AK$54)/(1-$AK$54-$AK$44),IF(U84<=$AS$44,(U84+$AM$54-$AI$54*$AK$55)/(1-$AK$55-$AK$44),IF(U84>$AS$44,(U84+$AM$44+$AM$54-$AI$54*$AK$55)/(1-$AK$55))))))) -> 0 | T84: =AP84+AQ84 -> 0 | U84: =IF(T25=$AH$17,INDEX($AH$9:$AK$13,S24,4)*U24+U82,0) -> 0 | X84: =G84-I84-Y84 -> 0 | Y84: =IF((G84-$F$82)>$AO$44,$AM$44,IF((G84-G82)>0,(G84-$F$82)*$AK$44,Y82)) -> 0 | AA84: =IF(Z83,IF(G84>$AK$30,(G84-$AK$30)*$AL$30,0),AA82) -> 0 | AB84: =IF(AB83>0,IF(AB83<0.03,1,0),0) -> 0 | AC84: =IF(OR(G84=0,AB83=0),0,(G84-G82)*AB83) -> 0 | AD84: =K84-M84-AE84 -> 0 | AE84: =IF((K84-$J$82)>$AO$44,$AM$44,IF((K84-K82)>0,(K84-$J$82)*$AK$44,AE82)) -> 0 | AG84: =IF(AF83,IF(K84>$AK$30,(K84-$AK$30)*$AL$30,0),AG82) -> 0 | AH84: =IF(AH83>0,IF(AH83<0.03,1,0),0) -> 0 | AI84: =IF(OR(K84=0,AH83=0),0,(K84-K82)*AH83) -> 0 | AJ84: =O84-Q84-AK84 -> 0 | AK84: =IF((O84-$N$82)>$AO$44,$AM$44,IF((O84-O82)>0,(O84-$N$82)*$AK$44,AK82)) -> 0 | AM84: =IF(AL83,IF(O84>$AK$30,(O84-$AK$30)*$AL$30,0),AM82) -> 0 | AN84: =IF(AN83>0,IF(AN83<0.03,1,0),0) -> 0 | AO84: =IF(OR(O84=0,AN83=0),0,(O84-O82)*AN83) -> 0 | AP84: =S84-U84-AQ84 -> 0 | AQ84: =IF((S84-$R$82)>$AO$44,$AM$44,IF((S84-S82)>0,(S84-$R$82)*$AK$44,AQ82)) -> 0 | AU84: =IF(OR(S84=0,AT83=0),0,(S84-S82)*AT83) -> 0
G85: =MAX(G83:G84) -> 0 | H85: =MAX(H83:H84) -> 0 | I85: =MAX(I83:I84) -> 0 | K85: =MAX(K83:K84) -> 0 | L85: =MAX(L83:L84) -> 0 | M85: =MAX(M83:M84) -> 0 | O85: =MAX(O83:O84) -> 0 | P85: =MAX(P83:P84) -> 0 | Q85: =MAX(Q83:Q84) -> 0 | S85: =MAX(S83:S84) -> 0 | T85: =MAX(T83:T84) -> 0 | U85: =MAX(U83:U84) -> 0 | X85: =MAX(X83:X84) -> 0 | Y85: =MAX(Y83:Y84) -> 0 | AA85: =MAX(AA83:AA84) -> 0 | AC85: =MAX(AC83:AC84)+AC82 -> 0 | AD85: =MAX(AD83:AD84) -> 0 | AE85: 0 | AG85: =MAX(AG83:AG84) -> 0 | AI85: =MAX(AI83:AI84)+AI82 -> 0 | AJ85: 0 | AK85: 0 | AM85: =MAX(AM83:AM84) -> 0 | AO85: =MAX(AO83:AO84)+AO82 -> 0 | AP85: 0 | AQ85: 0 | AU85: =MAX(AU83:AU84)+AU82 -> 0
B86: 4 | C86: Bonus | G86: =IF(H28=$AH$16,INDEX($AH$9:$AK$13,G27,4)*I27+G85,0) -> 0 | H86: =X86+Y86 -> 0 | I86: =G86-H86 -> 0 | K86: =IF(L28=$AH$16,INDEX($AH$9:$AK$13,K27,4)*M27+K85,0) -> 0 | L86: =AD86+AE86 -> 0 | M86: =K86-L86 -> 0 | O86: =IF(P28=$AH$16,INDEX($AH$9:$AK$13,O27,4)*Q27+O85,0) -> 0 | P86: =AJ86+AK86 -> 0 | Q86: =O86-P86 -> 0 | S86: =IF(T28=$AH$16,INDEX($AH$9:$AK$13,S27,4)*U27+S85,0) -> 0 | T86: =AP86+AQ86 -> 0 | U86: =S86-T86 -> 0 | X86: =IF(G86>$AI$54,(G86-$AI$54)*$AK$55+$AM$54,IF(G86>$AI$53,(G86-$AI$53)*$AK$54+$AM$53,IF(G86 > $AI$52,(G86-$AI$52)*$AK$53+$AM$52,IF(G86>$AI$51,(G86-$AI$51)*$AK$52+$AM$51,IF(G86>0,G86*$AK$51,0))))) -> 0 | Y86: =IF((G86-$F$82)>$AO$44,$AM$44,IF((G86-G85)>0,(G86-$F$82)*$AK$44,Y85)) -> 0 | Z86: =$Z$75 -> FALSE | AA86: =IF(Z86,IF(G86>$AK$30,(G86-$AK$30)*$AL$30,0),AA85) -> 0 | AB86: ='NSR Calculator'!AA36 -> 0 | AC86: =IF(OR(G86=0,AB86=0),0,(G86-G85)*AB86) -> 0 | AD86: =IF(K86>$AI$54,(K86-$AI$54)*$AK$55+$AM$54,IF(K86>$AI$53,(K86-$AI$53)*$AK$54+$AM$53,IF(K86 > $AI$52,(K86-$AI$52)*$AK$53+$AM$52,IF(K86>$AI$51,(K86-$AI$51)*$AK$52+$AM$51,IF(K86>0,K86*$AK$51,0))))) -> 0 | AE86: =IF((K86-$J$82)>$AO$44,$AM$44,IF((K86-K85)>0,(K86-$J$82)*$AK$44,AE85)) -> 0 | AF86: =$AF$75 -> FALSE | AG86: =IF(AF86,IF(K86>$AK$30,(K86-$AK$30)*$AL$30,0),AG85) -> 0 | AH86: ='NSR Calculator'!AF36 -> 0 | AI86: =IF(OR(K86=0,AH86=0),0,(K86-K85)*AH86) -> 0 | AJ86: =IF(O86>$AI$54,(O86-$AI$54)*$AK$55+$AM$54,IF(O86>$AI$53,(O86-$AI$53)*$AK$54+$AM$53,IF(O86 > $AI$52,(O86-$AI$52)*$AK$53+$AM$52,IF(O86>$AI$51,(O86-$AI$51)*$AK$52+$AM$51,IF(O86>0,O86*$AK$51,0))))) -> 0 | AK86: =IF((O86-$N$82)>$AO$44,$AM$44,IF((O86-O85)>0,(O86-$N$82)*$AK$44,AK85)) -> 0 | AL86: =$AL$75 -> FALSE | AM86: =IF(AL86,IF(O86>$AK$30,(O86-$AK$30)*$AL$30,0),AM85) -> 0 | AN86: 0 | AO86: =IF(OR(O86=0,AN86=0),0,(O86-O85)*AN86) -> 0 | AP86: =IF(S86>$AI$54,(S86-$AI$54)*$AK$55+$AM$54,IF(S86>$AI$53,(S86-$AI$53)*$AK$54+$AM$53,IF(S86 > $AI$52,(S86-$AI$52)*$AK$53+$AM$52,IF(S86>$AI$51,(S86-$AI$51)*$AK$52+$AM$51,IF(S86>0,S86*$AK$51,0))))) -> 0 | AQ86: =IF((S86-$R$82)>$AO$44,$AM$44,IF((S86-S85)>0,(S86-$R$82)*$AK$44,AQ85)) -> 0 | AR86: =$AR$75 -> FALSE | AU86: =IF(OR(S86=0,AT86=0),0,(S86-S85)*AT86) -> 0
G87: =IF(I87<=$AQ$51,I87/(1-$AK$51-$AK$44),IF(I87<=$AQ$52,(I87+$AM$51-$AI$51*$AK$52)/(1-$AK$52-$AK$44),IF(I87<=$AQ$53,(I87+$AM$52-$AI$52*$AK$53)/(1-$AK$53-$AK$44),IF(I87<=$AQ$54,(I87+$AM$53-$AI$53*$AK$54)/(1-$AK$54-$AK$44),IF(I87<=$AS$44,(I87+$AM$54-$AI$54*$AK$55)/(1-$AK$55-$AK$44),IF(I87>$AS$44,(I87+$AM$44+$AM$54-$AI$54*$AK$55)/(1-$AK$55))))))) -> 0 | H87: =X87+Y87 -> 0 | I87: =IF(H28=$AH$17,INDEX($AH$9:$AK$13,G27,4)*I27+I85,0) -> 0 | K87: =IF(M87<=$AQ$51,M87/(1-$AK$51-$AK$44),IF(M87<=$AQ$52,(M87+$AM$51-$AI$51*$AK$52)/(1-$AK$52-$AK$44),IF(M87<=$AQ$53,(M87+$AM$52-$AI$52*$AK$53)/(1-$AK$53-$AK$44),IF(M87<=$AQ$54,(M87+$AM$53-$AI$53*$AK$54)/(1-$AK$54-$AK$44),IF(M87<=$AS$44,(M87+$AM$54-$AI$54*$AK$55)/(1-$AK$55-$AK$44),IF(M87>$AS$44,(M87+$AM$44+$AM$54-$AI$54*$AK$55)/(1-$AK$55))))))) -> 0 | L87: =AD87+AE87 -> 0 | M87: =IF(L28=$AH$17,INDEX($AH$9:$AK$13,K27,4)*M27+M85,0) -> 0 | O87: =IF(Q87<=$AQ$51,Q87/(1-$AK$51-$AK$44),IF(Q87<=$AQ$52,(Q87+$AM$51-$AI$51*$AK$52)/(1-$AK$52-$AK$44),IF(Q87<=$AQ$53,(Q87+$AM$52-$AI$52*$AK$53)/(1-$AK$53-$AK$44),IF(Q87<=$AQ$54,(Q87+$AM$53-$AI$53*$AK$54)/(1-$AK$54-$AK$44),IF(Q87<=$AS$44,(Q87+$AM$54-$AI$54*$AK$55)/(1-$AK$55-$AK$44),IF(Q87>$AS$44,(Q87+$AM$44+$AM$54-$AI$54*$AK$55)/(1-$AK$55))))))) -> 0 | P87: =AJ87+AK87 -> 0 | Q87: =IF(P28=$AH$17,INDEX($AH$9:$AK$13,O27,4)*Q27+Q85,0) -> 0 | S87: =IF(U87<=$AQ$51,U87/(1-$AK$51-$AK$44),IF(U87<=$AQ$52,(U87+$AM$51-$AI$51*$AK$52)/(1-$AK$52-$AK$44),IF(U87<=$AQ$53,(U87+$AM$52-$AI$52*$AK$53)/(1-$AK$53-$AK$44),IF(U87<=$AQ$54,(U87+$AM$53-$AI$53*$AK$54)/(1-$AK$54-$AK$44),IF(U87<=$AS$44,(U87+$AM$54-$AI$54*$AK$55)/(1-$AK$55-$AK$44),IF(U87>$AS$44,(U87+$AM$44+$AM$54-$AI$54*$AK$55)/(1-$AK$55))))))) -> 0 | T87: =AP87+AQ87 -> 0 | U87: =IF(T28=$AH$17,INDEX($AH$9:$AK$13,S27,4)*U27+U85,0) -> 0 | X87: =G87-I87-Y87 -> 0 | Y87: =IF((G87-$F$82)>$AO$44,$AM$44,IF((G87-G85)>0,(G87-$F$82)*$AK$44,Y85)) -> 0 | AA87: =IF(Z86,IF(G87>$AK$30,(G87-$AK$30)*$AL$30,0),AA85) -> 0 | AB87: =IF(AB86>0,IF(AB86<0.03,1,0),0) -> 0 | AC87: =IF(OR(G87=0,AB86=0),0,(G87-G85)*AB86) -> 0 | AD87: =K87-M87-AE87 -> 0 | AE87: =IF((K87-$J$82)>$AO$44,$AM$44,IF((K87-K85)>0,(K87-$J$82)*$AK$44,AE85)) -> 0 | AG87: =IF(AF86,IF(K87>$AK$30,(K87-$AK$30)*$AL$30,0),AG85) -> 0 | AH87: =IF(AH86>0,IF(AH86<0.03,1,0),0) -> 0 | AI87: =IF(OR(K87=0,AH86=0),0,(K87-K85)*AH86) -> 0 | AJ87: =O87-Q87-AK87 -> 0 | AK87: =IF((O87-$N$82)>$AO$44,$AM$44,IF((O87-O85)>0,(O87-$N$82)*$AK$44,AK85)) -> 0 | AM87: =IF(AL86,IF(O87>$AK$30,(O87-$AK$30)*$AL$30,0),AM85) -> 0 | AN87: =IF(AN86>0,IF(AN86<0.03,1,0),0) -> 0 | AO87: =IF(OR(O87=0,AN86=0),0,(O87-O85)*AN86) -> 0 | AP87: =S87-U87-AQ87 -> 0 | AQ87: =IF((S87-$R$82)>$AO$44,$AM$44,IF((S87-S85)>0,(S87-$R$82)*$AK$44,AQ85)) -> 0 | AU87: =IF(OR(S87=0,AT86=0),0,(S87-S85)*AT86) -> 0
G88: =MAX(G86:G87) -> 0 | H88: =MAX(H86:H87) -> 0 | I88: =MAX(I86:I87) -> 0 | K88: =MAX(K86:K87) -> 0 | L88: =MAX(L86:L87) -> 0 | M88: =MAX(M86:M87) -> 0 | O88: =MAX(O86:O87) -> 0 | P88: =MAX(P86:P87) -> 0 | Q88: =MAX(Q86:Q87) -> 0 | S88: =MAX(S86:S87) -> 0 | T88: =MAX(T86:T87) -> 0 | U88: =MAX(U86:U87) -> 0 | X88: =MAX(X86:X87) -> 0 | Y88: =MAX(Y86:Y87) -> 0 | AA88: =MAX(AA86:AA87) -> 0 | AC88: =MAX(AC86:AC87)+AC85 -> 0 | AD88: =MAX(AD86:AD87) -> 0 | AE88: 0 | AG88: =MAX(AG86:AG87) -> 0 | AI88: =MAX(AI86:AI87)+AI85 -> 0 | AJ88: 0 | AK88: 0 | AM88: =MAX(AM86:AM87) -> 0 | AO88: =MAX(AO86:AO87)+AO85 -> 0 | AP88: 0 | AQ88: 0 | AU88: =MAX(AU86:AU87)+AU85 -> 0
B89: 5 | C89: Allowance | G89: =IF(H31=$AH$16,INDEX($AH$9:$AK$13,G30,4)*I30+G88,0) -> 0 | H89: =X89+Y89 -> 0 | I89: =G89-H89 -> 0 | K89: =IF(L31=$AH$16,INDEX($AH$9:$AK$13,K30,4)*M30+K88,0) -> 0 | L89: =AD89+AE89 -> 0 | M89: =K89-L89 -> 0 | O89: =IF(P31=$AH$16,INDEX($AH$9:$AK$13,O30,4)*Q30+O88,0) -> 0 | P89: =AJ89+AK89 -> 0 | Q89: =O89-P89 -> 0 | S89: =IF(T31=$AH$16,INDEX($AH$9:$AK$13,S30,4)*U30+S88,0) -> 0 | T89: =AP89+AQ89 -> 0 | U89: =S89-T89 -> 0 | X89: =IF(G89>$AI$54,(G89-$AI$54)*$AK$55+$AM$54,IF(G89>$AI$53,(G89-$AI$53)*$AK$54+$AM$53,IF(G89 > $AI$52,(G89-$AI$52)*$AK$53+$AM$52,IF(G89>$AI$51,(G89-$AI$51)*$AK$52+$AM$51,IF(G89>0,G89*$AK$51,0))))) -> 0 | Y89: =IF((G89-$F$82)>$AO$44,$AM$44,IF((G89-G88)>0,(G89-$F$82)*$AK$44,Y88)) -> 0 | Z89: =$Z$75 -> FALSE | AA89: =IF(Z89,IF(G89>$AK$30,(G89-$AK$30)*$AL$30,0),AA88) -> 0 | AB89: ='NSR Calculator'!AA39 -> 0 | AC89: =IF(OR(G89=0,AB89=0),0,(G89-G88)*AB89) -> 0 | AD89: =IF(K89>$AI$54,(K89-$AI$54)*$AK$55+$AM$54,IF(K89>$AI$53,(K89-$AI$53)*$AK$54+$AM$53,IF(K89 > $AI$52,(K89-$AI$52)*$AK$53+$AM$52,IF(K89>$AI$51,(K89-$AI$51)*$AK$52+$AM$51,IF(K89>0,K89*$AK$51,0))))) -> 0 | AE89: =IF((K89-$J$82)>$AO$44,$AM$44,IF((K89-K88)>0,(K89-$J$82)*$AK$44,AE88)) -> 0 | AF89: =$AF$75 -> FALSE | AG89: =IF(AF89,IF(K89>$AK$30,(K89-$AK$30)*$AL$30,0),AG88) -> 0 | AH89: ='NSR Calculator'!AF39 -> 0 | AI89: =IF(OR(K89=0,AH89=0),0,(K89-K88)*AH89) -> 0 | AJ89: =IF(O89>$AI$54,(O89-$AI$54)*$AK$55+$AM$54,IF(O89>$AI$53,(O89-$AI$53)*$AK$54+$AM$53,IF(O89 > $AI$52,(O89-$AI$52)*$AK$53+$AM$52,IF(O89>$AI$51,(O89-$AI$51)*$AK$52+$AM$51,IF(O89>0,O89*$AK$51,0))))) -> 0 | AK89: =IF((O89-$N$82)>$AO$44,$AM$44,IF((O89-O88)>0,(O89-$N$82)*$AK$44,AK88)) -> 0 | AL89: =$AL$75 -> FALSE | AM89: =IF(AL89,IF(O89>$AK$30,(O89-$AK$30)*$AL$30,0),AM88) -> 0 | AN89: 0 | AO89: =IF(OR(O89=0,AN89=0),0,(O89-O88)*AN89) -> 0 | AP89: =IF(S89>$AI$54,(S89-$AI$54)*$AK$55+$AM$54,IF(S89>$AI$53,(S89-$AI$53)*$AK$54+$AM$53,IF(S89 > $AI$52,(S89-$AI$52)*$AK$53+$AM$52,IF(S89>$AI$51,(S89-$AI$51)*$AK$52+$AM$51,IF(S89>0,S89*$AK$51,0))))) -> 0 | AQ89: =IF((S89-$R$82)>$AO$44,$AM$44,IF((S89-S88)>0,(S89-$R$82)*$AK$44,AQ88)) -> 0 | AR89: =$AR$75 -> FALSE | AU89: =IF(OR(S89=0,AT89=0),0,(S89-S88)*AT89) -> 0
G90: =IF(I90<=$AQ$51,I90/(1-$AK$51-$AK$44),IF(I90<=$AQ$52,(I90+$AM$51-$AI$51*$AK$52)/(1-$AK$52-$AK$44),IF(I90<=$AQ$53,(I90+$AM$52-$AI$52*$AK$53)/(1-$AK$53-$AK$44),IF(I90<=$AQ$54,(I90+$AM$53-$AI$53*$AK$54)/(1-$AK$54-$AK$44),IF(I90<=$AS$44,(I90+$AM$54-$AI$54*$AK$55)/(1-$AK$55-$AK$44),IF(I90>$AS$44,(I90+$AM$44+$AM$54-$AI$54*$AK$55)/(1-$AK$55))))))) -> 0 | H90: =X90+Y90 -> 0 | I90: =IF(H31=$AH$17,INDEX($AH$9:$AK$13,G30,4)*I30+I88,0) -> 0 | K90: =IF(M90<=$AQ$51,M90/(1-$AK$51-$AK$44),IF(M90<=$AQ$52,(M90+$AM$51-$AI$51*$AK$52)/(1-$AK$52-$AK$44),IF(M90<=$AQ$53,(M90+$AM$52-$AI$52*$AK$53)/(1-$AK$53-$AK$44),IF(M90<=$AQ$54,(M90+$AM$53-$AI$53*$AK$54)/(1-$AK$54-$AK$44),IF(M90<=$AS$44,(M90+$AM$54-$AI$54*$AK$55)/(1-$AK$55-$AK$44),IF(M90>$AS$44,(M90+$AM$44+$AM$54-$AI$54*$AK$55)/(1-$AK$55))))))) -> 0 | L90: =AD90+AE90 -> 0 | M90: =IF(L31=$AH$17,INDEX($AH$9:$AK$13,K30,4)*M30+M88,0) -> 0 | O90: =IF(Q90<=$AQ$51,Q90/(1-$AK$51-$AK$44),IF(Q90<=$AQ$52,(Q90+$AM$51-$AI$51*$AK$52)/(1-$AK$52-$AK$44),IF(Q90<=$AQ$53,(Q90+$AM$52-$AI$52*$AK$53)/(1-$AK$53-$AK$44),IF(Q90<=$AQ$54,(Q90+$AM$53-$AI$53*$AK$54)/(1-$AK$54-$AK$44),IF(Q90<=$AS$44,(Q90+$AM$54-$AI$54*$AK$55)/(1-$AK$55-$AK$44),IF(Q90>$AS$44,(Q90+$AM$44+$AM$54-$AI$54*$AK$55)/(1-$AK$55))))))) -> 0 | P90: =AJ90+AK90 -> 0 | Q90: =IF(P31=$AH$17,INDEX($AH$9:$AK$13,O30,4)*Q30+Q88,0) -> 0 | S90: =IF(U90<=$AQ$51,U90/(1-$AK$51-$AK$44),IF(U90<=$AQ$52,(U90+$AM$51-$AI$51*$AK$52)/(1-$AK$52-$AK$44),IF(U90<=$AQ$53,(U90+$AM$52-$AI$52*$AK$53)/(1-$AK$53-$AK$44),IF(U90<=$AQ$54,(U90+$AM$53-$AI$53*$AK$54)/(1-$AK$54-$AK$44),IF(U90<=$AS$44,(U90+$AM$54-$AI$54*$AK$55)/(1-$AK$55-$AK$44),IF(U90>$AS$44,(U90+$AM$44+$AM$54-$AI$54*$AK$55)/(1-$AK$55))))))) -> 0 | T90: =AP90+AQ90 -> 0 | U90: =IF(T31=$AH$17,INDEX($AH$9:$AK$13,S30,4)*U30+U88,0) -> 0 | X90: =G90-I90-Y90 -> 0 | Y90: =IF((G90-$F$82)>$AO$44,$AM$44,IF((G90-G88)>0,(G90-$F$82)*$AK$44,Y88)) -> 0 | AA90: =IF(Z89,IF(G90>$AK$30,(G90-$AK$30)*$AL$30,0),AA88) -> 0 | AB90: =IF(AB89>0,IF(AB89<0.03,1,0),0) -> 0 | AC90: =IF(OR(G90=0,AB89=0),0,(G90-G88)*AB89) -> 0 | AD90: =K90-M90-AE90 -> 0 | AE90: =IF((K90-$J$82)>$AO$44,$AM$44,IF((K90-K88)>0,(K90-$J$82)*$AK$44,AE88)) -> 0 | AG90: =IF(AF89,IF(K90>$AK$30,(K90-$AK$30)*$AL$30,0),AG88) -> 0 | AH90: =IF(AH89>0,IF(AH89<0.03,1,0),0) -> 0 | AI90: =IF(OR(K90=0,AH89=0),0,(K90-K88)*AH89) -> 0 | AJ90: =O90-Q90-AK90 -> 0 | AK90: =IF((O90-$N$82)>$AO$44,$AM$44,IF((O90-O88)>0,(O90-$N$82)*$AK$44,AK88)) -> 0 | AM90: =IF(AL89,IF(O90>$AK$30,(O90-$AK$30)*$AL$30,0),AM88) -> 0 | AN90: =IF(AN89>0,IF(AN89<0.03,1,0),0) -> 0 | AO90: =IF(OR(O90=0,AN89=0),0,(O90-O88)*AN89) -> 0 | AP90: =S90-U90-AQ90 -> 0 | AQ90: =IF((S90-$R$82)>$AO$44,$AM$44,IF((S90-S88)>0,(S90-$R$82)*$AK$44,AQ88)) -> 0 | AU90: =IF(OR(S90=0,AT89=0),0,(S90-S88)*AT89) -> 0
G91: =MAX(G89:G90) -> 0 | H91: =MAX(H89:H90) -> 0 | I91: =MAX(I89:I90) -> 0 | J91: =K91-AG91-AI91 -> 0 | K91: =MAX(K89:K90) -> 0 | L91: =MAX(L89:L90) -> 0 | M91: =MAX(M89:M90) -> 0 | N91: =O91-AM91-AO91 -> 0 | O91: =MAX(O89:O90) -> 0 | P91: =MAX(P89:P90) -> 0 | Q91: =MAX(Q89:Q90) -> 0 | R91: =S91-AS91-AU91 -> 0 | S91: =MAX(S89:S90) -> 0 | T91: =MAX(T89:T90) -> 0 | U91: =MAX(U89:U90) -> 0 | X91: =MAX(X89:X90) -> 0 | Y91: =MAX(Y89:Y90) -> 0 | AA91: =MAX(AA89:AA90) -> 0 | AC91: =MAX(AC89:AC90)+AC88 -> 0 | AD91: =MAX(AD89:AD90) -> 0 | AE91: 0 | AG91: =MAX(AG89:AG90) -> 0 | AI91: =MAX(AI89:AI90)+AI88 -> 0 | AJ91: 0 | AK91: 0 | AM91: =MAX(AM89:AM90) -> 0 | AO91: =MAX(AO89:AO90)+AO88 -> 0 | AP91: 0 | AQ91: 0 | AU91: =MAX(AU89:AU90)+AU88 -> 0
B92: 6 | C92: Commission | G92: =IF(H34=$AH$16,INDEX($AH$9:$AK$13,G33,4)*I33+G91,0) -> 0 | H92: =X92+Y92 -> 0 | I92: =G92-H92 -> 0 | K92: =IF(L34=$AH$16,INDEX($AH$9:$AK$13,K33,4)*M33+K91,0) -> 0 | L92: =AD92+AE92 -> 0 | M92: =K92-L92 -> 0 | O92: =IF(P34=$AH$16,INDEX($AH$9:$AK$13,O33,4)*Q33+O91,0) -> 0 | P92: =AJ92+AK92 -> 0 | Q92: =O92-P92 -> 0 | S92: =IF(T34=$AH$16,INDEX($AH$9:$AK$13,S33,4)*U33+S91,0) -> 0 | T92: =AP92+AQ92 -> 0 | U92: =S92-T92 -> 0 | X92: =IF(G92>$AI$54,(G92-$AI$54)*$AK$55+$AM$54,IF(G92>$AI$53,(G92-$AI$53)*$AK$54+$AM$53,IF(G92 > $AI$52,(G92-$AI$52)*$AK$53+$AM$52,IF(G92>$AI$51,(G92-$AI$51)*$AK$52+$AM$51,IF(G92>0,G92*$AK$51,0))))) -> 0 | Y92: =IF((G92-$F$82)>$AO$44,$AM$44,IF((G92-G91)>0,(G92-$F$82)*$AK$44,Y91)) -> 0 | Z92: =$Z$75 -> FALSE | AA92: =IF(Z92,IF(G92>$AK$30,(G92-$AK$30)*$AL$30,0),AA91) -> 0 | AB92: ='NSR Calculator'!AA42 -> 0 | AC92: =IF(OR(G92=0,AB92=0),0,(G92-G91)*AB92) -> 0 | AD92: =IF(K92>$AI$54,(K92-$AI$54)*$AK$55+$AM$54,IF(K92>$AI$53,(K92-$AI$53)*$AK$54+$AM$53,IF(K92 > $AI$52,(K92-$AI$52)*$AK$53+$AM$52,IF(K92>$AI$51,(K92-$AI$51)*$AK$52+$AM$51,IF(K92>0,K92*$AK$51,0))))) -> 0 | AE92: =IF((K92-$J$82)>$AO$44,$AM$44,IF((K92-K91)>0,(K92-$J$82)*$AK$44,AE91)) -> 0 | AF92: =$AF$75 -> FALSE | AG92: =IF(AF92,IF(K92>$AK$30,(K92-$AK$30)*$AL$30,0),AG91) -> 0 | AH92: ='NSR Calculator'!AF42 -> 0 | AI92: =IF(OR(K92=0,AH92=0),0,(K92-K91)*AH92) -> 0 | AJ92: =IF(O92>$AI$54,(O92-$AI$54)*$AK$55+$AM$54,IF(O92>$AI$53,(O92-$AI$53)*$AK$54+$AM$53,IF(O92 > $AI$52,(O92-$AI$52)*$AK$53+$AM$52,IF(O92>$AI$51,(O92-$AI$51)*$AK$52+$AM$51,IF(O92>0,O92*$AK$51,0))))) -> 0 | AK92: =IF((O92-$N$82)>$AO$44,$AM$44,IF((O92-O91)>0,(O92-$N$82)*$AK$44,AK91)) -> 0 | AL92: =$AL$75 -> FALSE | AM92: =IF(AL92,IF(O92>$AK$30,(O92-$AK$30)*$AL$30,0),AM91) -> 0 | AN92: 0 | AO92: =IF(OR(O92=0,AN92=0),0,(O92-O91)*AN92) -> 0 | AP92: =IF(S92>$AI$54,(S92-$AI$54)*$AK$55+$AM$54,IF(S92>$AI$53,(S92-$AI$53)*$AK$54+$AM$53,IF(S92 > $AI$52,(S92-$AI$52)*$AK$53+$AM$52,IF(S92>$AI$51,(S92-$AI$51)*$AK$52+$AM$51,IF(S92>0,S92*$AK$51,0))))) -> 0 | AQ92: =IF((S92-$R$82)>$AO$44,$AM$44,IF((S92-S91)>0,(S92-$R$82)*$AK$44,AQ91)) -> 0 | AR92: =$AR$75 -> FALSE | AU92: =IF(OR(S92=0,AT92=0),0,(S92-S91)*AT92) -> 0
G93: =IF(I93<=$AQ$51,I93/(1-$AK$51-$AK$44),IF(I93<=$AQ$52,(I93+$AM$51-$AI$51*$AK$52)/(1-$AK$52-$AK$44),IF(I93<=$AQ$53,(I93+$AM$52-$AI$52*$AK$53)/(1-$AK$53-$AK$44),IF(I93<=$AQ$54,(I93+$AM$53-$AI$53*$AK$54)/(1-$AK$54-$AK$44),IF(I93<=$AS$44,(I93+$AM$54-$AI$54*$AK$55)/(1-$AK$55-$AK$44),IF(I93>$AS$44,(I93+$AM$44+$AM$54-$AI$54*$AK$55)/(1-$AK$55))))))) -> 0 | H93: =X93+Y93 -> 0 | I93: =IF(H34=$AH$17,INDEX($AH$9:$AK$13,G33,4)*I33+I91,0) -> 0 | K93: =IF(M93<=$AQ$51,M93/(1-$AK$51-$AK$44),IF(M93<=$AQ$52,(M93+$AM$51-$AI$51*$AK$52)/(1-$AK$52-$AK$44),IF(M93<=$AQ$53,(M93+$AM$52-$AI$52*$AK$53)/(1-$AK$53-$AK$44),IF(M93<=$AQ$54,(M93+$AM$53-$AI$53*$AK$54)/(1-$AK$54-$AK$44),IF(M93<=$AS$44,(M93+$AM$54-$AI$54*$AK$55)/(1-$AK$55-$AK$44),IF(M93>$AS$44,(M93+$AM$44+$AM$54-$AI$54*$AK$55)/(1-$AK$55))))))) -> 0 | L93: =AD93+AE93 -> 0 | M93: =IF(L34=$AH$17,INDEX($AH$9:$AK$13,K33,4)*M33+M91,0) -> 0 | O93: =IF(Q93<=$AQ$51,Q93/(1-$AK$51-$AK$44),IF(Q93<=$AQ$52,(Q93+$AM$51-$AI$51*$AK$52)/(1-$AK$52-$AK$44),IF(Q93<=$AQ$53,(Q93+$AM$52-$AI$52*$AK$53)/(1-$AK$53-$AK$44),IF(Q93<=$AQ$54,(Q93+$AM$53-$AI$53*$AK$54)/(1-$AK$54-$AK$44),IF(Q93<=$AS$44,(Q93+$AM$54-$AI$54*$AK$55)/(1-$AK$55-$AK$44),IF(Q93>$AS$44,(Q93+$AM$44+$AM$54-$AI$54*$AK$55)/(1-$AK$55))))))) -> 0 | P93: =AJ93+AK93 -> 0 | Q93: =IF(P34=$AH$17,INDEX($AH$9:$AK$13,O33,4)*Q33+Q91,0) -> 0 | S93: =IF(U93<=$AQ$51,U93/(1-$AK$51-$AK$44),IF(U93<=$AQ$52,(U93+$AM$51-$AI$51*$AK$52)/(1-$AK$52-$AK$44),IF(U93<=$AQ$53,(U93+$AM$52-$AI$52*$AK$53)/(1-$AK$53-$AK$44),IF(U93<=$AQ$54,(U93+$AM$53-$AI$53*$AK$54)/(1-$AK$54-$AK$44),IF(U93<=$AS$44,(U93+$AM$54-$AI$54*$AK$55)/(1-$AK$55-$AK$44),IF(U93>$AS$44,(U93+$AM$44+$AM$54-$AI$54*$AK$55)/(1-$AK$55))))))) -> 0 | T93: =AP93+AQ93 -> 0 | U93: =IF(T34=$AH$17,INDEX($AH$9:$AK$13,S33,4)*U33+U91,0) -> 0 | X93: =G93-I93-Y93 -> 0 | Y93: =IF((G93-$F$82)>$AO$44,$AM$44,IF((G93-G91)>0,(G93-$F$82)*$AK$44,Y91)) -> 0 | AA93: =IF(Z92,IF(G93>$AK$30,(G93-$AK$30)*$AL$30,0),AA91) -> 0 | AB93: =IF(AB92>0,IF(AB92<0.03,1,0),0) -> 0 | AC93: =IF(OR(G93=0,AB92=0),0,(G93-G91)*AB92) -> 0 | AD93: =K93-M93-AE93 -> 0 | AE93: =IF((K93-$J$82)>$AO$44,$AM$44,IF((K93-K91)>0,(K93-$J$82)*$AK$44,AE91)) -> 0 | AG93: =IF(AF92,IF(K93>$AK$30,(K93-$AK$30)*$AL$30,0),AG91) -> 0 | AH93: =IF(AH92>0,IF(AH92<0.03,1,0),0) -> 0 | AI93: =IF(OR(K93=0,AH92=0),0,(K93-K91)*AH92) -> 0 | AJ93: =O93-Q93-AK93 -> 0 | AK93: =IF((O93-$N$82)>$AO$44,$AM$44,IF((O93-O91)>0,(O93-$N$82)*$AK$44,AK91)) -> 0 | AM93: =IF(AL92,IF(O93>$AK$30,(O93-$AK$30)*$AL$30,0),AM91) -> 0 | AN93: =IF(AN92>0,IF(AN92<0.03,1,0),0) -> 0 | AO93: =IF(OR(O93=0,AN92=0),0,(O93-O91)*AN92) -> 0 | AP93: =S93-U93-AQ93 -> 0 | AQ93: =IF((S93-$R$82)>$AO$44,$AM$44,IF((S93-S91)>0,(S93-$R$82)*$AK$44,AQ91)) -> 0 | AU93: =IF(OR(S93=0,AT92=0),0,(S93-S91)*AT92) -> 0
G94: =MAX(G92:G93) -> 0 | H94: =MAX(H92:H93) -> 0 | I94: =MAX(I92:I93) -> 0 | J94: =K94-AG94-AI94 -> 0 | K94: =MAX(K92:K93) -> 0 | L94: =MAX(L92:L93) -> 0 | M94: =MAX(M92:M93) -> 0 | N94: =O94-AM94-AO94 -> 0 | O94: =MAX(O92:O93) -> 0 | P94: =MAX(P92:P93) -> 0 | Q94: =MAX(Q92:Q93) -> 0 | R94: =S94-AS94-AU94 -> 0 | S94: =MAX(S92:S93) -> 0 | T94: =MAX(T92:T93) -> 0 | U94: =MAX(U92:U93) -> 0 | X94: =MAX(X92:X93) -> 0 | Y94: 0 | AA94: =MAX(AA92:AA93) -> 0 | AC94: =MAX(AC92:AC93)+AC91 -> 0 | AD94: =MAX(AD92:AD93) -> 0 | AE94: 0 | AG94: =MAX(AG92:AG93) -> 0 | AI94: =MAX(AI92:AI93)+AI91 -> 0 | AJ94: 0 | AK94: 0 | AM94: =MAX(AM92:AM93) -> 0 | AO94: =MAX(AO92:AO93)+AO91 -> 0 | AP94: 0 | AQ94: 0 | AU94: =MAX(AU92:AU93)+AU91 -> 0
B95: 7 | C95: Investment | G95: =IF(H37=$AH$16,INDEX($AH$9:$AK$13,G36,4)*I36+G94,0) -> 0 | H95: =X95+Y95 -> 0 | I95: =G95-H95 -> 0 | K95: =IF(L37=$AH$16,INDEX($AH$9:$AK$13,K36,4)*M36+K94,0) -> 0 | L95: =AD95+AE95 -> 0 | M95: =K95-L95 -> 0 | O95: =IF(P37=$AH$16,INDEX($AH$9:$AK$13,O36,4)*Q36+O94,0) -> 0 | P95: =AJ95+AK95 -> 0 | Q95: =O95-P95 -> 0 | S95: =IF(T37=$AH$16,INDEX($AH$9:$AK$13,S36,4)*U36+S94,0) -> 0 | T95: =AP95+AQ95 -> 0 | U95: =S95-T95 -> 0 | X95: =IF(G95>$AI$54,(G95-$AI$54)*$AK$55+$AM$54,IF(G95>$AI$53,(G95-$AI$53)*$AK$54+$AM$53,IF(G95 > $AI$52,(G95-$AI$52)*$AK$53+$AM$52,IF(G95>$AI$51,(G95-$AI$51)*$AK$52+$AM$51,IF(G95>0,G95*$AK$51,0))))) -> 0 | Y95: =IF((G95-$F$82)>$AO$44,$AM$44,IF((G95-G94)>0,(G95-$F$82)*$AK$44,Y94)) -> 0 | Z95: =$Z$75 -> FALSE | AA95: =IF(Z95,IF(G95>$AK$30,(G95-$AK$30)*$AL$30,0),AA94) -> 0 | AB95: ='NSR Calculator'!AA45 -> 0 | AC95: =IF(OR(G95=0,AB95=0),0,(G95-G94)*AB95) -> 0 | AD95: =IF(K95>$AI$54,(K95-$AI$54)*$AK$55+$AM$54,IF(K95>$AI$53,(K95-$AI$53)*$AK$54+$AM$53,IF(K95 > $AI$52,(K95-$AI$52)*$AK$53+$AM$52,IF(K95>$AI$51,(K95-$AI$51)*$AK$52+$AM$51,IF(K95>0,K95*$AK$51,0))))) -> 0 | AE95: =IF((K95-$J$82)>$AO$44,$AM$44,IF((K95-K94)>0,(K95-$J$82)*$AK$44,AE94)) -> 0 | AF95: =$AF$75 -> FALSE | AG95: =IF(AF95,IF(K95>$AK$30,(K95-$AK$30)*$AL$30,0),AG94) -> 0 | AH95: ='NSR Calculator'!AF45 -> 0 | AI95: =IF(OR(K95=0,AH95=0),0,(K95-K94)*AH95) -> 0 | AJ95: =IF(O95>$AI$54,(O95-$AI$54)*$AK$55+$AM$54,IF(O95>$AI$53,(O95-$AI$53)*$AK$54+$AM$53,IF(O95 > $AI$52,(O95-$AI$52)*$AK$53+$AM$52,IF(O95>$AI$51,(O95-$AI$51)*$AK$52+$AM$51,IF(O95>0,O95*$AK$51,0))))) -> 0 | AK95: =IF((O95-$N$82)>$AO$44,$AM$44,IF((O95-O94)>0,(O95-$N$82)*$AK$44,AK94)) -> 0 | AL95: =$AL$75 -> FALSE | AM95: =IF(AL95,IF(O95>$AK$30,(O95-$AK$30)*$AL$30,0),AM94) -> 0 | AN95: 0 | AO95: =IF(OR(O95=0,AN95=0),0,(O95-O94)*AN95) -> 0 | AP95: =IF(S95>$AI$54,(S95-$AI$54)*$AK$55+$AM$54,IF(S95>$AI$53,(S95-$AI$53)*$AK$54+$AM$53,IF(S95 > $AI$52,(S95-$AI$52)*$AK$53+$AM$52,IF(S95>$AI$51,(S95-$AI$51)*$AK$52+$AM$51,IF(S95>0,S95*$AK$51,0))))) -> 0 | AQ95: =IF((S95-$R$82)>$AO$44,$AM$44,IF((S95-S94)>0,(S95-$R$82)*$AK$44,AQ94)) -> 0 | AR95: =$AR$75 -> FALSE | AU95: =IF(OR(S95=0,AT95=0),0,(S95-S94)*AT95) -> 0
G96: =IF(I96<=$AQ$51,I96/(1-$AK$51-$AK$44),IF(I96<=$AQ$52,(I96+$AM$51-$AI$51*$AK$52)/(1-$AK$52-$AK$44),IF(I96<=$AQ$53,(I96+$AM$52-$AI$52*$AK$53)/(1-$AK$53-$AK$44),IF(I96<=$AQ$54,(I96+$AM$53-$AI$53*$AK$54)/(1-$AK$54-$AK$44),IF(I96<=$AS$44,(I96+$AM$54-$AI$54*$AK$55)/(1-$AK$55-$AK$44),IF(I96>$AS$44,(I96+$AM$44+$AM$54-$AI$54*$AK$55)/(1-$AK$55))))))) -> 0 | H96: =X96+Y96 -> 0 | I96: =IF(H37=$AH$17,INDEX($AH$9:$AK$13,G36,4)*I36+I94,0) -> 0 | K96: =IF(M96<=$AQ$51,M96/(1-$AK$51-$AK$44),IF(M96<=$AQ$52,(M96+$AM$51-$AI$51*$AK$52)/(1-$AK$52-$AK$44),IF(M96<=$AQ$53,(M96+$AM$52-$AI$52*$AK$53)/(1-$AK$53-$AK$44),IF(M96<=$AQ$54,(M96+$AM$53-$AI$53*$AK$54)/(1-$AK$54-$AK$44),IF(M96<=$AS$44,(M96+$AM$54-$AI$54*$AK$55)/(1-$AK$55-$AK$44),IF(M96>$AS$44,(M96+$AM$44+$AM$54-$AI$54*$AK$55)/(1-$AK$55))))))) -> 0 | L96: =AD96+AE96 -> 0 | M96: =IF(L37=$AH$17,INDEX($AH$9:$AK$13,K36,4)*M36+M94,0) -> 0 | O96: =IF(Q96<=$AQ$51,Q96/(1-$AK$51-$AK$44),IF(Q96<=$AQ$52,(Q96+$AM$51-$AI$51*$AK$52)/(1-$AK$52-$AK$44),IF(Q96<=$AQ$53,(Q96+$AM$52-$AI$52*$AK$53)/(1-$AK$53-$AK$44),IF(Q96<=$AQ$54,(Q96+$AM$53-$AI$53*$AK$54)/(1-$AK$54-$AK$44),IF(Q96<=$AS$44,(Q96+$AM$54-$AI$54*$AK$55)/(1-$AK$55-$AK$44),IF(Q96>$AS$44,(Q96+$AM$44+$AM$54-$AI$54*$AK$55)/(1-$AK$55))))))) -> 0 | P96: =AJ96+AK96 -> 0 | Q96: =IF(P37=$AH$17,INDEX($AH$9:$AK$13,O36,4)*Q36+Q94,0) -> 0 | S96: =IF(U96<=$AQ$51,U96/(1-$AK$51-$AK$44),IF(U96<=$AQ$52,(U96+$AM$51-$AI$51*$AK$52)/(1-$AK$52-$AK$44),IF(U96<=$AQ$53,(U96+$AM$52-$AI$52*$AK$53)/(1-$AK$53-$AK$44),IF(U96<=$AQ$54,(U96+$AM$53-$AI$53*$AK$54)/(1-$AK$54-$AK$44),IF(U96<=$AS$44,(U96+$AM$54-$AI$54*$AK$55)/(1-$AK$55-$AK$44),IF(U96>$AS$44,(U96+$AM$44+$AM$54-$AI$54*$AK$55)/(1-$AK$55))))))) -> 0 | T96: =AP96+AQ96 -> 0 | U96: =IF(T37=$AH$17,INDEX($AH$9:$AK$13,S36,4)*U36+U94,0) -> 0 | X96: =G96-I96-Y96 -> 0 | Y96: =IF((G96-$F$82)>$AO$44,$AM$44,IF((G96-G94)>0,(G96-$F$82)*$AK$44,Y94)) -> 0 | AA96: =IF(Z95,IF(G96>$AK$30,(G96-$AK$30)*$AL$30,0),AA94) -> 0 | AB96: =IF(AB95>0,IF(AB95<0.03,1,0),0) -> 0 | AC96: =IF(OR(G96=0,AB95=0),0,(G96-G94)*AB95) -> 0 | AD96: =K96-M96-AE96 -> 0 | AE96: =IF((K96-$J$82)>$AO$44,$AM$44,IF((K96-K94)>0,(K96-$J$82)*$AK$44,AE94)) -> 0 | AG96: =IF(AF95,IF(K96>$AK$30,(K96-$AK$30)*$AL$30,0),AG94) -> 0 | AH96: =IF(AH95>0,IF(AH95<0.03,1,0),0) -> 0 | AI96: =IF(OR(K96=0,AH95=0),0,(K96-K94)*AH95) -> 0 | AJ96: =O96-Q96-AK96 -> 0 | AK96: =IF((O96-$N$82)>$AO$44,$AM$44,IF((O96-O94)>0,(O96-$N$82)*$AK$44,AK94)) -> 0 | AM96: =IF(AL95,IF(O96>$AK$30,(O96-$AK$30)*$AL$30,0),AM94) -> 0 | AN96: =IF(AN95>0,IF(AN95<0.03,1,0),0) -> 0 | AO96: =IF(OR(O96=0,AN95=0),0,(O96-O94)*AN95) -> 0 | AP96: =S96-U96-AQ96 -> 0 | AQ96: =IF((S96-$R$82)>$AO$44,$AM$44,IF((S96-S94)>0,(S96-$R$82)*$AK$44,AQ94)) -> 0 | AU96: =IF(OR(S96=0,AT95=0),0,(S96-S94)*AT95) -> 0
G97: =MAX(G95:G96) -> 0 | H97: =MAX(H95:H96) -> 0 | I97: =MAX(I95:I96) -> 0 | J97: =K97-AG97-AI97 -> 0 | K97: =MAX(K95:K96) -> 0 | L97: =MAX(L95:L96) -> 0 | M97: =MAX(M95:M96) -> 0 | N97: =O97-AM97-AO97 -> 0 | O97: =MAX(O95:O96) -> 0 | P97: =MAX(P95:P96) -> 0 | Q97: =MAX(Q95:Q96) -> 0 | R97: =S97-AS97-AU97 -> 0 | S97: =MAX(S95:S96) -> 0 | T97: =MAX(T95:T96) -> 0 | U97: =MAX(U95:U96) -> 0 | X97: =MAX(X95:X96) -> 0 | Y97: =MAX(Y95:Y96) -> 0 | AA97: =MAX(AA95:AA96) -> 0 | AC97: =MAX(AC95:AC96)+AC94 -> 0 | AD97: =MAX(AD95:AD96) -> 0 | AE97: 0 | AG97: =MAX(AG95:AG96) -> 0 | AI97: =MAX(AI95:AI96)+AI94 -> 0 | AJ97: 0 | AK97: 0 | AM97: =MAX(AM95:AM96) -> 0 | AO97: =MAX(AO95:AO96)+AO94 -> 0 | AP97: 0 | AQ97: 0 | AU97: =MAX(AU95:AU96)+AU94 -> 0
B98: 8 | C98: Beneficiary | G98: =IF(H40=$AH$16,INDEX($AH$9:$AK$13,G39,4)*I39+G97,0) -> 0 | H98: =X98+Y98 -> 0 | I98: =G98-H98 -> 0 | K98: =IF(L40=$AH$16,INDEX($AH$9:$AK$13,K39,4)*M39+K97,0) -> 0 | L98: =AD98+AE98 -> 0 | M98: =K98-L98 -> 0 | O98: =IF(P40=$AH$16,INDEX($AH$9:$AK$13,O39,4)*Q39+O97,0) -> 0 | P98: =AJ98+AK98 -> 0 | Q98: =O98-P98 -> 0 | S98: =IF(T40=$AH$16,INDEX($AH$9:$AK$13,S39,4)*U39+S97,0) -> 0 | T98: =AP98+AQ98 -> 0 | U98: =S98-T98 -> 0 | X98: =IF(G98>$AI$54,(G98-$AI$54)*$AK$55+$AM$54,IF(G98>$AI$53,(G98-$AI$53)*$AK$54+$AM$53,IF(G98 > $AI$52,(G98-$AI$52)*$AK$53+$AM$52,IF(G98>$AI$51,(G98-$AI$51)*$AK$52+$AM$51,IF(G98>0,G98*$AK$51,0))))) -> 0 | Y98: =IF((G98-$F$82)>$AO$44,$AM$44,IF((G98-G97)>0,(G98-$F$82)*$AK$44,Y97)) -> 0 | Z98: =$Z$75 -> FALSE | AA98: =IF(Z98,IF(G98>$AK$30,(G98-$AK$30)*$AL$30,0),AA97) -> 0 | AB98: ='NSR Calculator'!AA48 -> 0 | AC98: =IF(OR(G98=0,AB98=0),0,(G98-G97)*AB98) -> 0 | AD98: =IF(K98>$AI$54,(K98-$AI$54)*$AK$55+$AM$54,IF(K98>$AI$53,(K98-$AI$53)*$AK$54+$AM$53,IF(K98 > $AI$52,(K98-$AI$52)*$AK$53+$AM$52,IF(K98>$AI$51,(K98-$AI$51)*$AK$52+$AM$51,IF(K98>0,K98*$AK$51,0))))) -> 0 | AE98: =IF((K98-$J$82)>$AO$44,$AM$44,IF((K98-K97)>0,(K98-$J$82)*$AK$44,AE97)) -> 0 | AF98: =$AF$75 -> FALSE | AG98: =IF(AF98,IF(K98>$AK$30,(K98-$AK$30)*$AL$30,0),AG97) -> 0 | AH98: ='NSR Calculator'!AF48 -> 0 | AI98: =IF(OR(K98=0,AH98=0),0,(K98-K97)*AH98) -> 0 | AJ98: =IF(O98>$AI$54,(O98-$AI$54)*$AK$55+$AM$54,IF(O98>$AI$53,(O98-$AI$53)*$AK$54+$AM$53,IF(O98 > $AI$52,(O98-$AI$52)*$AK$53+$AM$52,IF(O98>$AI$51,(O98-$AI$51)*$AK$52+$AM$51,IF(O98>0,O98*$AK$51,0))))) -> 0 | AK98: =IF((O98-$N$82)>$AO$44,$AM$44,IF((O98-O97)>0,(O98-$N$82)*$AK$44,AK97)) -> 0 | AL98: =$AL$75 -> FALSE | AM98: =IF(AL98,IF(O98>$AK$30,(O98-$AK$30)*$AL$30,0),AM97) -> 0 | AN98: 0 | AO98: =IF(OR(O98=0,AN98=0),0,(O98-O97)*AN98) -> 0 | AP98: =IF(S98>$AI$54,(S98-$AI$54)*$AK$55+$AM$54,IF(S98>$AI$53,(S98-$AI$53)*$AK$54+$AM$53,IF(S98 > $AI$52,(S98-$AI$52)*$AK$53+$AM$52,IF(S98>$AI$51,(S98-$AI$51)*$AK$52+$AM$51,IF(S98>0,S98*$AK$51,0))))) -> 0 | AQ98: =IF((S98-$R$82)>$AO$44,$AM$44,IF((S98-S97)>0,(S98-$R$82)*$AK$44,AQ97)) -> 0 | AR98: =$AR$75 -> FALSE | AU98: =IF(OR(S98=0,AT98=0),0,(S98-S97)*AT98) -> 0
G99: =IF(I99<=$AQ$51,I99/(1-$AK$51-$AK$44),IF(I99<=$AQ$52,(I99+$AM$51-$AI$51*$AK$52)/(1-$AK$52-$AK$44),IF(I99<=$AQ$53,(I99+$AM$52-$AI$52*$AK$53)/(1-$AK$53-$AK$44),IF(I99<=$AQ$54,(I99+$AM$53-$AI$53*$AK$54)/(1-$AK$54-$AK$44),IF(I99<=$AS$44,(I99+$AM$54-$AI$54*$AK$55)/(1-$AK$55-$AK$44),IF(I99>$AS$44,(I99+$AM$44+$AM$54-$AI$54*$AK$55)/(1-$AK$55))))))) -> 0 | H99: =X99+Y99 -> 0 | I99: =IF(H40=$AH$17,INDEX($AH$9:$AK$13,G39,4)*I39+I97,0) -> 0 | K99: =IF(M99<=$AQ$51,M99/(1-$AK$51-$AK$44),IF(M99<=$AQ$52,(M99+$AM$51-$AI$51*$AK$52)/(1-$AK$52-$AK$44),IF(M99<=$AQ$53,(M99+$AM$52-$AI$52*$AK$53)/(1-$AK$53-$AK$44),IF(M99<=$AQ$54,(M99+$AM$53-$AI$53*$AK$54)/(1-$AK$54-$AK$44),IF(M99<=$AS$44,(M99+$AM$54-$AI$54*$AK$55)/(1-$AK$55-$AK$44),IF(M99>$AS$44,(M99+$AM$44+$AM$54-$AI$54*$AK$55)/(1-$AK$55))))))) -> 0 | L99: =AD99+AE99 -> 0 | M99: =IF(L40=$AH$17,INDEX($AH$9:$AK$13,K39,4)*M39+M97,0) -> 0 | O99: =IF(Q99<=$AQ$51,Q99/(1-$AK$51-$AK$44),IF(Q99<=$AQ$52,(Q99+$AM$51-$AI$51*$AK$52)/(1-$AK$52-$AK$44),IF(Q99<=$AQ$53,(Q99+$AM$52-$AI$52*$AK$53)/(1-$AK$53-$AK$44),IF(Q99<=$AQ$54,(Q99+$AM$53-$AI$53*$AK$54)/(1-$AK$54-$AK$44),IF(Q99<=$AS$44,(Q99+$AM$54-$AI$54*$AK$55)/(1-$AK$55-$AK$44),IF(Q99>$AS$44,(Q99+$AM$44+$AM$54-$AI$54*$AK$55)/(1-$AK$55))))))) -> 0 | P99: =AJ99+AK99 -> 0 | Q99: =IF(P40=$AH$17,INDEX($AH$9:$AK$13,O39,4)*Q39+Q97,0) -> 0 | S99: =IF(U99<=$AQ$51,U99/(1-$AK$51-$AK$44),IF(U99<=$AQ$52,(U99+$AM$51-$AI$51*$AK$52)/(1-$AK$52-$AK$44),IF(U99<=$AQ$53,(U99+$AM$52-$AI$52*$AK$53)/(1-$AK$53-$AK$44),IF(U99<=$AQ$54,(U99+$AM$53-$AI$53*$AK$54)/(1-$AK$54-$AK$44),IF(U99<=$AS$44,(U99+$AM$54-$AI$54*$AK$55)/(1-$AK$55-$AK$44),IF(U99>$AS$44,(U99+$AM$44+$AM$54-$AI$54*$AK$55)/(1-$AK$55))))))) -> 0 | T99: =AP99+AQ99 -> 0 | U99: =IF(T40=$AH$17,INDEX($AH$9:$AK$13,S39,4)*U39+U97,0) -> 0 | X99: =G99-I99-Y99 -> 0 | Y99: =IF((G99-$F$82)>$AO$44,$AM$44,IF((G99-G97)>0,(G99-$F$82)*$AK$44,Y97)) -> 0 | AA99: =IF(Z98,IF(G99>$AK$30,(G99-$AK$30)*$AL$30,0),AA97) -> 0 | AB99: =IF(AB98>0,IF(AB98<0.03,1,0),0) -> 0 | AC99: =IF(OR(G99=0,AB98=0),0,(G99-G97)*AB98) -> 0 | AD99: =K99-M99-AE99 -> 0 | AE99: =IF((K99-$J$82)>$AO$44,$AM$44,IF((K99-K97)>0,(K99-$J$82)*$AK$44,AE97)) -> 0 | AG99: =IF(AF98,IF(K99>$AK$30,(K99-$AK$30)*$AL$30,0),AG97) -> 0 | AH99: =IF(AH98>0,IF(AH98<0.03,1,0),0) -> 0 | AI99: =IF(OR(K99=0,AH98=0),0,(K99-K97)*AH98) -> 0 | AJ99: =O99-Q99-AK99 -> 0 | AK99: =IF((O99-$N$82)>$AO$44,$AM$44,IF((O99-O97)>0,(O99-$N$82)*$AK$44,AK97)) -> 0 | AM99: =IF(AL98,IF(O99>$AK$30,(O99-$AK$30)*$AL$30,0),AM97) -> 0 | AN99: =IF(AN98>0,IF(AN98<0.03,1,0),0) -> 0 | AO99: =IF(OR(O99=0,AN98=0),0,(O99-O97)*AN98) -> 0 | AP99: =S99-U99-AQ99 -> 0 | AQ99: =IF((S99-$R$82)>$AO$44,$AM$44,IF((S99-S97)>0,(S99-$R$82)*$AK$44,AQ97)) -> 0 | AU99: =IF(OR(S99=0,AT98=0),0,(S99-S97)*AT98) -> 0
G100: =MAX(G98:G99) -> 0 | H100: =MAX(H98:H99) -> 0 | I100: =MAX(I98:I99) -> 0 | J100: =K100-AG100-AI100 -> 0 | K100: =MAX(K98:K99) -> 0 | L100: =MAX(L98:L99) -> 0 | M100: =MAX(M98:M99) -> 0 | N100: =O100-AM100-AO100 -> 0 | O100: =MAX(O98:O99) -> 0 | P100: =MAX(P98:P99) -> 0 | Q100: =MAX(Q98:Q99) -> 0 | R100: =S100-AS100-AU100 -> 0 | S100: =MAX(S98:S99) -> 0 | T100: =MAX(T98:T99) -> 0 | U100: =MAX(U98:U99) -> 0 | X100: =MAX(X98:X99) -> 0 | Y100: 0 | AA100: =MAX(AA98:AA99) -> 0 | AC100: =MAX(AC98:AC99)+AC97 -> 0 | AD100: =MAX(AD98:AD99) -> 0 | AE100: 0 | AG100: =MAX(AG98:AG99) -> 0 | AI100: =MAX(AI98:AI99)+AI97 -> 0 | AJ100: 0 | AK100: 0 | AM100: =MAX(AM98:AM99) -> 0 | AO100: =MAX(AO98:AO99)+AO97 -> 0 | AP100: 0 | AQ100: 0 | AU100: =MAX(AU98:AU99)+AU97 -> 0
B101: 9 | C101: Contract | G101: =IF(H43=$AH$16,INDEX($AH$9:$AK$13,G42,4)*I42+G100,0) -> 0 | H101: =X101+Y101 -> 0 | I101: =G101-H101 -> 0 | K101: =IF(L43=$AH$16,INDEX($AH$9:$AK$13,K42,4)*M42+K100,0) -> 0 | L101: =AD101+AE101 -> 0 | M101: =K101-L101 -> 0 | O101: =IF(P43=$AH$16,INDEX($AH$9:$AK$13,O42,4)*Q42+O100,0) -> 0 | P101: =AJ101+AK101 -> 0 | Q101: =O101-P101 -> 0 | S101: =IF(T43=$AH$16,INDEX($AH$9:$AK$13,S42,4)*U42+S100,0) -> 0 | T101: =AP101+AQ101 -> 0 | U101: =S101-T101 -> 0 | X101: =IF(G101>$AI$54,(G101-$AI$54)*$AK$55+$AM$54,IF(G101>$AI$53,(G101-$AI$53)*$AK$54+$AM$53,IF(G101 > $AI$52,(G101-$AI$52)*$AK$53+$AM$52,IF(G101>$AI$51,(G101-$AI$51)*$AK$52+$AM$51,IF(G101>0,G101*$AK$51,0))))) -> 0 | Y101: =IF((G101-$F$82)>$AO$44,$AM$44,IF((G101-G100)>0,(G101-$F$82)*$AK$44,Y100)) -> 0 | Z101: =$Z$75 -> FALSE | AA101: =IF(Z101,IF(G101>$AK$30,(G101-$AK$30)*$AL$30,0),AA100) -> 0 | AB101: ='NSR Calculator'!AA50 -> 0 | AC101: =IF(OR(G101=0,AB101=0),0,(G101-G100)*AB101) -> 0 | AD101: =IF(K101>$AI$54,(K101-$AI$54)*$AK$55+$AM$54,IF(K101>$AI$53,(K101-$AI$53)*$AK$54+$AM$53,IF(K101 > $AI$52,(K101-$AI$52)*$AK$53+$AM$52,IF(K101>$AI$51,(K101-$AI$51)*$AK$52+$AM$51,IF(K101>0,K101*$AK$51,0))))) -> 0 | AE101: =IF((K101-$J$82)>$AO$44,$AM$44,IF((K101-K100)>0,(K101-$J$82)*$AK$44,AE100)) -> 0 | AF101: =$AF$75 -> FALSE | AG101: =IF(AF101,IF(K101>$AK$30,(K101-$AK$30)*$AL$30,0),AG100) -> 0 | AH101: ='NSR Calculator'!AF50 -> 0 | AI101: =IF(OR(K101=0,AH101=0),0,(K101-K100)*AH101) -> 0 | AJ101: =IF(O101>$AI$54,(O101-$AI$54)*$AK$55+$AM$54,IF(O101>$AI$53,(O101-$AI$53)*$AK$54+$AM$53,IF(O101 > $AI$52,(O101-$AI$52)*$AK$53+$AM$52,IF(O101>$AI$51,(O101-$AI$51)*$AK$52+$AM$51,IF(O101>0,O101*$AK$51,0))))) -> 0 | AK101: =IF((O101-$N$82)>$AO$44,$AM$44,IF((O101-O100)>0,(O101-$N$82)*$AK$44,AK100)) -> 0 | AL101: =$AL$75 -> FALSE | AM101: =IF(AL101,IF(O101>$AK$30,(O101-$AK$30)*$AL$30,0),AM100) -> 0 | AN101: 0 | AO101: =IF(OR(O101=0,AN101=0),0,(O101-O100)*AN101) -> 0 | AP101: =IF(S101>$AI$54,(S101-$AI$54)*$AK$55+$AM$54,IF(S101>$AI$53,(S101-$AI$53)*$AK$54+$AM$53,IF(S101 > $AI$52,(S101-$AI$52)*$AK$53+$AM$52,IF(S101>$AI$51,(S101-$AI$51)*$AK$52+$AM$51,IF(S101>0,S101*$AK$51,0))))) -> 0 | AQ101: =IF((S101-$R$82)>$AO$44,$AM$44,IF((S101-S100)>0,(S101-$R$82)*$AK$44,AQ100)) -> 0 | AR101: =$AR$75 -> FALSE | AU101: =IF(OR(S101=0,AT101=0),0,(S101-S100)*AT101) -> 0
G102: =IF(I102<=$AQ$51,I102/(1-$AK$51-$AK$44),IF(I102<=$AQ$52,(I102+$AM$51-$AI$51*$AK$52)/(1-$AK$52-$AK$44),IF(I102<=$AQ$53,(I102+$AM$52-$AI$52*$AK$53)/(1-$AK$53-$AK$44),IF(I102<=$AQ$54,(I102+$AM$53-$AI$53*$AK$54)/(1-$AK$54-$AK$44),IF(I102<=$AS$44,(I102+$AM$54-$AI$54*$AK$55)/(1-$AK$55-$AK$44),IF(I102>$AS$44,(I102+$AM$44+$AM$54-$AI$54*$AK$55)/(1-$AK$55))))))) -> 0 | H102: =X102+Y102 -> 0 | I102: =IF(H43=$AH$17,INDEX($AH$9:$AK$13,G42,4)*I42+I100,0) -> 0 | K102: =IF(M102<=$AQ$51,M102/(1-$AK$51-$AK$44),IF(M102<=$AQ$52,(M102+$AM$51-$AI$51*$AK$52)/(1-$AK$52-$AK$44),IF(M102<=$AQ$53,(M102+$AM$52-$AI$52*$AK$53)/(1-$AK$53-$AK$44),IF(M102<=$AQ$54,(M102+$AM$53-$AI$53*$AK$54)/(1-$AK$54-$AK$44),IF(M102<=$AS$44,(M102+$AM$54-$AI$54*$AK$55)/(1-$AK$55-$AK$44),IF(M102>$AS$44,(M102+$AM$44+$AM$54-$AI$54*$AK$55)/(1-$AK$55))))))) -> 0 | L102: =AD102+AE102 -> 0 | M102: =IF(L43=$AH$17,INDEX($AH$9:$AK$13,K42,4)*M42+M100,0) -> 0 | O102: =IF(Q102<=$AQ$51,Q102/(1-$AK$51-$AK$44),IF(Q102<=$AQ$52,(Q102+$AM$51-$AI$51*$AK$52)/(1-$AK$52-$AK$44),IF(Q102<=$AQ$53,(Q102+$AM$52-$AI$52*$AK$53)/(1-$AK$53-$AK$44),IF(Q102<=$AQ$54,(Q102+$AM$53-$AI$53*$AK$54)/(1-$AK$54-$AK$44),IF(Q102<=$AS$44,(Q102+$AM$54-$AI$54*$AK$55)/(1-$AK$55-$AK$44),IF(Q102>$AS$44,(Q102+$AM$44+$AM$54-$AI$54*$AK$55)/(1-$AK$55))))))) -> 0 | P102: =AJ102+AK102 -> 0 | Q102: =IF(P43=$AH$17,INDEX($AH$9:$AK$13,O42,4)*Q42+Q100,0) -> 0 | S102: =IF(U102<=$AQ$51,U102/(1-$AK$51-$AK$44),IF(U102<=$AQ$52,(U102+$AM$51-$AI$51*$AK$52)/(1-$AK$52-$AK$44),IF(U102<=$AQ$53,(U102+$AM$52-$AI$52*$AK$53)/(1-$AK$53-$AK$44),IF(U102<=$AQ$54,(U102+$AM$53-$AI$53*$AK$54)/(1-$AK$54-$AK$44),IF(U102<=$AS$44,(U102+$AM$54-$AI$54*$AK$55)/(1-$AK$55-$AK$44),IF(U102>$AS$44,(U102+$AM$44+$AM$54-$AI$54*$AK$55)/(1-$AK$55))))))) -> 0 | T102: =AP102+AQ102 -> 0 | U102: =IF(T43=$AH$17,INDEX($AH$9:$AK$13,S42,4)*U42+U100,0) -> 0 | X102: =G102-I102-Y102 -> 0 | Y102: =IF((G102-$F$82)>$AO$44,$AM$44,IF((G102-G100)>0,(G102-$F$82)*$AK$44,Y100)) -> 0 | AA102: =IF(Z101,IF(G102>$AK$30,(G102-$AK$30)*$AL$30,0),AA100) -> 0 | AB102: =IF(AB101>0,IF(AB101<0.03,1,0),0) -> 0 | AC102: =IF(OR(G102=0,AB101=0),0,(G102-G100)*AB101) -> 0 | AD102: =K102-M102-AE102 -> 0 | AE102: =IF((K102-$J$82)>$AO$44,$AM$44,IF((K102-K100)>0,(K102-$J$82)*$AK$44,AE100)) -> 0 | AG102: =IF(AF101,IF(K102>$AK$30,(K102-$AK$30)*$AL$30,0),AG100) -> 0 | AH102: =IF(AH101>0,IF(AH101<0.03,1,0),0) -> 0 | AI102: =IF(OR(K102=0,AH101=0),0,(K102-K100)*AH101) -> 0 | AJ102: =O102-Q102-AK102 -> 0 | AK102: =IF((O102-$N$82)>$AO$44,$AM$44,IF((O102-O100)>0,(O102-$N$82)*$AK$44,AK100)) -> 0 | AO102: =IF(OR(O102=0,AN101=0),0,(O102-O100)*AN101) -> 0 | AP102: =S102-U102-AQ102 -> 0 | AQ102: =IF((S102-$R$82)>$AO$44,$AM$44,IF((S102-S100)>0,(S102-$R$82)*$AK$44,AQ100)) -> 0 | AU102: =IF(OR(S102=0,AT101=0),0,(S102-S100)*AT101) -> 0
G103: =MAX(G101:G102) -> 0 | H103: =MAX(H101:H102) -> 0 | I103: =MAX(I101:I102) -> 0 | J103: =K103-AG103-AI103 -> 0 | K103: =MAX(K101:K102) -> 0 | L103: =MAX(L101:L102) -> 0 | M103: =MAX(M101:M102) -> 0 | N103: =O103-AM103-AO103 -> 0 | O103: =MAX(O101:O102) -> 0 | P103: =MAX(P101:P102) -> 0 | Q103: =MAX(Q101:Q102) -> 0 | R103: =S103-AS103-AU103 -> 0 | S103: =MAX(S101:S102) -> 0 | T103: =MAX(T101:T102) -> 0 | U103: =MAX(U101:U102) -> 0 | X103: =MAX(X101:X102) -> 0 | Y103: =MAX(Y101:Y102) -> 0 | AA103: =MAX(AA101:AA102) -> 0 | AC103: =MAX(AC101:AC102)+AC100 -> 0 | AD103: 0 | AE103: 0 | AG103: =MAX(AG101:AG102) -> 0 | AI103: =MAX(AI101:AI102)+AI100 -> 0 | AJ103: 0 | AK103: 0 | AO103: =MAX(AO101:AO102)+AO100 -> 0 | AP103: 0 | AQ103: 0 | AU103: =MAX(AU101:AU102)+AU100 -> 0
B104: 10 | C104: Child Support | G104: =IF(H46=$AH$16,INDEX($AH$9:$AK$13,G45,4)*I45+G103,0) -> 0 | H104: =X104+Y104 -> 0 | I104: =G104-H104 -> 0 | K104: =IF(L46=$AH$16,INDEX($AH$9:$AK$13,K45,4)*M45+K103,0) -> 0 | L104: =AD104+AE104 -> 0 | M104: =K104-L104 -> 0 | O104: =IF(P46=$AH$16,INDEX($AH$9:$AK$13,O45,4)*Q45+O103,0) -> 0 | P104: =AJ104+AK104 -> 0 | Q104: =O104-P104 -> 0 | S104: =IF(T46=$AH$16,INDEX($AH$9:$AK$13,S45,4)*U45+S103,0) -> 0 | T104: =AP104+AQ104 -> 0 | U104: =S104-T104 -> 0 | X104: =X103 -> 0 | Y104: =Y103 -> 0 | Z104: FALSE | AA104: =IF(Z104,IF(G104>$AK$30,(G104-$AK$30)*$AL$30,0),AA103) -> 0 | AB104: ='NSR Calculator'!AA52 -> 0 | AC104: =IF(OR(G104=0,AB104=0),0,(G104-G103)*AB104) -> 0 | AD104: =AD103 -> 0 | AE104: =AE103 -> 0 | AF104: FALSE | AG104: =IF(AF104,IF(K104>$AK$30,(K104-$AK$30)*$AL$30,0),AG103) -> 0 | AH104: ='NSR Calculator'!AF52 -> 0 | AI104: =IF(OR(K104=0,AH104=0),0,(K104-K103)*AH104) -> 0 | AJ104: =IF(O104>$AI$54,(O104-$AI$54)*$AK$55+$AM$54,IF(O104>$AI$53,(O104-$AI$53)*$AK$54+$AM$53,IF(O104 > $AI$52,(O104-$AI$52)*$AK$53+$AM$52,IF(O104>$AI$51,(O104-$AI$51)*$AK$52+$AM$51,IF(O104>0,O104*$AK$51,0))))) -> 0 | AK104: =IF((O104-$N$82)>$AO$44,$AM$44,IF((O104-O103)>0,(O104-$N$82)*$AK$44,AK103)) -> 0 | AL104: =$AL$75 -> FALSE | AM104: =IF(AL104,IF(O104>$AK$30,(O104-$AK$30)*$AL$30,0),AM103) -> 0 | AN104: 0 | AO104: =IF(OR(O104=0,AN104=0),0,(O104-O103)*AN104) -> 0 | AP104: =IF(S104>$AI$54,(S104-$AI$54)*$AK$55+$AM$54,IF(S104>$AI$53,(S104-$AI$53)*$AK$54+$AM$53,IF(S104 > $AI$52,(S104-$AI$52)*$AK$53+$AM$52,IF(S104>$AI$51,(S104-$AI$51)*$AK$52+$AM$51,IF(S104>0,S104*$AK$51,0))))) -> 0 | AQ104: =IF((S104-$R$82)>$AO$44,$AM$44,IF((S104-S103)>0,(S104-$R$82)*$AK$44,AQ103)) -> 0 | AR104: =$AR$75 -> FALSE | AU104: =IF(OR(S104=0,AT104=0),0,(S104-S103)*AT104) -> 0
G105: =IF(I105<=$AQ$51,I105/(1-$AK$51-$AK$44),IF(I105<=$AQ$52,(I105+$AM$51-$AI$51*$AK$52)/(1-$AK$52-$AK$44),IF(I105<=$AQ$53,(I105+$AM$52-$AI$52*$AK$53)/(1-$AK$53-$AK$44),IF(I105<=$AQ$54,(I105+$AM$53-$AI$53*$AK$54)/(1-$AK$54-$AK$44),IF(I105<=$AS$44,(I105+$AM$54-$AI$54*$AK$55)/(1-$AK$55-$AK$44),IF(I105>$AS$44,(I105+$AM$44+$AM$54-$AI$54*$AK$55)/(1-$AK$55))))))) -> 0 | H105: =X105+Y105 -> 0 | I105: =IF(H46=$AH$17,INDEX($AH$9:$AK$13,G45,4)*I45+I103,0) -> 0 | K105: =IF(M105<=$AQ$51,M105/(1-$AK$51-$AK$44),IF(M105<=$AQ$52,(M105+$AM$51-$AI$51*$AK$52)/(1-$AK$52-$AK$44),IF(M105<=$AQ$53,(M105+$AM$52-$AI$52*$AK$53)/(1-$AK$53-$AK$44),IF(M105<=$AQ$54,(M105+$AM$53-$AI$53*$AK$54)/(1-$AK$54-$AK$44),IF(M105<=$AS$44,(M105+$AM$54-$AI$54*$AK$55)/(1-$AK$55-$AK$44),IF(M105>$AS$44,(M105+$AM$44+$AM$54-$AI$54*$AK$55)/(1-$AK$55))))))) -> 0 | L105: =AD105+AE105 -> 0 | M105: =IF(L46=$AH$17,INDEX($AH$9:$AK$13,K45,4)*M45+M103,0) -> 0 | O105: =IF(Q105<=$AQ$51,Q105/(1-$AK$51-$AK$44),IF(Q105<=$AQ$52,(Q105+$AM$51-$AI$51*$AK$52)/(1-$AK$52-$AK$44),IF(Q105<=$AQ$53,(Q105+$AM$52-$AI$52*$AK$53)/(1-$AK$53-$AK$44),IF(Q105<=$AQ$54,(Q105+$AM$53-$AI$53*$AK$54)/(1-$AK$54-$AK$44),IF(Q105<=$AS$44,(Q105+$AM$54-$AI$54*$AK$55)/(1-$AK$55-$AK$44),IF(Q105>$AS$44,(Q105+$AM$44+$AM$54-$AI$54*$AK$55)/(1-$AK$55))))))) -> 0 | P105: =AJ105+AK105 -> 0 | Q105: =IF(P46=$AH$17,INDEX($AH$9:$AK$13,O45,4)*Q45+Q103,0) -> 0 | S105: =IF(U105<=$AQ$51,U105/(1-$AK$51-$AK$44),IF(U105<=$AQ$52,(U105+$AM$51-$AI$51*$AK$52)/(1-$AK$52-$AK$44),IF(U105<=$AQ$53,(U105+$AM$52-$AI$52*$AK$53)/(1-$AK$53-$AK$44),IF(U105<=$AQ$54,(U105+$AM$53-$AI$53*$AK$54)/(1-$AK$54-$AK$44),IF(U105<=$AS$44,(U105+$AM$54-$AI$54*$AK$55)/(1-$AK$55-$AK$44),IF(U105>$AS$44,(U105+$AM$44+$AM$54-$AI$54*$AK$55)/(1-$AK$55))))))) -> 0 | T105: =AP105+AQ105 -> 0 | U105: =IF(T46=$AH$17,INDEX($AH$9:$AK$13,S45,4)*U45+U103,0) -> 0 | X105: =G105-I105-Y105 -> 0 | Y105: =Y103 -> 0 | AA105: =IF(Z104,IF(G105>$AK$30,(G105-$AK$30)*$AL$30,0),AA103) -> 0 | AB105: =IF(AB104>0,IF(AB104<0.03,1,0),0) -> 0 | AC105: =IF(OR(G105=0,AB104=0),0,(G105-G103)*AB104) -> 0 | AD105: =K105-M105-AE105 -> 0 | AE105: =AE103 -> 0 | AG105: =IF(AF104,IF(K105>$AK$30,(K105-$AK$30)*$AL$30,0),AG103) -> 0 | AH105: =IF(AH104>0,IF(AH104<0.03,1,0),0) -> 0 | AI105: =IF(OR(K105=0,AH104=0),0,(K105-K103)*AH104) -> 0 | AJ105: =O105-Q105-AK105 -> 0 | AK105: =IF((O105-$N$82)>$AO$44,$AM$44,IF((O105-O103)>0,(O105-$N$82)*$AK$44,AK103)) -> 0 | AO105: =IF(OR(O105=0,AN104=0),0,(O105-O103)*AN104) -> 0 | AP105: =S105-U105-AQ105 -> 0 | AQ105: =IF((S105-$R$82)>$AO$44,$AM$44,IF((S105-S103)>0,(S105-$R$82)*$AK$44,AQ103)) -> 0 | AU105: =IF(OR(S105=0,AT104=0),0,(S105-S103)*AT104) -> 0
G106: =MAX(G104:G105) -> 0 | H106: =MAX(H104:H105) -> 0 | I106: =MAX(I104:I105) -> 0 | J106: =K106-AG106-AI106 -> 0 | K106: =MAX(K104:K105) -> 0 | L106: =MAX(L104:L105) -> 0 | M106: =MAX(M104:M105) -> 0 | N106: =O106-AM106-AO106 -> 0 | O106: =MAX(O104:O105) -> 0 | P106: =MAX(P104:P105) -> 0 | Q106: =MAX(Q104:Q105) -> 0 | R106: =S106-AS106-AU106 -> 0 | S106: =MAX(S104:S105) -> 0 | T106: =MAX(T104:T105) -> 0 | U106: =MAX(U104:U105) -> 0 | X106: =MAX(X104:X105) -> 0 | Y106: =MAX(Y104:Y105) -> 0 | AA106: =MAX(AA104:AA105) -> 0 | AC106: =MAX(AC104:AC105)+AC103 -> 0 | AD106: =MAX(AD104:AD105) -> 0 | AE106: 0 | AG106: =MAX(AG104:AG105) -> 0 | AI106: =MAX(AI104:AI105)+AI103 -> 0 | AJ106: =MAX(AJ104:AJ105) -> 0 | AK106: 0 | AO106: =MAX(AO104:AO105)+AO103 -> 0 | AP106: =MAX(AP104:AP105) -> 0 | AQ106: 0 | AU106: =MAX(AU104:AU105)+AU103 -> 0
C118: Total -all income sources | G118: =G106 -> 0 | H118: =H106 -> 0 | I118: =I106 -> 0 | K118: =K106 -> 0 | L118: =L106 -> 0 | M118: =M106 -> 0 | O118: =O106 -> 0 | P118: =P106 -> 0 | Q118: =Q106 -> 0 | S118: =S106 -> 0 | T118: =T106 -> 0 | U118: =U106 -> 0 | X118: =X106 -> 0 | Y118: =Y106 -> 0 | AA118: =AA106 -> 0 | AC118: =AC106 -> 0 | AD118: =AD106 -> 0 | AE118: =AE106 -> 0 | AG118: =AG106 -> 0 | AI118: =AI106 -> 0 | AJ118: =AJ106 -> 0 | AK118: =AK106 -> 0 | AO118: =AO106 -> 0 | AP118: =AP106 -> 0 | AQ118: =AQ106 -> 0 | AU118: =AU106 -> 0
AB119: =AB78+AB81+AB84+AB87+AB90+AB93+AB96+AB99+AB102+AB105 -> 0 | AH119: =AH78+AH81+AH84+AH87+AH90+AH93+AH96+AH99+AH102+AH105 -> 0
C120: KiwiSaver contibution rate | I120: =AC118 -> 0 | M120: =AI118 -> 0 | Q120: =AO118 -> 0 | U120: =AU118 -> 0
C122: Total Deductions | I122: =I120 -> 0 | M122: =M120 -> 0 | Q122: =Q120 -> 0 | U122: =U120 -> 0
C129: Annual Inome after tax and deductions | I129: =I118-I122 -> 0 | M129: =M118-M122 -> 0 | Q129: =Q118-Q122 -> 0 | U129: =U118-U122 -> 0
C131: Weighted Annual Income after tax | G131: =G79*$AP$9+(G82-G79)*$AP$12+(G85-G82)*$AP$10+(G88-G85)*$AP$16+(G91-G88)*$AP$17+(G94-G91)*$AP$11+(G97-G94)*$AP$18+(G100-G97)*$AP$13+(G103-G100)*$AP$12+(G106-G103)*$AP$19 -> 0 | I131: =I79*$AP$9+(I82-I79)*$AP$12+(I85-I82)*$AP$10+(I88-I85)*$AP$16+(I91-I88)*$AP$17+(I94-I91)*$AP$11+(I97-I94)*$AP$18+(I100-I97)*$AP$13+(I103-I100)*$AP$12+(I106-I103)*$AP$19 -> 0 | K131: =K79*$AP$9+(K82-K79)*$AP$12+(K85-K82)*$AP$10+(K88-K85)*$AP$16+(K91-K88)*$AP$17+(K94-K91)*$AP$11+(K97-K94)*$AP$18+(K100-K97)*$AP$13+(K103-K100)*$AP$12+(K106-K103)*$AP$19 -> 0 | M131: =M79*$AP$9+(M82-M79)*$AP$12+(M85-M82)*$AP$10+(M88-M85)*$AP$16+(M91-M88)*$AP$17+(M94-M91)*$AP$11+(M97-M94)*$AP$18+(M100-M97)*$AP$13+(M103-M100)*$AP$12+(M106-M103)*$AP$19 -> 0 | O131: =O79*$AP$9+(O82-O79)*$AP$12+(O85-O82)*$AP$10+(O88-O85)*$AP$16+(O91-O88)*$AP$17+(O94-O91)*$AP$11+(O97-O94)*$AP$18+(O100-O97)*$AP$13+(O103-O100)*$AP$12+(O106-O103)*$AP$19 -> 0 | Q131: =Q79*$AP$9+(Q82-Q79)*$AP$12+(Q85-Q82)*$AP$10+(Q88-Q85)*$AP$16+(Q91-Q88)*$AP$17+(Q94-Q91)*$AP$11+(Q97-Q94)*$AP$18+(Q100-Q97)*$AP$13+(Q103-Q100)*$AP$12+(Q106-Q103)*$AP$19 -> 0 | S131: =S79*$AP$9+(S82-S79)*$AP$12+(S85-S82)*$AP$10+(S88-S85)*$AP$16+(S91-S88)*$AP$17+(S94-S91)*$AP$11+(S97-S94)*$AP$18+(S100-S97)*$AP$13+(S103-S100)*$AP$12+(S106-S103)*$AP$19 -> 0 | U131: =U79*$AP$9+(U82-U79)*$AP$12+(U85-U82)*$AP$10+(U88-U85)*$AP$16+(U91-U88)*$AP$17+(U94-U91)*$AP$11+(U97-U94)*$AP$18+(U100-U97)*$AP$13+(U103-U100)*$AP$12+(U106-U103)*$AP$19 -> 0
C133: Weighted Annual Income after tax and deductions | I133: =I131-I122 -> 0 | M133: =M131-M122 -> 0 | Q133: =Q131-Q122 -> 0 | U133: =U131-U122 -> 0 | X133: Household Student Loan Payments | AB133: =AA118+AG118+AM118+AS118 -> 0
C135: Total All Applicants - Weighted Annual Income after tax and deductions | I135: =I133+M133+Q133+U133 -> 0 | M135: Total All Applicants - Gross Annual Income | Q135: =($G$118+$K$118+$O$118+$S$118)+$W$65+$W$66+($J$165*$AP$14)+$J$166 -> 0 | R135: =($G$118+$K$118+$O$118+$S$118)+$W$65+$W$66+$J$165+$J$166 -> 0 | X135: Has Kiwisaver < 3% | Z135: =AB119+AH119+AN119+AT119 -> 0
C136: Total All Applicants - WeightedMonthly Income after tax and deductions | I136: =I135/12 -> 0 | M136: Total Adjusted Gross Income | Q136: =(G131+K131+O131+S131)-(I122+M122+Q122+U122)+$W$65+$W$66+J167+J168 -> 0
C137: Rental Housing Income
C138: Weighting | G138: 1 | AK138: Conversion Factors
AH139: Expense and Repayment Frequency | AK139: To Annual | AL139: To Monthly
C140: Property One | AH140: Weekly | AK140: =365/7 -> 52.14285714 | AL140: =365/7/12 -> 4.345238095
C141: Location | H141: 0 | AH141: Fortnightly | AK141: =365/14 -> 26.07142857 | AL141: =365/14/12 -> 2.172619048
H142: 0 | AH142: Monthly | AK142: =12 -> 12 | AL142: 1
AH143: Quarterly | AK143: 4 | AL143: =4/12 -> 0.3333333333
C144: Rent frequency and amount | D144: Rental | G144: 1 | H144: =INDEX($AH$22:$AH$26,G144) -> Weekly | I144: ='NSR Calculator'!Y77 -> 0 | J144: =INDEX($AH$22:$AK$26,G144,4)*I144 -> 0 | AH144: Annual | AK144: =1 -> 1 | AL144: =1/12 -> 0.08333333333
C146: Property Two | AH146: Yes/No Answer
C147: Location | H147: 0 | AH147: No
H148: 0 | AH148: Yes
C150: Rent frequency and amount | G150: 1 | H150: =INDEX($AH$22:$AH$26,G150) -> Weekly | I150: ='NSR Calculator'!AD77 -> 0 | J150: =INDEX($AH$22:$AK$26,G150,4)*I150 -> 0 | AH150: Loan Type | AJ150: Existing SBS Bank loan types | AM150: Repayment Type
AH151: Car | AJ151: Total Residential | AM151: Table (P and I)
C152: Property Three | AH152: Personal | AJ152: Total Residential Investment | AM152: Interest Only
C153: Location | H153: 0 | AH153: Hire Purchase | AJ153: Total Flexi
H154: 0 | AH154: Other | AJ154: Total Commercial
C156: Rent frequency and amount | G156: 1 | H156: =INDEX($AH$22:$AH$26,G156) -> Weekly | I156: 0 | J156: =INDEX($AH$22:$AK$26,G156,4)*I156 -> 0
C158: Property Four
C159: Location | G159: Address | H159: 0
H160: 0
C162: Rent frequency and amount | G162: 1 | H162: =INDEX($AH$22:$AH$26,G162) -> Weekly | I162: 0 | J162: =INDEX($AH$22:$AK$26,G162,4)*I162 -> 0
C165: Annual Rental Income | J165: =J162+J156+J150+J144 -> 0
C166: Boarder Income | G166: 1 | H166: =INDEX($AH$22:$AH$26,G166) -> Weekly | I166: ='NSR Calculator'!Y82 -> 0 | J166: =INDEX($AH$22:$AK$26,G166,4)*I166 -> 0
C167: Weighted Annual Rental Income | J167: =J165*$AP$14 -> 0
C168: Weighted Annual Boarder Income | J168: =J166*$AP$15 -> 0 | AH168: Maximum Loan Term
C169: Weighted Monthly Rental Income | J169: =(J167+J168)/12 -> 0 | AH169: Maximum Age | AK169: 85
AH170: Maximum Term | AK170: 30
J172: Annual | L172: Monthly | AH172: Debt Servicing Assumptions
C173: Income available for debt servicing incluidng rentals | J173: =I135+J167 -> 0 | L173: =I136+J169 -> 0 | N173: =IF(ABS(J173-L173*12)<=0.01,"OK", "Please Check") -> OK | AH173: NSR | AK173: =IF(OR(H9=6,H14=TRUE),'Calculator Parameters'!C43,'Calculator Parameters'!C42) -> 1
AH174: DTI | AK174: =IF(D15,'Calculator Parameters'!C46,'Calculator Parameters'!C45) -> 6
G175: Applicants 1 and 2 | AH175: ='Calculator Parameters'!B49 -> 0 | AK175: ='Calculator Parameters'!C49 -> 0 | AL175: =AK175*100 -> 0
C176: Living Expenses | AH176: ='Calculator Parameters'!B48 -> 0 | AK176: ='Calculator Parameters'!C48 -> 0
I177: Input | J177: Monthly | AH177: ='Calculator Parameters'!B52 -> SBS Interest rate buffer | AK177: ='Calculator Parameters'!C52 -> 0.025 | AL177: =AK177*100 -> 2.5
C178: Living Expenses - Monthly | G178: 3 | H178: =INDEX($AH$140:$AH$144,G178) -> Monthly | I178: ='NSR Calculator'!Y88 -> 0 | J178: =INDEX($AH$140:$AL$144,G178,5)*I178 -> 0 | AH178: Max LVR | AK178: 0.85
AH179: ='Calculator Parameters'!B51 -> SBS Foundation interest rate | AK179: ='Calculator Parameters'!C51 -> 0.04
AH180: Initial: NSR=(MC - Rentals +MLA)/MNI, therefore NSR*0.9 +Rentals-MLA = Maximnum MC
C181: Other Expenses - Monthly | G181: 3 | H181: =INDEX($AH$140:$AH$144,G181) -> Monthly | I181: ='NSR Calculator'!AD88 -> 0 | J181: =INDEX($AH$140:$AL$144,G181,5)*I181 -> 0 | AH181: Suggested:
C184: Household | G184: 3 | H184: =INDEX($AH$140:$AH$144,G184) -> Monthly | I184: 0 | J184: =INDEX($AH$140:$AL$144,G184,5)*I184 -> 0
C185: e.g. Food, clothing, travel, health, entertainment
C187: Council Rates | G187: 3 | H187: =INDEX($AH$140:$AH$144,G187) -> Monthly | I187: 0 | J187: =INDEX($AH$140:$AL$144,G187,5)*I187 -> 0
C190: Home and Contents Insurance | G190: 3 | H190: =INDEX($AH$140:$AH$144,G190) -> Monthly | I190: 0 | J190: =INDEX($AH$140:$AL$144,G190,5)*I190 -> 0
AH191: Registered Valuers Report Requirement
AH192: Security located within 50 Km of SBS Bank Branch
C193: Health and Life Insurance | G193: 3 | H193: =INDEX($AH$140:$AH$144,G193) -> Monthly | I193: 0 | J193: =INDEX($AH$140:$AL$144,G193,5)*I193 -> 0 | AH193: Yes/No Answer
C194: Please include Trauma Cover, Income Protection etc. | AH194: No
AH195: Yes | AI195: A Registered Valuer's Report is required for this property
C196: Education | G196: 3 | H196: =INDEX($AH$140:$AH$144,G196) -> Monthly | I196: 0 | J196: =INDEX($AH$140:$AL$144,G196,5)*I196 -> 0
AH197: Security in town with population > 7,000 people
B198: 1 | AH198: Yes/No Answer
C199: Child Support | G199: 3 | H199: =INDEX($AH$140:$AH$144,G199) -> Monthly | I199: 0 | J199: =INDEX($AH$140:$AL$144,G199,5)*I199 -> 0 | AH199: No
C200: Please include any other Child Care payments | AH200: Yes | AI200: A Registered Valuer's Report is required for this property
B201: 1
C202: Other 1 | G202: 3 | H202: =INDEX($AH$140:$AH$144,G202) -> Monthly | I202: 0 | J202: =INDEX($AH$140:$AL$144,G202,5)*I202 -> 0
B204: 1
C205: Other 2 | G205: 3 | H205: =INDEX($AH$140:$AH$144,G205) -> Monthly | I205: 0 | J205: =INDEX($AH$140:$AL$144,G205,5)*I205 -> 0 | AH205: Valuation Type
AH206: Government valuation
B207: 1 | AH207: Sale & Purchase Agreement
C208: Total Living Expenses | J208: =J178+J181 -> 0 | AH208: Registered Valuers Report
B209: 1 | AN209: Security types, valuation method and maximum LVR- Temporary Input Only
B210: 1 | AQ210: Where SBS Bank is represented (defined as borrower and/or security being located within 50km of the nearest branch and in a town/centre of at least 7000 people) | AT210: Where SBS Bank is not represented (defined as borrower and/or security being located more than 50km from the nearest branch and in a town/centre of at least 7000 people
C211: SBS Bank Loans with fixed repayments | AH211: Property Type | AQ211: GV | AR211: S&P | AS211: RVR | AT211: RVR
B212: 1 | C212: Type | G212: Balance | H212: Rate | I212: Term | J212: Repayment | K212: No of Payments | M212: Rept Type | N212: Repayment | U212: Rept P&I | V212: Rept P&I Max Term | X212: Maximum Rept | AA212: Rept IO | AB212: Rept IO Max Term | AD212: Maximum Rept | AH212: Residential property (freehold) Own use/holiday | AN212: Residential property (freehold) Own use/holiday | AQ212: 0.85 | AR212: 0.85 | AS212: 0.85 | AT212: 0.8
B213: 1 | J213: Frequency | K213: Per Year/Month | N213: (Actual) | U213: (Calculated) | V213: (Calculated) | X213: Monthly | AA213: (Calculated) | AB213: (Calculated) | AD213: Monthly | AH213: Residential property (freehold) Investment (rental) | AN213: Residential property (freehold) Investment (rental) | AQ213: 0.85 | AR213: 0.85 | AS213: 0.85 | AT213: 0.8
N214: As reported by customer | U214: =$AL$177&"% Int Buffer" -> 2.5% Int Buffer | V214: =$AL$177&"% Int Buffer" -> 2.5% Int Buffer | X214: ="With "&$AL$177&"% Int Buffer" -> With 2.5% Int Buffer | AA214: =$AL$177&"% Int Buffer" -> 2.5% Int Buffer | AB214: =$AL$177&"% Int Buffer" -> 2.5% Int Buffer | AD214: ="With "&$AL$177&"% Int Buffer" -> With 2.5% Int Buffer | AH214: Residential property (leasehold) Own use/holiday | AN214: Residential property (leasehold) Own use/holiday | AQ214: 0.7 | AR214: 0.7 | AS214: 0.7 | AT214: 0.7
B215: 1 | U215: Cust Term | V215: Max Term | X215: Set for each loan to avoid gaming | AA215: Cust Term | AB215: Max Term | AD215: Set for each loan to avoid gaming | AH215: Residential property (leasehold) Investment (rental) | AN215: Residential property (leasehold) Investment (rental) | AQ215: 0.7 | AR215: 0.7 | AS215: 0.7 | AT215: 0.7
B216: 1 | C216: =INDEX($AJ$151:$AJ$155,B216) -> Total Residential | G216: 0 | H216: 0 | I216: =IF(AND(G216>0,H216>0),IF('NSR Calculator'!G98>0,'NSR Calculator'!G98,Calculation!$K$288/12)) -> FALSE | J216: 3 | K216: =INDEX($AH$140:$AL$144,J216,4) -> 12 | L216: 1 | M216: =INDEX($AH$157:$AH$159,L216) -> 0 | N216: 0 | U216: =IF(AND(G216>0,H216>0,I216>0),-PMT(($AK$179+$AK$177)/K216,I216*K216,G216,),"") ->  | V216: =IF(AND(G216>0,H216>0,I216>0),-PMT(($AK$179+$AK$177)/K216,$K$284/12*K216,G216,),"") ->  | AA216: =IF(AND(G216>0,H216>0,I216>0),(G216*($AK$179+$AK$177))/12,"") ->  | AB216: =IF(AND(M216>0,N216>0,O216>0),-PMT(($AK$179+$AK$177)/(Q216*100),$K$284/12*Q216,M216,),"") ->  | AH216: Vacant residential land (< 10 hectares) Serviced | AN216: Vacant residential land (< 10 hectares) Serviced | AQ216: 0.8 | AR216: 0.8 | AS216: 0.8 | AT216: 0.8
K217: =INDEX($AH$140:$AL$144,J216,5) -> 1 | N217: =IF(ISNUMBER(N216),N216*K217,) -> 0 | U217: =IF(ISNUMBER(U216),U216*K217,) -> 0 | V217: =IF(ISNUMBER(V216),V216*K217,) -> 0 | X217: =MAX(N217,U217,V217) -> 0 | AA217: =IF(ISNUMBER(AA216),AA216*Q217,) -> 0 | AB217: =IF(ISNUMBER(AB216),AB216*Q217,) -> 0 | AD217: =MAX(T217,AA217,AB217) -> 0 | AH217: Vacant residential land (< 10 hectares) Not serviced | AN217: Vacant residential land (< 10 hectares) Not serviced | AQ217: 0.5 | AR217: 0.5 | AS217: 0.5 | AT217: 0.5
B218: 1 | AH218: Lifestyle / semi-rural (< 15 hectares) Serviced only | AN218: Lifestyle / semi-rural (< 15 hectares) Serviced only | AQ218: 0.8 | AR218: 0.8 | AS218: 0.8 | AT218: 0.7
B219: 1 | C219: =INDEX($AJ$151:$AJ$155,B219) -> Total Residential | G219: 0 | H219: 0 | I219: =IF(AND(G219>0,H219>0),IF('NSR Calculator'!G100>0,'NSR Calculator'!G100,Calculation!$K$288/12)) -> FALSE | J219: 3 | K219: =INDEX($AH$140:$AL$144,J219,4) -> 12 | L219: 1 | M219: =INDEX($AH$157:$AH$159,L219) -> 0 | N219: 0 | U219: =IF(AND(G219>0,H219>0,I219>0),-PMT(($AK$179+$AK$177)/K219,I219*K219,G219,),"") ->  | V219: =IF(AND(G219>0,H219>0,I219>0),-PMT(($AK$179+$AK$177)/K219,$K$284/12*K219,G219,),"") ->  | AA219: =IF(AND(M219>0,N219>0,O219>0),-PMT(($AK$179+$AK$177)/(Q219*100),O219*Q219,M219,),"") ->  | AB219: =IF(AND(M219>0,N219>0,O219>0),-PMT(($AK$179+$AK$177)/(Q219*100),$K$284/12*Q219,M219,),"") ->  | AH219: Apartments (size > 50 sqm) Serviced | AN219: Apartments (size > 50 sqm) Serviced | AQ219: 0.5 | AR219: 0.5 | AS219: 0.6 | AT219: 0.6
K220: =INDEX($AH$140:$AL$144,J219,5) -> 1 | N220: =IF(ISNUMBER(N219),N219*K220,) -> 0 | U220: =IF(ISNUMBER(U219),U219*K220,) -> 0 | V220: =IF(ISNUMBER(V219),V219*K220,) -> 0 | X220: =MAX(N220,U220,V220) -> 0 | AA220: =IF(ISNUMBER(AA219),AA219*Q220,) -> 0 | AB220: =IF(ISNUMBER(AB219),AB219*Q220,) -> 0 | AD220: =MAX(T220,AA220,AB220) -> 0 | AH220: Apartments (size > 50 sqm) Not serviced | AN220: Apartments (size > 50 sqm) Not serviced | AQ220: 0.8 | AR220: 0.8 | AS220: 0.8 | AT220: 0.7
B222: 1 | C222: SBS Bank Loan Fixed Repayments - Monthly Total | N222: =N217+N220 -> 0 | U222: =U217+U220 -> 0 | V222: =V217+V220 -> 0 | X222: =X217+X220 -> 0 | AA222: =AA217+AA220 -> 0 | AB222: =AB217+AB220 -> 0 | AD222: =AD217+AD220 -> 0
B224: 1
B225: 1
C226: Existing Other Bank mortgage debt
B227: 1 | C227: Type | G227: Balance | H227: Rate | I227: Term | J227: Repayment | K227: No of Payments | M227: Rept Type | N227: Repayment | U227: Rept P&I | V227: Rept P&I Max Term | X227: Maximum Rept | AA227: Rept IO | AB227: Rept IO Max Term | AD227: Maximum Rept
B228: 1 | J228: Frequency | K228: Per Year/Month | N228: (Actual) | U228: (Calculated) | V228: (Calculated) | X228: Monthly | AA228: (Calculated) | AB228: (Calculated) | AD228: Monthly
B229: 1 | N229: As reported by customer | U229: =$AL$177&"% Int Buffer" -> 2.5% Int Buffer | V229: =$AL$177&"% Int Buffer" -> 2.5% Int Buffer | X229: ="With "&$AL$177&"% Int Buffer" -> With 2.5% Int Buffer | AA229: =$AL$177&"% Int Buffer" -> 2.5% Int Buffer | AB229: =$AL$177&"% Int Buffer" -> 2.5% Int Buffer | AD229: ="With "&$AL$177&"% Int Buffer" -> With 2.5% Int Buffer
B230: 1 | U230: Cust Term | V230: Max Term | X230: Set for each loan to avoid gaming | AA230: Cust Term | AB230: Max Term | AD230: Set for each loan to avoid gaming
B231: 1 | C231: =INDEX($AJ$151:$AJ$155,B231) -> Total Residential | G231: 0 | H231: 0 | I231: =IF(AND(G231>0,H231>0),IF('NSR Calculator'!G107>0,'NSR Calculator'!G107,Calculation!$K$288/12)) -> FALSE | J231: 3 | K231: =INDEX($AH$140:$AL$144,J231,4) -> 12 | L231: 1 | M231: =INDEX($AH$157:$AH$159,L231) -> 0 | N231: 0 | U231: =IF(AND(G231>0,H231>0,I231>0),-PMT(($AK$179+$AK$177)/K231,I231*K231,G231,),"") ->  | V231: =IF(AND(G231>0,H231>0,I231>0),-PMT(($AK$179+$AK$177)/K231,$K$284/12*K231,G231,),"") ->  | AA231: =IF(AND(M231>0,N231>0,O231>0),-PMT(($AK$179+$AK$177)/(Q231*100),O231*Q231,M231,),"") ->  | AB231: =IF(AND(M231>0,N231>0,O231>0),-PMT(($AK$179+$AK$177)/(Q231*100),$K$284/12*Q231,M231,),"") -> 
K232: =INDEX($AH$140:$AL$144,J231,5) -> 1 | N232: =IF(ISNUMBER(N231),N231*K232,) -> 0 | U232: =IF(ISNUMBER(U231),U231*K232,) -> 0 | V232: =IF(ISNUMBER(V231),V231*K232,) -> 0 | X232: =MAX(N232,U232,V232) -> 0 | AA232: =IF(ISNUMBER(AA231),AA231*Q232,) -> 0 | AB232: =IF(ISNUMBER(AB231),AB231*Q232,) -> 0 | AD232: =MAX(T232,AA232,AB232) -> 0
B233: 1
B234: 1 | C234: =INDEX($AJ$151:$AJ$155,B234) -> Total Residential | G234: 0 | H234: 0 | I234: =IF(AND(G234>0,H234>0),IF('NSR Calculator'!G109>0,'NSR Calculator'!G109,Calculation!$K$288/12)) -> FALSE | J234: 3 | K234: =INDEX($AH$140:$AL$144,J234,4) -> 12 | L234: 1 | M234: =INDEX($AH$157:$AH$159,L234) -> 0 | N234: 0 | U234: =IF(AND(G234>0,H234>0,I234>0),-PMT(($AK$179+$AK$177)/K234,I234*K234,G234,),"") ->  | V234: =IF(AND(G234>0,H234>0,I234>0),-PMT(($AK$179+$AK$177)/K234,$K$284/12*K234,G234,),"") ->  | AA234: =IF(AND(M234>0,N234>0,O234>0),-PMT(($AK$179+$AK$177)/(Q234*100),O234*Q234,M234,),"") ->  | AB234: =IF(AND(M234>0,N234>0,O234>0),-PMT(($AK$179+$AK$177)/(Q234*100),$K$284/12*Q234,M234,),"") -> 
K235: =INDEX($AH$140:$AL$144,J234,5) -> 1 | N235: =IF(ISNUMBER(N234),N234*K235,) -> 0 | U235: =IF(ISNUMBER(U234),U234*K235,) -> 0 | V235: =IF(ISNUMBER(V234),V234*K235,) -> 0 | X235: =MAX(N235,U235,V235) -> 0 | AA235: =IF(ISNUMBER(AA234),AA234*Q235,) -> 0 | AB235: =IF(ISNUMBER(AB234),AB234*Q235,) -> 0 | AD235: =MAX(T235,AA235,AB235) -> 0
B236: 1
B237: 1 | C237: Other Bank P & I payments - Monthly Total | N237: =N232+N235 -> 0 | U237: =U232+U235 -> 0 | V237: =V232+V235 -> 0 | X237: =X232+X235 -> 0 | AA237: =AA232+AA235 -> 0 | AB237: =AB232+AB235 -> 0 | AD237: =AD232+AD235 -> 0
B238: 1
B239: 1
B240: 1
B242: 1
C280: Proposed Loan
C282: Loan Amount | E282: 0 | G282: Loan Term | J282: 0 | K282: Scenario rate
E283: + Buffer | F283: Monthly | J283: =MIN($AK$169-G5,$AK$169-K5,$AK$169-O5,$AK$169-S5) -> 85 | K283: Household min by age
C284: Rate | D284: =IF(J282>0,J282,$AK$179) -> 0.04 | E284: =D284+$AK$177 -> 0.065 | F284: =E284/12 -> 0.005416666667 | G284: Proposed maximum loan term | K284: =Calculation!K284 -> 360
M286: =IF(AND(K286>11,K286<24),"1 year ",IF(K286>23,INT(K286/12)&" years ",))&IF(MOD(K286,12)=1," 1 month",IF(MOD(K286,12)>1,MOD(K286,12)&" months",)) -> 
... 29 more rows

Sheet Calc3 (hidden)
G1: Applicant 1 | K1: Applicant 2 | O1: Applicant 3 | S1: Applicant 4
AH2: Reference field for controls | AN2: Credit Rules
B5: Age of applicants | G5: ='NSR Calculator'!AJ25 -> 0 | K5: ='NSR Calculator'!AO25 -> 0 | O5: 0 | S5: 0 | W5: =MIN($AK$169-G5,$AK$169-K5,$AK$169-O5,$AK$169-S5) -> 85 | X5: Household min by age
AK7: Conversion Factors | AN7: Income Source Weighting
B8: Household Composition | AH8: Income Frequency List | AK8: To Annual | AL8: To Monthly | AN8: Source | AP8: Weight
B9: Adults in household | E9: ='NSR Calculator'!AJ16 -> 0 | G9: Properties | H9: 1 | I9: =INDEX(Calculation!$AT$1:$AT$6,$H$9) -> 0 | AH9: Annual | AK9: 1 | AL9: =1/12 -> 0.08333333333 | AN9: Salary or Wages | AP9: ='Calculator Parameters'!C10 -> 1
H10: 3 | J10: =CONCATENATE(" ") ->  | AH10: Monthly | AK10: 12 | AL10: 1 | AN10: Overtime | AP10: ='Calculator Parameters'!C11 -> 0.8 | AR10: Includes Allowance,Bonus,Overtime, Investment
I11: =Calculation!I11 -> Retail Lending: NSR should be 100% or less for approval | AH11: Fortnightly | AK11: 26.07142857 | AL11: =365/14/12 -> 2.172619048 | AN11: Commission | AP11: ='Calculator Parameters'!C14 -> 0.75
B12: Children in household | E12: ='NSR Calculator'!AO16 -> 0 | AH12: Weekly | AK12: 52.14285714 | AL12: =365/7/12 -> 4.345238095 | AN12: Self-employed | AP12: ='Calculator Parameters'!C15 -> 1 | AR12: Includes Contract, Business Income
AH13: Quarterly | AK13: 4 | AL13: =4/12 -> 0.3333333333 | AN13: Beneficiary | AP13: ='Calculator Parameters'!C16 -> 1
B14: Owner Occupied | D14: =Calculation!D14 -> FALSE | G14: Prop Investor | H14: FALSE | AN14: Rentals | AP14: ='Calculator Parameters'!C17 -> 0.75
B15: Investment | D15: =Calculation!D15 -> FALSE | AH15: Tax status | AN15: Boarder | AP15: ='Calculator Parameters'!C20 -> 0.8
B16: Income input data (excluding rentals) source and amount | AH16: Gross (Pre tax) | AN16: Bonus | AP16: ='Calculator Parameters'!C12 -> 0.7
G17: Applicant 1 | K17: Applicant 2 | O17: Applicant 3 | S17: Applicant 4 | AH17: Net (After tax) | AN17: Allowance | AP17: ='Calculator Parameters'!C13 -> 0.8
C18: Salary or Wages | E18: Frequency | G18: 1 | H18: =INDEX(Calculation!$AH$9:$AH$13,G18) -> Annual | I18: ='NSR Calculator'!$AJ$27 -> 0 | K18: 1 | L18: =INDEX(Calculation!$AH$9:$AH$13,K18) -> Annual | M18: ='NSR Calculator'!$AO$27 -> 0 | O18: 1 | P18: =INDEX(Calculation!$AH$9:$AH$13,O18) -> Annual | Q18: 0 | S18: 1 | T18: =INDEX(Calculation!$AH$9:$AH$13,S18) -> Annual | U18: 0 | AN18: Investment | AP18: ='Calculator Parameters'!C18 -> 0.5
E19: Tax staus | G19: 1 | H19: =INDEX(Calculation!$AH$16:$AH$17,G19) -> Gross (Pre tax) | K19: 1 | L19: =INDEX(Calculation!$AH$16:$AH$17,K19) -> Gross (Pre tax) | O19: 1 | P19: =INDEX(Calculation!$AH$16:$AH$17,O19) -> Gross (Pre tax) | S19: 1 | T19: =INDEX(Calculation!$AH$16:$AH$17,S19) -> Gross (Pre tax) | AN19: Child Support | AP19: ='Calculator Parameters'!C19 -> 0.8
AK20: Conversion Factors
C21: Self-employed | E21: Frequency | G21: 1 | H21: =INDEX(Calculation!$AH$9:$AH$13,G21) -> Annual | I21: ='NSR Calculator'!$AJ$30 -> 0 | K21: 1 | L21: =INDEX(Calculation!$AH$9:$AH$13,K21) -> Annual | M21: ='NSR Calculator'!$AO$30 -> 0 | O21: 1 | P21: =INDEX(Calculation!$AH$9:$AH$13,O21) -> Annual | Q21: 0 | S21: 1 | T21: =INDEX(Calculation!$AH$9:$AH$13,S21) -> Annual | U21: 0 | AH21: Rental Frequency List | AK21: To Annual | AL21: To Monthly
E22: Tax staus | G22: 1 | H22: =INDEX(Calculation!$AH$16:$AH$17,G22) -> Gross (Pre tax) | K22: 1 | L22: =INDEX(Calculation!$AH$16:$AH$17,K22) -> Gross (Pre tax) | O22: 1 | P22: =INDEX(Calculation!$AH$16:$AH$17,O22) -> Gross (Pre tax) | S22: 1 | T22: =INDEX(Calculation!$AH$16:$AH$17,S22) -> Gross (Pre tax) | AH22: Weekly | AK22: =365/7 -> 52.14285714 | AL22: =365/7/12 -> 4.345238095
AH23: Fortnightly | AK23: =365/14 -> 26.07142857 | AL23: =365/14/12 -> 2.172619048
C24: Overtime | E24: Frequency | G24: 1 | H24: =INDEX(Calculation!$AH$9:$AH$13,G24) -> Annual | I24: ='NSR Calculator'!$AJ$33 -> 0 | K24: 1 | L24: =INDEX(Calculation!$AH$9:$AH$13,K24) -> Annual | M24: ='NSR Calculator'!$AO$33 -> 0 | O24: 1 | P24: =INDEX(Calculation!$AH$9:$AH$13,O24) -> Annual | Q24: 0 | S24: 1 | T24: =INDEX(Calculation!$AH$9:$AH$13,S24) -> Annual | U24: 0 | AH24: Monthly | AK24: =12 -> 12 | AL24: 1
E25: Tax staus | G25: 1 | H25: =INDEX(Calculation!$AH$16:$AH$17,G25) -> Gross (Pre tax) | K25: 1 | L25: =INDEX(Calculation!$AH$16:$AH$17,K25) -> Gross (Pre tax) | O25: 1 | P25: =INDEX(Calculation!$AH$16:$AH$17,O25) -> Gross (Pre tax) | S25: 1 | T25: =INDEX(Calculation!$AH$16:$AH$17,S25) -> Gross (Pre tax) | AH25: Annual | AK25: =1 -> 1 | AL25: =1/12 -> 0.08333333333
AH26: Quarterly | AK26: 4 | AL26: =4/12 -> 0.3333333333
C27: Bonus | E27: Frequency | G27: 1 | H27: =INDEX(Calculation!$AH$9:$AH$13,G27) -> Annual | I27: ='NSR Calculator'!$AJ$36 -> 0 | K27: 1 | L27: =INDEX(Calculation!$AH$9:$AH$13,K27) -> Annual | M27: ='NSR Calculator'!$AO$36 -> 0 | O27: 1 | P27: =INDEX(Calculation!$AH$9:$AH$13,O27) -> Annual | Q27: 0 | S27: 1 | T27: =INDEX(Calculation!$AH$9:$AH$13,S27) -> Annual | U27: 0
E28: Tax staus | G28: 1 | H28: =INDEX(Calculation!$AH$16:$AH$17,G28) -> Gross (Pre tax) | K28: 1 | L28: =INDEX(Calculation!$AH$16:$AH$17,K28) -> Gross (Pre tax) | O28: 1 | P28: =INDEX(Calculation!$AH$16:$AH$17,O28) -> Gross (Pre tax) | S28: 1 | T28: =INDEX(Calculation!$AH$16:$AH$17,S28) -> Gross (Pre tax) | AH28: Student Loan | AK28: Threshold | AL28: Rate
AH29: No
C30: Allowance | E30: Frequency | G30: 1 | H30: =INDEX(Calculation!$AH$9:$AH$13,G30) -> Annual | I30: ='NSR Calculator'!$AJ$39 -> 0 | K30: 1 | L30: =INDEX(Calculation!$AH$9:$AH$13,K30) -> Annual | M30: ='NSR Calculator'!$AO$39 -> 0 | O30: 1 | P30: =INDEX(Calculation!$AH$9:$AH$13,O30) -> Annual | Q30: 0 | S30: 1 | T30: =INDEX(Calculation!$AH$9:$AH$13,S30) -> Annual | U30: 0 | AH30: Yes | AK30: ='Calculator Parameters'!B38 -> 24128 | AL30: ='Calculator Parameters'!C38 -> 0.12
E31: Tax staus | G31: 1 | H31: =INDEX(Calculation!$AH$16:$AH$17,G31) -> Gross (Pre tax) | K31: 1 | L31: =INDEX(Calculation!$AH$16:$AH$17,K31) -> Gross (Pre tax) | O31: 1 | P31: =INDEX(Calculation!$AH$16:$AH$17,O31) -> Gross (Pre tax) | S31: 1 | T31: =INDEX(Calculation!$AH$16:$AH$17,S31) -> Gross (Pre tax)
AH32: KiwiSaver
C33: Commission | E33: Frequency | G33: 1 | H33: =INDEX(Calculation!$AH$9:$AH$13,G33) -> Annual | I33: ='NSR Calculator'!$AJ$42 -> 0 | K33: 1 | L33: =INDEX(Calculation!$AH$9:$AH$13,K33) -> Annual | M33: ='NSR Calculator'!$AO$42 -> 0 | O33: 1 | P33: =INDEX(Calculation!$AH$9:$AH$13,O33) -> Annual | Q33: 0 | S33: 1 | T33: =INDEX(Calculation!$AH$9:$AH$13,S33) -> Annual | U33: 0 | AH33: No
E34: Tax staus | G34: 1 | H34: =INDEX(Calculation!$AH$16:$AH$17,G34) -> Gross (Pre tax) | K34: 1 | L34: =INDEX(Calculation!$AH$16:$AH$17,K34) -> Gross (Pre tax) | O34: 1 | P34: =INDEX(Calculation!$AH$16:$AH$17,O34) -> Gross (Pre tax) | S34: 1 | T34: =INDEX(Calculation!$AH$16:$AH$17,S34) -> Gross (Pre tax) | AH34: ='Calculator Parameters'!B57 -> 0.03
AH35: ='Calculator Parameters'!B58 -> 0.04
C36: Investment | E36: Frequency | G36: 1 | H36: =INDEX(Calculation!$AH$9:$AH$13,G36) -> Annual | I36: ='NSR Calculator'!$AJ$45 -> 0 | K36: 1 | L36: =INDEX(Calculation!$AH$9:$AH$13,K36) -> Annual | M36: ='NSR Calculator'!$AO$45 -> 0 | O36: 1 | P36: =INDEX(Calculation!$AH$9:$AH$13,O36) -> Annual | Q36: 0 | S36: 1 | T36: =INDEX(Calculation!$AH$9:$AH$13,S36) -> Annual | U36: 0 | AH36: ='Calculator Parameters'!B59 -> 0.08
E37: Tax staus | G37: 1 | H37: =INDEX(Calculation!$AH$16:$AH$17,G37) -> Gross (Pre tax) | K37: 1 | L37: =INDEX(Calculation!$AH$16:$AH$17,K37) -> Gross (Pre tax) | O37: 1 | P37: =INDEX(Calculation!$AH$16:$AH$17,O37) -> Gross (Pre tax) | S37: 1 | T37: =INDEX(Calculation!$AH$16:$AH$17,S37) -> Gross (Pre tax) | AH37: Other
C39: Beneficiary | E39: Frequency | G39: 1 | H39: =INDEX(Calculation!$AH$9:$AH$13,G39) -> Annual | I39: ='NSR Calculator'!$AJ$48 -> 0 | K39: 1 | L39: =INDEX(Calculation!$AH$9:$AH$13,K39) -> Annual | M39: ='NSR Calculator'!$AO$48 -> 0 | O39: 1 | P39: =INDEX(Calculation!$AH$9:$AH$13,O39) -> Annual | Q39: 0 | S39: 1 | T39: =INDEX(Calculation!$AH$9:$AH$13,S39) -> Annual | U39: 0
E40: Tax staus | G40: 1 | H40: =INDEX(Calculation!$AH$16:$AH$17,G40) -> Gross (Pre tax) | K40: 1 | L40: =INDEX(Calculation!$AH$16:$AH$17,K40) -> Gross (Pre tax) | O40: 1 | P40: =INDEX(Calculation!$AH$16:$AH$17,O40) -> Gross (Pre tax) | S40: 1 | T40: =INDEX(Calculation!$AH$16:$AH$17,S40) -> Gross (Pre tax)
C42: Contract | E42: Frequency | G42: 1 | H42: =INDEX(Calculation!$AH$9:$AH$13,G42) -> Annual | I42: ='NSR Calculator'!$AJ$50 -> 0 | K42: 1 | L42: =INDEX(Calculation!$AH$9:$AH$13,K42) -> Annual | M42: ='NSR Calculator'!$AO$50 -> 0 | O42: 1 | P42: =INDEX(Calculation!$AH$9:$AH$13,O42) -> Annual | Q42: 0 | S42: 1 | T42: =INDEX(Calculation!$AH$9:$AH$13,S42) -> Annual | U42: 0
E43: Tax staus | G43: 1 | H43: =INDEX(Calculation!$AH$16:$AH$17,G43) -> Gross (Pre tax) | K43: 1 | L43: =INDEX(Calculation!$AH$16:$AH$17,K43) -> Gross (Pre tax) | O43: 1 | P43: =INDEX(Calculation!$AH$16:$AH$17,O43) -> Gross (Pre tax) | S43: 1 | T43: =INDEX(Calculation!$AH$16:$AH$17,S43) -> Gross (Pre tax) | AH43: ACC Earners levy | AK43: ACC Levy Rate | AM43: Maximum Levy | AO43: Gross Income Threshold | AQ43: Maximum Tax | AS43: After Tax and ACC Levy Income
AH44: Wages &Salary | AK44: ='Calculator Parameters'!C22 -> 0.0175 | AM44: ='Calculator Parameters'!D22 -> 2741.22 | AO44: =AM44/AK44 -> 156641.1429 | AQ44: =(AO44-AI54)*AK55+AM54 -> 40167.54571 | AS44: =AO44-AQ44-AM44 -> 113732.3771
C45: Child Support | E45: Frequency | G45: 1 | H45: =INDEX($AH$9:$AH$13,G45) -> Annual | I45: ='NSR Calculator'!$AJ$52 -> 0 | K45: 1 | L45: =INDEX($AH$9:$AH$13,K45) -> Annual | M45: ='NSR Calculator'!$AO$52 -> 0 | O45: 1 | P45: =INDEX($AH$9:$AH$13,O45) -> Annual | Q45: 0 | S45: 1 | T45: =INDEX($AH$9:$AH$13,S45) -> Annual | U45: 0 | AH45: Self-employed | AK45: ='Calculator Parameters'!C23 -> 0.0175 | AM45: ='Calculator Parameters'!D23 -> 2741.22 | AO45: =AM45/AK45 -> 156641.1429 | AQ45: =(AO45-AI54)*AK55+AM54 -> 40167.54571 | AS45: =AO45-AQ45-AM45 -> 113732.3771
E46: Tax staus | G46: 1 | H46: =INDEX($AH$16:$AH$17,G46) -> Gross (Pre tax) | K46: 1 | L46: =INDEX($AH$16:$AH$17,K46) -> Gross (Pre tax) | O46: 1 | P46: =INDEX($AH$16:$AH$17,O46) -> Gross (Pre tax) | S46: 1 | T46: =INDEX($AH$16:$AH$17,S46) -> Gross (Pre tax)
G47: 1 | K47: 1 | O47: 1 | S47: 1
AH48: Income Tax
G49: 1 | K49: 1 | O49: 1 | S49: 1 | AH49: Income Bands | AK49: Marginal Tax Rate | AM49: Maximum Tax | AO49: Marginal Gross-up Rate | AQ49: After Tax Income
AH50: Min | AI50: Max
AH51: ='Calculator Parameters'!B29 -> 0 | AI51: ='Calculator Parameters'!C29 -> 15600 | AK51: ='Calculator Parameters'!D29 -> 0.105 | AM51: =AI51*AK51 -> 1638 | AO51: =1/(1-AK51) -> 1.117318436 | AQ51: =AI51-AM51 -> 13962
AH52: ='Calculator Parameters'!B30 -> 15600.01 | AI52: ='Calculator Parameters'!C30 -> 53500 | AK52: ='Calculator Parameters'!D30 -> 0.175 | AM52: =AM51+(AI52-AI51)*AK52 -> 8270.5 | AO52: =1/(1-AK52) -> 1.212121212 | AQ52: =AI52-AM52 -> 45229.5
AH53: ='Calculator Parameters'!B31 -> 53500.01 | AI53: ='Calculator Parameters'!C31 -> 78100 | AK53: ='Calculator Parameters'!D31 -> 0.3 | AM53: =AM52+(AI53-AI52)*AK53 -> 15650.5 | AO53: =1/(1-AK53) -> 1.428571429 | AQ53: =AI53-AM53 -> 62449.5
AH54: ='Calculator Parameters'!B32 -> 78100.01 | AI54: ='Calculator Parameters'!C32 -> 180000 | AK54: ='Calculator Parameters'!D32 -> 0.33 | AM54: =AM53+(AI54-AI53)*AK54 -> 49277.5 | AO54: =1/(1-AK54) -> 1.492537313 | AQ54: =AI54-AM54 -> 130722.5
AH55: ='Calculator Parameters'!B33 -> 180000.01 | AK55: ='Calculator Parameters'!D33 -> 0.39 | AO55: =1/(1-AK55) -> 1.639344262
AI57: ACC = GI * ACC Rate OR ACC = Max ACC Levy
AI58: Tax = (GI - Thresh) * Marginal Tax Rate + TaxStep
AI59: NI = GI - (GI - Thresh) * Marginal Tax Rate - TaxStep - GI * ACC Rate | AR59: OR | AS59: NI = GI - (GI - Thresh) * Marginal Tax Rate - TaxStep - Max ACC Levy
AI60: ACC = GI * ACC Rate OR ACC = Max ACC Levy
AI61: Tax = (GI - Thresh) * Marginal Tax Rate + TaxStep
AI62: NI = GI - (GI - Thresh) * Marginal Tax Rate - TaxStep - GI * ACC Rate | AR62: OR | AS62: NI = GI - (GI - Thresh) * Marginal Tax Rate - TaxStep - Max ACC Levy
AI63: ACC = GI * ACC Rate OR ACC = Max ACC Levy
G64: Applicant 1 | K64: Applicant 2 | O64: Applicant 3 | S64: Applicant 4 | W64: Total | AI64: Tax = (GI - Thresh) * Marginal Tax Rate + TaxStep
B65: Annual Financial A/c addbacks | G65: ='NSR Calculator'!AJ66 -> 0 | K65: ='NSR Calculator'!AO66 -> 0 | O65: 0 | S65: 0 | W65: =SUM(G65:S65) -> 0 | AI65: NI = GI - (GI - Thresh) * Marginal Tax Rate - TaxStep - GI * ACC Rate | AR65: OR | AS65: NI = GI - (GI - Thresh) * Marginal Tax Rate - TaxStep - Max ACC Levy
B66: Annual Other Assistance Payments | G66: ='NSR Calculator'!AJ68 -> 0 | K66: ='NSR Calculator'!AO68 -> 0 | O66: 0 | S66: 0 | W66: =SUM(G66:S66) -> 0 | AI66: ACC = GI * ACC Rate OR ACC = Max ACC Levy
B67: Student Loan Balance | G67: ='NSR Calculator'!AJ72 -> 0 | K67: ='NSR Calculator'!AO72 -> 0 | O67: 0 | S67: 0 | W67: 0 | AI67: Tax = (GI - Thresh) * Marginal Tax Rate + TaxStep
AI68: NI = GI - (GI - Thresh) * Marginal Tax Rate - TaxStep - GI * ACC Rate | AR68: OR | AS68: NI = GI - (GI - Thresh) * Marginal Tax Rate - TaxStep - Max ACC Levy
AI69: (NI + TaxStep - Thresh * Marginal Tax Rate) = GI - GI * Marginal Tax Rate - GI * ACC Rate | AR69: OR | AS69: (NI + TaxStep - Thresh * Marginal Tax Rate + Max ACC Levy) = GI - GI * Marginal Tax Rate
AI70: (NI + TaxStep - Thresh * Marginal Tax Rate)/(1 -Marginal Tax Rate - ACC Rate) = GI | AR70: OR | AS70: (NI + TaxStep - Thresh * Marginal Tax Rate + Max ACC Levy)/(1 -Marginal Tax Rate) = GI
B73: Income (excluding rentals) after tax annual and monthly
G74: Annual | H74: Annual | I74: Annual | K74: Annual | L74: Annual | M74: Annual | O74: Annual | P74: Annual | Q74: Annual | S74: Annual | T74: Annual | U74: Annual
B75: Order | G75: Gross (Pre-Tax & Pre-ACC) | H75: TaxAccKS | I75: Post-Tax & Post-ACC | K75: Gross (Pre-Tax & Pre-ACC) | L75: TaxAccKS | M75: Post-Tax & Post-ACC | O75: Gross (Pre-Tax & Pre-ACC) | P75: TaxAccKS | Q75: Post-Tax & Post-ACC | S75: Gross (Pre-Tax & Pre-ACC) | T75: TaxAccKS | U75: Post-Tax & Post-ACC | X75: Tax1 | Y75: Lev1 | Z75: =IF(G67>0,TRUE,FALSE) -> FALSE | AA75: SL1 | AC75: KS1 | AD75: Tax2 | AE75: Lev2 | AF75: =IF(K67>0,TRUE,FALSE) -> FALSE | AG75: SL2 | AI75: KS2 | AJ75: Tax3 | AK75: Lev3 | AL75: =IF(O67>0,TRUE,FALSE) -> FALSE | AM75: SL3 | AO75: KS3 | AP75: Tax4 | AQ75: Lev4 | AR75: =IF(S67>0,TRUE,FALSE) -> FALSE | AU75: KS4
B77: 1 | C77: Salary or Wages | G77: =IF(H19=$AH$16,INDEX($AH$9:$AK$13,G18,4)*I18,0) -> 0 | H77: =X77+Y77 -> 0 | I77: =G77-H77 -> 0 | K77: =IF(L19=$AH$16,INDEX($AH$9:$AK$13,K18,4)*M18,0) -> 0 | L77: =AD77+AE77 -> 0 | M77: =K77-L77 -> 0 | O77: =IF(P19=$AH$16,INDEX($AH$9:$AK$13,O18,4)*Q18,0) -> 0 | P77: =AJ77+AK77 -> 0 | Q77: =O77-P77 -> 0 | S77: =IF(T19=$AH$16,INDEX($AH$9:$AK$13,S18,4)*U18,0) -> 0 | T77: =AP77+AQ77 -> 0 | U77: =S77-T77 -> 0 | X77: =IF(G77>$AI$54,(G77-$AI$54)*$AK$55+$AM$54,IF(G77>$AI$53,(G77-$AI$53)*$AK$54+$AM$53,IF(G77 > $AI$52,(G77-$AI$52)*$AK$53+$AM$52,IF(G77>$AI$51,(G77-$AI$51)*$AK$52+$AM$51,IF(G77>0,G77*$AK$51,0))))) -> 0 | Y77: =IF(G77>$AO$44,$AM$44,IF(G77>0,G77*$AK$44,0)) -> 0 | Z77: =$Z$75 -> FALSE | AA77: =IF(Z77,IF(G77>$AK$30,(G77-$AK$30)*$AL$30,0),0) -> 0 | AB77: ='NSR Calculator'!AL27 -> 0 | AC77: =IF(OR(G77=0,AB77=0),0,G77*AB77) -> 0 | AD77: =IF(K77>$AI$54,(K77-$AI$54)*$AK$55+$AM$54,IF(K77>$AI$53,(K77-$AI$53)*$AK$54+$AM$53,IF(K77 > $AI$52,(K77-$AI$52)*$AK$53+$AM$52,IF(K77>$AI$51,(K77-$AI$51)*$AK$52+$AM$51,IF(K77>0,K77*$AK$51,0))))) -> 0 | AE77: =IF(K77>$AO$44,$AM$44,IF(K77>0,K77*$AK$44,0)) -> 0 | AF77: =$AF$75 -> FALSE | AG77: =IF(AF77,IF(K77>$AK$30,(K77-$AK$30)*$AL$30,0),0) -> 0 | AH77: ='NSR Calculator'!AQ27 -> 0 | AI77: =IF(OR(K77=0,AH77=0),0,K77*AH77) -> 0 | AJ77: =IF(O77>$AI$54,(O77-$AI$54)*$AK$55+$AM$54,IF(O77>$AI$53,(O77-$AI$53)*$AK$54+$AM$53,IF(O77 > $AI$52,(O77-$AI$52)*$AK$53+$AM$52,IF(O77>$AI$51,(O77-$AI$51)*$AK$52+$AM$51,IF(O77>0,O77*$AK$51,0))))) -> 0 | AK77: =IF(O77>$AO$44,$AM$44,IF(O77>0,O77*$AK$44,0)) -> 0 | AL77: =$AL$75 -> FALSE | AM77: =IF(AL77,IF(O77>$AK$30,(O77-$AK$30)*$AL$30,0),0) -> 0 | AN77: 0 | AO77: =IF(OR(O77=0,AN77=0),0,O77*AN77) -> 0 | AP77: =IF(S77>$AI$54,(S77-$AI$54)*$AK$55+$AM$54,IF(S77>$AI$53,(S77-$AI$53)*$AK$54+$AM$53,IF(S77 > $AI$52,(S77-$AI$52)*$AK$53+$AM$52,IF(S77>$AI$51,(S77-$AI$51)*$AK$52+$AM$51,IF(S77>0,S77*$AK$51,0))))) -> 0 | AQ77: =IF(S77>$AO$44,$AM$44,IF(S77>0,S77*$AK$44,0)) -> 0 | AR77: =$AR$75 -> FALSE | AU77: =IF(OR(S77=0,AT77=0),0,S77*AT77) -> 0
G78: =IF(I78<=$AQ$51,I78/(1-$AK$51-$AK$44),IF(I78<=$AQ$52,(I78+$AM$51-$AI$51*$AK$52)/(1-$AK$52-$AK$44),IF(I78<=$AQ$53,(I78+$AM$52-$AI$52*$AK$53)/(1-$AK$53-$AK$44),IF(I78<=$AQ$54,(I78+$AM$53-$AI$53*$AK$54)/(1-$AK$54-$AK$44),IF(I78<=$AS$44,(I78+$AM$54-$AI$54*$AK$55)/(1-$AK$55-$AK$44),IF(I78>$AS$44,(I78+$AM$44+$AM$54-$AI$54*$AK$55)/(1-$AK$55))))))) -> 0 | H78: =X78+Y78 -> 0 | I78: =IF(H19=$AH$17,INDEX($AH$9:$AK$13,G18,4)*I18,0) -> 0 | K78: =IF(M78<=$AQ$51,M78/(1-$AK$51-$AK$44),IF(M78<=$AQ$52,(M78+$AM$51-$AI$51*$AK$52)/(1-$AK$52-$AK$44),IF(M78<=$AQ$53,(M78+$AM$52-$AI$52*$AK$53)/(1-$AK$53-$AK$44),IF(M78<=$AQ$54,(M78+$AM$53-$AI$53*$AK$54)/(1-$AK$54-$AK$44),IF(M78<=$AS$44,(M78+$AM$54-$AI$54*$AK$55)/(1-$AK$55-$AK$44),IF(M78>$AS$44,(M78+$AM$44+$AM$54-$AI$54*$AK$55)/(1-$AK$55))))))) -> 0 | L78: =AD78+AE78 -> 0 | M78: =IF(L19=$AH$17,INDEX($AH$9:$AK$13,K18,4)*M18,0) -> 0 | O78: =IF(Q78<=$AQ$51,Q78/(1-$AK$51-$AK$44),IF(Q78<=$AQ$52,(Q78+$AM$51-$AI$51*$AK$52)/(1-$AK$52-$AK$44),IF(Q78<=$AQ$53,(Q78+$AM$52-$AI$52*$AK$53)/(1-$AK$53-$AK$44),IF(Q78<=$AQ$54,(Q78+$AM$53-$AI$53*$AK$54)/(1-$AK$54-$AK$44),IF(Q78<=$AS$44,(Q78+$AM$54-$AI$54*$AK$55)/(1-$AK$55-$AK$44),IF(Q78>$AS$44,(Q78+$AM$44+$AM$54-$AI$54*$AK$55)/(1-$AK$55))))))) -> 0 | P78: =AJ78+AK78 -> 0 | Q78: =IF(P19=$AH$17,INDEX($AH$9:$AK$13,O18,4)*Q18,0) -> 0 | S78: =IF(U78<=$AQ$51,U78/(1-$AK$51-$AK$44),IF(U78<=$AQ$52,(U78+$AM$51-$AI$51*$AK$52)/(1-$AK$52-$AK$44),IF(U78<=$AQ$53,(U78+$AM$52-$AI$52*$AK$53)/(1-$AK$53-$AK$44),IF(U78<=$AQ$54,(U78+$AM$53-$AI$53*$AK$54)/(1-$AK$54-$AK$44),IF(U78<=$AS$44,(U78+$AM$54-$AI$54*$AK$55)/(1-$AK$55-$AK$44),IF(U78>$AS$44,(U78+$AM$44+$AM$54-$AI$54*$AK$55)/(1-$AK$55))))))) -> 0 | T78: =AP78+AQ78 -> 0 | U78: =IF(T19=$AH$17,INDEX($AH$9:$AK$13,S18,4)*U18,0) -> 0 | X78: =G78-I78-Y78 -> 0 | Y78: =IF(G78>$AO$44,$AM$44,IF(G78>0,G78*$AK$44,0)) -> 0 | AA78: =IF(Z77,IF(G78>$AK$30,(G78-$AK$30)*$AL$30,0),0) -> 0 | AB78: =IF(AB77>0,IF(AB77<0.03,1,0),0) -> 0 | AC78: =IF(OR(G78=0,AB77=0),0,G78*AB77) -> 0 | AD78: =K78-M78-AE78 -> 0 | AE78: =IF(K78>$AO$44,$AM$44,IF(K78>0,K78*$AK$44,0)) -> 0 | AG78: =IF(AF77,IF(K78>$AK$30,(K78-$AK$30)*$AL$30,0),0) -> 0 | AH78: =IF(AH77>0,IF(AH77<0.03,1,0),0) -> 0 | AI78: =IF(OR(K78=0,AH77=0),0,K78*AH77) -> 0 | AJ78: =O78-Q78-AK78 -> 0 | AK78: =IF(O78>$AO$44,$AM$44,IF(O78>0,O78*$AK$44,0)) -> 0 | AM78: =IF(AL77,IF(O78>$AK$30,(O78-$AK$30)*$AL$30,0),0) -> 0 | AN78: 0 | AO78: =IF(OR(O78=0,AN77=0),0,O78*AN77) -> 0 | AP78: =S78-U78-AQ78 -> 0 | AQ78: =IF(S78>$AO$44,$AM$44,IF(S78>0,S78*$AK$44,0)) -> 0 | AU78: =IF(OR(S78=0,AT77=0),0,S78*AT77) -> 0
G79: =MAX(G77:G78) -> 0 | H79: =MAX(H77:H78) -> 0 | I79: =MAX(I77:I78) -> 0 | J79: =K79-AG79-AI79 -> 0 | K79: =MAX(K77:K78) -> 0 | L79: =MAX(L77:L78) -> 0 | M79: =MAX(M77:M78) -> 0 | N79: =O79-AM79-AO79 -> 0 | O79: =MAX(O77:O78) -> 0 | P79: =MAX(P77:P78) -> 0 | Q79: =MAX(Q77:Q78) -> 0 | R79: =S79-AS79-AU79 -> 0 | S79: =MAX(S77:S78) -> 0 | T79: =MAX(T77:T78) -> 0 | U79: =MAX(U77:U78) -> 0 | X79: =MAX(X77:X78) -> 0 | Y79: =MAX(Y77:Y78) -> 0 | AA79: =MAX(AA77:AA78) -> 0 | AC79: =MAX(AC77:AC78) -> 0 | AD79: =MAX(AD77:AD78) -> 0 | AE79: 0 | AG79: =MAX(AG77:AG78) -> 0 | AI79: 0 | AJ79: 0 | AK79: 0 | AM79: =MAX(AM77:AM78) -> 0 | AO79: 0 | AP79: 0 | AQ79: 0 | AU79: =MAX(AU77:AU78) -> 0
B80: 2 | C80: Self-employed | F80: =G80-G$79 -> 0 | G80: =IF(H22=$AH$16,INDEX($AH$9:$AK$13,G21,4)*I21+G79,0) -> 0 | H80: =X80+Y80 -> 0 | I80: =G80-H80 -> 0 | J80: =K80-K$79 -> 0 | K80: =IF(L22=$AH$16,INDEX($AH$9:$AK$13,K21,4)*M21+K79,0) -> 0 | L80: =AD80+AE80 -> 0 | M80: =K80-L80 -> 0 | N80: =O80-O$79 -> 0 | O80: =IF(P22=$AH$16,INDEX($AH$9:$AK$13,O21,4)*Q21+O79,0) -> 0 | P80: =AJ80+AK80 -> 0 | Q80: =O80-P80 -> 0 | R80: =S80-S$79 -> 0 | S80: =IF(T22=$AH$16,INDEX($AH$9:$AK$13,S21,4)*U21+S79,0) -> 0 | T80: =AP80+AQ80 -> 0 | U80: =S80-T80 -> 0 | X80: =IF(G80>$AI$54,(G80-$AI$54)*$AK$55+$AM$54,IF(G80>$AI$53,(G80-$AI$53)*$AK$54+$AM$53,IF(G80 > $AI$52,(G80-$AI$52)*$AK$53+$AM$52,IF(G80>$AI$51,(G80-$AI$51)*$AK$52+$AM$51,IF(G80>0,G80*$AK$51,0))))) -> 0 | Y80: =Y79 -> 0 | Z80: =$Z$75 -> FALSE | AA80: =IF(Z80,IF(G80>$AK$30,(G80-$AK$30)*$AL$30,0),AA79) -> 0 | AB80: ='NSR Calculator'!AL30 -> 0 | AC80: =IF(OR(G80=0,AB80=0),0,(G80-G79)*AB80) -> 0 | AD80: =IF(K80>$AI$54,(K80-$AI$54)*$AK$55+$AM$54,IF(K80>$AI$53,(K80-$AI$53)*$AK$54+$AM$53,IF(K80 > $AI$52,(K80-$AI$52)*$AK$53+$AM$52,IF(K80>$AI$51,(K80-$AI$51)*$AK$52+$AM$51,IF(K80>0,K80*$AK$51,0))))) -> 0 | AE80: =AE79 -> 0 | AF80: =$AF$75 -> FALSE | AG80: =IF(AF80,IF(K80>$AK$30,(K80-$AK$30)*$AL$30,0),AG79) -> 0 | AH80: ='NSR Calculator'!AQ30 -> 0 | AI80: =IF(OR(K80=0,AH80=0),0,(K80-K79)*AH80) -> 0 | AJ80: =IF(O80>$AI$54,(O80-$AI$54)*$AK$55+$AM$54,IF(O80>$AI$53,(O80-$AI$53)*$AK$54+$AM$53,IF(O80 > $AI$52,(O80-$AI$52)*$AK$53+$AM$52,IF(O80>$AI$51,(O80-$AI$51)*$AK$52+$AM$51,IF(O80>0,O80*$AK$51,0))))) -> 0 | AK80: =AK79 -> 0 | AL80: =$AL$75 -> FALSE | AM80: =IF(AL80,IF(O80>$AK$30,(O80-$AK$30)*$AL$30,0),AM79) -> 0 | AN80: 0 | AO80: =IF(OR(O80=0,AN80=0),0,(O80-O79)*AN80) -> 0 | AP80: =IF(S80>$AI$54,(S80-$AI$54)*$AK$55+$AM$54,IF(S80>$AI$53,(S80-$AI$53)*$AK$54+$AM$53,IF(S80 > $AI$52,(S80-$AI$52)*$AK$53+$AM$52,IF(S80>$AI$51,(S80-$AI$51)*$AK$52+$AM$51,IF(S80>0,S80*$AK$51,0))))) -> 0 | AQ80: =AQ79 -> 0 | AR80: =$AR$75 -> FALSE | AU80: =IF(OR(S80=0,AT80=0),0,(S80-S79)*AT80) -> 0
F81: =G81-G$79 -> 0 | G81: =IF(I81<=$AQ$51,I81/(1-$AK$51-$AK$45),IF(I81<=$AQ$52,(I81+$AM$51-$AI$51*$AK$52)/(1-$AK$52-$AK$45),IF(I81<=$AQ$53,(I81+$AM$52-$AI$52*$AK$53)/(1-$AK$53-$AK$45),IF(I81<=$AQ$54,(I81+$AM$53-$AI$53*$AK$54)/(1-$AK$54-$AK$45),IF(I81<=$AS$45,(I81+$AM$54-$AI$54*$AK$55)/(1-$AK$55-$AK$45),IF(I81>$AS$45,(I81+$AM$45+$AM$54-$AI$54*$AK$55)/(1-$AK$55))))))) -> 0 | H81: =X81+Y81 -> 0 | I81: =IF(H22=$AH$17,INDEX($AH$9:$AK$13,G21,4)*I21+I79,0) -> 0 | J81: =K81-K$79 -> 0 | K81: =IF(M81<=$AQ$51,M81/(1-$AK$51-$AK$45),IF(M81<=$AQ$52,(M81+$AM$51-$AI$51*$AK$52)/(1-$AK$52-$AK$45),IF(M81<=$AQ$53,(M81+$AM$52-$AI$52*$AK$53)/(1-$AK$53-$AK$45),IF(M81<=$AQ$54,(M81+$AM$53-$AI$53*$AK$54)/(1-$AK$54-$AK$45),IF(M81<=$AS$45,(M81+$AM$54-$AI$54*$AK$55)/(1-$AK$55-$AK$45),IF(M81>$AS$45,(M81+$AM$45+$AM$54-$AI$54*$AK$55)/(1-$AK$55))))))) -> 0 | L81: =AD81+AE81 -> 0 | M81: =IF(L22=$AH$17,INDEX($AH$9:$AK$13,K21,4)*M21+M79,0) -> 0 | N81: =O81-O$79 -> 0 | O81: =IF(Q81<=$AQ$51,Q81/(1-$AK$51-$AK$45),IF(Q81<=$AQ$52,(Q81+$AM$51-$AI$51*$AK$52)/(1-$AK$52-$AK$45),IF(Q81<=$AQ$53,(Q81+$AM$52-$AI$52*$AK$53)/(1-$AK$53-$AK$45),IF(Q81<=$AQ$54,(Q81+$AM$53-$AI$53*$AK$54)/(1-$AK$54-$AK$45),IF(Q81<=$AS$45,(Q81+$AM$54-$AI$54*$AK$55)/(1-$AK$55-$AK$45),IF(Q81>$AS$45,(Q81+$AM$45+$AM$54-$AI$54*$AK$55)/(1-$AK$55))))))) -> 0 | P81: =AJ81+AK81 -> 0 | Q81: =IF(P22=$AH$17,INDEX($AH$9:$AK$13,O21,4)*Q21+Q79,0) -> 0 | R81: =S81-S$79 -> 0 | S81: =IF(U81<=$AQ$51,U81/(1-$AK$51-$AK$45),IF(U81<=$AQ$52,(U81+$AM$51-$AI$51*$AK$52)/(1-$AK$52-$AK$45),IF(U81<=$AQ$53,(U81+$AM$52-$AI$52*$AK$53)/(1-$AK$53-$AK$45),IF(U81<=$AQ$54,(U81+$AM$53-$AI$53*$AK$54)/(1-$AK$54-$AK$45),IF(U81<=$AS$45,(U81+$AM$54-$AI$54*$AK$55)/(1-$AK$55-$AK$45),IF(U81>$AS$45,(U81+$AM$45+$AM$54-$AI$54*$AK$55)/(1-$AK$55))))))) -> 0 | T81: =AP81+AQ81 -> 0 | U81: =IF(T22=$AH$17,INDEX($AH$9:$AK$13,S21,4)*U21+U79,0) -> 0 | X81: =G81-I81-Y81 -> 0 | Y81: =Y79 -> 0 | AA81: =IF(Z80,IF(G81>$AK$30,(G81-$AK$30)*$AL$30,0),AA79) -> 0 | AB81: =IF(AB80>0,IF(AB80<0.03,1,0),0) -> 0 | AC81: =IF(OR(G81=0,AB80=0),0,(G81-G79)*AB80) -> 0 | AD81: =K81-M81-AE81 -> 0 | AE81: =AE79 -> 0 | AG81: =IF(AF80,IF(K81>$AK$30,(K91-$AK$30)*$AL$30,0),AG79) -> 0 | AH81: =IF(AH80>0,IF(AH80<0.03,1,0),0) -> 0 | AI81: =IF(OR(K81=0,AH80=0),0,(K81-K79)*AH80) -> 0 | AJ81: =O81-Q81-AK81 -> 0 | AK81: =AK79 -> 0 | AM81: =IF(AL80,IF(O81>$AK$30,(O81-$AK$30)*$AL$30,0),AM79) -> 0 | AN81: =IF(AN80>0,IF(AN80<0.03,1,0),0) -> 0 | AO81: =IF(OR(O81=0,AN80=0),0,(O81-O79)*AN80) -> 0 | AP81: =S81-U81-AQ81 -> 0 | AQ81: =AQ79 -> 0 | AU81: =IF(OR(S81=0,AT80=0),0,(S81-S79)*AT80) -> 0
F82: =MAX(F80:F81) -> 0 | G82: 0 | H82: =MAX(H80:H81) -> 0 | I82: 0 | J82: 0 | K82: 0 | L82: =MAX(L80:L81) -> 0 | M82: 0 | N82: 0 | O82: 0 | P82: =MAX(P80:P81) -> 0 | Q82: 0 | R82: 0 | S82: =MAX(S80:S81) -> 0 | T82: =MAX(T80:T81) -> 0 | U82: 0 | X82: =MAX(X80:X81) -> 0 | Y82: 0 | AA82: =MAX(AA80:AA81) -> 0 | AC82: =MAX(AC80:AC81)+AC79 -> 0 | AD82: =MAX(AD80:AD81) -> 0 | AE82: 0 | AG82: =MAX(AG80:AG81) -> 0 | AI82: =MAX(AI80:AI81)+AI79 -> 0 | AJ82: 0 | AK82: 0 | AM82: =MAX(AM80:AM81) -> 0 | AO82: =MAX(AO80:AO81)+AO79 -> 0 | AP82: 0 | AQ82: 0 | AU82: =MAX(AU80:AU81)+AU79 -> 0
B83: 3 | C83: Overtime | G83: =IF(H25=$AH$16,INDEX($AH$9:$AK$13,G24,4)*I24+G82,0) -> 0 | H83: =X83+Y83 -> 0 | I83: =G83-H83 -> 0 | J83: =K82-AG82-AI82 -> 0 | K83: =IF(L25=$AH$16,INDEX($AH$9:$AK$13,K24,4)*M24+K82,0) -> 0 | L83: =AD83+AE83 -> 0 | M83: =K83-L83 -> 0 | N83: =O82-AM82-AO82 -> 0 | O83: =IF(P25=$AH$16,INDEX($AH$9:$AK$13,O24,4)*Q24+O82,0) -> 0 | P83: =AJ83+AK83 -> 0 | Q83: =O83-P83 -> 0 | R83: =S82-AS82-AU82 -> 0 | S83: =IF(T25=$AH$16,INDEX($AH$9:$AK$13,S24,4)*U24+S82,0) -> 0 | T83: =AP83+AQ83 -> 0 | U83: =S83-T83 -> 0 | X83: =IF(G83>$AI$54,(G83-$AI$54)*$AK$55+$AM$54,IF(G83>$AI$53,(G83-$AI$53)*$AK$54+$AM$53,IF(G83 > $AI$52,(G83-$AI$52)*$AK$53+$AM$52,IF(G83>$AI$51,(G83-$AI$51)*$AK$52+$AM$51,IF(G83>0,G83*$AK$51,0))))) -> 0 | Y83: =IF((G83-$F$82)>$AO$44,$AM$44,IF((G83-G82)>0,(G83-$F$82)*$AK$44,Y82)) -> 0 | Z83: =$Z$75 -> FALSE | AA83: =IF(Z83,IF(G83>$AK$30,(G83-$AK$30)*$AL$30,0),AA82) -> 0 | AB83: ='NSR Calculator'!AL33 -> 0 | AC83: =IF(OR(G83=0,AB83=0),0,(G83-G82)*AB83) -> 0 | AD83: =IF(K83>$AI$54,(K83-$AI$54)*$AK$55+$AM$54,IF(K83>$AI$53,(K83-$AI$53)*$AK$54+$AM$53,IF(K83 > $AI$52,(K83-$AI$52)*$AK$53+$AM$52,IF(K83>$AI$51,(K83-$AI$51)*$AK$52+$AM$51,IF(K83>0,K83*$AK$51,0))))) -> 0 | AE83: =IF((K83-$J$82)>$AO$44,$AM$44,IF((K83-K82)>0,(K83-$J$82)*$AK$44,AE82)) -> 0 | AF83: =$AF$75 -> FALSE | AG83: =IF(AF83,IF(K83>$AK$30,(K83-$AK$30)*$AL$30,0),AG82) -> 0 | AH83: ='NSR Calculator'!AQ33 -> 0 | AI83: =IF(OR(K83=0,AH83=0),0,(K83-K82)*AH83) -> 0 | AJ83: =IF(O83>$AI$54,(O83-$AI$54)*$AK$55+$AM$54,IF(O83>$AI$53,(O83-$AI$53)*$AK$54+$AM$53,IF(O83 > $AI$52,(O83-$AI$52)*$AK$53+$AM$52,IF(O83>$AI$51,(O83-$AI$51)*$AK$52+$AM$51,IF(O83>0,O83*$AK$51,0))))) -> 0 | AK83: =IF((O83-$N$82)>$AO$44,$AM$44,IF((O83-O82)>0,(O83-$N$82)*$AK$44,AK82)) -> 0 | AL83: =$AL$75 -> FALSE | AM83: =IF(AL83,IF(O83>$AK$30,(O83-$AK$30)*$AL$30,0),AM82) -> 0 | AN83: 0 | AO83: =IF(OR(O83=0,AN83=0),0,(O83-O82)*AN83) -> 0 | AP83: =IF(S83>$AI$54,(S83-$AI$54)*$AK$55+$AM$54,IF(S83>$AI$53,(S83-$AI$53)*$AK$54+$AM$53,IF(S83 > $AI$52,(S83-$AI$52)*$AK$53+$AM$52,IF(S83>$AI$51,(S83-$AI$51)*$AK$52+$AM$51,IF(S83>0,S83*$AK$51,0))))) -> 0 | AQ83: =IF((S83-$R$82)>$AO$44,$AM$44,IF((S83-S82)>0,(S83-$R$82)*$AK$44,AQ82)) -> 0 | AR83: =$AR$75 -> FALSE | AU83: =IF(OR(S83=0,AT83=0),0,(S83-S82)*AT83) -> 0
G84: =IF(I84<=$AQ$51,I84/(1-$AK$51-$AK$44),IF(I84<=$AQ$52,(I84+$AM$51-$AI$51*$AK$52)/(1-$AK$52-$AK$44),IF(I84<=$AQ$53,(I84+$AM$52-$AI$52*$AK$53)/(1-$AK$53-$AK$44),IF(I84<=$AQ$54,(I84+$AM$53-$AI$53*$AK$54)/(1-$AK$54-$AK$44),IF(I84<=$AS$44,(I84+$AM$54-$AI$54*$AK$55)/(1-$AK$55-$AK$44),IF(I84>$AS$44,(I84+$AM$44+$AM$54-$AI$54*$AK$55)/(1-$AK$55))))))) -> 0 | H84: =X84+Y84 -> 0 | I84: =IF(H25=$AH$17,INDEX($AH$9:$AK$13,G24,4)*I24+I82,0) -> 0 | K84: =IF(M84<=$AQ$51,M84/(1-$AK$51-$AK$44),IF(M84<=$AQ$52,(M84+$AM$51-$AI$51*$AK$52)/(1-$AK$52-$AK$44),IF(M84<=$AQ$53,(M84+$AM$52-$AI$52*$AK$53)/(1-$AK$53-$AK$44),IF(M84<=$AQ$54,(M84+$AM$53-$AI$53*$AK$54)/(1-$AK$54-$AK$44),IF(M84<=$AS$44,(M84+$AM$54-$AI$54*$AK$55)/(1-$AK$55-$AK$44),IF(M84>$AS$44,(M84+$AM$44+$AM$54-$AI$54*$AK$55)/(1-$AK$55))))))) -> 0 | L84: =AD84+AE84 -> 0 | M84: =IF(L25=$AH$17,INDEX($AH$9:$AK$13,K24,4)*M24+M82,0) -> 0 | O84: =IF(Q84<=$AQ$51,Q84/(1-$AK$51-$AK$44),IF(Q84<=$AQ$52,(Q84+$AM$51-$AI$51*$AK$52)/(1-$AK$52-$AK$44),IF(Q84<=$AQ$53,(Q84+$AM$52-$AI$52*$AK$53)/(1-$AK$53-$AK$44),IF(Q84<=$AQ$54,(Q84+$AM$53-$AI$53*$AK$54)/(1-$AK$54-$AK$44),IF(Q84<=$AS$44,(Q84+$AM$54-$AI$54*$AK$55)/(1-$AK$55-$AK$44),IF(Q84>$AS$44,(Q84+$AM$44+$AM$54-$AI$54*$AK$55)/(1-$AK$55))))))) -> 0 | P84: =AJ84+AK84 -> 0 | Q84: =IF(P25=$AH$17,INDEX($AH$9:$AK$13,O24,4)*Q24+Q82,0) -> 0 | S84: =IF(U84<=$AQ$51,U84/(1-$AK$51-$AK$44),IF(U84<=$AQ$52,(U84+$AM$51-$AI$51*$AK$52)/(1-$AK$52-$AK$44),IF(U84<=$AQ$53,(U84+$AM$52-$AI$52*$AK$53)/(1-$AK$53-$AK$44),IF(U84<=$AQ$54,(U84+$AM$53-$AI$53*$AK$54)/(1-$AK$54-$AK$44),IF(U84<=$AS$44,(U84+$AM$54-$AI$54*$AK$55)/(1-$AK$55-$AK$44),IF(U84>$AS$44,(U84+$AM$44+$AM$54-$AI$54*$AK$55)/(1-$AK$55))))))) -> 0 | T84: =AP84+AQ84 -> 0 | U84: =IF(T25=$AH$17,INDEX($AH$9:$AK$13,S24,4)*U24+U82,0) -> 0 | X84: =G84-I84-Y84 -> 0 | Y84: =IF((G84-$F$82)>$AO$44,$AM$44,IF((G84-G82)>0,(G84-$F$82)*$AK$44,Y82)) -> 0 | AA84: =IF(Z83,IF(G84>$AK$30,(G84-$AK$30)*$AL$30,0),AA82) -> 0 | AB84: =IF(AB83>0,IF(AB83<0.03,1,0),0) -> 0 | AC84: =IF(OR(G84=0,AB83=0),0,(G84-G82)*AB83) -> 0 | AD84: =K84-M84-AE84 -> 0 | AE84: =IF((K84-$J$82)>$AO$44,$AM$44,IF((K84-K82)>0,(K84-$J$82)*$AK$44,AE82)) -> 0 | AG84: =IF(AF83,IF(K84>$AK$30,(K84-$AK$30)*$AL$30,0),AG82) -> 0 | AH84: =IF(AH83>0,IF(AH83<0.03,1,0),0) -> 0 | AI84: =IF(OR(K84=0,AH83=0),0,(K84-K82)*AH83) -> 0 | AJ84: =O84-Q84-AK84 -> 0 | AK84: =IF((O84-$N$82)>$AO$44,$AM$44,IF((O84-O82)>0,(O84-$N$82)*$AK$44,AK82)) -> 0 | AM84: =IF(AL83,IF(O84>$AK$30,(O84-$AK$30)*$AL$30,0),AM82) -> 0 | AN84: =IF(AN83>0,IF(AN83<0.03,1,0),0) -> 0 | AO84: =IF(OR(O84=0,AN83=0),0,(O84-O82)*AN83) -> 0 | AP84: =S84-U84-AQ84 -> 0 | AQ84: =IF((S84-$R$82)>$AO$44,$AM$44,IF((S84-S82)>0,(S84-$R$82)*$AK$44,AQ82)) -> 0 | AU84: =IF(OR(S84=0,AT83=0),0,(S84-S82)*AT83) -> 0
G85: =MAX(G83:G84) -> 0 | H85: =MAX(H83:H84) -> 0 | I85: =MAX(I83:I84) -> 0 | K85: =MAX(K83:K84) -> 0 | L85: =MAX(L83:L84) -> 0 | M85: =MAX(M83:M84) -> 0 | O85: =MAX(O83:O84) -> 0 | P85: =MAX(P83:P84) -> 0 | Q85: =MAX(Q83:Q84) -> 0 | S85: =MAX(S83:S84) -> 0 | T85: =MAX(T83:T84) -> 0 | U85: =MAX(U83:U84) -> 0 | X85: =MAX(X83:X84) -> 0 | Y85: =MAX(Y83:Y84) -> 0 | AA85: =MAX(AA83:AA84) -> 0 | AC85: =MAX(AC83:AC84)+AC82 -> 0 | AD85: =MAX(AD83:AD84) -> 0 | AE85: 0 | AG85: =MAX(AG83:AG84) -> 0 | AI85: =MAX(AI83:AI84)+AI82 -> 0 | AJ85: 0 | AK85: 0 | AM85: =MAX(AM83:AM84) -> 0 | AO85: =MAX(AO83:AO84)+AO82 -> 0 | AP85: 0 | AQ85: 0 | AU85: =MAX(AU83:AU84)+AU82 -> 0
B86: 4 | C86: Bonus | G86: =IF(H28=$AH$16,INDEX($AH$9:$AK$13,G27,4)*I27+G85,0) -> 0 | H86: =X86+Y86 -> 0 | I86: =G86-H86 -> 0 | K86: =IF(L28=$AH$16,INDEX($AH$9:$AK$13,K27,4)*M27+K85,0) -> 0 | L86: =AD86+AE86 -> 0 | M86: =K86-L86 -> 0 | O86: =IF(P28=$AH$16,INDEX($AH$9:$AK$13,O27,4)*Q27+O85,0) -> 0 | P86: =AJ86+AK86 -> 0 | Q86: =O86-P86 -> 0 | S86: =IF(T28=$AH$16,INDEX($AH$9:$AK$13,S27,4)*U27+S85,0) -> 0 | T86: =AP86+AQ86 -> 0 | U86: =S86-T86 -> 0 | X86: =IF(G86>$AI$54,(G86-$AI$54)*$AK$55+$AM$54,IF(G86>$AI$53,(G86-$AI$53)*$AK$54+$AM$53,IF(G86 > $AI$52,(G86-$AI$52)*$AK$53+$AM$52,IF(G86>$AI$51,(G86-$AI$51)*$AK$52+$AM$51,IF(G86>0,G86*$AK$51,0))))) -> 0 | Y86: =IF((G86-$F$82)>$AO$44,$AM$44,IF((G86-G85)>0,(G86-$F$82)*$AK$44,Y85)) -> 0 | Z86: =$Z$75 -> FALSE | AA86: =IF(Z86,IF(G86>$AK$30,(G86-$AK$30)*$AL$30,0),AA85) -> 0 | AB86: ='NSR Calculator'!AL36 -> 0 | AC86: =IF(OR(G86=0,AB86=0),0,(G86-G85)*AB86) -> 0 | AD86: =IF(K86>$AI$54,(K86-$AI$54)*$AK$55+$AM$54,IF(K86>$AI$53,(K86-$AI$53)*$AK$54+$AM$53,IF(K86 > $AI$52,(K86-$AI$52)*$AK$53+$AM$52,IF(K86>$AI$51,(K86-$AI$51)*$AK$52+$AM$51,IF(K86>0,K86*$AK$51,0))))) -> 0 | AE86: =IF((K86-$J$82)>$AO$44,$AM$44,IF((K86-K85)>0,(K86-$J$82)*$AK$44,AE85)) -> 0 | AF86: =$AF$75 -> FALSE | AG86: =IF(AF86,IF(K86>$AK$30,(K86-$AK$30)*$AL$30,0),AG85) -> 0 | AH86: ='NSR Calculator'!AQ36 -> 0 | AI86: =IF(OR(K86=0,AH86=0),0,(K86-K85)*AH86) -> 0 | AJ86: =IF(O86>$AI$54,(O86-$AI$54)*$AK$55+$AM$54,IF(O86>$AI$53,(O86-$AI$53)*$AK$54+$AM$53,IF(O86 > $AI$52,(O86-$AI$52)*$AK$53+$AM$52,IF(O86>$AI$51,(O86-$AI$51)*$AK$52+$AM$51,IF(O86>0,O86*$AK$51,0))))) -> 0 | AK86: =IF((O86-$N$82)>$AO$44,$AM$44,IF((O86-O85)>0,(O86-$N$82)*$AK$44,AK85)) -> 0 | AL86: =$AL$75 -> FALSE | AM86: =IF(AL86,IF(O86>$AK$30,(O86-$AK$30)*$AL$30,0),AM85) -> 0 | AN86: 0 | AO86: =IF(OR(O86=0,AN86=0),0,(O86-O85)*AN86) -> 0 | AP86: =IF(S86>$AI$54,(S86-$AI$54)*$AK$55+$AM$54,IF(S86>$AI$53,(S86-$AI$53)*$AK$54+$AM$53,IF(S86 > $AI$52,(S86-$AI$52)*$AK$53+$AM$52,IF(S86>$AI$51,(S86-$AI$51)*$AK$52+$AM$51,IF(S86>0,S86*$AK$51,0))))) -> 0 | AQ86: =IF((S86-$R$82)>$AO$44,$AM$44,IF((S86-S85)>0,(S86-$R$82)*$AK$44,AQ85)) -> 0 | AR86: =$AR$75 -> FALSE | AU86: =IF(OR(S86=0,AT86=0),0,(S86-S85)*AT86) -> 0
G87: =IF(I87<=$AQ$51,I87/(1-$AK$51-$AK$44),IF(I87<=$AQ$52,(I87+$AM$51-$AI$51*$AK$52)/(1-$AK$52-$AK$44),IF(I87<=$AQ$53,(I87+$AM$52-$AI$52*$AK$53)/(1-$AK$53-$AK$44),IF(I87<=$AQ$54,(I87+$AM$53-$AI$53*$AK$54)/(1-$AK$54-$AK$44),IF(I87<=$AS$44,(I87+$AM$54-$AI$54*$AK$55)/(1-$AK$55-$AK$44),IF(I87>$AS$44,(I87+$AM$44+$AM$54-$AI$54*$AK$55)/(1-$AK$55))))))) -> 0 | H87: =X87+Y87 -> 0 | I87: =IF(H28=$AH$17,INDEX($AH$9:$AK$13,G27,4)*I27+I85,0) -> 0 | K87: =IF(M87<=$AQ$51,M87/(1-$AK$51-$AK$44),IF(M87<=$AQ$52,(M87+$AM$51-$AI$51*$AK$52)/(1-$AK$52-$AK$44),IF(M87<=$AQ$53,(M87+$AM$52-$AI$52*$AK$53)/(1-$AK$53-$AK$44),IF(M87<=$AQ$54,(M87+$AM$53-$AI$53*$AK$54)/(1-$AK$54-$AK$44),IF(M87<=$AS$44,(M87+$AM$54-$AI$54*$AK$55)/(1-$AK$55-$AK$44),IF(M87>$AS$44,(M87+$AM$44+$AM$54-$AI$54*$AK$55)/(1-$AK$55))))))) -> 0 | L87: =AD87+AE87 -> 0 | M87: =IF(L28=$AH$17,INDEX($AH$9:$AK$13,K27,4)*M27+M85,0) -> 0 | O87: =IF(Q87<=$AQ$51,Q87/(1-$AK$51-$AK$44),IF(Q87<=$AQ$52,(Q87+$AM$51-$AI$51*$AK$52)/(1-$AK$52-$AK$44),IF(Q87<=$AQ$53,(Q87+$AM$52-$AI$52*$AK$53)/(1-$AK$53-$AK$44),IF(Q87<=$AQ$54,(Q87+$AM$53-$AI$53*$AK$54)/(1-$AK$54-$AK$44),IF(Q87<=$AS$44,(Q87+$AM$54-$AI$54*$AK$55)/(1-$AK$55-$AK$44),IF(Q87>$AS$44,(Q87+$AM$44+$AM$54-$AI$54*$AK$55)/(1-$AK$55))))))) -> 0 | P87: =AJ87+AK87 -> 0 | Q87: =IF(P28=$AH$17,INDEX($AH$9:$AK$13,O27,4)*Q27+Q85,0) -> 0 | S87: =IF(U87<=$AQ$51,U87/(1-$AK$51-$AK$44),IF(U87<=$AQ$52,(U87+$AM$51-$AI$51*$AK$52)/(1-$AK$52-$AK$44),IF(U87<=$AQ$53,(U87+$AM$52-$AI$52*$AK$53)/(1-$AK$53-$AK$44),IF(U87<=$AQ$54,(U87+$AM$53-$AI$53*$AK$54)/(1-$AK$54-$AK$44),IF(U87<=$AS$44,(U87+$AM$54-$AI$54*$AK$55)/(1-$AK$55-$AK$44),IF(U87>$AS$44,(U87+$AM$44+$AM$54-$AI$54*$AK$55)/(1-$AK$55))))))) -> 0 | T87: =AP87+AQ87 -> 0 | U87: =IF(T28=$AH$17,INDEX($AH$9:$AK$13,S27,4)*U27+U85,0) -> 0 | X87: =G87-I87-Y87 -> 0 | Y87: =IF((G87-$F$82)>$AO$44,$AM$44,IF((G87-G85)>0,(G87-$F$82)*$AK$44,Y85)) -> 0 | AA87: =IF(Z86,IF(G87>$AK$30,(G87-$AK$30)*$AL$30,0),AA85) -> 0 | AB87: =IF(AB86>0,IF(AB86<0.03,1,0),0) -> 0 | AC87: =IF(OR(G87=0,AB86=0),0,(G87-G85)*AB86) -> 0 | AD87: =K87-M87-AE87 -> 0 | AE87: =IF((K87-$J$82)>$AO$44,$AM$44,IF((K87-K85)>0,(K87-$J$82)*$AK$44,AE85)) -> 0 | AG87: =IF(AF86,IF(K87>$AK$30,(K87-$AK$30)*$AL$30,0),AG85) -> 0 | AH87: =IF(AH86>0,IF(AH86<0.03,1,0),0) -> 0 | AI87: =IF(OR(K87=0,AH86=0),0,(K87-K85)*AH86) -> 0 | AJ87: =O87-Q87-AK87 -> 0 | AK87: =IF((O87-$N$82)>$AO$44,$AM$44,IF((O87-O85)>0,(O87-$N$82)*$AK$44,AK85)) -> 0 | AM87: =IF(AL86,IF(O87>$AK$30,(O87-$AK$30)*$AL$30,0),AM85) -> 0 | AN87: =IF(AN86>0,IF(AN86<0.03,1,0),0) -> 0 | AO87: =IF(OR(O87=0,AN86=0),0,(O87-O85)*AN86) -> 0 | AP87: =S87-U87-AQ87 -> 0 | AQ87: =IF((S87-$R$82)>$AO$44,$AM$44,IF((S87-S85)>0,(S87-$R$82)*$AK$44,AQ85)) -> 0 | AU87: =IF(OR(S87=0,AT86=0),0,(S87-S85)*AT86) -> 0
G88: =MAX(G86:G87) -> 0 | H88: =MAX(H86:H87) -> 0 | I88: =MAX(I86:I87) -> 0 | K88: =MAX(K86:K87) -> 0 | L88: =MAX(L86:L87) -> 0 | M88: =MAX(M86:M87) -> 0 | O88: =MAX(O86:O87) -> 0 | P88: =MAX(P86:P87) -> 0 | Q88: =MAX(Q86:Q87) -> 0 | S88: =MAX(S86:S87) -> 0 | T88: =MAX(T86:T87) -> 0 | U88: =MAX(U86:U87) -> 0 | X88: =MAX(X86:X87) -> 0 | Y88: =MAX(Y86:Y87) -> 0 | AA88: =MAX(AA86:AA87) -> 0 | AC88: =MAX(AC86:AC87)+AC85 -> 0 | AD88: =MAX(AD86:AD87) -> 0 | AE88: 0 | AG88: =MAX(AG86:AG87) -> 0 | AI88: =MAX(AI86:AI87)+AI85 -> 0 | AJ88: 0 | AK88: 0 | AM88: =MAX(AM86:AM87) -> 0 | AO88: =MAX(AO86:AO87)+AO85 -> 0 | AP88: 0 | AQ88: 0 | AU88: =MAX(AU86:AU87)+AU85 -> 0
B89: 5 | C89: Allowance | G89: =IF(H31=$AH$16,INDEX($AH$9:$AK$13,G30,4)*I30+G88,0) -> 0 | H89: =X89+Y89 -> 0 | I89: =G89-H89 -> 0 | K89: =IF(L31=$AH$16,INDEX($AH$9:$AK$13,K30,4)*M30+K88,0) -> 0 | L89: =AD89+AE89 -> 0 | M89: =K89-L89 -> 0 | O89: =IF(P31=$AH$16,INDEX($AH$9:$AK$13,O30,4)*Q30+O88,0) -> 0 | P89: =AJ89+AK89 -> 0 | Q89: =O89-P89 -> 0 | S89: =IF(T31=$AH$16,INDEX($AH$9:$AK$13,S30,4)*U30+S88,0) -> 0 | T89: =AP89+AQ89 -> 0 | U89: =S89-T89 -> 0 | X89: =IF(G89>$AI$54,(G89-$AI$54)*$AK$55+$AM$54,IF(G89>$AI$53,(G89-$AI$53)*$AK$54+$AM$53,IF(G89 > $AI$52,(G89-$AI$52)*$AK$53+$AM$52,IF(G89>$AI$51,(G89-$AI$51)*$AK$52+$AM$51,IF(G89>0,G89*$AK$51,0))))) -> 0 | Y89: =IF((G89-$F$82)>$AO$44,$AM$44,IF((G89-G88)>0,(G89-$F$82)*$AK$44,Y88)) -> 0 | Z89: =$Z$75 -> FALSE | AA89: =IF(Z89,IF(G89>$AK$30,(G89-$AK$30)*$AL$30,0),AA88) -> 0 | AB89: ='NSR Calculator'!AL39 -> 0 | AC89: =IF(OR(G89=0,AB89=0),0,(G89-G88)*AB89) -> 0 | AD89: =IF(K89>$AI$54,(K89-$AI$54)*$AK$55+$AM$54,IF(K89>$AI$53,(K89-$AI$53)*$AK$54+$AM$53,IF(K89 > $AI$52,(K89-$AI$52)*$AK$53+$AM$52,IF(K89>$AI$51,(K89-$AI$51)*$AK$52+$AM$51,IF(K89>0,K89*$AK$51,0))))) -> 0 | AE89: =IF((K89-$J$82)>$AO$44,$AM$44,IF((K89-K88)>0,(K89-$J$82)*$AK$44,AE88)) -> 0 | AF89: =$AF$75 -> FALSE | AG89: =IF(AF89,IF(K89>$AK$30,(K89-$AK$30)*$AL$30,0),AG88) -> 0 | AH89: ='NSR Calculator'!AQ39 -> 0 | AI89: =IF(OR(K89=0,AH89=0),0,(K89-K88)*AH89) -> 0 | AJ89: =IF(O89>$AI$54,(O89-$AI$54)*$AK$55+$AM$54,IF(O89>$AI$53,(O89-$AI$53)*$AK$54+$AM$53,IF(O89 > $AI$52,(O89-$AI$52)*$AK$53+$AM$52,IF(O89>$AI$51,(O89-$AI$51)*$AK$52+$AM$51,IF(O89>0,O89*$AK$51,0))))) -> 0 | AK89: =IF((O89-$N$82)>$AO$44,$AM$44,IF((O89-O88)>0,(O89-$N$82)*$AK$44,AK88)) -> 0 | AL89: =$AL$75 -> FALSE | AM89: =IF(AL89,IF(O89>$AK$30,(O89-$AK$30)*$AL$30,0),AM88) -> 0 | AN89: 0 | AO89: =IF(OR(O89=0,AN89=0),0,(O89-O88)*AN89) -> 0 | AP89: =IF(S89>$AI$54,(S89-$AI$54)*$AK$55+$AM$54,IF(S89>$AI$53,(S89-$AI$53)*$AK$54+$AM$53,IF(S89 > $AI$52,(S89-$AI$52)*$AK$53+$AM$52,IF(S89>$AI$51,(S89-$AI$51)*$AK$52+$AM$51,IF(S89>0,S89*$AK$51,0))))) -> 0 | AQ89: =IF((S89-$R$82)>$AO$44,$AM$44,IF((S89-S88)>0,(S89-$R$82)*$AK$44,AQ88)) -> 0 | AR89: =$AR$75 -> FALSE | AU89: =IF(OR(S89=0,AT89=0),0,(S89-S88)*AT89) -> 0
G90: =IF(I90<=$AQ$51,I90/(1-$AK$51-$AK$44),IF(I90<=$AQ$52,(I90+$AM$51-$AI$51*$AK$52)/(1-$AK$52-$AK$44),IF(I90<=$AQ$53,(I90+$AM$52-$AI$52*$AK$53)/(1-$AK$53-$AK$44),IF(I90<=$AQ$54,(I90+$AM$53-$AI$53*$AK$54)/(1-$AK$54-$AK$44),IF(I90<=$AS$44,(I90+$AM$54-$AI$54*$AK$55)/(1-$AK$55-$AK$44),IF(I90>$AS$44,(I90+$AM$44+$AM$54-$AI$54*$AK$55)/(1-$AK$55))))))) -> 0 | H90: =X90+Y90 -> 0 | I90: =IF(H31=$AH$17,INDEX($AH$9:$AK$13,G30,4)*I30+I88,0) -> 0 | K90: =IF(M90<=$AQ$51,M90/(1-$AK$51-$AK$44),IF(M90<=$AQ$52,(M90+$AM$51-$AI$51*$AK$52)/(1-$AK$52-$AK$44),IF(M90<=$AQ$53,(M90+$AM$52-$AI$52*$AK$53)/(1-$AK$53-$AK$44),IF(M90<=$AQ$54,(M90+$AM$53-$AI$53*$AK$54)/(1-$AK$54-$AK$44),IF(M90<=$AS$44,(M90+$AM$54-$AI$54*$AK$55)/(1-$AK$55-$AK$44),IF(M90>$AS$44,(M90+$AM$44+$AM$54-$AI$54*$AK$55)/(1-$AK$55))))))) -> 0 | L90: =AD90+AE90 -> 0 | M90: =IF(L31=$AH$17,INDEX($AH$9:$AK$13,K30,4)*M30+M88,0) -> 0 | O90: =IF(Q90<=$AQ$51,Q90/(1-$AK$51-$AK$44),IF(Q90<=$AQ$52,(Q90+$AM$51-$AI$51*$AK$52)/(1-$AK$52-$AK$44),IF(Q90<=$AQ$53,(Q90+$AM$52-$AI$52*$AK$53)/(1-$AK$53-$AK$44),IF(Q90<=$AQ$54,(Q90+$AM$53-$AI$53*$AK$54)/(1-$AK$54-$AK$44),IF(Q90<=$AS$44,(Q90+$AM$54-$AI$54*$AK$55)/(1-$AK$55-$AK$44),IF(Q90>$AS$44,(Q90+$AM$44+$AM$54-$AI$54*$AK$55)/(1-$AK$55))))))) -> 0 | P90: =AJ90+AK90 -> 0 | Q90: =IF(P31=$AH$17,INDEX($AH$9:$AK$13,O30,4)*Q30+Q88,0) -> 0 | S90: =IF(U90<=$AQ$51,U90/(1-$AK$51-$AK$44),IF(U90<=$AQ$52,(U90+$AM$51-$AI$51*$AK$52)/(1-$AK$52-$AK$44),IF(U90<=$AQ$53,(U90+$AM$52-$AI$52*$AK$53)/(1-$AK$53-$AK$44),IF(U90<=$AQ$54,(U90+$AM$53-$AI$53*$AK$54)/(1-$AK$54-$AK$44),IF(U90<=$AS$44,(U90+$AM$54-$AI$54*$AK$55)/(1-$AK$55-$AK$44),IF(U90>$AS$44,(U90+$AM$44+$AM$54-$AI$54*$AK$55)/(1-$AK$55))))))) -> 0 | T90: =AP90+AQ90 -> 0 | U90: =IF(T31=$AH$17,INDEX($AH$9:$AK$13,S30,4)*U30+U88,0) -> 0 | X90: =G90-I90-Y90 -> 0 | Y90: =IF((G90-$F$82)>$AO$44,$AM$44,IF((G90-G88)>0,(G90-$F$82)*$AK$44,Y88)) -> 0 | AA90: =IF(Z89,IF(G90>$AK$30,(G90-$AK$30)*$AL$30,0),AA88) -> 0 | AB90: =IF(AB89>0,IF(AB89<0.03,1,0),0) -> 0 | AC90: =IF(OR(G90=0,AB89=0),0,(G90-G88)*AB89) -> 0 | AD90: =K90-M90-AE90 -> 0 | AE90: =IF((K90-$J$82)>$AO$44,$AM$44,IF((K90-K88)>0,(K90-$J$82)*$AK$44,AE88)) -> 0 | AG90: =IF(AF89,IF(K90>$AK$30,(K90-$AK$30)*$AL$30,0),AG88) -> 0 | AH90: =IF(AH89>0,IF(AH89<0.03,1,0),0) -> 0 | AI90: =IF(OR(K90=0,AH89=0),0,(K90-K88)*AH89) -> 0 | AJ90: =O90-Q90-AK90 -> 0 | AK90: =IF((O90-$N$82)>$AO$44,$AM$44,IF((O90-O88)>0,(O90-$N$82)*$AK$44,AK88)) -> 0 | AM90: =IF(AL89,IF(O90>$AK$30,(O90-$AK$30)*$AL$30,0),AM88) -> 0 | AN90: =IF(AN89>0,IF(AN89<0.03,1,0),0) -> 0 | AO90: =IF(OR(O90=0,AN89=0),0,(O90-O88)*AN89) -> 0 | AP90: =S90-U90-AQ90 -> 0 | AQ90: =IF((S90-$R$82)>$AO$44,$AM$44,IF((S90-S88)>0,(S90-$R$82)*$AK$44,AQ88)) -> 0 | AU90: =IF(OR(S90=0,AT89=0),0,(S90-S88)*AT89) -> 0
G91: =MAX(G89:G90) -> 0 | H91: =MAX(H89:H90) -> 0 | I91: =MAX(I89:I90) -> 0 | J91: =K91-AG91-AI91 -> 0 | K91: =MAX(K89:K90) -> 0 | L91: =MAX(L89:L90) -> 0 | M91: =MAX(M89:M90) -> 0 | N91: =O91-AM91-AO91 -> 0 | O91: =MAX(O89:O90) -> 0 | P91: =MAX(P89:P90) -> 0 | Q91: =MAX(Q89:Q90) -> 0 | R91: =S91-AS91-AU91 -> 0 | S91: =MAX(S89:S90) -> 0 | T91: =MAX(T89:T90) -> 0 | U91: =MAX(U89:U90) -> 0 | X91: =MAX(X89:X90) -> 0 | Y91: =MAX(Y89:Y90) -> 0 | AA91: =MAX(AA89:AA90) -> 0 | AC91: =MAX(AC89:AC90)+AC88 -> 0 | AD91: =MAX(AD89:AD90) -> 0 | AE91: 0 | AG91: =MAX(AG89:AG90) -> 0 | AI91: =MAX(AI89:AI90)+AI88 -> 0 | AJ91: 0 | AK91: 0 | AM91: =MAX(AM89:AM90) -> 0 | AO91: =MAX(AO89:AO90)+AO88 -> 0 | AP91: 0 | AQ91: 0 | AU91: =MAX(AU89:AU90)+AU88 -> 0
B92: 6 | C92: Commission | G92: =IF(H34=$AH$16,INDEX($AH$9:$AK$13,G33,4)*I33+G91,0) -> 0 | H92: =X92+Y92 -> 0 | I92: =G92-H92 -> 0 | K92: =IF(L34=$AH$16,INDEX($AH$9:$AK$13,K33,4)*M33+K91,0) -> 0 | L92: =AD92+AE92 -> 0 | M92: =K92-L92 -> 0 | O92: =IF(P34=$AH$16,INDEX($AH$9:$AK$13,O33,4)*Q33+O91,0) -> 0 | P92: =AJ92+AK92 -> 0 | Q92: =O92-P92 -> 0 | S92: =IF(T34=$AH$16,INDEX($AH$9:$AK$13,S33,4)*U33+S91,0) -> 0 | T92: =AP92+AQ92 -> 0 | U92: =S92-T92 -> 0 | X92: =IF(G92>$AI$54,(G92-$AI$54)*$AK$55+$AM$54,IF(G92>$AI$53,(G92-$AI$53)*$AK$54+$AM$53,IF(G92 > $AI$52,(G92-$AI$52)*$AK$53+$AM$52,IF(G92>$AI$51,(G92-$AI$51)*$AK$52+$AM$51,IF(G92>0,G92*$AK$51,0))))) -> 0 | Y92: =IF((G92-$F$82)>$AO$44,$AM$44,IF((G92-G91)>0,(G92-$F$82)*$AK$44,Y91)) -> 0 | Z92: =$Z$75 -> FALSE | AA92: =IF(Z92,IF(G92>$AK$30,(G92-$AK$30)*$AL$30,0),AA91) -> 0 | AB92: ='NSR Calculator'!AL42 -> 0 | AC92: =IF(OR(G92=0,AB92=0),0,(G92-G91)*AB92) -> 0 | AD92: =IF(K92>$AI$54,(K92-$AI$54)*$AK$55+$AM$54,IF(K92>$AI$53,(K92-$AI$53)*$AK$54+$AM$53,IF(K92 > $AI$52,(K92-$AI$52)*$AK$53+$AM$52,IF(K92>$AI$51,(K92-$AI$51)*$AK$52+$AM$51,IF(K92>0,K92*$AK$51,0))))) -> 0 | AE92: =IF((K92-$J$82)>$AO$44,$AM$44,IF((K92-K91)>0,(K92-$J$82)*$AK$44,AE91)) -> 0 | AF92: =$AF$75 -> FALSE | AG92: =IF(AF92,IF(K92>$AK$30,(K92-$AK$30)*$AL$30,0),AG91) -> 0 | AH92: ='NSR Calculator'!AQ42 -> 0 | AI92: =IF(OR(K92=0,AH92=0),0,(K92-K91)*AH92) -> 0 | AJ92: =IF(O92>$AI$54,(O92-$AI$54)*$AK$55+$AM$54,IF(O92>$AI$53,(O92-$AI$53)*$AK$54+$AM$53,IF(O92 > $AI$52,(O92-$AI$52)*$AK$53+$AM$52,IF(O92>$AI$51,(O92-$AI$51)*$AK$52+$AM$51,IF(O92>0,O92*$AK$51,0))))) -> 0 | AK92: =IF((O92-$N$82)>$AO$44,$AM$44,IF((O92-O91)>0,(O92-$N$82)*$AK$44,AK91)) -> 0 | AL92: =$AL$75 -> FALSE | AM92: =IF(AL92,IF(O92>$AK$30,(O92-$AK$30)*$AL$30,0),AM91) -> 0 | AN92: 0 | AO92: =IF(OR(O92=0,AN92=0),0,(O92-O91)*AN92) -> 0 | AP92: =IF(S92>$AI$54,(S92-$AI$54)*$AK$55+$AM$54,IF(S92>$AI$53,(S92-$AI$53)*$AK$54+$AM$53,IF(S92 > $AI$52,(S92-$AI$52)*$AK$53+$AM$52,IF(S92>$AI$51,(S92-$AI$51)*$AK$52+$AM$51,IF(S92>0,S92*$AK$51,0))))) -> 0 | AQ92: =IF((S92-$R$82)>$AO$44,$AM$44,IF((S92-S91)>0,(S92-$R$82)*$AK$44,AQ91)) -> 0 | AR92: =$AR$75 -> FALSE | AU92: =IF(OR(S92=0,AT92=0),0,(S92-S91)*AT92) -> 0
G93: =IF(I93<=$AQ$51,I93/(1-$AK$51-$AK$44),IF(I93<=$AQ$52,(I93+$AM$51-$AI$51*$AK$52)/(1-$AK$52-$AK$44),IF(I93<=$AQ$53,(I93+$AM$52-$AI$52*$AK$53)/(1-$AK$53-$AK$44),IF(I93<=$AQ$54,(I93+$AM$53-$AI$53*$AK$54)/(1-$AK$54-$AK$44),IF(I93<=$AS$44,(I93+$AM$54-$AI$54*$AK$55)/(1-$AK$55-$AK$44),IF(I93>$AS$44,(I93+$AM$44+$AM$54-$AI$54*$AK$55)/(1-$AK$55))))))) -> 0 | H93: =X93+Y93 -> 0 | I93: =IF(H34=$AH$17,INDEX($AH$9:$AK$13,G33,4)*I33+I91,0) -> 0 | K93: =IF(M93<=$AQ$51,M93/(1-$AK$51-$AK$44),IF(M93<=$AQ$52,(M93+$AM$51-$AI$51*$AK$52)/(1-$AK$52-$AK$44),IF(M93<=$AQ$53,(M93+$AM$52-$AI$52*$AK$53)/(1-$AK$53-$AK$44),IF(M93<=$AQ$54,(M93+$AM$53-$AI$53*$AK$54)/(1-$AK$54-$AK$44),IF(M93<=$AS$44,(M93+$AM$54-$AI$54*$AK$55)/(1-$AK$55-$AK$44),IF(M93>$AS$44,(M93+$AM$44+$AM$54-$AI$54*$AK$55)/(1-$AK$55))))))) -> 0 | L93: =AD93+AE93 -> 0 | M93: =IF(L34=$AH$17,INDEX($AH$9:$AK$13,K33,4)*M33+M91,0) -> 0 | O93: =IF(Q93<=$AQ$51,Q93/(1-$AK$51-$AK$44),IF(Q93<=$AQ$52,(Q93+$AM$51-$AI$51*$AK$52)/(1-$AK$52-$AK$44),IF(Q93<=$AQ$53,(Q93+$AM$52-$AI$52*$AK$53)/(1-$AK$53-$AK$44),IF(Q93<=$AQ$54,(Q93+$AM$53-$AI$53*$AK$54)/(1-$AK$54-$AK$44),IF(Q93<=$AS$44,(Q93+$AM$54-$AI$54*$AK$55)/(1-$AK$55-$AK$44),IF(Q93>$AS$44,(Q93+$AM$44+$AM$54-$AI$54*$AK$55)/(1-$AK$55))))))) -> 0 | P93: =AJ93+AK93 -> 0 | Q93: =IF(P34=$AH$17,INDEX($AH$9:$AK$13,O33,4)*Q33+Q91,0) -> 0 | S93: =IF(U93<=$AQ$51,U93/(1-$AK$51-$AK$44),IF(U93<=$AQ$52,(U93+$AM$51-$AI$51*$AK$52)/(1-$AK$52-$AK$44),IF(U93<=$AQ$53,(U93+$AM$52-$AI$52*$AK$53)/(1-$AK$53-$AK$44),IF(U93<=$AQ$54,(U93+$AM$53-$AI$53*$AK$54)/(1-$AK$54-$AK$44),IF(U93<=$AS$44,(U93+$AM$54-$AI$54*$AK$55)/(1-$AK$55-$AK$44),IF(U93>$AS$44,(U93+$AM$44+$AM$54-$AI$54*$AK$55)/(1-$AK$55))))))) -> 0 | T93: =AP93+AQ93 -> 0 | U93: =IF(T34=$AH$17,INDEX($AH$9:$AK$13,S33,4)*U33+U91,0) -> 0 | X93: =G93-I93-Y93 -> 0 | Y93: =IF((G93-$F$82)>$AO$44,$AM$44,IF((G93-G91)>0,(G93-$F$82)*$AK$44,Y91)) -> 0 | AA93: =IF(Z92,IF(G93>$AK$30,(G93-$AK$30)*$AL$30,0),AA91) -> 0 | AB93: =IF(AB92>0,IF(AB92<0.03,1,0),0) -> 0 | AC93: =IF(OR(G93=0,AB92=0),0,(G93-G91)*AB92) -> 0 | AD93: =K93-M93-AE93 -> 0 | AE93: =IF((K93-$J$82)>$AO$44,$AM$44,IF((K93-K91)>0,(K93-$J$82)*$AK$44,AE91)) -> 0 | AG93: =IF(AF92,IF(K93>$AK$30,(K93-$AK$30)*$AL$30,0),AG91) -> 0 | AH93: =IF(AH92>0,IF(AH92<0.03,1,0),0) -> 0 | AI93: =IF(OR(K93=0,AH92=0),0,(K93-K91)*AH92) -> 0 | AJ93: =O93-Q93-AK93 -> 0 | AK93: =IF((O93-$N$82)>$AO$44,$AM$44,IF((O93-O91)>0,(O93-$N$82)*$AK$44,AK91)) -> 0 | AM93: =IF(AL92,IF(O93>$AK$30,(O93-$AK$30)*$AL$30,0),AM91) -> 0 | AN93: =IF(AN92>0,IF(AN92<0.03,1,0),0) -> 0 | AO93: =IF(OR(O93=0,AN92=0),0,(O93-O91)*AN92) -> 0 | AP93: =S93-U93-AQ93 -> 0 | AQ93: =IF((S93-$R$82)>$AO$44,$AM$44,IF((S93-S91)>0,(S93-$R$82)*$AK$44,AQ91)) -> 0 | AU93: =IF(OR(S93=0,AT92=0),0,(S93-S91)*AT92) -> 0
G94: =MAX(G92:G93) -> 0 | H94: =MAX(H92:H93) -> 0 | I94: =MAX(I92:I93) -> 0 | J94: =K94-AG94-AI94 -> 0 | K94: =MAX(K92:K93) -> 0 | L94: =MAX(L92:L93) -> 0 | M94: =MAX(M92:M93) -> 0 | N94: =O94-AM94-AO94 -> 0 | O94: =MAX(O92:O93) -> 0 | P94: =MAX(P92:P93) -> 0 | Q94: =MAX(Q92:Q93) -> 0 | R94: =S94-AS94-AU94 -> 0 | S94: =MAX(S92:S93) -> 0 | T94: =MAX(T92:T93) -> 0 | U94: =MAX(U92:U93) -> 0 | X94: =MAX(X92:X93) -> 0 | Y94: 0 | AA94: =MAX(AA92:AA93) -> 0 | AC94: =MAX(AC92:AC93)+AC91 -> 0 | AD94: =MAX(AD92:AD93) -> 0 | AE94: 0 | AG94: =MAX(AG92:AG93) -> 0 | AI94: =MAX(AI92:AI93)+AI91 -> 0 | AJ94: 0 | AK94: 0 | AM94: =MAX(AM92:AM93) -> 0 | AO94: =MAX(AO92:AO93)+AO91 -> 0 | AP94: 0 | AQ94: 0 | AU94: =MAX(AU92:AU93)+AU91 -> 0
B95: 7 | C95: Investment | G95: =IF(H37=$AH$16,INDEX($AH$9:$AK$13,G36,4)*I36+G94,0) -> 0 | H95: =X95+Y95 -> 0 | I95: =G95-H95 -> 0 | K95: =IF(L37=$AH$16,INDEX($AH$9:$AK$13,K36,4)*M36+K94,0) -> 0 | L95: =AD95+AE95 -> 0 | M95: =K95-L95 -> 0 | O95: =IF(P37=$AH$16,INDEX($AH$9:$AK$13,O36,4)*Q36+O94,0) -> 0 | P95: =AJ95+AK95 -> 0 | Q95: =O95-P95 -> 0 | S95: =IF(T37=$AH$16,INDEX($AH$9:$AK$13,S36,4)*U36+S94,0) -> 0 | T95: =AP95+AQ95 -> 0 | U95: =S95-T95 -> 0 | X95: =IF(G95>$AI$54,(G95-$AI$54)*$AK$55+$AM$54,IF(G95>$AI$53,(G95-$AI$53)*$AK$54+$AM$53,IF(G95 > $AI$52,(G95-$AI$52)*$AK$53+$AM$52,IF(G95>$AI$51,(G95-$AI$51)*$AK$52+$AM$51,IF(G95>0,G95*$AK$51,0))))) -> 0 | Y95: =IF((G95-$F$82)>$AO$44,$AM$44,IF((G95-G94)>0,(G95-$F$82)*$AK$44,Y94)) -> 0 | Z95: =$Z$75 -> FALSE | AA95: =IF(Z95,IF(G95>$AK$30,(G95-$AK$30)*$AL$30,0),AA94) -> 0 | AB95: ='NSR Calculator'!AL45 -> 0 | AC95: =IF(OR(G95=0,AB95=0),0,(G95-G94)*AB95) -> 0 | AD95: =IF(K95>$AI$54,(K95-$AI$54)*$AK$55+$AM$54,IF(K95>$AI$53,(K95-$AI$53)*$AK$54+$AM$53,IF(K95 > $AI$52,(K95-$AI$52)*$AK$53+$AM$52,IF(K95>$AI$51,(K95-$AI$51)*$AK$52+$AM$51,IF(K95>0,K95*$AK$51,0))))) -> 0 | AE95: =IF((K95-$J$82)>$AO$44,$AM$44,IF((K95-K94)>0,(K95-$J$82)*$AK$44,AE94)) -> 0 | AF95: =$AF$75 -> FALSE | AG95: =IF(AF95,IF(K95>$AK$30,(K95-$AK$30)*$AL$30,0),AG94) -> 0 | AH95: ='NSR Calculator'!AQ45 -> 0 | AI95: =IF(OR(K95=0,AH95=0),0,(K95-K94)*AH95) -> 0 | AJ95: =IF(O95>$AI$54,(O95-$AI$54)*$AK$55+$AM$54,IF(O95>$AI$53,(O95-$AI$53)*$AK$54+$AM$53,IF(O95 > $AI$52,(O95-$AI$52)*$AK$53+$AM$52,IF(O95>$AI$51,(O95-$AI$51)*$AK$52+$AM$51,IF(O95>0,O95*$AK$51,0))))) -> 0 | AK95: =IF((O95-$N$82)>$AO$44,$AM$44,IF((O95-O94)>0,(O95-$N$82)*$AK$44,AK94)) -> 0 | AL95: =$AL$75 -> FALSE | AM95: =IF(AL95,IF(O95>$AK$30,(O95-$AK$30)*$AL$30,0),AM94) -> 0 | AN95: 0 | AO95: =IF(OR(O95=0,AN95=0),0,(O95-O94)*AN95) -> 0 | AP95: =IF(S95>$AI$54,(S95-$AI$54)*$AK$55+$AM$54,IF(S95>$AI$53,(S95-$AI$53)*$AK$54+$AM$53,IF(S95 > $AI$52,(S95-$AI$52)*$AK$53+$AM$52,IF(S95>$AI$51,(S95-$AI$51)*$AK$52+$AM$51,IF(S95>0,S95*$AK$51,0))))) -> 0 | AQ95: =IF((S95-$R$82)>$AO$44,$AM$44,IF((S95-S94)>0,(S95-$R$82)*$AK$44,AQ94)) -> 0 | AR95: =$AR$75 -> FALSE | AU95: =IF(OR(S95=0,AT95=0),0,(S95-S94)*AT95) -> 0
G96: =IF(I96<=$AQ$51,I96/(1-$AK$51-$AK$44),IF(I96<=$AQ$52,(I96+$AM$51-$AI$51*$AK$52)/(1-$AK$52-$AK$44),IF(I96<=$AQ$53,(I96+$AM$52-$AI$52*$AK$53)/(1-$AK$53-$AK$44),IF(I96<=$AQ$54,(I96+$AM$53-$AI$53*$AK$54)/(1-$AK$54-$AK$44),IF(I96<=$AS$44,(I96+$AM$54-$AI$54*$AK$55)/(1-$AK$55-$AK$44),IF(I96>$AS$44,(I96+$AM$44+$AM$54-$AI$54*$AK$55)/(1-$AK$55))))))) -> 0 | H96: =X96+Y96 -> 0 | I96: =IF(H37=$AH$17,INDEX($AH$9:$AK$13,G36,4)*I36+I94,0) -> 0 | K96: =IF(M96<=$AQ$51,M96/(1-$AK$51-$AK$44),IF(M96<=$AQ$52,(M96+$AM$51-$AI$51*$AK$52)/(1-$AK$52-$AK$44),IF(M96<=$AQ$53,(M96+$AM$52-$AI$52*$AK$53)/(1-$AK$53-$AK$44),IF(M96<=$AQ$54,(M96+$AM$53-$AI$53*$AK$54)/(1-$AK$54-$AK$44),IF(M96<=$AS$44,(M96+$AM$54-$AI$54*$AK$55)/(1-$AK$55-$AK$44),IF(M96>$AS$44,(M96+$AM$44+$AM$54-$AI$54*$AK$55)/(1-$AK$55))))))) -> 0 | L96: =AD96+AE96 -> 0 | M96: =IF(L37=$AH$17,INDEX($AH$9:$AK$13,K36,4)*M36+M94,0) -> 0 | O96: =IF(Q96<=$AQ$51,Q96/(1-$AK$51-$AK$44),IF(Q96<=$AQ$52,(Q96+$AM$51-$AI$51*$AK$52)/(1-$AK$52-$AK$44),IF(Q96<=$AQ$53,(Q96+$AM$52-$AI$52*$AK$53)/(1-$AK$53-$AK$44),IF(Q96<=$AQ$54,(Q96+$AM$53-$AI$53*$AK$54)/(1-$AK$54-$AK$44),IF(Q96<=$AS$44,(Q96+$AM$54-$AI$54*$AK$55)/(1-$AK$55-$AK$44),IF(Q96>$AS$44,(Q96+$AM$44+$AM$54-$AI$54*$AK$55)/(1-$AK$55))))))) -> 0 | P96: =AJ96+AK96 -> 0 | Q96: =IF(P37=$AH$17,INDEX($AH$9:$AK$13,O36,4)*Q36+Q94,0) -> 0 | S96: =IF(U96<=$AQ$51,U96/(1-$AK$51-$AK$44),IF(U96<=$AQ$52,(U96+$AM$51-$AI$51*$AK$52)/(1-$AK$52-$AK$44),IF(U96<=$AQ$53,(U96+$AM$52-$AI$52*$AK$53)/(1-$AK$53-$AK$44),IF(U96<=$AQ$54,(U96+$AM$53-$AI$53*$AK$54)/(1-$AK$54-$AK$44),IF(U96<=$AS$44,(U96+$AM$54-$AI$54*$AK$55)/(1-$AK$55-$AK$44),IF(U96>$AS$44,(U96+$AM$44+$AM$54-$AI$54*$AK$55)/(1-$AK$55))))))) -> 0 | T96: =AP96+AQ96 -> 0 | U96: =IF(T37=$AH$17,INDEX($AH$9:$AK$13,S36,4)*U36+U94,0) -> 0 | X96: =G96-I96-Y96 -> 0 | Y96: =IF((G96-$F$82)>$AO$44,$AM$44,IF((G96-G94)>0,(G96-$F$82)*$AK$44,Y94)) -> 0 | AA96: =IF(Z95,IF(G96>$AK$30,(G96-$AK$30)*$AL$30,0),AA94) -> 0 | AB96: =IF(AB95>0,IF(AB95<0.03,1,0),0) -> 0 | AC96: =IF(OR(G96=0,AB95=0),0,(G96-G94)*AB95) -> 0 | AD96: =K96-M96-AE96 -> 0 | AE96: =IF((K96-$J$82)>$AO$44,$AM$44,IF((K96-K94)>0,(K96-$J$82)*$AK$44,AE94)) -> 0 | AG96: =IF(AF95,IF(K96>$AK$30,(K96-$AK$30)*$AL$30,0),AG94) -> 0 | AH96: =IF(AH95>0,IF(AH95<0.03,1,0),0) -> 0 | AI96: =IF(OR(K96=0,AH95=0),0,(K96-K94)*AH95) -> 0 | AJ96: =O96-Q96-AK96 -> 0 | AK96: =IF((O96-$N$82)>$AO$44,$AM$44,IF((O96-O94)>0,(O96-$N$82)*$AK$44,AK94)) -> 0 | AM96: =IF(AL95,IF(O96>$AK$30,(O96-$AK$30)*$AL$30,0),AM94) -> 0 | AN96: =IF(AN95>0,IF(AN95<0.03,1,0),0) -> 0 | AO96: =IF(OR(O96=0,AN95=0),0,(O96-O94)*AN95) -> 0 | AP96: =S96-U96-AQ96 -> 0 | AQ96: =IF((S96-$R$82)>$AO$44,$AM$44,IF((S96-S94)>0,(S96-$R$82)*$AK$44,AQ94)) -> 0 | AU96: =IF(OR(S96=0,AT95=0),0,(S96-S94)*AT95) -> 0
G97: =MAX(G95:G96) -> 0 | H97: =MAX(H95:H96) -> 0 | I97: =MAX(I95:I96) -> 0 | J97: =K97-AG97-AI97 -> 0 | K97: =MAX(K95:K96) -> 0 | L97: =MAX(L95:L96) -> 0 | M97: =MAX(M95:M96) -> 0 | N97: =O97-AM97-AO97 -> 0 | O97: =MAX(O95:O96) -> 0 | P97: =MAX(P95:P96) -> 0 | Q97: =MAX(Q95:Q96) -> 0 | R97: =S97-AS97-AU97 -> 0 | S97: =MAX(S95:S96) -> 0 | T97: =MAX(T95:T96) -> 0 | U97: =MAX(U95:U96) -> 0 | X97: =MAX(X95:X96) -> 0 | Y97: =MAX(Y95:Y96) -> 0 | AA97: =MAX(AA95:AA96) -> 0 | AC97: =MAX(AC95:AC96)+AC94 -> 0 | AD97: =MAX(AD95:AD96) -> 0 | AE97: 0 | AG97: =MAX(AG95:AG96) -> 0 | AI97: =MAX(AI95:AI96)+AI94 -> 0 | AJ97: 0 | AK97: 0 | AM97: =MAX(AM95:AM96) -> 0 | AO97: =MAX(AO95:AO96)+AO94 -> 0 | AP97: 0 | AQ97: 0 | AU97: =MAX(AU95:AU96)+AU94 -> 0
B98: 8 | C98: Beneficiary | G98: =IF(H40=$AH$16,INDEX($AH$9:$AK$13,G39,4)*I39+G97,0) -> 0 | H98: =X98+Y98 -> 0 | I98: =G98-H98 -> 0 | K98: =IF(L40=$AH$16,INDEX($AH$9:$AK$13,K39,4)*M39+K97,0) -> 0 | L98: =AD98+AE98 -> 0 | M98: =K98-L98 -> 0 | O98: =IF(P40=$AH$16,INDEX($AH$9:$AK$13,O39,4)*Q39+O97,0) -> 0 | P98: =AJ98+AK98 -> 0 | Q98: =O98-P98 -> 0 | S98: =IF(T40=$AH$16,INDEX($AH$9:$AK$13,S39,4)*U39+S97,0) -> 0 | T98: =AP98+AQ98 -> 0 | U98: =S98-T98 -> 0 | X98: =IF(G98>$AI$54,(G98-$AI$54)*$AK$55+$AM$54,IF(G98>$AI$53,(G98-$AI$53)*$AK$54+$AM$53,IF(G98 > $AI$52,(G98-$AI$52)*$AK$53+$AM$52,IF(G98>$AI$51,(G98-$AI$51)*$AK$52+$AM$51,IF(G98>0,G98*$AK$51,0))))) -> 0 | Y98: =IF((G98-$F$82)>$AO$44,$AM$44,IF((G98-G97)>0,(G98-$F$82)*$AK$44,Y97)) -> 0 | Z98: =$Z$75 -> FALSE | AA98: =IF(Z98,IF(G98>$AK$30,(G98-$AK$30)*$AL$30,0),AA97) -> 0 | AB98: ='NSR Calculator'!AL48 -> 0 | AC98: =IF(OR(G98=0,AB98=0),0,(G98-G97)*AB98) -> 0 | AD98: =IF(K98>$AI$54,(K98-$AI$54)*$AK$55+$AM$54,IF(K98>$AI$53,(K98-$AI$53)*$AK$54+$AM$53,IF(K98 > $AI$52,(K98-$AI$52)*$AK$53+$AM$52,IF(K98>$AI$51,(K98-$AI$51)*$AK$52+$AM$51,IF(K98>0,K98*$AK$51,0))))) -> 0 | AE98: =IF((K98-$J$82)>$AO$44,$AM$44,IF((K98-K97)>0,(K98-$J$82)*$AK$44,AE97)) -> 0 | AF98: =$AF$75 -> FALSE | AG98: =IF(AF98,IF(K98>$AK$30,(K98-$AK$30)*$AL$30,0),AG97) -> 0 | AH98: ='NSR Calculator'!AQ48 -> 0 | AI98: =IF(OR(K98=0,AH98=0),0,(K98-K97)*AH98) -> 0 | AJ98: =IF(O98>$AI$54,(O98-$AI$54)*$AK$55+$AM$54,IF(O98>$AI$53,(O98-$AI$53)*$AK$54+$AM$53,IF(O98 > $AI$52,(O98-$AI$52)*$AK$53+$AM$52,IF(O98>$AI$51,(O98-$AI$51)*$AK$52+$AM$51,IF(O98>0,O98*$AK$51,0))))) -> 0 | AK98: =IF((O98-$N$82)>$AO$44,$AM$44,IF((O98-O97)>0,(O98-$N$82)*$AK$44,AK97)) -> 0 | AL98: =$AL$75 -> FALSE | AM98: =IF(AL98,IF(O98>$AK$30,(O98-$AK$30)*$AL$30,0),AM97) -> 0 | AN98: 0 | AO98: =IF(OR(O98=0,AN98=0),0,(O98-O97)*AN98) -> 0 | AP98: =IF(S98>$AI$54,(S98-$AI$54)*$AK$55+$AM$54,IF(S98>$AI$53,(S98-$AI$53)*$AK$54+$AM$53,IF(S98 > $AI$52,(S98-$AI$52)*$AK$53+$AM$52,IF(S98>$AI$51,(S98-$AI$51)*$AK$52+$AM$51,IF(S98>0,S98*$AK$51,0))))) -> 0 | AQ98: =IF((S98-$R$82)>$AO$44,$AM$44,IF((S98-S97)>0,(S98-$R$82)*$AK$44,AQ97)) -> 0 | AR98: =$AR$75 -> FALSE | AU98: =IF(OR(S98=0,AT98=0),0,(S98-S97)*AT98) -> 0
G99: =IF(I99<=$AQ$51,I99/(1-$AK$51-$AK$44),IF(I99<=$AQ$52,(I99+$AM$51-$AI$51*$AK$52)/(1-$AK$52-$AK$44),IF(I99<=$AQ$53,(I99+$AM$52-$AI$52*$AK$53)/(1-$AK$53-$AK$44),IF(I99<=$AQ$54,(I99+$AM$53-$AI$53*$AK$54)/(1-$AK$54-$AK$44),IF(I99<=$AS$44,(I99+$AM$54-$AI$54*$AK$55)/(1-$AK$55-$AK$44),IF(I99>$AS$44,(I99+$AM$44+$AM$54-$AI$54*$AK$55)/(1-$AK$55))))))) -> 0 | H99: =X99+Y99 -> 0 | I99: =IF(H40=$AH$17,INDEX($AH$9:$AK$13,G39,4)*I39+I97,0) -> 0 | K99: =IF(M99<=$AQ$51,M99/(1-$AK$51-$AK$44),IF(M99<=$AQ$52,(M99+$AM$51-$AI$51*$AK$52)/(1-$AK$52-$AK$44),IF(M99<=$AQ$53,(M99+$AM$52-$AI$52*$AK$53)/(1-$AK$53-$AK$44),IF(M99<=$AQ$54,(M99+$AM$53-$AI$53*$AK$54)/(1-$AK$54-$AK$44),IF(M99<=$AS$44,(M99+$AM$54-$AI$54*$AK$55)/(1-$AK$55-$AK$44),IF(M99>$AS$44,(M99+$AM$44+$AM$54-$AI$54*$AK$55)/(1-$AK$55))))))) -> 0 | L99: =AD99+AE99 -> 0 | M99: =IF(L40=$AH$17,INDEX($AH$9:$AK$13,K39,4)*M39+M97,0) -> 0 | O99: =IF(Q99<=$AQ$51,Q99/(1-$AK$51-$AK$44),IF(Q99<=$AQ$52,(Q99+$AM$51-$AI$51*$AK$52)/(1-$AK$52-$AK$44),IF(Q99<=$AQ$53,(Q99+$AM$52-$AI$52*$AK$53)/(1-$AK$53-$AK$44),IF(Q99<=$AQ$54,(Q99+$AM$53-$AI$53*$AK$54)/(1-$AK$54-$AK$44),IF(Q99<=$AS$44,(Q99+$AM$54-$AI$54*$AK$55)/(1-$AK$55-$AK$44),IF(Q99>$AS$44,(Q99+$AM$44+$AM$54-$AI$54*$AK$55)/(1-$AK$55))))))) -> 0 | P99: =AJ99+AK99 -> 0 | Q99: =IF(P40=$AH$17,INDEX($AH$9:$AK$13,O39,4)*Q39+Q97,0) -> 0 | S99: =IF(U99<=$AQ$51,U99/(1-$AK$51-$AK$44),IF(U99<=$AQ$52,(U99+$AM$51-$AI$51*$AK$52)/(1-$AK$52-$AK$44),IF(U99<=$AQ$53,(U99+$AM$52-$AI$52*$AK$53)/(1-$AK$53-$AK$44),IF(U99<=$AQ$54,(U99+$AM$53-$AI$53*$AK$54)/(1-$AK$54-$AK$44),IF(U99<=$AS$44,(U99+$AM$54-$AI$54*$AK$55)/(1-$AK$55-$AK$44),IF(U99>$AS$44,(U99+$AM$44+$AM$54-$AI$54*$AK$55)/(1-$AK$55))))))) -> 0 | T99: =AP99+AQ99 -> 0 | U99: =IF(T40=$AH$17,INDEX($AH$9:$AK$13,S39,4)*U39+U97,0) -> 0 | X99: =G99-I99-Y99 -> 0 | Y99: =IF((G99-$F$82)>$AO$44,$AM$44,IF((G99-G97)>0,(G99-$F$82)*$AK$44,Y97)) -> 0 | AA99: =IF(Z98,IF(G99>$AK$30,(G99-$AK$30)*$AL$30,0),AA97) -> 0 | AB99: =IF(AB98>0,IF(AB98<0.03,1,0),0) -> 0 | AC99: =IF(OR(G99=0,AB98=0),0,(G99-G97)*AB98) -> 0 | AD99: =K99-M99-AE99 -> 0 | AE99: =IF((K99-$J$82)>$AO$44,$AM$44,IF((K99-K97)>0,(K99-$J$82)*$AK$44,AE97)) -> 0 | AG99: =IF(AF98,IF(K99>$AK$30,(K99-$AK$30)*$AL$30,0),AG97) -> 0 | AH99: =IF(AH98>0,IF(AH98<0.03,1,0),0) -> 0 | AI99: =IF(OR(K99=0,AH98=0),0,(K99-K97)*AH98) -> 0 | AJ99: =O99-Q99-AK99 -> 0 | AK99: =IF((O99-$N$82)>$AO$44,$AM$44,IF((O99-O97)>0,(O99-$N$82)*$AK$44,AK97)) -> 0 | AM99: =IF(AL98,IF(O99>$AK$30,(O99-$AK$30)*$AL$30,0),AM97) -> 0 | AN99: =IF(AN98>0,IF(AN98<0.03,1,0),0) -> 0 | AO99: =IF(OR(O99=0,AN98=0),0,(O99-O97)*AN98) -> 0 | AP99: =S99-U99-AQ99 -> 0 | AQ99: =IF((S99-$R$82)>$AO$44,$AM$44,IF((S99-S97)>0,(S99-$R$82)*$AK$44,AQ97)) -> 0 | AU99: =IF(OR(S99=0,AT98=0),0,(S99-S97)*AT98) -> 0
G100: =MAX(G98:G99) -> 0 | H100: =MAX(H98:H99) -> 0 | I100: =MAX(I98:I99) -> 0 | J100: =K100-AG100-AI100 -> 0 | K100: =MAX(K98:K99) -> 0 | L100: =MAX(L98:L99) -> 0 | M100: =MAX(M98:M99) -> 0 | N100: =O100-AM100-AO100 -> 0 | O100: =MAX(O98:O99) -> 0 | P100: =MAX(P98:P99) -> 0 | Q100: =MAX(Q98:Q99) -> 0 | R100: =S100-AS100-AU100 -> 0 | S100: =MAX(S98:S99) -> 0 | T100: =MAX(T98:T99) -> 0 | U100: =MAX(U98:U99) -> 0 | X100: =MAX(X98:X99) -> 0 | Y100: 0 | AA100: =MAX(AA98:AA99) -> 0 | AC100: =MAX(AC98:AC99)+AC97 -> 0 | AD100: =MAX(AD98:AD99) -> 0 | AE100: 0 | AG100: =MAX(AG98:AG99) -> 0 | AI100: =MAX(AI98:AI99)+AI97 -> 0 | AJ100: 0 | AK100: 0 | AM100: =MAX(AM98:AM99) -> 0 | AO100: =MAX(AO98:AO99)+AO97 -> 0 | AP100: 0 | AQ100: 0 | AU100: =MAX(AU98:AU99)+AU97 -> 0
B101: 9 | C101: Contract | G101: =IF(H43=$AH$16,INDEX($AH$9:$AK$13,G42,4)*I42+G100,0) -> 0 | H101: =X101+Y101 -> 0 | I101: =G101-H101 -> 0 | K101: =IF(L43=$AH$16,INDEX($AH$9:$AK$13,K42,4)*M42+K100,0) -> 0 | L101: =AD101+AE101 -> 0 | M101: =K101-L101 -> 0 | O101: =IF(P43=$AH$16,INDEX($AH$9:$AK$13,O42,4)*Q42+O100,0) -> 0 | P101: =AJ101+AK101 -> 0 | Q101: =O101-P101 -> 0 | S101: =IF(T43=$AH$16,INDEX($AH$9:$AK$13,S42,4)*U42+S100,0) -> 0 | T101: =AP101+AQ101 -> 0 | U101: =S101-T101 -> 0 | X101: =IF(G101>$AI$54,(G101-$AI$54)*$AK$55+$AM$54,IF(G101>$AI$53,(G101-$AI$53)*$AK$54+$AM$53,IF(G101 > $AI$52,(G101-$AI$52)*$AK$53+$AM$52,IF(G101>$AI$51,(G101-$AI$51)*$AK$52+$AM$51,IF(G101>0,G101*$AK$51,0))))) -> 0 | Y101: =IF((G101-$F$82)>$AO$44,$AM$44,IF((G101-G100)>0,(G101-$F$82)*$AK$44,Y100)) -> 0 | Z101: =$Z$75 -> FALSE | AA101: =IF(Z101,IF(G101>$AK$30,(G101-$AK$30)*$AL$30,0),AA100) -> 0 | AB101: ='NSR Calculator'!AL50 -> 0 | AC101: =IF(OR(G101=0,AB101=0),0,(G101-G100)*AB101) -> 0 | AD101: =IF(K101>$AI$54,(K101-$AI$54)*$AK$55+$AM$54,IF(K101>$AI$53,(K101-$AI$53)*$AK$54+$AM$53,IF(K101 > $AI$52,(K101-$AI$52)*$AK$53+$AM$52,IF(K101>$AI$51,(K101-$AI$51)*$AK$52+$AM$51,IF(K101>0,K101*$AK$51,0))))) -> 0 | AE101: =IF((K101-$J$82)>$AO$44,$AM$44,IF((K101-K100)>0,(K101-$J$82)*$AK$44,AE100)) -> 0 | AF101: =$AF$75 -> FALSE | AG101: =IF(AF101,IF(K101>$AK$30,(K101-$AK$30)*$AL$30,0),AG100) -> 0 | AH101: ='NSR Calculator'!AQ50 -> 0 | AI101: =IF(OR(K101=0,AH101=0),0,(K101-K100)*AH101) -> 0 | AJ101: =IF(O101>$AI$54,(O101-$AI$54)*$AK$55+$AM$54,IF(O101>$AI$53,(O101-$AI$53)*$AK$54+$AM$53,IF(O101 > $AI$52,(O101-$AI$52)*$AK$53+$AM$52,IF(O101>$AI$51,(O101-$AI$51)*$AK$52+$AM$51,IF(O101>0,O101*$AK$51,0))))) -> 0 | AK101: =IF((O101-$N$82)>$AO$44,$AM$44,IF((O101-O100)>0,(O101-$N$82)*$AK$44,AK100)) -> 0 | AL101: =$AL$75 -> FALSE | AM101: =IF(AL101,IF(O101>$AK$30,(O101-$AK$30)*$AL$30,0),AM100) -> 0 | AN101: 0 | AO101: =IF(OR(O101=0,AN101=0),0,(O101-O100)*AN101) -> 0 | AP101: =IF(S101>$AI$54,(S101-$AI$54)*$AK$55+$AM$54,IF(S101>$AI$53,(S101-$AI$53)*$AK$54+$AM$53,IF(S101 > $AI$52,(S101-$AI$52)*$AK$53+$AM$52,IF(S101>$AI$51,(S101-$AI$51)*$AK$52+$AM$51,IF(S101>0,S101*$AK$51,0))))) -> 0 | AQ101: =IF((S101-$R$82)>$AO$44,$AM$44,IF((S101-S100)>0,(S101-$R$82)*$AK$44,AQ100)) -> 0 | AR101: =$AR$75 -> FALSE | AU101: =IF(OR(S101=0,AT101=0),0,(S101-S100)*AT101) -> 0
G102: =IF(I102<=$AQ$51,I102/(1-$AK$51-$AK$44),IF(I102<=$AQ$52,(I102+$AM$51-$AI$51*$AK$52)/(1-$AK$52-$AK$44),IF(I102<=$AQ$53,(I102+$AM$52-$AI$52*$AK$53)/(1-$AK$53-$AK$44),IF(I102<=$AQ$54,(I102+$AM$53-$AI$53*$AK$54)/(1-$AK$54-$AK$44),IF(I102<=$AS$44,(I102+$AM$54-$AI$54*$AK$55)/(1-$AK$55-$AK$44),IF(I102>$AS$44,(I102+$AM$44+$AM$54-$AI$54*$AK$55)/(1-$AK$55))))))) -> 0 | H102: =X102+Y102 -> 0 | I102: =IF(H43=$AH$17,INDEX($AH$9:$AK$13,G42,4)*I42+I100,0) -> 0 | K102: =IF(M102<=$AQ$51,M102/(1-$AK$51-$AK$44),IF(M102<=$AQ$52,(M102+$AM$51-$AI$51*$AK$52)/(1-$AK$52-$AK$44),IF(M102<=$AQ$53,(M102+$AM$52-$AI$52*$AK$53)/(1-$AK$53-$AK$44),IF(M102<=$AQ$54,(M102+$AM$53-$AI$53*$AK$54)/(1-$AK$54-$AK$44),IF(M102<=$AS$44,(M102+$AM$54-$AI$54*$AK$55)/(1-$AK$55-$AK$44),IF(M102>$AS$44,(M102+$AM$44+$AM$54-$AI$54*$AK$55)/(1-$AK$55))))))) -> 0 | L102: =AD102+AE102 -> 0 | M102: =IF(L43=$AH$17,INDEX($AH$9:$AK$13,K42,4)*M42+M100,0) -> 0 | O102: =IF(Q102<=$AQ$51,Q102/(1-$AK$51-$AK$44),IF(Q102<=$AQ$52,(Q102+$AM$51-$AI$51*$AK$52)/(1-$AK$52-$AK$44),IF(Q102<=$AQ$53,(Q102+$AM$52-$AI$52*$AK$53)/(1-$AK$53-$AK$44),IF(Q102<=$AQ$54,(Q102+$AM$53-$AI$53*$AK$54)/(1-$AK$54-$AK$44),IF(Q102<=$AS$44,(Q102+$AM$54-$AI$54*$AK$55)/(1-$AK$55-$AK$44),IF(Q102>$AS$44,(Q102+$AM$44+$AM$54-$AI$54*$AK$55)/(1-$AK$55))))))) -> 0 | P102: =AJ102+AK102 -> 0 | Q102: =IF(P43=$AH$17,INDEX($AH$9:$AK$13,O42,4)*Q42+Q100,0) -> 0 | S102: =IF(U102<=$AQ$51,U102/(1-$AK$51-$AK$44),IF(U102<=$AQ$52,(U102+$AM$51-$AI$51*$AK$52)/(1-$AK$52-$AK$44),IF(U102<=$AQ$53,(U102+$AM$52-$AI$52*$AK$53)/(1-$AK$53-$AK$44),IF(U102<=$AQ$54,(U102+$AM$53-$AI$53*$AK$54)/(1-$AK$54-$AK$44),IF(U102<=$AS$44,(U102+$AM$54-$AI$54*$AK$55)/(1-$AK$55-$AK$44),IF(U102>$AS$44,(U102+$AM$44+$AM$54-$AI$54*$AK$55)/(1-$AK$55))))))) -> 0 | T102: =AP102+AQ102 -> 0 | U102: =IF(T43=$AH$17,INDEX($AH$9:$AK$13,S42,4)*U42+U100,0) -> 0 | X102: =G102-I102-Y102 -> 0 | Y102: =IF((G102-$F$82)>$AO$44,$AM$44,IF((G102-G100)>0,(G102-$F$82)*$AK$44,Y100)) -> 0 | AA102: =IF(Z101,IF(G102>$AK$30,(G102-$AK$30)*$AL$30,0),AA100) -> 0 | AB102: =IF(AB101>0,IF(AB101<0.03,1,0),0) -> 0 | AC102: =IF(OR(G102=0,AB101=0),0,(G102-G100)*AB101) -> 0 | AD102: =K102-M102-AE102 -> 0 | AE102: =IF((K102-$J$82)>$AO$44,$AM$44,IF((K102-K100)>0,(K102-$J$82)*$AK$44,AE100)) -> 0 | AG102: =IF(AF101,IF(K102>$AK$30,(K102-$AK$30)*$AL$30,0),AG100) -> 0 | AH102: =IF(AH101>0,IF(AH101<0.03,1,0),0) -> 0 | AI102: =IF(OR(K102=0,AH101=0),0,(K102-K100)*AH101) -> 0 | AJ102: =O102-Q102-AK102 -> 0 | AK102: =IF((O102-$N$82)>$AO$44,$AM$44,IF((O102-O100)>0,(O102-$N$82)*$AK$44,AK100)) -> 0 | AO102: =IF(OR(O102=0,AN101=0),0,(O102-O100)*AN101) -> 0 | AP102: =S102-U102-AQ102 -> 0 | AQ102: =IF((S102-$R$82)>$AO$44,$AM$44,IF((S102-S100)>0,(S102-$R$82)*$AK$44,AQ100)) -> 0 | AU102: =IF(OR(S102=0,AT101=0),0,(S102-S100)*AT101) -> 0
G103: =MAX(G101:G102) -> 0 | H103: =MAX(H101:H102) -> 0 | I103: =MAX(I101:I102) -> 0 | J103: =K103-AG103-AI103 -> 0 | K103: =MAX(K101:K102) -> 0 | L103: =MAX(L101:L102) -> 0 | M103: =MAX(M101:M102) -> 0 | N103: =O103-AM103-AO103 -> 0 | O103: =MAX(O101:O102) -> 0 | P103: =MAX(P101:P102) -> 0 | Q103: =MAX(Q101:Q102) -> 0 | R103: =S103-AS103-AU103 -> 0 | S103: =MAX(S101:S102) -> 0 | T103: =MAX(T101:T102) -> 0 | U103: =MAX(U101:U102) -> 0 | X103: =MAX(X101:X102) -> 0 | Y103: =MAX(Y101:Y102) -> 0 | AA103: =MAX(AA101:AA102) -> 0 | AC103: =MAX(AC101:AC102)+AC100 -> 0 | AD103: 0 | AE103: 0 | AG103: =MAX(AG101:AG102) -> 0 | AI103: =MAX(AI101:AI102)+AI100 -> 0 | AJ103: 0 | AK103: 0 | AO103: =MAX(AO101:AO102)+AO100 -> 0 | AP103: 0 | AQ103: 0 | AU103: =MAX(AU101:AU102)+AU100 -> 0
B104: 10 | C104: Child Support | G104: =IF(H46=$AH$16,INDEX($AH$9:$AK$13,G45,4)*I45+G103,0) -> 0 | H104: =X104+Y104 -> 0 | I104: =G104-H104 -> 0 | K104: =IF(L46=$AH$16,INDEX($AH$9:$AK$13,K45,4)*M45+K103,0) -> 0 | L104: =AD104+AE104 -> 0 | M104: =K104-L104 -> 0 | O104: =IF(P46=$AH$16,INDEX($AH$9:$AK$13,O45,4)*Q45+O103,0) -> 0 | P104: =AJ104+AK104 -> 0 | Q104: =O104-P104 -> 0 | S104: =IF(T46=$AH$16,INDEX($AH$9:$AK$13,S45,4)*U45+S103,0) -> 0 | T104: =AP104+AQ104 -> 0 | U104: =S104-T104 -> 0 | X104: =X103 -> 0 | Y104: =Y103 -> 0 | Z104: FALSE | AA104: =IF(Z104,IF(G104>$AK$30,(G104-$AK$30)*$AL$30,0),AA103) -> 0 | AB104: ='NSR Calculator'!AL52 -> 0 | AC104: =IF(OR(G104=0,AB104=0),0,(G104-G103)*AB104) -> 0 | AD104: =AD103 -> 0 | AE104: =AE103 -> 0 | AF104: FALSE | AG104: =IF(AF104,IF(K104>$AK$30,(K104-$AK$30)*$AL$30,0),AG103) -> 0 | AH104: ='NSR Calculator'!AQ52 -> 0 | AI104: =IF(OR(K104=0,AH104=0),0,(K104-K103)*AH104) -> 0 | AJ104: =IF(O104>$AI$54,(O104-$AI$54)*$AK$55+$AM$54,IF(O104>$AI$53,(O104-$AI$53)*$AK$54+$AM$53,IF(O104 > $AI$52,(O104-$AI$52)*$AK$53+$AM$52,IF(O104>$AI$51,(O104-$AI$51)*$AK$52+$AM$51,IF(O104>0,O104*$AK$51,0))))) -> 0 | AK104: =IF((O104-$N$82)>$AO$44,$AM$44,IF((O104-O103)>0,(O104-$N$82)*$AK$44,AK103)) -> 0 | AL104: =$AL$75 -> FALSE | AM104: =IF(AL104,IF(O104>$AK$30,(O104-$AK$30)*$AL$30,0),AM103) -> 0 | AN104: 0 | AO104: =IF(OR(O104=0,AN104=0),0,(O104-O103)*AN104) -> 0 | AP104: =IF(S104>$AI$54,(S104-$AI$54)*$AK$55+$AM$54,IF(S104>$AI$53,(S104-$AI$53)*$AK$54+$AM$53,IF(S104 > $AI$52,(S104-$AI$52)*$AK$53+$AM$52,IF(S104>$AI$51,(S104-$AI$51)*$AK$52+$AM$51,IF(S104>0,S104*$AK$51,0))))) -> 0 | AQ104: =IF((S104-$R$82)>$AO$44,$AM$44,IF((S104-S103)>0,(S104-$R$82)*$AK$44,AQ103)) -> 0 | AR104: =$AR$75 -> FALSE | AU104: =IF(OR(S104=0,AT104=0),0,(S104-S103)*AT104) -> 0
G105: =IF(I105<=$AQ$51,I105/(1-$AK$51-$AK$44),IF(I105<=$AQ$52,(I105+$AM$51-$AI$51*$AK$52)/(1-$AK$52-$AK$44),IF(I105<=$AQ$53,(I105+$AM$52-$AI$52*$AK$53)/(1-$AK$53-$AK$44),IF(I105<=$AQ$54,(I105+$AM$53-$AI$53*$AK$54)/(1-$AK$54-$AK$44),IF(I105<=$AS$44,(I105+$AM$54-$AI$54*$AK$55)/(1-$AK$55-$AK$44),IF(I105>$AS$44,(I105+$AM$44+$AM$54-$AI$54*$AK$55)/(1-$AK$55))))))) -> 0 | H105: =X105+Y105 -> 0 | I105: =IF(H46=$AH$17,INDEX($AH$9:$AK$13,G45,4)*I45+I103,0) -> 0 | K105: =IF(M105<=$AQ$51,M105/(1-$AK$51-$AK$44),IF(M105<=$AQ$52,(M105+$AM$51-$AI$51*$AK$52)/(1-$AK$52-$AK$44),IF(M105<=$AQ$53,(M105+$AM$52-$AI$52*$AK$53)/(1-$AK$53-$AK$44),IF(M105<=$AQ$54,(M105+$AM$53-$AI$53*$AK$54)/(1-$AK$54-$AK$44),IF(M105<=$AS$44,(M105+$AM$54-$AI$54*$AK$55)/(1-$AK$55-$AK$44),IF(M105>$AS$44,(M105+$AM$44+$AM$54-$AI$54*$AK$55)/(1-$AK$55))))))) -> 0 | L105: =AD105+AE105 -> 0 | M105: =IF(L46=$AH$17,INDEX($AH$9:$AK$13,K45,4)*M45+M103,0) -> 0 | O105: =IF(Q105<=$AQ$51,Q105/(1-$AK$51-$AK$44),IF(Q105<=$AQ$52,(Q105+$AM$51-$AI$51*$AK$52)/(1-$AK$52-$AK$44),IF(Q105<=$AQ$53,(Q105+$AM$52-$AI$52*$AK$53)/(1-$AK$53-$AK$44),IF(Q105<=$AQ$54,(Q105+$AM$53-$AI$53*$AK$54)/(1-$AK$54-$AK$44),IF(Q105<=$AS$44,(Q105+$AM$54-$AI$54*$AK$55)/(1-$AK$55-$AK$44),IF(Q105>$AS$44,(Q105+$AM$44+$AM$54-$AI$54*$AK$55)/(1-$AK$55))))))) -> 0 | P105: =AJ105+AK105 -> 0 | Q105: =IF(P46=$AH$17,INDEX($AH$9:$AK$13,O45,4)*Q45+Q103,0) -> 0 | S105: =IF(U105<=$AQ$51,U105/(1-$AK$51-$AK$44),IF(U105<=$AQ$52,(U105+$AM$51-$AI$51*$AK$52)/(1-$AK$52-$AK$44),IF(U105<=$AQ$53,(U105+$AM$52-$AI$52*$AK$53)/(1-$AK$53-$AK$44),IF(U105<=$AQ$54,(U105+$AM$53-$AI$53*$AK$54)/(1-$AK$54-$AK$44),IF(U105<=$AS$44,(U105+$AM$54-$AI$54*$AK$55)/(1-$AK$55-$AK$44),IF(U105>$AS$44,(U105+$AM$44+$AM$54-$AI$54*$AK$55)/(1-$AK$55))))))) -> 0 | T105: =AP105+AQ105 -> 0 | U105: =IF(T46=$AH$17,INDEX($AH$9:$AK$13,S45,4)*U45+U103,0) -> 0 | X105: =G105-I105-Y105 -> 0 | Y105: =Y103 -> 0 | AA105: =IF(Z104,IF(G105>$AK$30,(G105-$AK$30)*$AL$30,0),AA103) -> 0 | AB105: =IF(AB104>0,IF(AB104<0.03,1,0),0) -> 0 | AC105: =IF(OR(G105=0,AB104=0),0,(G105-G103)*AB104) -> 0 | AD105: =K105-M105-AE105 -> 0 | AE105: =AE103 -> 0 | AG105: =IF(AF104,IF(K105>$AK$30,(K105-$AK$30)*$AL$30,0),AG103) -> 0 | AH105: =IF(AH104>0,IF(AH104<0.03,1,0),0) -> 0 | AI105: =IF(OR(K105=0,AH104=0),0,(K105-K103)*AH104) -> 0 | AJ105: =O105-Q105-AK105 -> 0 | AK105: =IF((O105-$N$82)>$AO$44,$AM$44,IF((O105-O103)>0,(O105-$N$82)*$AK$44,AK103)) -> 0 | AO105: =IF(OR(O105=0,AN104=0),0,(O105-O103)*AN104) -> 0 | AP105: =S105-U105-AQ105 -> 0 | AQ105: =IF((S105-$R$82)>$AO$44,$AM$44,IF((S105-S103)>0,(S105-$R$82)*$AK$44,AQ103)) -> 0 | AU105: =IF(OR(S105=0,AT104=0),0,(S105-S103)*AT104) -> 0
G106: =MAX(G104:G105) -> 0 | H106: =MAX(H104:H105) -> 0 | I106: =MAX(I104:I105) -> 0 | J106: =K106-AG106-AI106 -> 0 | K106: =MAX(K104:K105) -> 0 | L106: =MAX(L104:L105) -> 0 | M106: =MAX(M104:M105) -> 0 | N106: =O106-AM106-AO106 -> 0 | O106: =MAX(O104:O105) -> 0 | P106: =MAX(P104:P105) -> 0 | Q106: =MAX(Q104:Q105) -> 0 | R106: =S106-AS106-AU106 -> 0 | S106: =MAX(S104:S105) -> 0 | T106: =MAX(T104:T105) -> 0 | U106: =MAX(U104:U105) -> 0 | X106: =MAX(X104:X105) -> 0 | Y106: =MAX(Y104:Y105) -> 0 | AA106: =MAX(AA104:AA105) -> 0 | AC106: =MAX(AC104:AC105)+AC103 -> 0 | AD106: =MAX(AD104:AD105) -> 0 | AE106: 0 | AG106: =MAX(AG104:AG105) -> 0 | AI106: =MAX(AI104:AI105)+AI103 -> 0 | AJ106: =MAX(AJ104:AJ105) -> 0 | AK106: 0 | AO106: =MAX(AO104:AO105)+AO103 -> 0 | AP106: =MAX(AP104:AP105) -> 0 | AQ106: 0 | AU106: =MAX(AU104:AU105)+AU103 -> 0
C118: Total -all income sources | G118: =G106 -> 0 | H118: =H106 -> 0 | I118: =I106 -> 0 | K118: =K106 -> 0 | L118: =L106 -> 0 | M118: =M106 -> 0 | O118: =O106 -> 0 | P118: =P106 -> 0 | Q118: =Q106 -> 0 | S118: =S106 -> 0 | T118: =T106 -> 0 | U118: =U106 -> 0 | X118: =X106 -> 0 | Y118: =Y106 -> 0 | AA118: =AA106 -> 0 | AC118: =AC106 -> 0 | AD118: =AD106 -> 0 | AE118: =AE106 -> 0 | AG118: =AG106 -> 0 | AI118: =AI106 -> 0 | AJ118: =AJ106 -> 0 | AK118: =AK106 -> 0 | AO118: =AO106 -> 0 | AP118: =AP106 -> 0 | AQ118: =AQ106 -> 0 | AU118: =AU106 -> 0
AB119: =AB78+AB81+AB84+AB87+AB90+AB93+AB96+AB99+AB102+AB105 -> 0 | AH119: =AH78+AH81+AH84+AH87+AH90+AH93+AH96+AH99+AH102+AH105 -> 0
C120: KiwiSaver contibution rate | I120: =AC118 -> 0 | M120: =AI118 -> 0 | Q120: =AO118 -> 0 | U120: =AU118 -> 0
C122: Total Deductions | I122: =I120 -> 0 | M122: =M120 -> 0 | Q122: =Q120 -> 0 | U122: =U120 -> 0
C129: Annual Inome after tax and deductions | I129: =I118-I122 -> 0 | M129: =M118-M122 -> 0 | Q129: =Q118-Q122 -> 0 | U129: =U118-U122 -> 0
C131: Weighted Annual Income after tax | G131: =G79*$AP$9+(G82-G79)*$AP$12+(G85-G82)*$AP$10+(G88-G85)*$AP$16+(G91-G88)*$AP$17+(G94-G91)*$AP$11+(G97-G94)*$AP$18+(G100-G97)*$AP$13+(G103-G100)*$AP$12+(G106-G103)*$AP$19 -> 0 | I131: =I79*$AP$9+(I82-I79)*$AP$12+(I85-I82)*$AP$10+(I88-I85)*$AP$16+(I91-I88)*$AP$17+(I94-I91)*$AP$11+(I97-I94)*$AP$18+(I100-I97)*$AP$13+(I103-I100)*$AP$12+(I106-I103)*$AP$19 -> 0 | K131: =K79*$AP$9+(K82-K79)*$AP$12+(K85-K82)*$AP$10+(K88-K85)*$AP$16+(K91-K88)*$AP$17+(K94-K91)*$AP$11+(K97-K94)*$AP$18+(K100-K97)*$AP$13+(K103-K100)*$AP$12+(K106-K103)*$AP$19 -> 0 | M131: =M79*$AP$9+(M82-M79)*$AP$12+(M85-M82)*$AP$10+(M88-M85)*$AP$16+(M91-M88)*$AP$17+(M94-M91)*$AP$11+(M97-M94)*$AP$18+(M100-M97)*$AP$13+(M103-M100)*$AP$12+(M106-M103)*$AP$19 -> 0 | O131: =O79*$AP$9+(O82-O79)*$AP$12+(O85-O82)*$AP$10+(O88-O85)*$AP$16+(O91-O88)*$AP$17+(O94-O91)*$AP$11+(O97-O94)*$AP$18+(O100-O97)*$AP$13+(O103-O100)*$AP$12+(O106-O103)*$AP$19 -> 0 | Q131: =Q79*$AP$9+(Q82-Q79)*$AP$12+(Q85-Q82)*$AP$10+(Q88-Q85)*$AP$16+(Q91-Q88)*$AP$17+(Q94-Q91)*$AP$11+(Q97-Q94)*$AP$18+(Q100-Q97)*$AP$13+(Q103-Q100)*$AP$12+(Q106-Q103)*$AP$19 -> 0 | S131: =S79*$AP$9+(S82-S79)*$AP$12+(S85-S82)*$AP$10+(S88-S85)*$AP$16+(S91-S88)*$AP$17+(S94-S91)*$AP$11+(S97-S94)*$AP$18+(S100-S97)*$AP$13+(S103-S100)*$AP$12+(S106-S103)*$AP$19 -> 0 | U131: =U79*$AP$9+(U82-U79)*$AP$12+(U85-U82)*$AP$10+(U88-U85)*$AP$16+(U91-U88)*$AP$17+(U94-U91)*$AP$11+(U97-U94)*$AP$18+(U100-U97)*$AP$13+(U103-U100)*$AP$12+(U106-U103)*$AP$19 -> 0
C133: Weighted Annual Income after tax and deductions | I133: =I131-I122 -> 0 | M133: =M131-M122 -> 0 | Q133: =Q131-Q122 -> 0 | U133: =U131-U122 -> 0 | X133: Household Student Loan Payments | AB133: =AA118+AG118+AM118+AS118 -> 0
C135: Total All Applicants - Weighted Annual Income after tax and deductions | I135: =I133+M133+Q133+U133 -> 0 | M135: Total All Applicants - Gross Annual Income | Q135: =($G$118+$K$118+$O$118+$S$118)+$W$65+$W$66+($J$165*$AP$14)+$J$166 -> 0 | R135: =($G$118+$K$118+$O$118+$S$118)+$W$65+$W$66+$J$165+$J$166 -> 0 | X135: Has Kiwisaver < 3% | Z135: =AB119+AH119+AN119+AT119 -> 0
C136: Total All Applicants - WeightedMonthly Income after tax and deductions | I136: =I135/12 -> 0 | M136: Total Adjusted Gross Income | Q136: =(G131+K131+O131+S131)-(I122+M122+Q122+U122)+$W$65+$W$66+J167+J168 -> 0
C137: Rental Housing Income
C138: Weighting | G138: 1 | AK138: Conversion Factors
AH139: Expense and Repayment Frequency | AK139: To Annual | AL139: To Monthly
C140: Property One | AH140: Weekly | AK140: =365/7 -> 52.14285714 | AL140: =365/7/12 -> 4.345238095
C141: Location | H141: 0 | AH141: Fortnightly | AK141: =365/14 -> 26.07142857 | AL141: =365/14/12 -> 2.172619048
H142: 0 | AH142: Monthly | AK142: =12 -> 12 | AL142: 1
AH143: Quarterly | AK143: 4 | AL143: =4/12 -> 0.3333333333
C144: Rent frequency and amount | D144: Rental | G144: 1 | H144: =INDEX($AH$22:$AH$26,G144) -> Weekly | I144: ='NSR Calculator'!AJ77 -> 0 | J144: =INDEX($AH$22:$AK$26,G144,4)*I144 -> 0 | AH144: Annual | AK144: =1 -> 1 | AL144: =1/12 -> 0.08333333333
C146: Property Two | AH146: Yes/No Answer
C147: Location | H147: 0 | AH147: No
H148: 0 | AH148: Yes
C150: Rent frequency and amount | G150: 1 | H150: =INDEX($AH$22:$AH$26,G150) -> Weekly | I150: ='NSR Calculator'!AO77 -> 0 | J150: =INDEX($AH$22:$AK$26,G150,4)*I150 -> 0 | AH150: Loan Type | AJ150: Existing SBS Bank loan types | AM150: Repayment Type
AH151: Car | AJ151: Total Residential | AM151: Table (P and I)
C152: Property Three | AH152: Personal | AJ152: Total Residential Investment | AM152: Interest Only
C153: Location | H153: 0 | AH153: Hire Purchase | AJ153: Total Flexi
H154: 0 | AH154: Other | AJ154: Total Commercial
C156: Rent frequency and amount | G156: 1 | H156: =INDEX($AH$22:$AH$26,G156) -> Weekly | I156: 0 | J156: =INDEX($AH$22:$AK$26,G156,4)*I156 -> 0
C158: Property Four
C159: Location | G159: Address | H159: 0
H160: 0
C162: Rent frequency and amount | G162: 1 | H162: =INDEX($AH$22:$AH$26,G162) -> Weekly | I162: 0 | J162: =INDEX($AH$22:$AK$26,G162,4)*I162 -> 0
C165: Annual Rental Income | J165: =J162+J156+J150+J144 -> 0
C166: Boarder Income | G166: 1 | H166: =INDEX($AH$22:$AH$26,G166) -> Weekly | I166: ='NSR Calculator'!AJ82 -> 0 | J166: =INDEX($AH$22:$AK$26,G166,4)*I166 -> 0
C167: Weighted Annual Rental Income | J167: =J165*$AP$14 -> 0
C168: Weighted Annual Boarder Income | J168: =J166*$AP$15 -> 0 | AH168: Maximum Loan Term
C169: Weighted Monthly Rental Income | J169: =(J167+J168)/12 -> 0 | AH169: Maximum Age | AK169: 85
AH170: Maximum Term | AK170: 30
J172: Annual | L172: Monthly | AH172: Debt Servicing Assumptions
C173: Income available for debt servicing incluidng rentals | J173: =I135+J167 -> 0 | L173: =I136+J169 -> 0 | N173: =IF(ABS(J173-L173*12)<=0.01,"OK", "Please Check") -> OK | AH173: NSR | AK173: =IF(OR(H9=6,H14=TRUE),'Calculator Parameters'!C43,'Calculator Parameters'!C42) -> 1
AH174: DTI | AK174: =IF(D15,'Calculator Parameters'!C46,'Calculator Parameters'!C45) -> 6
G175: Applicants 1 and 2 | AH175: ='Calculator Parameters'!B49 -> 0 | AK175: ='Calculator Parameters'!C49 -> 0 | AL175: =AK175*100 -> 0
C176: Living Expenses | AH176: ='Calculator Parameters'!B48 -> 0 | AK176: ='Calculator Parameters'!C48 -> 0
I177: Input | J177: Monthly | AH177: ='Calculator Parameters'!B52 -> SBS Interest rate buffer | AK177: ='Calculator Parameters'!C52 -> 0.025 | AL177: =AK177*100 -> 2.5
C178: Living Expenses - Monthly | G178: 3 | H178: =INDEX($AH$140:$AH$144,G178) -> Monthly | I178: ='NSR Calculator'!AJ88 -> 0 | J178: =INDEX($AH$140:$AL$144,G178,5)*I178 -> 0 | AH178: Max LVR | AK178: 0.85
AH179: ='Calculator Parameters'!B51 -> SBS Foundation interest rate | AK179: ='Calculator Parameters'!C51 -> 0.04
AH180: Initial: NSR=(MC - Rentals +MLA)/MNI, therefore NSR*0.9 +Rentals-MLA = Maximnum MC
C181: Other Expenses - Monthly | G181: 3 | H181: =INDEX($AH$140:$AH$144,G181) -> Monthly | I181: ='NSR Calculator'!AO88 -> 0 | J181: =INDEX($AH$140:$AL$144,G181,5)*I181 -> 0 | AH181: Suggested:
C184: Household | G184: 3 | H184: =INDEX($AH$140:$AH$144,G184) -> Monthly | I184: 0 | J184: =INDEX($AH$140:$AL$144,G184,5)*I184 -> 0
C185: e.g. Food, clothing, travel, health, entertainment
C187: Council Rates | G187: 3 | H187: =INDEX($AH$140:$AH$144,G187) -> Monthly | I187: 0 | J187: =INDEX($AH$140:$AL$144,G187,5)*I187 -> 0
C190: Home and Contents Insurance | G190: 3 | H190: =INDEX($AH$140:$AH$144,G190) -> Monthly | I190: 0 | J190: =INDEX($AH$140:$AL$144,G190,5)*I190 -> 0
AH191: Registered Valuers Report Requirement
AH192: Security located within 50 Km of SBS Bank Branch
C193: Health and Life Insurance | G193: 3 | H193: =INDEX($AH$140:$AH$144,G193) -> Monthly | I193: 0 | J193: =INDEX($AH$140:$AL$144,G193,5)*I193 -> 0 | AH193: Yes/No Answer
C194: Please include Trauma Cover, Income Protection etc. | AH194: No
AH195: Yes | AI195: A Registered Valuer's Report is required for this property
C196: Education | G196: 3 | H196: =INDEX($AH$140:$AH$144,G196) -> Monthly | I196: 0 | J196: =INDEX($AH$140:$AL$144,G196,5)*I196 -> 0
AH197: Security in town with population > 7,000 people
B198: 1 | AH198: Yes/No Answer
C199: Child Support | G199: 3 | H199: =INDEX($AH$140:$AH$144,G199) -> Monthly | I199: 0 | J199: =INDEX($AH$140:$AL$144,G199,5)*I199 -> 0 | AH199: No
C200: Please include any other Child Care payments | AH200: Yes | AI200: A Registered Valuer's Report is required for this property
B201: 1
C202: Other 1 | G202: 3 | H202: =INDEX($AH$140:$AH$144,G202) -> Monthly | I202: 0 | J202: =INDEX($AH$140:$AL$144,G202,5)*I202 -> 0
B204: 1
C205: Other 2 | G205: 3 | H205: =INDEX($AH$140:$AH$144,G205) -> Monthly | I205: 0 | J205: =INDEX($AH$140:$AL$144,G205,5)*I205 -> 0 | AH205: Valuation Type
AH206: Government valuation
B207: 1 | AH207: Sale & Purchase Agreement
C208: Total Living Expenses | J208: =J178+J181 -> 0 | AH208: Registered Valuers Report
B209: 1 | AN209: Security types, valuation method and maximum LVR- Temporary Input Only
B210: 1 | AQ210: Where SBS Bank is represented (defined as borrower and/or security being located within 50km of the nearest branch and in a town/centre of at least 7000 people) | AT210: Where SBS Bank is not represented (defined as borrower and/or security being located more than 50km from the nearest branch and in a town/centre of at least 7000 people
C211: SBS Bank Loans with fixed repayments | AH211: Property Type | AQ211: GV | AR211: S&P | AS211: RVR | AT211: RVR
B212: 1 | C212: Type | G212: Balance | H212: Rate | I212: Term | J212: Repayment | K212: No of Payments | M212: Rept Type | N212: Repayment | U212: Rept P&I | V212: Rept P&I Max Term | X212: Maximum Rept | AA212: Rept IO | AB212: Rept IO Max Term | AD212: Maximum Rept | AH212: Residential property (freehold) Own use/holiday | AN212: Residential property (freehold) Own use/holiday | AQ212: 0.85 | AR212: 0.85 | AS212: 0.85 | AT212: 0.8
B213: 1 | J213: Frequency | K213: Per Year/Month | N213: (Actual) | U213: (Calculated) | V213: (Calculated) | X213: Monthly | AA213: (Calculated) | AB213: (Calculated) | AD213: Monthly | AH213: Residential property (freehold) Investment (rental) | AN213: Residential property (freehold) Investment (rental) | AQ213: 0.85 | AR213: 0.85 | AS213: 0.85 | AT213: 0.8
N214: As reported by customer | U214: =$AL$177&"% Int Buffer" -> 2.5% Int Buffer | V214: =$AL$177&"% Int Buffer" -> 2.5% Int Buffer | X214: ="With "&$AL$177&"% Int Buffer" -> With 2.5% Int Buffer | AA214: =$AL$177&"% Int Buffer" -> 2.5% Int Buffer | AB214: =$AL$177&"% Int Buffer" -> 2.5% Int Buffer | AD214: ="With "&$AL$177&"% Int Buffer" -> With 2.5% Int Buffer | AH214: Residential property (leasehold) Own use/holiday | AN214: Residential property (leasehold) Own use/holiday | AQ214: 0.7 | AR214: 0.7 | AS214: 0.7 | AT214: 0.7
B215: 1 | U215: Cust Term | V215: Max Term | X215: Set for each loan to avoid gaming | AA215: Cust Term | AB215: Max Term | AD215: Set for each loan to avoid gaming | AH215: Residential property (leasehold) Investment (rental) | AN215: Residential property (leasehold) Investment (rental) | AQ215: 0.7 | AR215: 0.7 | AS215: 0.7 | AT215: 0.7
B216: 1 | C216: =INDEX($AJ$151:$AJ$155,B216) -> Total Residential | G216: 0 | H216: 0 | I216: =IF(AND(G216>0,H216>0),IF('NSR Calculator'!G98>0,'NSR Calculator'!G98,Calculation!$K$288/12)) -> FALSE | J216: 3 | K216: =INDEX($AH$140:$AL$144,J216,4) -> 12 | L216: 1 | M216: =INDEX($AH$157:$AH$159,L216) -> 0 | N216: 0 | U216: =IF(AND(G216>0,H216>0,I216>0),-PMT(($AK$179+$AK$177)/K216,I216*K216,G216,),"") ->  | V216: =IF(AND(G216>0,H216>0,I216>0),-PMT(($AK$179+$AK$177)/K216,$K$284/12*K216,G216,),"") ->  | AA216: =IF(AND(G216>0,H216>0,I216>0),(G216*($AK$179+$AK$177))/12,"") ->  | AB216: =IF(AND(M216>0,N216>0,O216>0),-PMT(($AK$179+$AK$177)/(Q216*100),$K$284/12*Q216,M216,),"") ->  | AH216: Vacant residential land (< 10 hectares) Serviced | AN216: Vacant residential land (< 10 hectares) Serviced | AQ216: 0.8 | AR216: 0.8 | AS216: 0.8 | AT216: 0.8
K217: =INDEX($AH$140:$AL$144,J216,5) -> 1 | N217: =IF(ISNUMBER(N216),N216*K217,) -> 0 | U217: =IF(ISNUMBER(U216),U216*K217,) -> 0 | V217: =IF(ISNUMBER(V216),V216*K217,) -> 0 | X217: =MAX(N217,U217,V217) -> 0 | AA217: =IF(ISNUMBER(AA216),AA216*Q217,) -> 0 | AB217: =IF(ISNUMBER(AB216),AB216*Q217,) -> 0 | AD217: =MAX(T217,AA217,AB217) -> 0 | AH217: Vacant residential land (< 10 hectares) Not serviced | AN217: Vacant residential land (< 10 hectares) Not serviced | AQ217: 0.5 | AR217: 0.5 | AS217: 0.5 | AT217: 0.5
B218: 1 | AH218: Lifestyle / semi-rural (< 15 hectares) Serviced only | AN218: Lifestyle / semi-rural (< 15 hectares) Serviced only | AQ218: 0.8 | AR218: 0.8 | AS218: 0.8 | AT218: 0.7
B219: 1 | C219: =INDEX($AJ$151:$AJ$155,B219) -> Total Residential | G219: 0 | H219: 0 | I219: =IF(AND(G219>0,H219>0),IF('NSR Calculator'!G100>0,'NSR Calculator'!G100,Calculation!$K$288/12)) -> FALSE | J219: 3 | K219: =INDEX($AH$140:$AL$144,J219,4) -> 12 | L219: 1 | M219: =INDEX($AH$157:$AH$159,L219) -> 0 | N219: 0 | U219: =IF(AND(G219>0,H219>0,I219>0),-PMT(($AK$179+$AK$177)/K219,I219*K219,G219,),"") ->  | V219: =IF(AND(G219>0,H219>0,I219>0),-PMT(($AK$179+$AK$177)/K219,$K$284/12*K219,G219,),"") ->  | AA219: =IF(AND(M219>0,N219>0,O219>0),-PMT(($AK$179+$AK$177)/(Q219*100),O219*Q219,M219,),"") ->  | AB219: =IF(AND(M219>0,N219>0,O219>0),-PMT(($AK$179+$AK$177)/(Q219*100),$K$284/12*Q219,M219,),"") ->  | AH219: Apartments (size > 50 sqm) Serviced | AN219: Apartments (size > 50 sqm) Serviced | AQ219: 0.5 | AR219: 0.5 | AS219: 0.6 | AT219: 0.6
K220: =INDEX($AH$140:$AL$144,J219,5) -> 1 | N220: =IF(ISNUMBER(N219),N219*K220,) -> 0 | U220: =IF(ISNUMBER(U219),U219*K220,) -> 0 | V220: =IF(ISNUMBER(V219),V219*K220,) -> 0 | X220: =MAX(N220,U220,V220) -> 0 | AA220: =IF(ISNUMBER(AA219),AA219*Q220,) -> 0 | AB220: =IF(ISNUMBER(AB219),AB219*Q220,) -> 0 | AD220: =MAX(T220,AA220,AB220) -> 0 | AH220: Apartments (size > 50 sqm) Not serviced | AN220: Apartments (size > 50 sqm) Not serviced | AQ220: 0.8 | AR220: 0.8 | AS220: 0.8 | AT220: 0.7
B222: 1 | C222: SBS Bank Loan Fixed Repayments - Monthly Total | N222: =N217+N220 -> 0 | U222: =U217+U220 -> 0 | V222: =V217+V220 -> 0 | X222: =X217+X220 -> 0 | AA222: =AA217+AA220 -> 0 | AB222: =AB217+AB220 -> 0 | AD222: =AD217+AD220 -> 0
B224: 1
B225: 1
C226: Existing Other Bank mortgage debt
B227: 1 | C227: Type | G227: Balance | H227: Rate | I227: Term | J227: Repayment | K227: No of Payments | M227: Rept Type | N227: Repayment | U227: Rept P&I | V227: Rept P&I Max Term | X227: Maximum Rept | AA227: Rept IO | AB227: Rept IO Max Term | AD227: Maximum Rept
B228: 1 | J228: Frequency | K228: Per Year/Month | N228: (Actual) | U228: (Calculated) | V228: (Calculated) | X228: Monthly | AA228: (Calculated) | AB228: (Calculated) | AD228: Monthly
B229: 1 | N229: As reported by customer | U229: =$AL$177&"% Int Buffer" -> 2.5% Int Buffer | V229: =$AL$177&"% Int Buffer" -> 2.5% Int Buffer | X229: ="With "&$AL$177&"% Int Buffer" -> With 2.5% Int Buffer | AA229: =$AL$177&"% Int Buffer" -> 2.5% Int Buffer | AB229: =$AL$177&"% Int Buffer" -> 2.5% Int Buffer | AD229: ="With "&$AL$177&"% Int Buffer" -> With 2.5% Int Buffer
B230: 1 | U230: Cust Term | V230: Max Term | X230: Set for each loan to avoid gaming | AA230: Cust Term | AB230: Max Term | AD230: Set for each loan to avoid gaming
B231: 1 | C231: =INDEX($AJ$151:$AJ$155,B231) -> Total Residential | G231: 0 | H231: 0 | I231: =IF(AND(G231>0,H231>0),IF('NSR Calculator'!G107>0,'NSR Calculator'!G107,Calculation!$K$288/12)) -> FALSE | J231: 3 | K231: =INDEX($AH$140:$AL$144,J231,4) -> 12 | L231: 1 | M231: =INDEX($AH$157:$AH$159,L231) -> 0 | N231: 0 | U231: =IF(AND(G231>0,H231>0,I231>0),-PMT(($AK$179+$AK$177)/K231,I231*K231,G231,),"") ->  | V231: =IF(AND(G231>0,H231>0,I231>0),-PMT(($AK$179+$AK$177)/K231,$K$284/12*K231,G231,),"") ->  | AA231: =IF(AND(M231>0,N231>0,O231>0),-PMT(($AK$179+$AK$177)/(Q231*100),O231*Q231,M231,),"") ->  | AB231: =IF(AND(M231>0,N231>0,O231>0),-PMT(($AK$179+$AK$177)/(Q231*100),$K$284/12*Q231,M231,),"") -> 
K232: =INDEX($AH$140:$AL$144,J231,5) -> 1 | N232: =IF(ISNUMBER(N231),N231*K232,) -> 0 | U232: =IF(ISNUMBER(U231),U231*K232,) -> 0 | V232: =IF(ISNUMBER(V231),V231*K232,) -> 0 | X232: =MAX(N232,U232,V232) -> 0 | AA232: =IF(ISNUMBER(AA231),AA231*Q232,) -> 0 | AB232: =IF(ISNUMBER(AB231),AB231*Q232,) -> 0 | AD232: =MAX(T232,AA232,AB232) -> 0
B233: 1
B234: 1 | C234: =INDEX($AJ$151:$AJ$155,B234) -> Total Residential | G234: 0 | H234: 0 | I234: =IF(AND(G234>0,H234>0),IF('NSR Calculator'!G109>0,'NSR Calculator'!G109,Calculation!$K$288/12)) -> FALSE | J234: 3 | K234: =INDEX($AH$140:$AL$144,J234,4) -> 12 | L234: 1 | M234: =INDEX($AH$157:$AH$159,L234) -> 0 | N234: 0 | U234: =IF(AND(G234>0,H234>0,I234>0),-PMT(($AK$179+$AK$177)/K234,I234*K234,G234,),"") ->  | V234: =IF(AND(G234>0,H234>0,I234>0),-PMT(($AK$179+$AK$177)/K234,$K$284/12*K234,G234,),"") ->  | AA234: =IF(AND(M234>0,N234>0,O234>0),-PMT(($AK$179+$AK$177)/(Q234*100),O234*Q234,M234,),"") ->  | AB234: =IF(AND(M234>0,N234>0,O234>0),-PMT(($AK$179+$AK$177)/(Q234*100),$K$284/12*Q234,M234,),"") -> 
K235: =INDEX($AH$140:$AL$144,J234,5) -> 1 | N235: =IF(ISNUMBER(N234),N234*K235,) -> 0 | U235: =IF(ISNUMBER(U234),U234*K235,) -> 0 | V235: =IF(ISNUMBER(V234),V234*K235,) -> 0 | X235: =MAX(N235,U235,V235) -> 0 | AA235: =IF(ISNUMBER(AA234),AA234*Q235,) -> 0 | AB235: =IF(ISNUMBER(AB234),AB234*Q235,) -> 0 | AD235: =MAX(T235,AA235,AB235) -> 0
B236: 1
B237: 1 | C237: Other Bank P & I payments - Monthly Total | N237: =N232+N235 -> 0 | U237: =U232+U235 -> 0 | V237: =V232+V235 -> 0 | X237: =X232+X235 -> 0 | AA237: =AA232+AA235 -> 0 | AB237: =AB232+AB235 -> 0 | AD237: =AD232+AD235 -> 0
B238: 1
B239: 1
B240: 1
B242: 1
C280: Proposed Loan
C282: Loan Amount | E282: 0 | G282: Loan Term | J282: 0 | K282: Scenario rate
E283: + Buffer | F283: Monthly | J283: =MIN($AK$169-G5,$AK$169-K5,$AK$169-O5,$AK$169-S5) -> 85 | K283: Household min by age
C284: Rate | D284: =IF(J282>0,J282,$AK$179) -> 0.04 | E284: =D284+$AK$177 -> 0.065 | F284: =E284/12 -> 0.005416666667 | G284: Proposed maximum loan term | K284: =Calculation!K284 -> 360
M286: =IF(AND(K286>11,K286<24),"1 year ",IF(K286>23,INT(K286/12)&" years ",))&IF(MOD(K286,12)=1," 1 month",IF(MOD(K286,12)>1,MOD(K286,12)&" months",)) -> 
... 29 more rows

Sheet Calc4 (hidden)
G1: Applicant 1 | K1: Applicant 2 | O1: Applicant 3 | S1: Applicant 4
AH2: Reference field for controls | AN2: Credit Rules
B5: Age of applicants | G5: ='NSR Calculator'!AU25 -> 0 | K5: ='NSR Calculator'!AZ25 -> 0 | O5: 0 | S5: 0 | W5: =MIN($AK$169-G5,$AK$169-K5,$AK$169-O5,$AK$169-S5) -> 85 | X5: Household min by age
AK7: Conversion Factors | AN7: Income Source Weighting
B8: Household Composition | AH8: Income Frequency List | AK8: To Annual | AL8: To Monthly | AN8: Source | AP8: Weight
B9: Adults in household | E9: ='NSR Calculator'!AU16 -> 0 | G9: Properties | H9: 1 | I9: =INDEX(Calculation!$AT$1:$AT$6,$H$9) -> 0 | AH9: Annual | AK9: 1 | AL9: =1/12 -> 0.08333333333 | AN9: Salary or Wages | AP9: ='Calculator Parameters'!C10 -> 1
H10: 3 | J10: =CONCATENATE(" ") ->  | AH10: Monthly | AK10: 12 | AL10: 1 | AN10: Overtime | AP10: ='Calculator Parameters'!C11 -> 0.8 | AR10: Includes Allowance,Bonus,Overtime, Investment
I11: =Calculation!I11 -> Retail Lending: NSR should be 100% or less for approval | AH11: Fortnightly | AK11: 26.07142857 | AL11: =365/14/12 -> 2.172619048 | AN11: Commission | AP11: ='Calculator Parameters'!C14 -> 0.75
B12: Children in household | E12: ='NSR Calculator'!AZ16 -> 0 | AH12: Weekly | AK12: 52.14285714 | AL12: =365/7/12 -> 4.345238095 | AN12: Self-employed | AP12: ='Calculator Parameters'!C15 -> 1 | AR12: Includes Contract, Business Income
AH13: Quarterly | AK13: 4 | AL13: =4/12 -> 0.3333333333 | AN13: Beneficiary | AP13: ='Calculator Parameters'!C16 -> 1
B14: Owner Occupied | D14: =Calculation!D14 -> FALSE | G14: Prop Investor | H14: FALSE | AN14: Rentals | AP14: ='Calculator Parameters'!C17 -> 0.75
B15: Investment | D15: =Calculation!D15 -> FALSE | AH15: Tax status | AN15: Boarder | AP15: ='Calculator Parameters'!C20 -> 0.8
B16: Income input data (excluding rentals) source and amount | AH16: Gross (Pre tax) | AN16: Bonus | AP16: ='Calculator Parameters'!C12 -> 0.7
G17: Applicant 1 | K17: Applicant 2 | O17: Applicant 3 | S17: Applicant 4 | AH17: Net (After tax) | AN17: Allowance | AP17: ='Calculator Parameters'!C13 -> 0.8
C18: Salary or Wages | E18: Frequency | G18: 1 | H18: =INDEX(Calculation!$AH$9:$AH$13,G18) -> Annual | I18: ='NSR Calculator'!$AU$27 -> 0 | K18: 1 | L18: =INDEX(Calculation!$AH$9:$AH$13,K18) -> Annual | M18: ='NSR Calculator'!$AZ$27 -> 0 | O18: 1 | P18: =INDEX(Calculation!$AH$9:$AH$13,O18) -> Annual | Q18: 0 | S18: 1 | T18: =INDEX(Calculation!$AH$9:$AH$13,S18) -> Annual | U18: 0 | AN18: Investment | AP18: ='Calculator Parameters'!C18 -> 0.5
E19: Tax staus | G19: 1 | H19: =INDEX(Calculation!$AH$16:$AH$17,G19) -> Gross (Pre tax) | K19: 1 | L19: =INDEX(Calculation!$AH$16:$AH$17,K19) -> Gross (Pre tax) | O19: 1 | P19: =INDEX(Calculation!$AH$16:$AH$17,O19) -> Gross (Pre tax) | S19: 1 | T19: =INDEX(Calculation!$AH$16:$AH$17,S19) -> Gross (Pre tax) | AN19: Child Support | AP19: ='Calculator Parameters'!C19 -> 0.8
AK20: Conversion Factors
C21: Self-employed | E21: Frequency | G21: 1 | H21: =INDEX(Calculation!$AH$9:$AH$13,G21) -> Annual | I21: ='NSR Calculator'!$AU$30 -> 0 | K21: 1 | L21: =INDEX(Calculation!$AH$9:$AH$13,K21) -> Annual | M21: ='NSR Calculator'!$AZ$30 -> 0 | O21: 1 | P21: =INDEX(Calculation!$AH$9:$AH$13,O21) -> Annual | Q21: 0 | S21: 1 | T21: =INDEX(Calculation!$AH$9:$AH$13,S21) -> Annual | U21: 0 | AH21: Rental Frequency List | AK21: To Annual | AL21: To Monthly
E22: Tax staus | G22: 1 | H22: =INDEX(Calculation!$AH$16:$AH$17,G22) -> Gross (Pre tax) | K22: 1 | L22: =INDEX(Calculation!$AH$16:$AH$17,K22) -> Gross (Pre tax) | O22: 1 | P22: =INDEX(Calculation!$AH$16:$AH$17,O22) -> Gross (Pre tax) | S22: 1 | T22: =INDEX(Calculation!$AH$16:$AH$17,S22) -> Gross (Pre tax) | AH22: Weekly | AK22: =365/7 -> 52.14285714 | AL22: =365/7/12 -> 4.345238095
AH23: Fortnightly | AK23: =365/14 -> 26.07142857 | AL23: =365/14/12 -> 2.172619048
C24: Overtime | E24: Frequency | G24: 1 | H24: =INDEX(Calculation!$AH$9:$AH$13,G24) -> Annual | I24: ='NSR Calculator'!$AU$33 -> 0 | K24: 1 | L24: =INDEX(Calculation!$AH$9:$AH$13,K24) -> Annual | M24: ='NSR Calculator'!$AZ$33 -> 0 | O24: 1 | P24: =INDEX(Calculation!$AH$9:$AH$13,O24) -> Annual | Q24: 0 | S24: 1 | T24: =INDEX(Calculation!$AH$9:$AH$13,S24) -> Annual | U24: 0 | AH24: Monthly | AK24: =12 -> 12 | AL24: 1
E25: Tax staus | G25: 1 | H25: =INDEX(Calculation!$AH$16:$AH$17,G25) -> Gross (Pre tax) | K25: 1 | L25: =INDEX(Calculation!$AH$16:$AH$17,K25) -> Gross (Pre tax) | O25: 1 | P25: =INDEX(Calculation!$AH$16:$AH$17,O25) -> Gross (Pre tax) | S25: 1 | T25: =INDEX(Calculation!$AH$16:$AH$17,S25) -> Gross (Pre tax) | AH25: Annual | AK25: =1 -> 1 | AL25: =1/12 -> 0.08333333333
AH26: Quarterly | AK26: 4 | AL26: =4/12 -> 0.3333333333
C27: Bonus | E27: Frequency | G27: 1 | H27: =INDEX(Calculation!$AH$9:$AH$13,G27) -> Annual | I27: ='NSR Calculator'!$AU$36 -> 0 | K27: 1 | L27: =INDEX(Calculation!$AH$9:$AH$13,K27) -> Annual | M27: ='NSR Calculator'!$AZ$36 -> 0 | O27: 1 | P27: =INDEX(Calculation!$AH$9:$AH$13,O27) -> Annual | Q27: 0 | S27: 1 | T27: =INDEX(Calculation!$AH$9:$AH$13,S27) -> Annual | U27: 0
E28: Tax staus | G28: 1 | H28: =INDEX(Calculation!$AH$16:$AH$17,G28) -> Gross (Pre tax) | K28: 1 | L28: =INDEX(Calculation!$AH$16:$AH$17,K28) -> Gross (Pre tax) | O28: 1 | P28: =INDEX(Calculation!$AH$16:$AH$17,O28) -> Gross (Pre tax) | S28: 1 | T28: =INDEX(Calculation!$AH$16:$AH$17,S28) -> Gross (Pre tax) | AH28: Student Loan | AK28: Threshold | AL28: Rate
AH29: No
C30: Allowance | E30: Frequency | G30: 1 | H30: =INDEX(Calculation!$AH$9:$AH$13,G30) -> Annual | I30: ='NSR Calculator'!$AU$39 -> 0 | K30: 1 | L30: =INDEX(Calculation!$AH$9:$AH$13,K30) -> Annual | M30: ='NSR Calculator'!$AZ$39 -> 0 | O30: 1 | P30: =INDEX(Calculation!$AH$9:$AH$13,O30) -> Annual | Q30: 0 | S30: 1 | T30: =INDEX(Calculation!$AH$9:$AH$13,S30) -> Annual | U30: 0 | AH30: Yes | AK30: ='Calculator Parameters'!B38 -> 24128 | AL30: ='Calculator Parameters'!C38 -> 0.12
E31: Tax staus | G31: 1 | H31: =INDEX(Calculation!$AH$16:$AH$17,G31) -> Gross (Pre tax) | K31: 1 | L31: =INDEX(Calculation!$AH$16:$AH$17,K31) -> Gross (Pre tax) | O31: 1 | P31: =INDEX(Calculation!$AH$16:$AH$17,O31) -> Gross (Pre tax) | S31: 1 | T31: =INDEX(Calculation!$AH$16:$AH$17,S31) -> Gross (Pre tax)
AH32: KiwiSaver
C33: Commission | E33: Frequency | G33: 1 | H33: =INDEX(Calculation!$AH$9:$AH$13,G33) -> Annual | I33: ='NSR Calculator'!$AU$42 -> 0 | K33: 1 | L33: =INDEX(Calculation!$AH$9:$AH$13,K33) -> Annual | M33: ='NSR Calculator'!$AZ$42 -> 0 | O33: 1 | P33: =INDEX(Calculation!$AH$9:$AH$13,O33) -> Annual | Q33: 0 | S33: 1 | T33: =INDEX(Calculation!$AH$9:$AH$13,S33) -> Annual | U33: 0 | AH33: No
